Workbook

Sheet szignif_old
A1: Sig level | B1: 0.05
A2: 1/2 sided | B2: 2
A4: ALAPTÁBLA
B6: Comparing waves
B7: Significance for %
B9: 2015 | C9: 2016 | F9: Sample size1 | G9: Sample size2 | I9: Difference | J9: SE(p1) | K9: SE(p2) | L9: SE of difference | M9: t value | N9: p value | O9: Significance | Q9: 2016-2015
A10: Ár | B10: ='KPI 2016'!G8/100 ->  | C10: ='KPI 2016'!H8/100 ->  | F10: =OFFSET(adat!$F$5402,(5-1)*Lenyilo!$B$19*Lenyilo!$B$21*Lenyilo!$B$20+(Lenyilo!$G$2-1)*Lenyilo!$B$21*Lenyilo!$B$20+(Lenyilo!$A$2-1)*Lenyilo!$B$20+Lenyilo!$D$2,0) -> - | G10: =OFFSET(adat!$F$7202,(5-1)*Lenyilo!$B$19*Lenyilo!$B$21*Lenyilo!$B$20+(Lenyilo!$G$2-1)*Lenyilo!$B$21*Lenyilo!$B$20+(Lenyilo!$A$2-1)*Lenyilo!$B$20+Lenyilo!$D$2,0) -> - | I10: =C10-B10 ->  | J10: =IF((F10-1)=0,0,SQRT((1-B10)*B10/(F10-1))) ->  | K10: =IF((G10-1)=0,0,SQRT((1-C10)*C10/(G10-1))) ->  | L10: =SQRT(J10*J10+K10*K10) ->  | M10: =IF(L10>0,ABS(I10)/L10,0) ->  | N10: =IF(M10=0,1,TDIST(M10,F10+G10-2,$B$2)) ->  | O10: =IF(N10<=($B$1),"SIG","NOT SIG.") ->  | Q10: =C10-B10 -> 
A11: Gyorsaság | B11: ='KPI 2016'!G9/100 -> 0.0 | C11: ='KPI 2016'!H9/100 -> 0.0 | F11: =OFFSET(adat!$G$5402,(5-1)*Lenyilo!$B$19*Lenyilo!$B$21*Lenyilo!$B$20+(Lenyilo!$G$2-1)*Lenyilo!$B$21*Lenyilo!$B$20+(Lenyilo!$A$2-1)*Lenyilo!$B$20+Lenyilo!$D$2,0) -> 227 | G11: =OFFSET(adat!$G$7202,(5-1)*Lenyilo!$B$19*Lenyilo!$B$21*Lenyilo!$B$20+(Lenyilo!$G$2-1)*Lenyilo!$B$21*Lenyilo!$B$20+(Lenyilo!$A$2-1)*Lenyilo!$B$20+Lenyilo!$D$2,0) -> 229 | I11: =C11-B11 -> 0.005873715125 | J11: 0.012016432 | K11: 0.01292278803 | L11: 0.01764633358 | M11: =IF(L11>0,ABS(I11)/L11,0) -> 0.3328575366 | N11: 0.7393954722 | O11: NOT SIG. | Q11: =C11-B11 -> 0.0
A12: Elérhetőség | B12: ='KPI 2016'!G10/100 -> 0.1 | C12: ='KPI 2016'!H10/100 -> 0.0 | F12: =OFFSET(adat!$H$5402,(5-1)*Lenyilo!$B$19*Lenyilo!$B$21*Lenyilo!$B$20+(Lenyilo!$G$2-1)*Lenyilo!$B$21*Lenyilo!$B$20+(Lenyilo!$A$2-1)*Lenyilo!$B$20+Lenyilo!$D$2,0) -> 227 | G12: =OFFSET(adat!$H$7202,(5-1)*Lenyilo!$B$19*Lenyilo!$B$21*Lenyilo!$B$20+(Lenyilo!$G$2-1)*Lenyilo!$B$21*Lenyilo!$B$20+(Lenyilo!$A$2-1)*Lenyilo!$B$20+Lenyilo!$D$2,0) -> 229 | I12: -0.01982378855 | J12: 0.01573206555 | K12: 0.01292278803 | L12: 0.02035918311 | M12: 0.9737025518 | N12: 0.3307227508 | O12: NOT SIG. | Q12: -0.0
A13: Biztonság | B13: ='KPI 2016'!G11/100 -> 0.1 | C13: ='KPI 2016'!H11/100 -> 0.0 | F13: =OFFSET(adat!$I$5402,(5-1)*Lenyilo!$B$19*Lenyilo!$B$21*Lenyilo!$B$20+(Lenyilo!$G$2-1)*Lenyilo!$B$21*Lenyilo!$B$20+(Lenyilo!$A$2-1)*Lenyilo!$B$20+Lenyilo!$D$2,0) -> 227 | G13: =OFFSET(adat!$I$7202,(5-1)*Lenyilo!$B$19*Lenyilo!$B$21*Lenyilo!$B$20+(Lenyilo!$G$2-1)*Lenyilo!$B$21*Lenyilo!$B$20+(Lenyilo!$A$2-1)*Lenyilo!$B$20+Lenyilo!$D$2,0) -> 229 | I13: -0.09711917459 | J13: 0.02329814836 | K13: 0.01388104013 | L13: 0.02711986343 | M13: 3.581108543 | N13: 0.0003790647182 | O13: SIG | Q13: -0.1
A14: Megbízhatóság | B14: ='KPI 2016'!G12/100 -> 0.0 | C14: ='KPI 2016'!H12/100 -> 0.0 | F14: =OFFSET(adat!$J$5402,(5-1)*Lenyilo!$B$19*Lenyilo!$B$21*Lenyilo!$B$20+(Lenyilo!$G$2-1)*Lenyilo!$B$21*Lenyilo!$B$20+(Lenyilo!$A$2-1)*Lenyilo!$B$20+Lenyilo!$D$2,0) -> 227 | G14: =OFFSET(adat!$J$7202,(5-1)*Lenyilo!$B$19*Lenyilo!$B$21*Lenyilo!$B$20+(Lenyilo!$G$2-1)*Lenyilo!$B$21*Lenyilo!$B$20+(Lenyilo!$A$2-1)*Lenyilo!$B$20+Lenyilo!$D$2,0) -> 229 | I14: 0.02384356765 | J14: 0.007612904821 | K14: 0.01252018811 | L14: 0.01465303484 | M14: 1.627210193 | N14: 0.1043862556 | O14: NOT SIG. | Q14: 0.0
A15: Komfort | B15: ='KPI 2016'!G13/100 -> 0.0 | C15: ='KPI 2016'!H13/100 -> 0.0 | F15: =OFFSET(adat!$K$5402,(5-1)*Lenyilo!$B$19*Lenyilo!$B$21*Lenyilo!$B$20+(Lenyilo!$G$2-1)*Lenyilo!$B$21*Lenyilo!$B$20+(Lenyilo!$A$2-1)*Lenyilo!$B$20+Lenyilo!$D$2,0) -> 227 | G15: =OFFSET(adat!$K$7202,(5-1)*Lenyilo!$B$19*Lenyilo!$B$21*Lenyilo!$B$20+(Lenyilo!$G$2-1)*Lenyilo!$B$21*Lenyilo!$B$20+(Lenyilo!$A$2-1)*Lenyilo!$B$20+Lenyilo!$D$2,0) -> 229 | I15: 0.0005194005733 | J15: 0.01311724936 | K15: 0.01313945007 | L15: 0.01856629685 | M15: 0.02797545344 | N15: 0.9776940216 | O15: NOT SIG. | Q15: 0.0
A16: Tájékoztatás | B16: ='KPI 2016'!G14/100 -> 0.0 | C16: ='KPI 2016'!H14/100 -> 0.0 | F16: =OFFSET(adat!$L$5402,(5-1)*Lenyilo!$B$19*Lenyilo!$B$21*Lenyilo!$B$20+(Lenyilo!$G$2-1)*Lenyilo!$B$21*Lenyilo!$B$20+(Lenyilo!$A$2-1)*Lenyilo!$B$20+Lenyilo!$D$2,0) -> 227 | G16: =OFFSET(adat!$L$7202,(5-1)*Lenyilo!$B$19*Lenyilo!$B$21*Lenyilo!$B$20+(Lenyilo!$G$2-1)*Lenyilo!$B$21*Lenyilo!$B$20+(Lenyilo!$A$2-1)*Lenyilo!$B$20+Lenyilo!$D$2,0) -> 229 | I16: 0.006529959846 | J16: 0.008770893228 | K16: 0.0101829809 | L16: 0.0134395561 | M16: 0.4858761553 | N16: 0.6272893903 | O16: NOT SIG. | Q16: 0.0
A17: Munkavállalók | B17: ='KPI 2016'!G15/100 -> 0.0 | C17: ='KPI 2016'!H15/100 -> 0.0 | F17: =OFFSET(adat!$M$5402,(5-1)*Lenyilo!$B$19*Lenyilo!$B$21*Lenyilo!$B$20+(Lenyilo!$G$2-1)*Lenyilo!$B$21*Lenyilo!$B$20+(Lenyilo!$A$2-1)*Lenyilo!$B$20+Lenyilo!$D$2,0) -> 227 | G17: =OFFSET(adat!$M$7202,(5-1)*Lenyilo!$B$19*Lenyilo!$B$21*Lenyilo!$B$20+(Lenyilo!$G$2-1)*Lenyilo!$B$21*Lenyilo!$B$20+(Lenyilo!$A$2-1)*Lenyilo!$B$20+Lenyilo!$D$2,0) -> 229 | I17: =C17-B17 -> -0.01124743357 | J17: 0.01365053869 | K17: 0.01179674978 | L17: =SQRT(J17*J17+K17*K17) -> 0.01804163274 | M17: =IF(L17>0,ABS(I17)/L17,0) -> 0.6234155043 | N17: 0.5333245757 | O17: NOT SIG. | Q17: -0.0
A18: Összesített utas-elégedettség | B18: ='KPI 2016'!G16/100 -> 0.1 | C18: ='KPI 2016'!H16/100 -> 0.0 | F18: =OFFSET(adat!$N$5402,(5-1)*Lenyilo!$B$19*Lenyilo!$B$21*Lenyilo!$B$20+(Lenyilo!$G$2-1)*Lenyilo!$B$21*Lenyilo!$B$20+(Lenyilo!$A$2-1)*Lenyilo!$B$20+Lenyilo!$D$2,0) -> 227 | G18: =OFFSET(adat!$N$7202,(5-1)*Lenyilo!$B$19*Lenyilo!$B$21*Lenyilo!$B$20+(Lenyilo!$G$2-1)*Lenyilo!$B$21*Lenyilo!$B$20+(Lenyilo!$A$2-1)*Lenyilo!$B$20+Lenyilo!$D$2,0) -> 229 | I18: =C18-B18 -> -0.01245740015 | J18: 0.0145480686 | K18: 0.01264814201 | L18: =SQRT(J18*J18+K18*K18) -> 0.01927749455 | M18: =IF(L18>0,ABS(I18)/L18,0) -> 0.6462146892 | N18: 0.5184668419 | O18: NOT SIG. | Q18: -0.0
B21: Comparing waves
B22: Significance for mean
B24: 2015 | C24: 2016 | D24: Std. deviation1 | E24: Std. deviation2 | F24: Sample size1 | G24: Sample size2 | I24: Difference | J24: SE(p1) | K24: SE(p2) | L24: SE of difference | M24: t value | N24: p value | O24: Significance | Q24: 2016-2015
A25: Ár | B25: ='KPI 2016'!G8 -> - | C25: ='KPI 2016'!H8 -> - | D25: =OFFSET(adat!$P$5402,(4-1)*Lenyilo!$B$19*Lenyilo!$B$21*Lenyilo!$B$20+(Lenyilo!$G$2-1)*Lenyilo!$B$21*Lenyilo!$B$20+(Lenyilo!$A$2-1)*Lenyilo!$B$20+Lenyilo!$D$2,0) -> 0 | E25: =OFFSET(adat!$P$7202,(4-1)*Lenyilo!$B$19*Lenyilo!$B$21*Lenyilo!$B$20+(Lenyilo!$G$2-1)*Lenyilo!$B$21*Lenyilo!$B$20+(Lenyilo!$A$2-1)*Lenyilo!$B$20+Lenyilo!$D$2,0) -> 0 | F25: =OFFSET(adat!$F$5402,(5-1)*Lenyilo!$B$19*Lenyilo!$B$21*Lenyilo!$B$20+(Lenyilo!$G$2-1)*Lenyilo!$B$21*Lenyilo!$B$20+(Lenyilo!$A$2-1)*Lenyilo!$B$20+Lenyilo!$D$2,0) -> - | G25: =OFFSET(adat!$F$7202,(5-1)*Lenyilo!$B$19*Lenyilo!$B$21*Lenyilo!$B$20+(Lenyilo!$G$2-1)*Lenyilo!$B$21*Lenyilo!$B$20+(Lenyilo!$A$2-1)*Lenyilo!$B$20+Lenyilo!$D$2,0) -> - | I25: =C25-B25 ->  | J25: =IF(F25=0,0,D25*SQRT(1/F25)) ->  | K25: =IF(G25=0,0,E25*SQRT(1/G25)) ->  | L25: =SQRT(J25*J25+K25*K25) ->  | M25: =IF(L25>0,ABS(I25)/L25,0) ->  | N25: =IF(M25=0,1,TDIST(M25,F25+G25-2,$B$2)) ->  | O25: =IF(N25<=($B$1),"SIG","NOT SIG.") ->  | Q25: =C25-B25 -> 
A26: Gyorsaság | B26: ='KPI 2016'!G9 -> 3.4 | C26: ='KPI 2016'!H9 -> 4.0 | D26: =OFFSET(adat!$Q$5402,(4-1)*Lenyilo!$B$19*Lenyilo!$B$21*Lenyilo!$B$20+(Lenyilo!$G$2-1)*Lenyilo!$B$21*Lenyilo!$B$20+(Lenyilo!$A$2-1)*Lenyilo!$B$20+Lenyilo!$D$2,0) -> 0.6757820292 | E26: =OFFSET(adat!$Q$7202,(4-1)*Lenyilo!$B$19*Lenyilo!$B$21*Lenyilo!$B$20+(Lenyilo!$G$2-1)*Lenyilo!$B$21*Lenyilo!$B$20+(Lenyilo!$A$2-1)*Lenyilo!$B$20+Lenyilo!$D$2,0) -> 0.8098299519 | F26: =OFFSET(adat!$G$5402,(5-1)*Lenyilo!$B$19*Lenyilo!$B$21*Lenyilo!$B$20+(Lenyilo!$G$2-1)*Lenyilo!$B$21*Lenyilo!$B$20+(Lenyilo!$A$2-1)*Lenyilo!$B$20+Lenyilo!$D$2,0) -> 227 | G26: =OFFSET(adat!$G$7202,(5-1)*Lenyilo!$B$19*Lenyilo!$B$21*Lenyilo!$B$20+(Lenyilo!$G$2-1)*Lenyilo!$B$21*Lenyilo!$B$20+(Lenyilo!$A$2-1)*Lenyilo!$B$20+Lenyilo!$D$2,0) -> 229 | I26: =C26-B26 -> 0.6 | J26: =IF(F26=0,0,D26*SQRT(1/F26)) -> 0.04485322863 | K26: 0.05351506954 | L26: 0.0698260323 | M26: =IF(L26>0,ABS(I26)/L26,0) -> 8.411927374 | N26: 5.28255655e-16 | O26: SIG | Q26: =C26-B26 -> 1
A27: Elérhetőség | B27: ='KPI 2016'!G10 -> 5.9 | C27: ='KPI 2016'!H10 -> 4.0 | D27: =OFFSET(adat!$R$5402,(4-1)*Lenyilo!$B$19*Lenyilo!$B$21*Lenyilo!$B$20+(Lenyilo!$G$2-1)*Lenyilo!$B$21*Lenyilo!$B$20+(Lenyilo!$A$2-1)*Lenyilo!$B$20+Lenyilo!$D$2,0) -> 0.7863573989 | E27: =OFFSET(adat!$R$7202,(4-1)*Lenyilo!$B$19*Lenyilo!$B$21*Lenyilo!$B$20+(Lenyilo!$G$2-1)*Lenyilo!$B$21*Lenyilo!$B$20+(Lenyilo!$A$2-1)*Lenyilo!$B$20+Lenyilo!$D$2,0) -> 0.78908557 | F27: =OFFSET(adat!$H$5402,(5-1)*Lenyilo!$B$19*Lenyilo!$B$21*Lenyilo!$B$20+(Lenyilo!$G$2-1)*Lenyilo!$B$21*Lenyilo!$B$20+(Lenyilo!$A$2-1)*Lenyilo!$B$20+Lenyilo!$D$2,0) -> 227 | G27: =OFFSET(adat!$H$7202,(5-1)*Lenyilo!$B$19*Lenyilo!$B$21*Lenyilo!$B$20+(Lenyilo!$G$2-1)*Lenyilo!$B$21*Lenyilo!$B$20+(Lenyilo!$A$2-1)*Lenyilo!$B$20+Lenyilo!$D$2,0) -> 229 | I27: -2.0 | J27: 0.05219237369 | K27: 0.0521442422 | L27: 0.07377713647 | M27: 26.86982647 | N27: 7.059449511e-96 | O27: SIG | Q27: -2
A28: Biztonság | B28: ='KPI 2016'!G11 -> 14.3 | C28: ='KPI 2016'!H11 -> 4.6 | D28: =OFFSET(adat!$S$5402,(4-1)*Lenyilo!$B$19*Lenyilo!$B$21*Lenyilo!$B$20+(Lenyilo!$G$2-1)*Lenyilo!$B$21*Lenyilo!$B$20+(Lenyilo!$A$2-1)*Lenyilo!$B$20+Lenyilo!$D$2,0) -> 0.8244868502 | E28: =OFFSET(adat!$S$7202,(4-1)*Lenyilo!$B$19*Lenyilo!$B$21*Lenyilo!$B$20+(Lenyilo!$G$2-1)*Lenyilo!$B$21*Lenyilo!$B$20+(Lenyilo!$A$2-1)*Lenyilo!$B$20+Lenyilo!$D$2,0) -> 0.7837364309 | F28: =OFFSET(adat!$I$5402,(5-1)*Lenyilo!$B$19*Lenyilo!$B$21*Lenyilo!$B$20+(Lenyilo!$G$2-1)*Lenyilo!$B$21*Lenyilo!$B$20+(Lenyilo!$A$2-1)*Lenyilo!$B$20+Lenyilo!$D$2,0) -> 227 | G28: =OFFSET(adat!$I$7202,(5-1)*Lenyilo!$B$19*Lenyilo!$B$21*Lenyilo!$B$20+(Lenyilo!$G$2-1)*Lenyilo!$B$21*Lenyilo!$B$20+(Lenyilo!$A$2-1)*Lenyilo!$B$20+Lenyilo!$D$2,0) -> 229 | I28: -9.7 | J28: 0.05472311426 | K28: 0.05179076114 | L28: 0.07534521998 | M28: 128.8989197 | N28: 0 | O28: SIG | Q28: -10
A29: Megbízhatóság | B29: ='KPI 2016'!G12 -> 1.3 | C29: ='KPI 2016'!H12 -> 3.7 | D29: =OFFSET(adat!$T$5402,(4-1)*Lenyilo!$B$19*Lenyilo!$B$21*Lenyilo!$B$20+(Lenyilo!$G$2-1)*Lenyilo!$B$21*Lenyilo!$B$20+(Lenyilo!$A$2-1)*Lenyilo!$B$20+Lenyilo!$D$2,0) -> 0.6682282596 | E29: =OFFSET(adat!$T$7202,(4-1)*Lenyilo!$B$19*Lenyilo!$B$21*Lenyilo!$B$20+(Lenyilo!$G$2-1)*Lenyilo!$B$21*Lenyilo!$B$20+(Lenyilo!$A$2-1)*Lenyilo!$B$20+Lenyilo!$D$2,0) -> 0.7624575097 | F29: =OFFSET(adat!$J$5402,(5-1)*Lenyilo!$B$19*Lenyilo!$B$21*Lenyilo!$B$20+(Lenyilo!$G$2-1)*Lenyilo!$B$21*Lenyilo!$B$20+(Lenyilo!$A$2-1)*Lenyilo!$B$20+Lenyilo!$D$2,0) -> 227 | G29: =OFFSET(adat!$J$7202,(5-1)*Lenyilo!$B$19*Lenyilo!$B$21*Lenyilo!$B$20+(Lenyilo!$G$2-1)*Lenyilo!$B$21*Lenyilo!$B$20+(Lenyilo!$A$2-1)*Lenyilo!$B$20+Lenyilo!$D$2,0) -> 229 | I29: 2.4 | J29: 0.04435186733 | K29: 0.05038461045 | L29: 0.06712448961 | M29: 35.5214137 | N29: 3.70674181e-133 | O29: SIG | Q29: 2
A30: Komfort | B30: ='KPI 2016'!G13 -> 4.1 | C30: ='KPI 2016'!H13 -> 4.1 | D30: =OFFSET(adat!$U$5402,(4-1)*Lenyilo!$B$19*Lenyilo!$B$21*Lenyilo!$B$20+(Lenyilo!$G$2-1)*Lenyilo!$B$21*Lenyilo!$B$20+(Lenyilo!$A$2-1)*Lenyilo!$B$20+Lenyilo!$D$2,0) -> 0.6370777012 | E30: =OFFSET(adat!$U$7202,(4-1)*Lenyilo!$B$19*Lenyilo!$B$21*Lenyilo!$B$20+(Lenyilo!$G$2-1)*Lenyilo!$B$21*Lenyilo!$B$20+(Lenyilo!$A$2-1)*Lenyilo!$B$20+Lenyilo!$D$2,0) -> 0.770592575 | F30: =OFFSET(adat!$K$5402,(5-1)*Lenyilo!$B$19*Lenyilo!$B$21*Lenyilo!$B$20+(Lenyilo!$G$2-1)*Lenyilo!$B$21*Lenyilo!$B$20+(Lenyilo!$A$2-1)*Lenyilo!$B$20+Lenyilo!$D$2,0) -> 227 | G30: =OFFSET(adat!$K$7202,(5-1)*Lenyilo!$B$19*Lenyilo!$B$21*Lenyilo!$B$20+(Lenyilo!$G$2-1)*Lenyilo!$B$21*Lenyilo!$B$20+(Lenyilo!$A$2-1)*Lenyilo!$B$20+Lenyilo!$D$2,0) -> 229 | I30: 0.1 | J30: 0.04228433216 | K30: 0.05092219069 | L30: 0.06618938171 | M30: 0.7847188777 | N30: 0.4330276798 | O30: NOT SIG. | Q30: 0
A31: Tájékoztatás | B31: ='KPI 2016'!G14 -> 1.8 | C31: ='KPI 2016'!H14 -> 2.4 | D31: =OFFSET(adat!$V$5402,(4-1)*Lenyilo!$B$19*Lenyilo!$B$21*Lenyilo!$B$20+(Lenyilo!$G$2-1)*Lenyilo!$B$21*Lenyilo!$B$20+(Lenyilo!$A$2-1)*Lenyilo!$B$20+Lenyilo!$D$2,0) -> 0.7053246008 | E31: =OFFSET(adat!$V$7202,(4-1)*Lenyilo!$B$19*Lenyilo!$B$21*Lenyilo!$B$20+(Lenyilo!$G$2-1)*Lenyilo!$B$21*Lenyilo!$B$20+(Lenyilo!$A$2-1)*Lenyilo!$B$20+Lenyilo!$D$2,0) -> 0.7106676693 | F31: =OFFSET(adat!$L$5402,(5-1)*Lenyilo!$B$19*Lenyilo!$B$21*Lenyilo!$B$20+(Lenyilo!$G$2-1)*Lenyilo!$B$21*Lenyilo!$B$20+(Lenyilo!$A$2-1)*Lenyilo!$B$20+Lenyilo!$D$2,0) -> 227 | G31: =OFFSET(adat!$L$7202,(5-1)*Lenyilo!$B$19*Lenyilo!$B$21*Lenyilo!$B$20+(Lenyilo!$G$2-1)*Lenyilo!$B$21*Lenyilo!$B$20+(Lenyilo!$A$2-1)*Lenyilo!$B$20+Lenyilo!$D$2,0) -> 229 | I31: 0.7 | J31: 0.04681403798 | K31: 0.04696224146 | L31: 0.06630992592 | M31: 9.847635562 | N31: 7.254878568e-21 | O31: SIG | Q31: 1
A32: Munkavállalók | B32: ='KPI 2016'!G15 -> 4.4 | C32: ='KPI 2016'!H15 -> 3.3 | D32: =OFFSET(adat!$W$5402,(4-1)*Lenyilo!$B$19*Lenyilo!$B$21*Lenyilo!$B$20+(Lenyilo!$G$2-1)*Lenyilo!$B$21*Lenyilo!$B$20+(Lenyilo!$A$2-1)*Lenyilo!$B$20+Lenyilo!$D$2,0) -> 0.7296048939 | E32: =OFFSET(adat!$W$7202,(4-1)*Lenyilo!$B$19*Lenyilo!$B$21*Lenyilo!$B$20+(Lenyilo!$G$2-1)*Lenyilo!$B$21*Lenyilo!$B$20+(Lenyilo!$A$2-1)*Lenyilo!$B$20+Lenyilo!$D$2,0) -> 0.7710620684 | F32: =OFFSET(adat!$M$5402,(5-1)*Lenyilo!$B$19*Lenyilo!$B$21*Lenyilo!$B$20+(Lenyilo!$G$2-1)*Lenyilo!$B$21*Lenyilo!$B$20+(Lenyilo!$A$2-1)*Lenyilo!$B$20+Lenyilo!$D$2,0) -> 227 | G32: =OFFSET(adat!$M$7202,(5-1)*Lenyilo!$B$19*Lenyilo!$B$21*Lenyilo!$B$20+(Lenyilo!$G$2-1)*Lenyilo!$B$21*Lenyilo!$B$20+(Lenyilo!$A$2-1)*Lenyilo!$B$20+Lenyilo!$D$2,0) -> 229 | I32: =C32-B32 -> -1.1 | J32: 0.04842557764 | K32: 0.05095321569 | L32: =SQRT(J32*J32+K32*K32) -> 0.07029414455 | M32: =IF(L32>0,ABS(I32)/L32,0) -> 16.00052699 | N32: 5.089698123e-46 | O32: SIG | Q32: -1
A33: Összesített utas-elégedettség | B33: ='KPI 2016'!G16 -> 5.0 | C33: ='KPI 2016'!H16 -> 3.8 | D33: =OFFSET(adat!$X$5402,(4-1)*Lenyilo!$B$19*Lenyilo!$B$21*Lenyilo!$B$20+(Lenyilo!$G$2-1)*Lenyilo!$B$21*Lenyilo!$B$20+(Lenyilo!$A$2-1)*Lenyilo!$B$20+Lenyilo!$D$2,0) -> 0.5395060492 | E33: =OFFSET(adat!$X$7202,(4-1)*Lenyilo!$B$19*Lenyilo!$B$21*Lenyilo!$B$20+(Lenyilo!$G$2-1)*Lenyilo!$B$21*Lenyilo!$B$20+(Lenyilo!$A$2-1)*Lenyilo!$B$20+Lenyilo!$D$2,0) -> 0.699874494 | F33: =OFFSET(adat!$N$5402,(5-1)*Lenyilo!$B$19*Lenyilo!$B$21*Lenyilo!$B$20+(Lenyilo!$G$2-1)*Lenyilo!$B$21*Lenyilo!$B$20+(Lenyilo!$A$2-1)*Lenyilo!$B$20+Lenyilo!$D$2,0) -> 227 | G33: =OFFSET(adat!$N$7202,(5-1)*Lenyilo!$B$19*Lenyilo!$B$21*Lenyilo!$B$20+(Lenyilo!$G$2-1)*Lenyilo!$B$21*Lenyilo!$B$20+(Lenyilo!$A$2-1)*Lenyilo!$B$20+Lenyilo!$D$2,0) -> 229 | I33: =C33-B33 -> -1.2 | J33: 0.03580827416 | K33: 0.04624900836 | L33: =SQRT(J33*J33+K33*K33) -> 0.05849105293 | M33: =IF(L33>0,ABS(I33)/L33,0) -> 21.29795845 | N33: 2.704800957e-70 | O33: SIG | Q33: -1
A35: ÖSSZEHASONLÍTÓ TÁBLA
B37: Comparing waves
B38: Significance for %
B40: 2015 | C40: 2016 | F40: Sample size1 | G40: Sample size2 | I40: Difference | J40: SE(p1) | K40: SE(p2) | L40: SE of difference | M40: t value | N40: p value | O40: Significance | Q40: 2016-2015
A41: Ár | B41: ='KPI 2016'!G26/100 ->  | C41: ='KPI 2016'!H26/100 ->  | F41: =OFFSET(adat!$F$5402,(5-1)*Lenyilo!$B$19*Lenyilo!$B$21*Lenyilo!$B$20+(Lenyilo!$G$2-1)*Lenyilo!$B$21*Lenyilo!$B$20+(Lenyilo!$A$2-1)*Lenyilo!$B$20+Lenyilo!$D$2,0) -> - | G41: =OFFSET(adat!$F$7202,(5-1)*Lenyilo!$B$19*Lenyilo!$B$21*Lenyilo!$B$20+(Lenyilo!$G$2-1)*Lenyilo!$B$21*Lenyilo!$B$20+(Lenyilo!$A$2-1)*Lenyilo!$B$20+Lenyilo!$D$2,0) -> - | I41: =C41-B41 ->  | J41: =IF((F41-1)=0,0,SQRT((1-B41)*B41/(F41-1))) ->  | K41: =IF((G41-1)=0,0,SQRT((1-C41)*C41/(G41-1))) ->  | L41: =SQRT(J41*J41+K41*K41) ->  | M41: =IF(L41>0,ABS(I41)/L41,0) ->  | N41: =IF(M41=0,1,TDIST(M41,F41+G41-2,$B$2)) ->  | O41: =IF(N41<=($B$1),"SIG","NOT SIG.") ->  | Q41: =C41-B41 -> 
A42: Gyorsaság | B42: ='KPI 2016'!G27/100 -> 0.8 | C42: ='KPI 2016'!H27/100 -> 0.8 | F42: =OFFSET(adat!$G$5402,(5-1)*Lenyilo!$B$19*Lenyilo!$B$21*Lenyilo!$B$20+(Lenyilo!$G$2-1)*Lenyilo!$B$21*Lenyilo!$B$20+(Lenyilo!$A$2-1)*Lenyilo!$B$20+Lenyilo!$D$2,0) -> 227 | G42: =OFFSET(adat!$G$7202,(5-1)*Lenyilo!$B$19*Lenyilo!$B$21*Lenyilo!$B$20+(Lenyilo!$G$2-1)*Lenyilo!$B$21*Lenyilo!$B$20+(Lenyilo!$A$2-1)*Lenyilo!$B$20+Lenyilo!$D$2,0) -> 229 | I42: =C42-B42 -> 0.02422723475 | J42: =IF((F42-1)=0,0,SQRT((1-B42)*B42/(F42-1))) -> 0.02765459412 | K42: =IF((G42-1)=0,0,SQRT((1-C42)*C42/(G42-1))) -> 0.02639053628 | L42: 0.03822612956 | M42: =IF(L42>0,ABS(I42)/L42,0) -> 0.6337872819 | N42: 0.5265388259 | O42: NOT SIG. | Q42: =C42-B42 -> 0
A43: Elérhetőség | B43: ='KPI 2016'!G28/100 -> 0.8 | C43: ='KPI 2016'!H28/100 -> 0.8 | F43: =OFFSET(adat!$H$5402,(5-1)*Lenyilo!$B$19*Lenyilo!$B$21*Lenyilo!$B$20+(Lenyilo!$G$2-1)*Lenyilo!$B$21*Lenyilo!$B$20+(Lenyilo!$A$2-1)*Lenyilo!$B$20+Lenyilo!$D$2,0) -> 227 | G43: =OFFSET(adat!$H$7202,(5-1)*Lenyilo!$B$19*Lenyilo!$B$21*Lenyilo!$B$20+(Lenyilo!$G$2-1)*Lenyilo!$B$21*Lenyilo!$B$20+(Lenyilo!$A$2-1)*Lenyilo!$B$20+Lenyilo!$D$2,0) -> 229 | I43: 0.01505513147 | J43: 0.02632638927 | K43: 0.02540969453 | L43: 0.03658867787 | M43: 0.4114696771 | N43: 0.6809223443 | O43: NOT SIG. | Q43: 0
A44: Biztonság | B44: ='KPI 2016'!G29/100 -> 0.6 | C44: ='KPI 2016'!H29/100 -> 0.8 | F44: =OFFSET(adat!$I$5402,(5-1)*Lenyilo!$B$19*Lenyilo!$B$21*Lenyilo!$B$20+(Lenyilo!$G$2-1)*Lenyilo!$B$21*Lenyilo!$B$20+(Lenyilo!$A$2-1)*Lenyilo!$B$20+Lenyilo!$D$2,0) -> 227 | G44: =OFFSET(adat!$I$7202,(5-1)*Lenyilo!$B$19*Lenyilo!$B$21*Lenyilo!$B$20+(Lenyilo!$G$2-1)*Lenyilo!$B$21*Lenyilo!$B$20+(Lenyilo!$A$2-1)*Lenyilo!$B$20+Lenyilo!$D$2,0) -> 229 | I44: 0.189583808 | J44: 0.0323088954 | K44: 0.02607085402 | L44: 0.0415157097 | M44: 4.566555875 | N44: 6.394519253e-06 | O44: SIG | Q44: 0
A45: Megbízhatóság | B45: ='KPI 2016'!G30/100 -> 0.8 | C45: ='KPI 2016'!H30/100 -> 0.8 | F45: =OFFSET(adat!$J$5402,(5-1)*Lenyilo!$B$19*Lenyilo!$B$21*Lenyilo!$B$20+(Lenyilo!$G$2-1)*Lenyilo!$B$21*Lenyilo!$B$20+(Lenyilo!$A$2-1)*Lenyilo!$B$20+Lenyilo!$D$2,0) -> 227 | G45: =OFFSET(adat!$J$7202,(5-1)*Lenyilo!$B$19*Lenyilo!$B$21*Lenyilo!$B$20+(Lenyilo!$G$2-1)*Lenyilo!$B$21*Lenyilo!$B$20+(Lenyilo!$A$2-1)*Lenyilo!$B$20+Lenyilo!$D$2,0) -> 229 | I45: 0.05680868839 | J45: 0.02765459412 | K45: 0.02460672215 | L45: 0.0370171224 | M45: 1.534659766 | N45: 0.1255639854 | O45: NOT SIG. | Q45: 0
A46: Komfort | B46: ='KPI 2016'!G31/100 -> 0.7 | C46: ='KPI 2016'!H31/100 -> 0.8 | F46: =OFFSET(adat!$K$5402,(5-1)*Lenyilo!$B$19*Lenyilo!$B$21*Lenyilo!$B$20+(Lenyilo!$G$2-1)*Lenyilo!$B$21*Lenyilo!$B$20+(Lenyilo!$A$2-1)*Lenyilo!$B$20+Lenyilo!$D$2,0) -> 227 | G46: =OFFSET(adat!$K$7202,(5-1)*Lenyilo!$B$19*Lenyilo!$B$21*Lenyilo!$B$20+(Lenyilo!$G$2-1)*Lenyilo!$B$21*Lenyilo!$B$20+(Lenyilo!$A$2-1)*Lenyilo!$B$20+Lenyilo!$D$2,0) -> 229 | I46: 0.1429179008 | J46: 0.03154225467 | K46: 0.02641566214 | L46: 0.0411424481 | M46: 3.473733514 | N46: 0.0005624951265 | O46: SIG | Q46: 0
A47: Tájékoztatás | B47: ='KPI 2016'!G32/100 -> 0.8 | C47: ='KPI 2016'!H32/100 -> 0.9 | F47: =OFFSET(adat!$L$5402,(5-1)*Lenyilo!$B$19*Lenyilo!$B$21*Lenyilo!$B$20+(Lenyilo!$G$2-1)*Lenyilo!$B$21*Lenyilo!$B$20+(Lenyilo!$A$2-1)*Lenyilo!$B$20+Lenyilo!$D$2,0) -> 227 | G47: =OFFSET(adat!$L$7202,(5-1)*Lenyilo!$B$19*Lenyilo!$B$21*Lenyilo!$B$20+(Lenyilo!$G$2-1)*Lenyilo!$B$21*Lenyilo!$B$20+(Lenyilo!$A$2-1)*Lenyilo!$B$20+Lenyilo!$D$2,0) -> 229 | I47: 0.0508713085 | J47: 0.02493939678 | K47: 0.02139036139 | L47: 0.03285606599 | M47: 1.54830796 | N47: 0.1222449378 | O47: NOT SIG. | Q47: 0
A48: Munkavállalók | B48: ='KPI 2016'!G33/100 -> 0.8 | C48: ='KPI 2016'!H33/100 -> 0.8 | F48: =OFFSET(adat!$M$5402,(5-1)*Lenyilo!$B$19*Lenyilo!$B$21*Lenyilo!$B$20+(Lenyilo!$G$2-1)*Lenyilo!$B$21*Lenyilo!$B$20+(Lenyilo!$A$2-1)*Lenyilo!$B$20+Lenyilo!$D$2,0) -> 227 | G48: =OFFSET(adat!$M$7202,(5-1)*Lenyilo!$B$19*Lenyilo!$B$21*Lenyilo!$B$20+(Lenyilo!$G$2-1)*Lenyilo!$B$21*Lenyilo!$B$20+(Lenyilo!$A$2-1)*Lenyilo!$B$20+Lenyilo!$D$2,0) -> 229 | I48: =C48-B48 -> -0.007020327816 | J48: =IF((F48-1)=0,0,SQRT((1-B48)*B48/(F48-1))) -> 0.02649237474 | K48: =IF((G48-1)=0,0,SQRT((1-C48)*C48/(G48-1))) -> 0.02672244651 | L48: =SQRT(J48*J48+K48*K48) -> 0.03762891264 | M48: =IF(L48>0,ABS(I48)/L48,0) -> 0.1865673846 | N48: 0.8520831781 | O48: NOT SIG. | Q48: -0
A49: Összesített utas-elégedettség | B49: ='KPI 2016'!G34/100 -> 0.8 | C49: ='KPI 2016'!H34/100 -> 0.8 | F49: =OFFSET(adat!$N$5402,(5-1)*Lenyilo!$B$19*Lenyilo!$B$21*Lenyilo!$B$20+(Lenyilo!$G$2-1)*Lenyilo!$B$21*Lenyilo!$B$20+(Lenyilo!$A$2-1)*Lenyilo!$B$20+Lenyilo!$D$2,0) -> 227 | G49: =OFFSET(adat!$N$7202,(5-1)*Lenyilo!$B$19*Lenyilo!$B$21*Lenyilo!$B$20+(Lenyilo!$G$2-1)*Lenyilo!$B$21*Lenyilo!$B$20+(Lenyilo!$A$2-1)*Lenyilo!$B$20+Lenyilo!$D$2,0) -> 229 | I49: =C49-B49 -> 0.05825699659 | J49: =IF((F49-1)=0,0,SQRT((1-B49)*B49/(F49-1))) -> 0.02849556489 | K49: =IF((G49-1)=0,0,SQRT((1-C49)*C49/(G49-1))) -> 0.02565577697 | L49: =SQRT(J49*J49+K49*K49) -> 0.03834339722 | M49: =IF(L49>0,ABS(I49)/L49,0) -> 1.519348853 | N49: 0.129370782 | O49: NOT SIG. | Q49: 0
B52: Comparing waves
B53: Significance for mean
B55: 2015 | C55: 2016 | D55: Std. deviation1 | E55: Std. deviation2 | F55: Sample size1 | G55: Sample size2 | I55: Difference | J55: SE(p1) | K55: SE(p2) | L55: SE of difference | M55: t value | N55: p value | O55: Significance | Q55: 2016-2015
A56: Ár | B56: ='KPI 2016'!G26 -> - | C56: ='KPI 2016'!H26 -> - | D56: =OFFSET(adat!$P$5402,(4-1)*Lenyilo!$B$19*Lenyilo!$B$21*Lenyilo!$B$20+(Lenyilo!$G$2-1)*Lenyilo!$B$21*Lenyilo!$B$20+(Lenyilo!$A$2-1)*Lenyilo!$B$20+Lenyilo!$D$2,0) -> 0 | E56: =OFFSET(adat!$P$7202,(4-1)*Lenyilo!$B$19*Lenyilo!$B$21*Lenyilo!$B$20+(Lenyilo!$G$2-1)*Lenyilo!$B$21*Lenyilo!$B$20+(Lenyilo!$A$2-1)*Lenyilo!$B$20+Lenyilo!$D$2,0) -> 0 | F56: =OFFSET(adat!$F$1802,(5-1)*Lenyilo!$B$19*Lenyilo!$B$21*Lenyilo!$B$20+(Lenyilo!$G$2-1)*Lenyilo!$B$21*Lenyilo!$B$20+(Lenyilo!$A$2-1)*Lenyilo!$B$20+Lenyilo!$D$2,0) -> - | G56: =OFFSET(adat!$F$5402,(5-1)*Lenyilo!$B$19*Lenyilo!$B$21*Lenyilo!$B$20+(Lenyilo!$G$2-1)*Lenyilo!$B$21*Lenyilo!$B$20+(Lenyilo!$A$2-1)*Lenyilo!$B$20+Lenyilo!$D$2,0) -> - | I56: =C56-B56 ->  | J56: =IF(F56=0,0,D56*SQRT(1/F56)) ->  | K56: =IF(G56=0,0,E56*SQRT(1/G56)) ->  | L56: =SQRT(J56*J56+K56*K56) ->  | M56: =IF(L56>0,ABS(I56)/L56,0) ->  | N56: =IF(M56=0,1,TDIST(M56,F56+G56-2,$B$2)) ->  | O56: =IF(N56<=($B$1),"SIG","NOT SIG.") ->  | Q56: =C56-B56 -> 
A57: Gyorsaság | B57: ='KPI 2016'!G27 -> 77.8 | C57: ='KPI 2016'!H27 -> 80.2 | D57: =OFFSET(adat!$Q$5402,(4-1)*Lenyilo!$B$19*Lenyilo!$B$21*Lenyilo!$B$20+(Lenyilo!$G$2-1)*Lenyilo!$B$21*Lenyilo!$B$20+(Lenyilo!$A$2-1)*Lenyilo!$B$20+Lenyilo!$D$2,0) -> 0.6757820292 | E57: =OFFSET(adat!$Q$7202,(4-1)*Lenyilo!$B$19*Lenyilo!$B$21*Lenyilo!$B$20+(Lenyilo!$G$2-1)*Lenyilo!$B$21*Lenyilo!$B$20+(Lenyilo!$A$2-1)*Lenyilo!$B$20+Lenyilo!$D$2,0) -> 0.8098299519 | F57: =OFFSET(adat!$G$1802,(5-1)*Lenyilo!$B$19*Lenyilo!$B$21*Lenyilo!$B$20+(Lenyilo!$G$2-1)*Lenyilo!$B$21*Lenyilo!$B$20+(Lenyilo!$A$2-1)*Lenyilo!$B$20+Lenyilo!$D$2,0) -> 207 | G57: =OFFSET(adat!$G$5402,(5-1)*Lenyilo!$B$19*Lenyilo!$B$21*Lenyilo!$B$20+(Lenyilo!$G$2-1)*Lenyilo!$B$21*Lenyilo!$B$20+(Lenyilo!$A$2-1)*Lenyilo!$B$20+Lenyilo!$D$2,0) -> 227 | I57: =C57-B57 -> 2.422723475 | J57: =IF(F57=0,0,D57*SQRT(1/F57)) -> 0.04697009795 | K57: =IF(G57=0,0,E57*SQRT(1/G57)) -> 0.05375030175 | L57: 0.07138126532 | M57: =IF(L57>0,ABS(I57)/L57,0) -> 33.94060703 | N57: 5.918080996e-124 | O57: SIG | Q57: =C57-B57 -> 2
A58: Elérhetőség | B58: ='KPI 2016'!G28 -> 80.6 | C58: ='KPI 2016'!H28 -> 82.1 | D58: =OFFSET(adat!$R$5402,(4-1)*Lenyilo!$B$19*Lenyilo!$B$21*Lenyilo!$B$20+(Lenyilo!$G$2-1)*Lenyilo!$B$21*Lenyilo!$B$20+(Lenyilo!$A$2-1)*Lenyilo!$B$20+Lenyilo!$D$2,0) -> 0.7863573989 | E58: =OFFSET(adat!$R$7202,(4-1)*Lenyilo!$B$19*Lenyilo!$B$21*Lenyilo!$B$20+(Lenyilo!$G$2-1)*Lenyilo!$B$21*Lenyilo!$B$20+(Lenyilo!$A$2-1)*Lenyilo!$B$20+Lenyilo!$D$2,0) -> 0.78908557 | F58: =OFFSET(adat!$H$1802,(5-1)*Lenyilo!$B$19*Lenyilo!$B$21*Lenyilo!$B$20+(Lenyilo!$G$2-1)*Lenyilo!$B$21*Lenyilo!$B$20+(Lenyilo!$A$2-1)*Lenyilo!$B$20+Lenyilo!$D$2,0) -> 207 | G58: =OFFSET(adat!$H$5402,(5-1)*Lenyilo!$B$19*Lenyilo!$B$21*Lenyilo!$B$20+(Lenyilo!$G$2-1)*Lenyilo!$B$21*Lenyilo!$B$20+(Lenyilo!$A$2-1)*Lenyilo!$B$20+Lenyilo!$D$2,0) -> 227 | I58: 1.505513147 | J58: 0.05465561742 | K58: 0.05237344877 | L58: 0.0756981813 | M58: 19.88836615 | N58: 5.813244524e-63 | O58: SIG | Q58: 2
A59: Biztonság | B59: ='KPI 2016'!G29 -> 61.9 | C59: ='KPI 2016'!H29 -> 80.8 | D59: =OFFSET(adat!$S$5402,(4-1)*Lenyilo!$B$19*Lenyilo!$B$21*Lenyilo!$B$20+(Lenyilo!$G$2-1)*Lenyilo!$B$21*Lenyilo!$B$20+(Lenyilo!$A$2-1)*Lenyilo!$B$20+Lenyilo!$D$2,0) -> 0.8244868502 | E59: =OFFSET(adat!$S$7202,(4-1)*Lenyilo!$B$19*Lenyilo!$B$21*Lenyilo!$B$20+(Lenyilo!$G$2-1)*Lenyilo!$B$21*Lenyilo!$B$20+(Lenyilo!$A$2-1)*Lenyilo!$B$20+Lenyilo!$D$2,0) -> 0.7837364309 | F59: =OFFSET(adat!$I$1802,(5-1)*Lenyilo!$B$19*Lenyilo!$B$21*Lenyilo!$B$20+(Lenyilo!$G$2-1)*Lenyilo!$B$21*Lenyilo!$B$20+(Lenyilo!$A$2-1)*Lenyilo!$B$20+Lenyilo!$D$2,0) -> 207 | G59: =OFFSET(adat!$I$5402,(5-1)*Lenyilo!$B$19*Lenyilo!$B$21*Lenyilo!$B$20+(Lenyilo!$G$2-1)*Lenyilo!$B$21*Lenyilo!$B$20+(Lenyilo!$A$2-1)*Lenyilo!$B$20+Lenyilo!$D$2,0) -> 227 | I59: 18.9583808 | J59: 0.05730579749 | K59: 0.05201841393 | L59: 0.07739424923 | M59: 244.9585207 | N59: 0 | O59: SIG | Q59: 19
A60: Megbízhatóság | B60: ='KPI 2016'!G30 -> 77.8 | C60: ='KPI 2016'!H30 -> 83.5 | D60: =OFFSET(adat!$T$5402,(4-1)*Lenyilo!$B$19*Lenyilo!$B$21*Lenyilo!$B$20+(Lenyilo!$G$2-1)*Lenyilo!$B$21*Lenyilo!$B$20+(Lenyilo!$A$2-1)*Lenyilo!$B$20+Lenyilo!$D$2,0) -> 0.6682282596 | E60: =OFFSET(adat!$T$7202,(4-1)*Lenyilo!$B$19*Lenyilo!$B$21*Lenyilo!$B$20+(Lenyilo!$G$2-1)*Lenyilo!$B$21*Lenyilo!$B$20+(Lenyilo!$A$2-1)*Lenyilo!$B$20+Lenyilo!$D$2,0) -> 0.7624575097 | F60: =OFFSET(adat!$J$1802,(5-1)*Lenyilo!$B$19*Lenyilo!$B$21*Lenyilo!$B$20+(Lenyilo!$G$2-1)*Lenyilo!$B$21*Lenyilo!$B$20+(Lenyilo!$A$2-1)*Lenyilo!$B$20+Lenyilo!$D$2,0) -> 207 | G60: =OFFSET(adat!$J$5402,(5-1)*Lenyilo!$B$19*Lenyilo!$B$21*Lenyilo!$B$20+(Lenyilo!$G$2-1)*Lenyilo!$B$21*Lenyilo!$B$20+(Lenyilo!$A$2-1)*Lenyilo!$B$20+Lenyilo!$D$2,0) -> 227 | I60: 5.680868839 | J60: 0.04644507467 | K60: 0.05060608233 | L60: 0.06868857641 | M60: 82.70471068 | N60: 5.540430778e-267 | O60: SIG | Q60: 6
A61: Komfort | B61: ='KPI 2016'!G31 -> 65.9 | C61: ='KPI 2016'!H31 -> 80.2 | D61: =OFFSET(adat!$U$5402,(4-1)*Lenyilo!$B$19*Lenyilo!$B$21*Lenyilo!$B$20+(Lenyilo!$G$2-1)*Lenyilo!$B$21*Lenyilo!$B$20+(Lenyilo!$A$2-1)*Lenyilo!$B$20+Lenyilo!$D$2,0) -> 0.6370777012 | E61: =OFFSET(adat!$U$7202,(4-1)*Lenyilo!$B$19*Lenyilo!$B$21*Lenyilo!$B$20+(Lenyilo!$G$2-1)*Lenyilo!$B$21*Lenyilo!$B$20+(Lenyilo!$A$2-1)*Lenyilo!$B$20+Lenyilo!$D$2,0) -> 0.770592575 | F61: =OFFSET(adat!$K$1802,(5-1)*Lenyilo!$B$19*Lenyilo!$B$21*Lenyilo!$B$20+(Lenyilo!$G$2-1)*Lenyilo!$B$21*Lenyilo!$B$20+(Lenyilo!$A$2-1)*Lenyilo!$B$20+Lenyilo!$D$2,0) -> 207 | G61: =OFFSET(adat!$K$5402,(5-1)*Lenyilo!$B$19*Lenyilo!$B$21*Lenyilo!$B$20+(Lenyilo!$G$2-1)*Lenyilo!$B$21*Lenyilo!$B$20+(Lenyilo!$A$2-1)*Lenyilo!$B$20+Lenyilo!$D$2,0) -> 227 | I61: 14.29179008 | J61: 0.04427996119 | K61: 0.05114602557 | L61: 0.06765080114 | M61: 211.2582533 | N61: 0 | O61: SIG | Q61: 14
A62: Tájékoztatás | B62: ='KPI 2016'!G32 -> 83.1 | C62: ='KPI 2016'!H32 -> 88.2 | D62: =OFFSET(adat!$V$5402,(4-1)*Lenyilo!$B$19*Lenyilo!$B$21*Lenyilo!$B$20+(Lenyilo!$G$2-1)*Lenyilo!$B$21*Lenyilo!$B$20+(Lenyilo!$A$2-1)*Lenyilo!$B$20+Lenyilo!$D$2,0) -> 0.7053246008 | E62: =OFFSET(adat!$V$7202,(4-1)*Lenyilo!$B$19*Lenyilo!$B$21*Lenyilo!$B$20+(Lenyilo!$G$2-1)*Lenyilo!$B$21*Lenyilo!$B$20+(Lenyilo!$A$2-1)*Lenyilo!$B$20+Lenyilo!$D$2,0) -> 0.7106676693 | F62: =OFFSET(adat!$L$1802,(5-1)*Lenyilo!$B$19*Lenyilo!$B$21*Lenyilo!$B$20+(Lenyilo!$G$2-1)*Lenyilo!$B$21*Lenyilo!$B$20+(Lenyilo!$A$2-1)*Lenyilo!$B$20+Lenyilo!$D$2,0) -> 207 | G62: =OFFSET(adat!$L$5402,(5-1)*Lenyilo!$B$19*Lenyilo!$B$21*Lenyilo!$B$20+(Lenyilo!$G$2-1)*Lenyilo!$B$21*Lenyilo!$B$20+(Lenyilo!$A$2-1)*Lenyilo!$B$20+Lenyilo!$D$2,0) -> 227 | I62: 5.08713085 | J62: 0.04902344862 | K62: 0.04716866989 | L62: 0.06803074256 | M62: 74.77694141 | N62: 2.604574017e-249 | O62: SIG | Q62: 5
A63: Munkavállalók | B63: ='KPI 2016'!G33 -> 80.2 | C63: ='KPI 2016'!H33 -> 79.5 | D63: =OFFSET(adat!$W$5402,(4-1)*Lenyilo!$B$19*Lenyilo!$B$21*Lenyilo!$B$20+(Lenyilo!$G$2-1)*Lenyilo!$B$21*Lenyilo!$B$20+(Lenyilo!$A$2-1)*Lenyilo!$B$20+Lenyilo!$D$2,0) -> 0.7296048939 | E63: =OFFSET(adat!$W$7202,(4-1)*Lenyilo!$B$19*Lenyilo!$B$21*Lenyilo!$B$20+(Lenyilo!$G$2-1)*Lenyilo!$B$21*Lenyilo!$B$20+(Lenyilo!$A$2-1)*Lenyilo!$B$20+Lenyilo!$D$2,0) -> 0.7710620684 | F63: =OFFSET(adat!$M$1802,(5-1)*Lenyilo!$B$19*Lenyilo!$B$21*Lenyilo!$B$20+(Lenyilo!$G$2-1)*Lenyilo!$B$21*Lenyilo!$B$20+(Lenyilo!$A$2-1)*Lenyilo!$B$20+Lenyilo!$D$2,0) -> 207 | G63: =OFFSET(adat!$M$5402,(5-1)*Lenyilo!$B$19*Lenyilo!$B$21*Lenyilo!$B$20+(Lenyilo!$G$2-1)*Lenyilo!$B$21*Lenyilo!$B$20+(Lenyilo!$A$2-1)*Lenyilo!$B$20+Lenyilo!$D$2,0) -> 227 | I63: =C63-B63 -> -0.7020327816 | J63: 0.05071104565 | K63: 0.05117718695 | L63: =SQRT(J63*J63+K63*K63) -> 0.07204661418 | M63: =IF(L63>0,ABS(I63)/L63,0) -> 9.744146753 | N63: 2.061720176e-20 | O63: SIG | Q63: -1
A64: Összesített utas-elégedettség | B64: ='KPI 2016'!G34 -> 75.8 | C64: ='KPI 2016'!H34 -> 81.6 | D64: =OFFSET(adat!$X$5402,(4-1)*Lenyilo!$B$19*Lenyilo!$B$21*Lenyilo!$B$20+(Lenyilo!$G$2-1)*Lenyilo!$B$21*Lenyilo!$B$20+(Lenyilo!$A$2-1)*Lenyilo!$B$20+Lenyilo!$D$2,0) -> 0.5395060492 | E64: =OFFSET(adat!$X$7202,(4-1)*Lenyilo!$B$19*Lenyilo!$B$21*Lenyilo!$B$20+(Lenyilo!$G$2-1)*Lenyilo!$B$21*Lenyilo!$B$20+(Lenyilo!$A$2-1)*Lenyilo!$B$20+Lenyilo!$D$2,0) -> 0.699874494 | F64: =OFFSET(adat!$N$1802,(5-1)*Lenyilo!$B$19*Lenyilo!$B$21*Lenyilo!$B$20+(Lenyilo!$G$2-1)*Lenyilo!$B$21*Lenyilo!$B$20+(Lenyilo!$A$2-1)*Lenyilo!$B$20+Lenyilo!$D$2,0) -> 207 | G64: =OFFSET(adat!$N$5402,(5-1)*Lenyilo!$B$19*Lenyilo!$B$21*Lenyilo!$B$20+(Lenyilo!$G$2-1)*Lenyilo!$B$21*Lenyilo!$B$20+(Lenyilo!$A$2-1)*Lenyilo!$B$20+Lenyilo!$D$2,0) -> 227 | I64: =C64-B64 -> 5.825699659 | J64: 0.03749826257 | K64: 0.04645230169 | L64: =SQRT(J64*J64+K64*K64) -> 0.05969871044 | M64: =IF(L64>0,ABS(I64)/L64,0) -> 97.58501677 | N64: 1.917174874e-296 | O64: SIG | Q64: 6

Sheet szignif csop
A1: Sig level | B1: 0.05
A2: 1/2 sided | B2: 2
A4: ='tabla 2012'!A1 -> 0 | B4: ='tabla 2012'!B1 -> 0 | C4: ='tabla 2012'!C1 -> 0 | D4: ='tabla 2012'!D1 -> 0 | E4: ='tabla 2012'!E1 -> 0 | F4: ='tabla 2012'!F1 -> 0 | G4: ='tabla 2012'!G1 -> ÁR | H4: Teljes minta | I4: Ár | J4: Teljes minta | K4: Ár | L4: Teljes minta | W4: ='tabla 2012'!N1 -> GYORSASÁG | X4: Teljes minta | Y4: Gyorsaság | AA4: Gyorsaság | AB4: Teljes minta | AM4: ='tabla 2012'!U1 -> ELÉRHETŐSÉG | AN4: Teljes minta | AO4: Elérhetőség | AQ4: Elérhetőség | AR4: Teljes minta | BC4: ='tabla 2012'!AB1 -> BIZTONSÁG | BD4: Teljes minta | BE4: Biztonság | BG4: Biztonság | BH4: Teljes minta | BS4: ='tabla 2012'!AH1 -> MEGBÍZHATÓSÁG | BT4: Teljes minta | BW4: ='tabla 2012'!#REF! ->  | BX4: Teljes minta | CI4: ='tabla 2012'!AN1 -> KOMFORT | CJ4: Teljes minta | CM4: ='tabla 2012'!#REF! ->  | CN4: Teljes minta | CY4: ='tabla 2012'!AW1 -> TÁJÉKOZTATÁS | CZ4: Teljes minta | DC4: ='tabla 2012'!#REF! ->  | DD4: Teljes minta | DO4: ='tabla 2012'!BF1 -> MUNKAVÁLLALÓK | DP4: Teljes minta | DS4: ='tabla 2012'!#REF! ->  | DT4: Teljes minta | EE4: ='tabla 2012'!BN1 -> ÖSSZESÍTETT ELÉGEDETTSÉG | EF4: Teljes minta | EI4: ='tabla 2012'!#REF! ->  | EJ4: Teljes minta
A5: ='tabla 2012'!A2 -> Hullám | B5: ='tabla 2012'!B2 -> KATEGÓRIA | C5: ='tabla 2012'!C2 -> CSOPORT | D5: ='tabla 2012'!D2 -> MINTA EELEMSZÁM (SÚLYOZATLAN) | E5: ='tabla 2012'!E2 -> SZOLGÁLTATÓ | F5: ='tabla 2012'!F2 -> MUTATÓ | G5: ='tabla 2012'!K2 -> elégedettség | H5: elégedettség | I5: szórás | J5: szórás | K5: ='tabla 2012'!G2 -> N= | L5: N= | N5: Difference | O5: SE(p1) | P5: SE(p2) | Q5: SE of difference | R5: t value | S5: p value | T5: Significance | W5: ='tabla 2012'!R2 -> elégedettség | X5: elégedettség | Y5: szórás | AA5: ='tabla 2012'!N2 -> N= | AB5: N= | AD5: Difference | AE5: SE(p1) | AF5: SE(p2) | AG5: SE of difference | AH5: t value | AI5: p value | AJ5: Significance | AM5: ='tabla 2012'!Y2 -> elégedettség | AN5: elégedettség | AO5: szórás | AQ5: ='tabla 2012'!U2 -> N= | AR5: N= | AT5: Difference | AU5: SE(p1) | AV5: SE(p2) | AW5: SE of difference | AX5: t value | AY5: p value | AZ5: Significance | BC5: ='tabla 2012'!AE2 -> elégedettség | BD5: elégedettség | BE5: szórás | BG5: ='tabla 2012'!AB2 -> N= | BH5: N= | BJ5: Difference | BK5: SE(p1) | BL5: SE(p2) | BM5: SE of difference | BN5: t value | BO5: p value | BP5: Significance | BS5: ='tabla 2012'!AK2 -> elégedettség | BT5: elégedettség | BU5: szórás | BW5: ='tabla 2012'!AH2 -> N= | BX5: N= | BZ5: Difference | CA5: SE(p1) | CB5: SE(p2) | CC5: SE of difference | CD5: t value | CE5: p value | CF5: Significance | CI5: ='tabla 2012'!AT2 -> elégedettség | CJ5: elégedettség | CK5: szórás | CM5: ='tabla 2012'!AN2 -> N= | CN5: N= | CP5: Difference | CQ5: SE(p1) | CR5: SE(p2) | CS5: SE of difference | CT5: t value | CU5: p value | CV5: Significance | CY5: ='tabla 2012'!BC2 -> elégedettség | CZ5: elégedettség | DA5: szórás | DC5: ='tabla 2012'!AW2 -> N= | DD5: N= | DF5: Difference | DG5: SE(p1) | DH5: SE(p2) | DI5: SE of difference | DJ5: t value | DK5: p value | DL5: Significance | DO5: ='tabla 2012'!BK2 -> elégedettség | DP5: elégedettség | DQ5: szórás | DS5: ='tabla 2012'!BF2 -> N= | DT5: N= | DV5: Difference | DW5: SE(p1) | DX5: SE(p2) | DY5: SE of difference | DZ5: t value | EA5: p value | EB5: Significance | EE5: ='tabla 2012'!BO2 -> SPSS-ben | EF5: elégedettség | EG5: szórás | EI5: ='tabla 2012'!BN2 -> N= | EJ5: N= | EL5: Difference | EM5: SE(p1) | EN5: SE(p2) | EO5: SE of difference | EP5: t value | EQ5: p value | ER5: Significance
A6: ='tabla 2012'!A17 -> 2013 | B6: ='tabla 2012'!B17 -> lakóhely | C6: ='tabla 2012'!C17 -> Észak-Buda | D6: ='tabla 2012'!D17 -> 80 | E6: ='tabla 2012'!E17 -> BKV | F6: ='tabla 2012'!F17 -> top2 | G6: ='tabla 2012'!K17/100 -> 0 | H6: ='tabla 2012'!$K$4/100 -> 0 | K6: ='tabla 2012'!G17 -> 0 | L6: ='tabla 2012'!$G$4 -> 0 | N6: =H6-G6 -> 0 | O6: =IF((K6-1)=0,0,SQRT((1-G6)*G6/(K6-1))) -> 0 | P6: =IF((L6-1)=0,0,SQRT((1-H6)*H6/(L6-1))) -> 0 | Q6: =SQRT(O6*O6+P6*P6) -> 0 | R6: =IF(Q6>0,ABS(N6)/Q6,0) -> 0 | S6: =IF(R6=0,1,TDIST(R6,K6+L6-2,$B$2)) -> 1 | T6: =IF(S6<=($B$1),"SIG","NOT SIG.") -> NOT SIG. | U6: =IF(AND(N6>0,T6="SIG"),$C6,"") ->  | V6: =IF(AND(N6<0,T6="SIG"),$C6,"") ->  | W6: ='tabla 2012'!R17/100 -> 0.5401 | X6: ='tabla 2012'!$R$4/100 -> 0.5327 | AA6: ='tabla 2012'!N17 -> 79 | AB6: ='tabla 2012'!$N$4 -> 993 | AD6: =X6-W6 -> -0.0074 | AE6: =IF((AA6-1)=0,0,SQRT((1-W6)*W6/(AA6-1))) -> 0.05643148671 | AF6: =IF((AB6-1)=0,0,SQRT((1-X6)*X6/(AB6-1))) -> 0.0158410295 | AG6: =SQRT(AE6*AE6+AF6*AF6) -> 0.05861271968 | AH6: =IF(AG6>0,ABS(AD6)/AG6,0) -> 0.1262524592 | AI6: =IF(AH6=0,1,TDIST(AH6,AA6+AB6-2,$B$2)) -> 0.8995558058 | AJ6: =IF(AI6<=($B$1),"SIG","NOT SIG.") -> NOT SIG. | AK6: =IF(AND(AD6>0,AJ6="SIG"),$C6,"") ->  | AL6: =IF(AND(AD6<0,AJ6="SIG"),$C6,"") ->  | AM6: ='tabla 2012'!Y17/100 -> 0.6582 | AN6: ='tabla 2012'!$Y$4/100 -> 0.6088 | AQ6: ='tabla 2012'!U17 -> 79 | AR6: ='tabla 2012'!$U$4 -> 997 | AT6: =AN6-AM6 -> -0.0494 | AU6: =IF((AQ6-1)=0,0,SQRT((1-AM6)*AM6/(AQ6-1))) -> 0.05370536429 | AV6: =IF((AR6-1)=0,0,SQRT((1-AN6)*AN6/(AR6-1))) -> 0.01546347426 | AW6: =SQRT(AU6*AU6+AV6*AV6) -> 0.05588725427 | AX6: =IF(AW6>0,ABS(AT6)/AW6,0) -> 0.8839224729 | AY6: =IF(AX6=0,1,TDIST(AX6,AQ6+AR6-2,$B$2)) -> 0.3769358887 | AZ6: =IF(AY6<=($B$1),"SIG","NOT SIG.") -> NOT SIG. | BA6: =IF(AND(AT6>0,AZ6="SIG"),$C6,"") ->  | BB6: =IF(AND(AT6<0,AZ6="SIG"),$C6,"") ->  | BC6: ='tabla 2012'!AE17/100 -> 0.4684 | BD6: ='tabla 2012'!$AE$4/100 -> 0.4534 | BG6: ='tabla 2012'!AB17 -> 79 | BH6: ='tabla 2012'!$AB$4 -> 998 | BJ6: =BD6-BC6 -> -0.015 | BK6: =IF((BG6-1)=0,0,SQRT((1-BC6)*BC6/(BG6-1))) -> 0.05650067392 | BL6: =IF((BH6-1)=0,0,SQRT((1-BD6)*BD6/(BH6-1))) -> 0.01576623489 | BM6: =SQRT(BK6*BK6+BL6*BL6) -> 0.05865918783 | BN6: =IF(BM6>0,ABS(BJ6)/BM6,0) -> 0.2557144167 | BO6: =IF(BN6=0,1,TDIST(BN6,BG6+BH6-2,$B$2)) -> 0.7982202819 | BP6: =IF(BO6<=($B$1),"SIG","NOT SIG.") -> NOT SIG. | BQ6: =IF(AND(BJ6>0,BP6="SIG"),$C6,"") ->  | BR6: =IF(AND(BJ6<0,BP6="SIG"),$C6,"") ->  | BS6: ='tabla 2012'!AK17/100 -> 0.6938 | BT6: ='tabla 2012'!$AK$4/100 -> 0.6045 | BW6: ='tabla 2012'!AH17 -> 80 | BX6: ='tabla 2012'!$AH$4 -> 995 | BZ6: =BT6-BS6 -> -0.0893 | CA6: =IF((BW6-1)=0,0,SQRT((1-BS6)*BS6/(BW6-1))) -> 0.05185685751 | CB6: =IF((BX6-1)=0,0,SQRT((1-BT6)*BT6/(BX6-1))) -> 0.01550880032 | CC6: =SQRT(CA6*CA6+CB6*CB6) -> 0.05412630191 | CD6: =IF(CC6>0,ABS(BZ6)/CC6,0) -> 1.649844842 | CE6: =IF(CD6=0,1,TDIST(CD6,BW6+BX6-2,$B$2)) -> 0.09926735267 | CF6: =IF(CE6<=($B$1),"SIG","NOT SIG.") -> NOT SIG. | CG6: =IF(AND(BZ6>0,CF6="SIG"),$C6,"") ->  | CH6: =IF(AND(BZ6<0,CF6="SIG"),$C6,"") ->  | CI6: ='tabla 2012'!AT17/100 -> 0.4684 | CJ6: ='tabla 2012'!$AT$4/100 -> 0.4796 | CM6: ='tabla 2012'!AN17 -> 79 | CN6: ='tabla 2012'!$AN$4 -> 993 | CP6: =CJ6-CI6 -> 0.0112 | CQ6: =IF((CM6-1)=0,0,SQRT((1-CI6)*CI6/(CM6-1))) -> 0.05650067392 | CR6: =IF((CN6-1)=0,0,SQRT((1-CJ6)*CJ6/(CN6-1))) -> 0.01586179728 | CS6: =SQRT(CQ6*CQ6+CR6*CR6) -> 0.05868494498 | CT6: =IF(CS6>0,ABS(CP6)/CS6,0) -> 0.1908496294 | CU6: =IF(CT6=0,1,TDIST(CT6,CM6+CN6-2,$B$2)) -> 0.8486796092 | CV6: =IF(CU6<=($B$1),"SIG","NOT SIG.") -> NOT SIG. | CW6: =IF(AND(CP6>0,CV6="SIG"),$C6,"") ->  | CX6: =IF(AND(CP6<0,CV6="SIG"),$C6,"") ->  | CY6: ='tabla 2012'!BC17/100 -> 0.6563 | CZ6: ='tabla 2012'!$BC$4/100 -> 0.6702 | DC6: ='tabla 2012'!AW17 -> 80 | DD6: ='tabla 2012'!$AW$4 -> 999 | DF6: =CZ6-CY6 -> 0.0139 | DG6: =IF((DC6-1)=0,0,SQRT((1-CY6)*CY6/(DC6-1))) -> 0.05343519795 | DH6: =IF((DD6-1)=0,0,SQRT((1-CZ6)*CZ6/(DD6-1))) -> 0.01488203312 | DI6: =SQRT(DG6*DG6+DH6*DH6) -> 0.05546886775 | DJ6: =IF(DI6>0,ABS(DF6)/DI6,0) -> 0.2505910173 | DK6: =IF(DJ6=0,1,TDIST(DJ6,DC6+DD6-2,$B$2)) -> 0.8021781232 | DL6: =IF(DK6<=($B$1),"SIG","NOT SIG.") -> NOT SIG. | DM6: =IF(AND(DF6>0,DL6="SIG"),$C6,"") ->  | DN6: =IF(AND(DF6<0,DL6="SIG"),$C6,"") ->  | DO6: ='tabla 2012'!BK17/100 -> 0.675 | DP6: ='tabla 2012'!$BK$4/100 -> 0.7239 | DS6: ='tabla 2012'!BF17 -> 80 | DT6: ='tabla 2012'!$BF$4 -> 996 | DV6: =DP6-DO6 -> 0.0489 | DW6: =IF((DS6-1)=0,0,SQRT((1-DO6)*DO6/(DS6-1))) -> 0.05269628767 | DX6: =IF((DT6-1)=0,0,SQRT((1-DP6)*DP6/(DT6-1))) -> 0.01417297272 | DY6: =SQRT(DW6*DW6+DX6*DX6) -> 0.05456896453 | DZ6: =IF(DY6>0,ABS(DV6)/DY6,0) -> 0.8961137603 | EA6: =IF(DZ6=0,1,TDIST(DZ6,DS6+DT6-2,$B$2)) -> 0.3703928129 | EB6: =IF(EA6<=($B$1),"SIG","NOT SIG.") -> NOT SIG. | EC6: =IF(AND(DV6>0,EB6="SIG"),$C6,"") ->  | ED6: =IF(AND(DV6<0,EB6="SIG"),$C6,"") ->  | EE6: ='tabla 2012'!BO17/100 -> 0.6065 | EF6: ='tabla 2012'!$BO$4/100 -> 0.5837 | EI6: ='tabla 2012'!BN17 -> 70 | EJ6: ='tabla 2012'!$BN$4 -> 959 | EL6: =EF6-EE6 -> -0.0228 | EM6: =IF((EI6-1)=0,0,SQRT((1-EE6)*EE6/(EI6-1))) -> 0.05881163126 | EN6: =IF((EJ6-1)=0,0,SQRT((1-EF6)*EF6/(EJ6-1))) -> 0.01592631487 | EO6: =SQRT(EM6*EM6+EN6*EN6) -> 0.06092992267 | EP6: =IF(EO6>0,ABS(EL6)/EO6,0) -> 0.3742003765 | EQ6: =IF(EP6=0,1,TDIST(EP6,EI6+EJ6-2,$B$2)) -> 0.7083324877 | ER6: =IF(EQ6<=($B$1),"SIG","NOT SIG.") -> NOT SIG. | ES6: =IF(AND(EL6>0,ER6="SIG"),$C6,"") ->  | ET6: =IF(AND(EL6<0,ER6="SIG"),$C6,"") -> 
A7: ='tabla 2012'!A18 -> 2013 | B7: ='tabla 2012'!B18 -> lakóhely | C7: ='tabla 2012'!C18 -> Dél-Buda | D7: ='tabla 2012'!D18 -> 70 | E7: ='tabla 2012'!E18 -> BKV | F7: ='tabla 2012'!F18 -> top2 | G7: ='tabla 2012'!K18/100 -> 0 | H7: ='tabla 2012'!$K$4/100 -> 0 | K7: ='tabla 2012'!G18 -> 0 | L7: ='tabla 2012'!$G$4 -> 0 | N7: 0 | O7: 0 | P7: 0 | Q7: 0 | R7: 0 | S7: 1 | T7: NOT SIG. | U7: =IF(AND(N7>0,T7="SIG"),$C7,"") ->  | V7: =IF(AND(N7<0,T7="SIG"),$C7,"") ->  | W7: ='tabla 2012'!R18/100 -> 0.5619 | X7: ='tabla 2012'!$R$4/100 -> 0.5327 | AA7: ='tabla 2012'!N18 -> 70 | AB7: ='tabla 2012'!$N$4 -> 993 | AD7: -0.0292 | AE7: 0.05972987382 | AF7: 0.0158410295 | AG7: 0.06179478976 | AH7: 0.4725317476 | AI7: 0.6366444663 | AJ7: NOT SIG. | AK7: =IF(AND(AD7>0,AJ7="SIG"),$C7,"") ->  | AL7: =IF(AND(AD7<0,AJ7="SIG"),$C7,"") ->  | AM7: ='tabla 2012'!Y18/100 -> 0.5357 | AN7: ='tabla 2012'!$Y$4/100 -> 0.6088 | AQ7: ='tabla 2012'!U18 -> 70 | AR7: ='tabla 2012'!$U$4 -> 997 | AT7: 0.0731 | AU7: 0.06003929993 | AV7: 0.01546347426 | AW7: 0.06199868202 | AX7: 1.179057322 | AY7: 0.2386386887 | AZ7: NOT SIG. | BA7: =IF(AND(AT7>0,AZ7="SIG"),$C7,"") ->  | BB7: =IF(AND(AT7<0,AZ7="SIG"),$C7,"") ->  | BC7: ='tabla 2012'!AE18/100 -> 0.5429 | BD7: ='tabla 2012'!$AE$4/100 -> 0.4534 | BG7: ='tabla 2012'!AB18 -> 70 | BH7: ='tabla 2012'!$AB$4 -> 998 | BJ7: -0.0895 | BK7: 0.05997095795 | BL7: 0.01576623489 | BM7: 0.06200878937 | BN7: 1.443343773 | BO7: 0.1492174456 | BP7: NOT SIG. | BQ7: =IF(AND(BJ7>0,BP7="SIG"),$C7,"") ->  | BR7: =IF(AND(BJ7<0,BP7="SIG"),$C7,"") ->  | BS7: ='tabla 2012'!AK18/100 -> 0.6571 | BT7: ='tabla 2012'!$AK$4/100 -> 0.6045 | BW7: ='tabla 2012'!AH18 -> 70 | BX7: ='tabla 2012'!$AH$4 -> 995 | BZ7: -0.0526 | CA7: 0.05714456496 | CB7: 0.01550880032 | CC7: 0.05921168965 | CD7: 0.8883381019 | CE7: 0.3745598733 | CF7: NOT SIG. | CG7: =IF(AND(BZ7>0,CF7="SIG"),$C7,"") ->  | CH7: =IF(AND(BZ7<0,CF7="SIG"),$C7,"") ->  | CI7: ='tabla 2012'!AT18/100 -> 0.5739 | CJ7: ='tabla 2012'!$AT$4/100 -> 0.4796 | CM7: ='tabla 2012'!AN18 -> 69 | CN7: ='tabla 2012'!$AN$4 -> 993 | CP7: -0.0943 | CQ7: 0.05996798043 | CR7: 0.01586179728 | CS7: 0.0620302772 | CT7: 1.520225352 | CU7: 0.128752563 | CV7: NOT SIG. | CW7: =IF(AND(CP7>0,CV7="SIG"),$C7,"") ->  | CX7: =IF(AND(CP7<0,CV7="SIG"),$C7,"") ->  | CY7: ='tabla 2012'!BC18/100 -> 0.7643 | CZ7: ='tabla 2012'!$BC$4/100 -> 0.6702 | DC7: ='tabla 2012'!AW18 -> 70 | DD7: ='tabla 2012'!$AW$4 -> 999 | DF7: -0.0941 | DG7: 0.05109603206 | DH7: 0.01488203312 | DI7: 0.05321916387 | DJ7: 1.76816006 | DK7: 0.07731984967 | DL7: NOT SIG. | DM7: =IF(AND(DF7>0,DL7="SIG"),$C7,"") ->  | DN7: =IF(AND(DF7<0,DL7="SIG"),$C7,"") ->  | DO7: ='tabla 2012'!BK18/100 -> 0.8429 | DP7: ='tabla 2012'!$BK$4/100 -> 0.7239 | DS7: ='tabla 2012'!BF18 -> 70 | DT7: ='tabla 2012'!$BF$4 -> 996 | DV7: -0.119 | DW7: 0.04380781315 | DX7: 0.01417297272 | DY7: 0.0460434322 | DZ7: 2.584516278 | EA7: 0.009883815501 | EB7: SIG | EC7: =IF(AND(DV7>0,EB7="SIG"),$C7,"") ->  | ED7: =IF(AND(DV7<0,EB7="SIG"),$C7,"") -> Dél-Buda | EE7: ='tabla 2012'!BO18/100 -> 0.6516 | EF7: ='tabla 2012'!$BO$4/100 -> 0.5837 | EI7: ='tabla 2012'!BN18 -> 69 | EJ7: ='tabla 2012'!$BN$4 -> 959 | EL7: -0.0679 | EM7: 0.05777968298 | EN7: 0.01592631487 | EO7: 0.05993445812 | EP7: 1.132904211 | EQ7: 0.2575191524 | ER7: NOT SIG. | ES7: =IF(AND(EL7>0,ER7="SIG"),$C7,"") ->  | ET7: =IF(AND(EL7<0,ER7="SIG"),$C7,"") -> 
A8: ='tabla 2012'!A19 -> 2013 | B8: ='tabla 2012'!B19 -> lakóhely | C8: ='tabla 2012'!C19 -> Észak-Pest | D8: ='tabla 2012'!D19 -> 150 | E8: ='tabla 2012'!E19 -> BKV | F8: ='tabla 2012'!F19 -> top2 | G8: ='tabla 2012'!K19/100 -> 0 | H8: ='tabla 2012'!$K$4/100 -> 0 | K8: ='tabla 2012'!G19 -> 0 | L8: ='tabla 2012'!$G$4 -> 0 | N8: 0 | O8: 0 | P8: 0 | Q8: 0 | R8: 0 | S8: 1 | T8: NOT SIG. | W8: ='tabla 2012'!R19/100 -> 0.3826 | X8: ='tabla 2012'!$R$4/100 -> 0.5327 | AA8: ='tabla 2012'!N19 -> 149 | AB8: ='tabla 2012'!$N$4 -> 993 | AD8: 0.1501 | AE8: 0.03995075009 | AF8: 0.0158410295 | AG8: 0.04297674543 | AH8: 3.492586479 | AI8: 0.0004966915169 | AJ8: SIG | AK8: Észak-Pest | AM8: ='tabla 2012'!Y19/100 -> 0.4631 | AN8: ='tabla 2012'!$Y$4/100 -> 0.6088 | AQ8: ='tabla 2012'!U19 -> 149 | AR8: ='tabla 2012'!$U$4 -> 997 | AT8: 0.1457 | AU8: 0.04098767036 | AV8: 0.01546347426 | AW8: 0.04380762671 | AX8: 3.325904893 | AY8: 0.0009093018045 | AZ8: SIG | BA8: Észak-Pest | BC8: ='tabla 2012'!AE19/100 -> 0.3893 | BD8: ='tabla 2012'!$AE$4/100 -> 0.4534 | BG8: ='tabla 2012'!AB19 -> 149 | BH8: ='tabla 2012'!$AB$4 -> 998 | BJ8: 0.0641 | BK8: 0.04007977771 | BL8: 0.01576623489 | BM8: 0.04306927842 | BN8: 1.488299836 | BO8: 0.1369471877 | BP8: NOT SIG. | BS8: ='tabla 2012'!AK19/100 -> 0.4396 | BT8: ='tabla 2012'!$AK$4/100 -> 0.6045 | BW8: ='tabla 2012'!AH19 -> 149 | BX8: ='tabla 2012'!$AH$4 -> 995 | BZ8: 0.1649 | CA8: 0.04079876787 | CB8: 0.01550880032 | CC8: 0.04364701991 | CD8: 3.778035714 | CE8: 0.0001662252702 | CF8: SIG | CG8: Észak-Pest | CI8: ='tabla 2012'!AT19/100 -> 0.296 | CJ8: ='tabla 2012'!$AT$4/100 -> 0.4796 | CM8: ='tabla 2012'!AN19 -> 150 | CN8: ='tabla 2012'!$AN$4 -> 993 | CP8: 0.1836 | CQ8: 0.03739719689 | CR8: 0.01586179728 | CS8: 0.04062200079 | CT8: 4.519718291 | CU8: 6.837085409e-06 | CV8: SIG | CW8: Észak-Pest | CY8: ='tabla 2012'!BC19/100 -> 0.4463 | CZ8: ='tabla 2012'!$BC$4/100 -> 0.6702 | DC8: ='tabla 2012'!AW19 -> 149 | DD8: ='tabla 2012'!$AW$4 -> 999 | DF8: 0.2239 | DG8: 0.04086202145 | DH8: 0.01488203312 | DI8: 0.04348769604 | DJ8: 5.148582711 | DK8: 3.086898033e-07 | DL8: SIG | DM8: Észak-Pest | DO8: ='tabla 2012'!BK19/100 -> 0.5084 | DP8: ='tabla 2012'!$BK$4/100 -> 0.7239 | DS8: ='tabla 2012'!BF19 -> 149 | DT8: ='tabla 2012'!$BF$4 -> 996 | DV8: 0.2155 | DW8: 0.04109394642 | DX8: 0.01417297272 | DY8: 0.04346936379 | DZ8: 4.95751447 | EA8: 8.218980342e-07 | EB8: SIG | EC8: Észak-Pest | EE8: ='tabla 2012'!BO19/100 -> 0.4135 | EF8: ='tabla 2012'!$BO$4/100 -> 0.5837 | EI8: ='tabla 2012'!BN19 -> 142 | EJ8: ='tabla 2012'!$BN$4 -> 959 | EL8: 0.1702 | EM8: 0.04147269032 | EN8: 0.01592631487 | EO8: 0.04442557313 | EP8: 3.831126714 | EQ8: 0.0001347783649 | ER8: SIG | ES8: Észak-Pest
A9: ='tabla 2012'!A20 -> 2013 | B9: ='tabla 2012'!B20 -> lakóhely | C9: ='tabla 2012'!C20 -> Dél-Pest | D9: ='tabla 2012'!D20 -> 150 | E9: ='tabla 2012'!E20 -> BKV | F9: ='tabla 2012'!F20 -> top2 | G9: ='tabla 2012'!K20/100 -> 0 | H9: ='tabla 2012'!$K$4/100 -> 0 | K9: ='tabla 2012'!G20 -> 0 | L9: ='tabla 2012'!$G$4 -> 0 | N9: 0 | O9: 0 | P9: 0 | Q9: 0 | R9: 0 | S9: 1 | T9: NOT SIG. | W9: ='tabla 2012'!R20/100 -> 0.5101 | X9: ='tabla 2012'!$R$4/100 -> 0.5327 | AA9: ='tabla 2012'!N20 -> 149 | AB9: ='tabla 2012'!$N$4 -> 993 | AD9: 0.0226 | AE9: 0.0410913608 | AF9: 0.0158410295 | AG9: 0.04403905253 | AH9: 0.513180886 | AI9: 0.6079242267 | AJ9: NOT SIG. | AM9: ='tabla 2012'!Y20/100 -> 0.7233 | AN9: ='tabla 2012'!$Y$4/100 -> 0.6088 | AQ9: ='tabla 2012'!U20 -> 150 | AR9: ='tabla 2012'!$U$4 -> 997 | AT9: -0.1145 | AU9: 0.03664972143 | AV9: 0.01546347426 | AW9: 0.03977840013 | AX9: 2.878446585 | AY9: 0.004070670028 | AZ9: SIG | BB9: Dél-Pest | BC9: ='tabla 2012'!AE20/100 -> 0.3767 | BD9: ='tabla 2012'!$AE$4/100 -> 0.4534 | BG9: ='tabla 2012'!AB20 -> 150 | BH9: ='tabla 2012'!$AB$4 -> 998 | BJ9: 0.0767 | BK9: 0.03969659343 | BL9: 0.01576623489 | BM9: 0.04271292185 | BN9: 1.795709511 | BO9: 0.07280406817 | BP9: NOT SIG. | BS9: ='tabla 2012'!AK20/100 -> 0.5738 | BT9: ='tabla 2012'!$AK$4/100 -> 0.6045 | BW9: ='tabla 2012'!AH20 -> 149 | BX9: ='tabla 2012'!$AH$4 -> 995 | BZ9: 0.0307 | CA9: 0.04064958695 | CB9: 0.01550880032 | CC9: 0.0435076063 | CD9: 0.7056237428 | CE9: 0.4805660615 | CF9: NOT SIG. | CI9: ='tabla 2012'!AT20/100 -> 0.477 | CJ9: ='tabla 2012'!$AT$4/100 -> 0.4796 | CM9: ='tabla 2012'!AN20 -> 148 | CN9: ='tabla 2012'!$AN$4 -> 993 | CP9: 0.0026 | CQ9: 0.04119565065 | CR9: 0.01586179728 | CS9: 0.04414383587 | CT9: 0.05889837049 | CU9: 0.9530433874 | CV9: NOT SIG. | CY9: ='tabla 2012'!BC20/100 -> 0.73 | CZ9: ='tabla 2012'!$BC$4/100 -> 0.6702 | DC9: ='tabla 2012'!AW20 -> 150 | DD9: ='tabla 2012'!$AW$4 -> 999 | DF9: -0.0598 | DG9: 0.03637057591 | DH9: 0.01488203312 | DI9: 0.03929750249 | DJ9: 1.521725204 | DK9: 0.1283535717 | DL9: NOT SIG. | DO9: ='tabla 2012'!BK20/100 -> 0.7183 | DP9: ='tabla 2012'!$BK$4/100 -> 0.7239 | DS9: ='tabla 2012'!BF20 -> 150 | DT9: ='tabla 2012'!$BF$4 -> 996 | DV9: 0.0056 | DW9: 0.03685133474 | DX9: 0.01417297272 | DY9: 0.03948283207 | DZ9: 0.1418337973 | EA9: 0.8872362604 | EB9: NOT SIG. | EE9: ='tabla 2012'!BO20/100 -> 0.5947 | EF9: ='tabla 2012'!$BO$4/100 -> 0.5837 | EI9: ='tabla 2012'!BN20 -> 143 | EJ9: ='tabla 2012'!$BN$4 -> 959 | EL9: -0.011 | EM9: 0.04119960943 | EN9: 0.01592631487 | EO9: 0.04417075189 | EP9: 0.2490335693 | EQ9: 0.8033813046 | ER9: NOT SIG.
A10: ='tabla 2012'!A21 -> 2013 | B10: ='tabla 2012'!B21 -> lakóhely | C10: ='tabla 2012'!C21 -> Kelet-Pest | D10: ='tabla 2012'!D21 -> 90 | E10: ='tabla 2012'!E21 -> BKV | F10: ='tabla 2012'!F21 -> top2 | G10: ='tabla 2012'!K21/100 -> 0 | H10: ='tabla 2012'!$K$4/100 -> 0 | K10: ='tabla 2012'!G21 -> 0 | L10: ='tabla 2012'!$G$4 -> 0 | N10: 0 | O10: 0 | P10: 0 | Q10: 0 | R10: 0 | S10: 1 | T10: NOT SIG. | W10: ='tabla 2012'!R21/100 -> 0.6333 | X10: ='tabla 2012'!$R$4/100 -> 0.5327 | AA10: ='tabla 2012'!N21 -> 90 | AB10: ='tabla 2012'!$N$4 -> 993 | AD10: -0.1006 | AE10: 0.05108168277 | AF10: 0.0158410295 | AG10: 0.05348155318 | AH10: 1.881022409 | AI10: 0.06023745864 | AJ10: NOT SIG. | AM10: ='tabla 2012'!Y21/100 -> 0.7444 | AN10: ='tabla 2012'!$Y$4/100 -> 0.6088 | AQ10: ='tabla 2012'!U21 -> 90 | AR10: ='tabla 2012'!$U$4 -> 997 | AT10: -0.1356 | AU10: 0.04623688882 | AV10: 0.01546347426 | AW10: 0.04875416827 | AX10: 2.781300652 | AY10: 0.005507910384 | AZ10: SIG | BB10: Kelet-Pest | BC10: ='tabla 2012'!AE21/100 -> 0.6056 | BD10: ='tabla 2012'!$AE$4/100 -> 0.4534 | BG10: ='tabla 2012'!AB21 -> 90 | BH10: ='tabla 2012'!$AB$4 -> 998 | BJ10: -0.1522 | BK10: 0.05180436839 | BL10: 0.01576623489 | BM10: 0.05415040856 | BN10: 2.810689782 | BO10: 0.005032392737 | BP10: SIG | BR10: Kelet-Pest | BS10: ='tabla 2012'!AK21/100 -> 0.7135 | BT10: ='tabla 2012'!$AK$4/100 -> 0.6045 | BW10: ='tabla 2012'!AH21 -> 89 | BX10: ='tabla 2012'!$AH$4 -> 995 | BZ10: -0.109 | CA10: 0.04819677352 | CB10: 0.01550880032 | CC10: 0.0506305428 | CD10: 2.15285071 | CE10: 0.03155094338 | CF10: SIG | CH10: Kelet-Pest | CI10: ='tabla 2012'!AT21/100 -> 0.6773 | CJ10: ='tabla 2012'!$AT$4/100 -> 0.4796 | CM10: ='tabla 2012'!AN21 -> 88 | CN10: ='tabla 2012'!$AN$4 -> 993 | CP10: -0.1977 | CQ10: 0.05012223106 | CR10: 0.01586179728 | CS10: 0.05257218522 | CT10: 3.760543701 | CU10: 0.0001786476306 | CV10: SIG | CX10: Kelet-Pest | CY10: ='tabla 2012'!BC21/100 -> 0.8778 | CZ10: ='tabla 2012'!$BC$4/100 -> 0.6702 | DC10: ='tabla 2012'!AW21 -> 90 | DD10: ='tabla 2012'!$AW$4 -> 999 | DF10: -0.2076 | DG10: 0.03471669611 | DH10: 0.01488203312 | DI10: 0.03777199887 | DJ10: 5.496134867 | DK10: 4.835309495e-08 | DL10: SIG | DN10: Kelet-Pest | DO10: ='tabla 2012'!BK21/100 -> 0.7972 | DP10: ='tabla 2012'!$BK$4/100 -> 0.7239 | DS10: ='tabla 2012'!BF21 -> 90 | DT10: ='tabla 2012'!$BF$4 -> 996 | DV10: -0.0733 | DW10: 0.04262090008 | DX10: 0.01417297272 | DY10: 0.04491563513 | DZ10: 1.631948425 | EA10: 0.1029807963 | EB10: NOT SIG. | EE10: ='tabla 2012'!BO21/100 -> 0.7249 | EF10: ='tabla 2012'!$BO$4/100 -> 0.5837 | EI10: ='tabla 2012'!BN21 -> 87 | EJ10: ='tabla 2012'!$BN$4 -> 959 | EL10: -0.1412 | EM10: 0.04815430503 | EN10: 0.01592631487 | EO10: 0.05071966678 | EP10: 2.783929962 | EQ10: 0.005467459015 | ER10: SIG | ET10: Kelet-Pest
A11: ='tabla 2012'!A22 -> 2013 | B11: ='tabla 2012'!B22 -> lakóhely | C11: ='tabla 2012'!C22 -> Belváros | D11: ='tabla 2012'!D22 -> 60 | E11: ='tabla 2012'!E22 -> BKV | F11: ='tabla 2012'!F22 -> top2 | G11: ='tabla 2012'!K22/100 -> 0 | H11: ='tabla 2012'!$K$4/100 -> 0 | K11: ='tabla 2012'!G22 -> 0 | L11: ='tabla 2012'!$G$4 -> 0 | N11: 0 | O11: 0 | P11: 0 | Q11: 0 | R11: 0 | S11: 1 | T11: NOT SIG. | W11: ='tabla 2012'!R22/100 -> 0.6836 | X11: ='tabla 2012'!$R$4/100 -> 0.5327 | AA11: ='tabla 2012'!N22 -> 59 | AB11: ='tabla 2012'!$N$4 -> 993 | AD11: -0.1509 | AE11: 0.06106681474 | AF11: 0.0158410295 | AG11: 0.06308798679 | AH11: 2.391897533 | AI11: 0.0169366296 | AJ11: SIG | AL11: Belváros | AM11: ='tabla 2012'!Y22/100 -> 0.5417 | AN11: ='tabla 2012'!$Y$4/100 -> 0.6088 | AQ11: ='tabla 2012'!U22 -> 60 | AR11: ='tabla 2012'!$U$4 -> 997 | AT11: 0.0671 | AU11: 0.06486767626 | AV11: 0.01546347426 | AW11: 0.06668533917 | AX11: 1.006218171 | AY11: 0.3145413561 | AZ11: NOT SIG. | BC11: ='tabla 2012'!AE22/100 -> 0.4 | BD11: ='tabla 2012'!$AE$4/100 -> 0.4534 | BG11: ='tabla 2012'!AB22 -> 60 | BH11: ='tabla 2012'!$AB$4 -> 998 | BJ11: 0.0534 | BK11: 0.06377928041 | BL11: 0.01576623489 | BM11: 0.06569909263 | BN11: 0.8127966135 | BO11: 0.4165178793 | BP11: NOT SIG. | BS11: ='tabla 2012'!AK22/100 -> 0.6667 | BT11: ='tabla 2012'!$AK$4/100 -> 0.6045 | BW11: ='tabla 2012'!AH22 -> 60 | BX11: ='tabla 2012'!$AH$4 -> 995 | BZ11: -0.0622 | CA11: 0.06137010673 | CB11: 0.01550880032 | CC11: 0.06329939089 | CD11: 0.9826318883 | CE11: 0.326014358 | CF11: NOT SIG. | CI11: ='tabla 2012'!AT22/100 -> 0.6033 | CJ11: ='tabla 2012'!$AT$4/100 -> 0.4796 | CM11: ='tabla 2012'!AN22 -> 60 | CN11: ='tabla 2012'!$AN$4 -> 993 | CP11: -0.1237 | CQ11: 0.06369007453 | CR11: 0.01586179728 | CS11: 0.06563552549 | CT11: 1.884650105 | CU11: 0.0597528279 | CV11: NOT SIG. | CY11: ='tabla 2012'!BC22/100 -> 0.5667 | CZ11: ='tabla 2012'!$BC$4/100 -> 0.6702 | DC11: ='tabla 2012'!AW22 -> 60 | DD11: ='tabla 2012'!$AW$4 -> 999 | DF11: 0.1035 | DG11: 0.06451265938 | DH11: 0.01488203312 | DI11: 0.06620693415 | DJ11: 1.563280362 | DK11: 0.118285992 | DL11: NOT SIG. | DO11: ='tabla 2012'!BK22/100 -> 0.6667 | DP11: ='tabla 2012'!$BK$4/100 -> 0.7239 | DS11: ='tabla 2012'!BF22 -> 60 | DT11: ='tabla 2012'!$BF$4 -> 996 | DV11: 0.0572 | DW11: 0.06137010673 | DX11: 0.01417297272 | DY11: 0.06298542018 | DZ11: 0.9081466764 | EA11: 0.3640083244 | EB11: NOT SIG. | EE11: ='tabla 2012'!BO22/100 -> 0.5934 | EF11: ='tabla 2012'!$BO$4/100 -> 0.5837 | EI11: ='tabla 2012'!BN22 -> 58 | EJ11: ='tabla 2012'!$BN$4 -> 959 | EL11: -0.0097 | EM11: 0.06506089455 | EN11: 0.01592631487 | EO11: 0.06698184459 | EP11: 0.1448153609 | EQ11: 0.8848854036 | ER11: NOT SIG.
A12: ='tabla 2012'!A23 -> 2013 | B12: ='tabla 2012'!B23 -> lakóhely | C12: ='tabla 2012'!C23 -> Dél-Nyugat | D12: ='tabla 2012'!D23 -> 101 | E12: ='tabla 2012'!E23 -> BKV | F12: ='tabla 2012'!F23 -> top2 | G12: ='tabla 2012'!K23/100 -> 0 | H12: ='tabla 2012'!$K$4/100 -> 0 | K12: ='tabla 2012'!G23 -> 0 | L12: ='tabla 2012'!$G$4 -> 0 | N12: 0 | O12: 0 | P12: 0 | Q12: 0 | R12: 0 | S12: 1 | T12: NOT SIG. | W12: ='tabla 2012'!R23/100 -> 0.4719 | X12: ='tabla 2012'!$R$4/100 -> 0.5327 | AA12: ='tabla 2012'!N23 -> 101 | AB12: ='tabla 2012'!$N$4 -> 993 | AD12: 0.0608 | AE12: 0.04992097655 | AF12: 0.0158410295 | AG12: 0.05237405957 | AH12: 1.160880033 | AI12: 0.2459443974 | AJ12: NOT SIG. | AM12: ='tabla 2012'!Y23/100 -> 0.4901 | AN12: ='tabla 2012'!$Y$4/100 -> 0.6088 | AQ12: ='tabla 2012'!U23 -> 101 | AR12: ='tabla 2012'!$U$4 -> 997 | AT12: 0.1187 | AU12: 0.04999019804 | AV12: 0.01546347426 | AW12: 0.05232722939 | AX12: 2.268417445 | AY12: 0.02349764275 | AZ12: SIG | BA12: Dél-Nyugat | BC12: ='tabla 2012'!AE23/100 -> 0.4653 | BD12: ='tabla 2012'!$AE$4/100 -> 0.4534 | BG12: ='tabla 2012'!AB23 -> 101 | BH12: ='tabla 2012'!$AB$4 -> 998 | BJ12: -0.0119 | BK12: 0.04987944567 | BL12: 0.01576623489 | BM12: 0.05231188452 | BN12: 0.2274817684 | BO12: 0.8200915324 | BP12: NOT SIG. | BS12: ='tabla 2012'!AK23/100 -> 0.5 | BT12: ='tabla 2012'!$AK$4/100 -> 0.6045 | BW12: ='tabla 2012'!AH23 -> 101 | BX12: ='tabla 2012'!$AH$4 -> 995 | BZ12: 0.1045 | CA12: 0.05 | CB12: 0.01550880032 | CC12: 0.0523500037 | CD12: 1.99617942 | CE12: 0.04616191062 | CF12: SIG | CG12: Dél-Nyugat | CI12: ='tabla 2012'!AT23/100 -> 0.432 | CJ12: ='tabla 2012'!$AT$4/100 -> 0.4796 | CM12: ='tabla 2012'!AN23 -> 100 | CN12: ='tabla 2012'!$AN$4 -> 993 | CP12: 0.0476 | CQ12: 0.04978499226 | CR12: 0.01586179728 | CS12: 0.05225076141 | CT12: 0.9109915094 | CU12: 0.3625010779 | CV12: NOT SIG. | CY12: ='tabla 2012'!BC23/100 -> 0.6139 | CZ12: ='tabla 2012'!$BC$4/100 -> 0.6702 | DC12: ='tabla 2012'!AW23 -> 101 | DD12: ='tabla 2012'!$AW$4 -> 999 | DF12: 0.0563 | DG12: 0.04868539719 | DH12: 0.01488203312 | DI12: 0.05090916234 | DJ12: 1.105891306 | DK12: 0.2690158131 | DL12: NOT SIG. | DO12: ='tabla 2012'!BK23/100 -> 0.6894 | DP12: ='tabla 2012'!$BK$4/100 -> 0.7239 | DS12: ='tabla 2012'!BF23 -> 99 | DT12: ='tabla 2012'!$BF$4 -> 996 | DV12: 0.0345 | DW12: 0.04674372598 | DX12: 0.01417297272 | DY12: 0.04884515405 | DZ12: 0.7063136696 | EA12: 0.4801436227 | EB12: NOT SIG. | EE12: ='tabla 2012'!BO23/100 -> 0.5221 | EF12: ='tabla 2012'!$BO$4/100 -> 0.5837 | EI12: ='tabla 2012'!BN23 -> 98 | EJ12: ='tabla 2012'!$BN$4 -> 959 | EL12: 0.0616 | EM12: 0.05071769349 | EN12: 0.01592631487 | EO12: 0.05315949528 | EP12: 1.158776991 | EQ12: 0.2468093199 | ER12: NOT SIG.
A13: ='tabla 2012'!A24 -> 2013 | B13: ='tabla 2012'!B24 -> lakóhely | C13: ='tabla 2012'!C24 -> Észak-Nyugat | D13: ='tabla 2012'!D24 -> 100 | E13: ='tabla 2012'!E24 -> BKV | F13: ='tabla 2012'!F24 -> top2 | G13: ='tabla 2012'!K24/100 -> 0 | H13: ='tabla 2012'!$K$4/100 -> 0 | K13: ='tabla 2012'!G24 -> 0 | L13: ='tabla 2012'!$G$4 -> 0 | N13: 0 | O13: 0 | P13: 0 | Q13: 0 | R13: 0 | S13: 1 | T13: NOT SIG. | W13: ='tabla 2012'!R24/100 -> 0.5733 | X13: ='tabla 2012'!$R$4/100 -> 0.5327 | AA13: ='tabla 2012'!N24 -> 100 | AB13: ='tabla 2012'!$N$4 -> 993 | AD13: -0.0406 | AE13: 0.04970896206 | AF13: 0.0158410295 | AG13: 0.05217201477 | AH13: 0.7781949802 | AI13: 0.4366228064 | AJ13: NOT SIG. | AM13: ='tabla 2012'!Y24/100 -> 0.6869 | AN13: ='tabla 2012'!$Y$4/100 -> 0.6088 | AQ13: ='tabla 2012'!U24 -> 99 | AR13: ='tabla 2012'!$U$4 -> 997 | AT13: -0.0781 | AU13: 0.04684629556 | AV13: 0.01546347426 | AW13: 0.04933248873 | AX13: 1.583135212 | AY13: 0.1136796736 | AZ13: NOT SIG. | BC13: ='tabla 2012'!AE24/100 -> 0.565 | BD13: ='tabla 2012'!$AE$4/100 -> 0.4534 | BG13: ='tabla 2012'!AB24 -> 100 | BH13: ='tabla 2012'!$AB$4 -> 998 | BJ13: -0.1116 | BK13: 0.04982545291 | BL13: 0.01576623489 | BM13: 0.0522604049 | BN13: 2.135459919 | BO13: 0.03294463867 | BP13: SIG | BR13: Észak-Nyugat | BS13: ='tabla 2012'!AK24/100 -> 0.67 | BT13: ='tabla 2012'!$AK$4/100 -> 0.6045 | BW13: ='tabla 2012'!AH24 -> 100 | BX13: ='tabla 2012'!$AH$4 -> 995 | BZ13: -0.0655 | CA13: 0.04725815626 | CB13: 0.01550880032 | CC13: 0.04973787511 | CD13: 1.316903866 | CE13: 0.1881468842 | CF13: NOT SIG. | CI13: ='tabla 2012'!AT24/100 -> 0.54 | CJ13: ='tabla 2012'!$AT$4/100 -> 0.4796 | CM13: ='tabla 2012'!AN24 -> 100 | CN13: ='tabla 2012'!$AN$4 -> 993 | CP13: -0.0604 | CQ13: 0.0500908266 | CR13: 0.01586179728 | CS13: 0.05254224512 | CT13: 1.149551182 | CU13: 0.2505807086 | CV13: NOT SIG. | CY13: ='tabla 2012'!BC24/100 -> 0.775 | CZ13: ='tabla 2012'!$BC$4/100 -> 0.6702 | DC13: ='tabla 2012'!AW24 -> 100 | DD13: ='tabla 2012'!$AW$4 -> 999 | DF13: -0.1048 | DG13: 0.04196860298 | DH13: 0.01488203312 | DI13: 0.04452907529 | DJ13: 2.353518444 | DK13: 0.01877238695 | DL13: SIG | DN13: Észak-Nyugat | DO13: ='tabla 2012'!BK24/100 -> 0.8575 | DP13: ='tabla 2012'!$BK$4/100 -> 0.7239 | DS13: ='tabla 2012'!BF24 -> 100 | DT13: ='tabla 2012'!$BF$4 -> 996 | DV13: -0.1336 | DW13: 0.03513232561 | DX13: 0.01417297272 | DY13: 0.03788341931 | DZ13: 3.526608802 | EA13: 0.0004383578747 | EB13: SIG | ED13: Észak-Nyugat | EE13: ='tabla 2012'!BO24/100 -> 0.6659 | EF13: ='tabla 2012'!$BO$4/100 -> 0.5837 | EI13: ='tabla 2012'!BN24 -> 99 | EJ13: ='tabla 2012'!$BN$4 -> 959 | EL13: -0.0822 | EM13: 0.04764635776 | EN13: 0.01592631487 | EO13: 0.05023766429 | EP13: 1.636222566 | EQ13: 0.1020909936 | ER13: NOT SIG.
A14: ='tabla 2012'!A25 -> 2013 | B14: ='tabla 2012'!B25 -> lakóhely | C14: ='tabla 2012'!C25 -> Dél-Kelet | D14: ='tabla 2012'!D25 -> 100 | E14: ='tabla 2012'!E25 -> BKV | F14: ='tabla 2012'!F25 -> top2 | G14: ='tabla 2012'!K25/100 -> 0 | H14: ='tabla 2012'!$K$4/100 -> 0 | K14: ='tabla 2012'!G25 -> 0 | L14: ='tabla 2012'!$G$4 -> 0 | N14: 0 | O14: 0 | P14: 0 | Q14: 0 | R14: 0 | S14: 1 | T14: NOT SIG. | W14: ='tabla 2012'!R25/100 -> 0.4592 | X14: ='tabla 2012'!$R$4/100 -> 0.5327 | AA14: ='tabla 2012'!N25 -> 98 | AB14: ='tabla 2012'!$N$4 -> 993 | AD14: 0.0735 | AE14: 0.05059800738 | AF14: 0.0158410295 | AG14: 0.05301977524 | AH14: 1.386275209 | AI14: 0.1659466387 | AJ14: NOT SIG. | AM14: ='tabla 2012'!Y25/100 -> 0.5455 | AN14: ='tabla 2012'!$Y$4/100 -> 0.6088 | AQ14: ='tabla 2012'!U25 -> 99 | AR14: ='tabla 2012'!$U$4 -> 997 | AT14: 0.0633 | AU14: 0.05029806565 | AV14: 0.01546347426 | AW14: 0.05262142572 | AX14: 1.202932059 | AY14: 0.2292628788 | AZ14: NOT SIG. | BC14: ='tabla 2012'!AE25/100 -> 0.4495 | BD14: ='tabla 2012'!$AE$4/100 -> 0.4534 | BG14: ='tabla 2012'!AB25 -> 99 | BH14: ='tabla 2012'!$AB$4 -> 998 | BJ14: 0.0039 | BK14: 0.05024935272 | BL14: 0.01576623489 | BM14: 0.05266470936 | BN14: 0.07405338504 | BO14: 0.940981432 | BP14: NOT SIG. | BS14: ='tabla 2012'!AK25/100 -> 0.5202 | BT14: ='tabla 2012'!$AK$4/100 -> 0.6045 | BW14: ='tabla 2012'!AH25 -> 99 | BX14: ='tabla 2012'!$AH$4 -> 995 | BZ14: 0.0843 | CA14: 0.05046639213 | CB14: 0.01550880032 | CC14: 0.05279564018 | CD14: 1.596722754 | CE14: 0.110616843 | CF14: NOT SIG. | CI14: ='tabla 2012'!AT25/100 -> 0.3212 | CJ14: ='tabla 2012'!$AT$4/100 -> 0.4796 | CM14: ='tabla 2012'!AN25 -> 99 | CN14: ='tabla 2012'!$AN$4 -> 993 | CP14: 0.1584 | CQ14: 0.04716780292 | CR14: 0.01586179728 | CS14: 0.04976342277 | CT14: 3.183060794 | CU14: 0.001498503359 | CV14: SIG | CW14: Dél-Kelet | CY14: ='tabla 2012'!BC25/100 -> 0.6465 | CZ14: ='tabla 2012'!$BC$4/100 -> 0.6702 | DC14: ='tabla 2012'!AW25 -> 99 | DD14: ='tabla 2012'!$AW$4 -> 999 | DF14: 0.0237 | DG14: 0.04829097076 | DH14: 0.01488203312 | DI14: 0.0505320964 | DJ14: 0.4690088416 | DK14: 0.6391565931 | DL14: NOT SIG. | DO14: ='tabla 2012'!BK25/100 -> 0.8163 | DP14: ='tabla 2012'!$BK$4/100 -> 0.7239 | DS14: ='tabla 2012'!BF25 -> 98 | DT14: ='tabla 2012'!$BF$4 -> 996 | DV14: -0.0924 | DW14: 0.03931819835 | DX14: 0.01417297272 | DY14: 0.04179466326 | DZ14: 2.210808577 | EA14: 0.02725574694 | EB14: SIG | ED14: Dél-Kelet | EE14: ='tabla 2012'!BO25/100 -> 0.5345 | EF14: ='tabla 2012'!$BO$4/100 -> 0.5837 | EI14: ='tabla 2012'!BN25 -> 97 | EJ14: ='tabla 2012'!$BN$4 -> 959 | EL14: 0.0492 | EM14: 0.05090941199 | EN14: 0.01592631487 | EO14: 0.0533424384 | EP14: 0.9223425377 | EQ14: 0.356561011 | ER14: NOT SIG.
A15: ='tabla 2012'!A26 -> 2013 | B15: ='tabla 2012'!B26 -> lakóhely | C15: ='tabla 2012'!C26 -> Észak-Kelet | D15: ='tabla 2012'!D26 -> 100 | E15: ='tabla 2012'!E26 -> BKV | F15: ='tabla 2012'!F26 -> top2 | G15: ='tabla 2012'!K26/100 -> 0 | H15: ='tabla 2012'!$K$4/100 -> 0 | K15: ='tabla 2012'!G26 -> 0 | L15: ='tabla 2012'!$G$4 -> 0 | N15: 0 | O15: 0 | P15: 0 | Q15: 0 | R15: 0 | S15: 1 | T15: NOT SIG. | W15: ='tabla 2012'!R26/100 -> 0.6803 | X15: ='tabla 2012'!$R$4/100 -> 0.5327 | AA15: ='tabla 2012'!N26 -> 98 | AB15: ='tabla 2012'!$N$4 -> 993 | AD15: -0.1476 | AE15: 0.0473517121 | AF15: 0.0158410295 | AG15: 0.04993118119 | AH15: 2.956068663 | AI15: 0.003183013804 | AJ15: SIG | AL15: Észak-Kelet | AM15: ='tabla 2012'!Y26/100 -> 0.69 | AN15: ='tabla 2012'!$Y$4/100 -> 0.6088 | AQ15: ='tabla 2012'!U26 -> 100 | AR15: ='tabla 2012'!$U$4 -> 997 | AT15: -0.0812 | AU15: 0.04648231987 | AV15: 0.01546347426 | AW15: 0.04898698906 | AX15: 1.657582994 | AY15: 0.09768810215 | AZ15: NOT SIG. | BC15: ='tabla 2012'!AE26/100 -> 0.365 | BD15: ='tabla 2012'!$AE$4/100 -> 0.4534 | BG15: ='tabla 2012'!AB26 -> 100 | BH15: ='tabla 2012'!$AB$4 -> 998 | BJ15: 0.0884 | BK15: 0.04838555173 | BL15: 0.01576623489 | BM15: 0.05088944663 | BN15: 1.737098865 | BO15: 0.08265064567 | BP15: NOT SIG. | BS15: ='tabla 2012'!AK26/100 -> 0.7806 | BT15: ='tabla 2012'!$AK$4/100 -> 0.6045 | BW15: ='tabla 2012'!AH26 -> 98 | BX15: ='tabla 2012'!$AH$4 -> 995 | BZ15: -0.1761 | CA15: 0.04201909728 | CB15: 0.01550880032 | CC15: 0.04478981384 | CD15: 3.93169752 | CE15: 8.966524092e-05 | CF15: SIG | CH15: Észak-Kelet | CI15: ='tabla 2012'!AT26/100 -> 0.598 | CJ15: ='tabla 2012'!$AT$4/100 -> 0.4796 | CM15: ='tabla 2012'!AN26 -> 100 | CN15: ='tabla 2012'!$AN$4 -> 993 | CP15: -0.1184 | CQ15: 0.04927719984 | CR15: 0.01586179728 | CS15: 0.05176716176 | CT15: 2.287164217 | CU15: 0.02237702567 | CV15: SIG | CX15: Észak-Kelet | CY15: ='tabla 2012'!BC26/100 -> 0.71 | CZ15: ='tabla 2012'!$BC$4/100 -> 0.6702 | DC15: ='tabla 2012'!AW26 -> 100 | DD15: ='tabla 2012'!$AW$4 -> 999 | DF15: -0.0398 | DG15: 0.04560480216 | DH15: 0.01488203312 | DI15: 0.04797158419 | DJ15: 0.8296578208 | DK15: 0.4069127746 | DL15: NOT SIG. | DO15: ='tabla 2012'!BK26/100 -> 0.7875 | DP15: ='tabla 2012'!$BK$4/100 -> 0.7239 | DS15: ='tabla 2012'!BF26 -> 100 | DT15: ='tabla 2012'!$BF$4 -> 996 | DV15: -0.0636 | DW15: 0.04111375572 | DX15: 0.01417297272 | DY15: 0.04348809107 | DZ15: 1.462469344 | EA15: 0.1438998436 | EB15: NOT SIG. | EE15: ='tabla 2012'!BO26/100 -> 0.6495 | EF15: ='tabla 2012'!$BO$4/100 -> 0.5837 | EI15: ='tabla 2012'!BN26 -> 96 | EJ15: ='tabla 2012'!$BN$4 -> 959 | EL15: -0.0658 | EM15: 0.04895215172 | EN15: 0.01592631487 | EO15: 0.05147776863 | EP15: 1.278221682 | EQ15: 0.2014529516 | ER15: NOT SIG.
U16: =U6&IF(U6="","","; ")&U7&IF(U7="","","; ")&U8&IF(U8="","","; ")&U9&IF(U9="","","; ")&U10&IF(U10="","","; ")&U11&IF(U11="","","; ")&U12&IF(U12="","","; ")&U13&IF(U13="","","; ")&U14&IF(U14="","","; ")&U15 ->  | V16: =V6&IF(V6="","","; ")&V7&IF(V7="","","; ")&V8&IF(V8="","","; ")&V9&IF(V9="","","; ")&V10&IF(V10="","","; ")&V11&IF(V11="","","; ")&V12&IF(V12="","","; ")&V13&IF(V13="","","; ")&V14&IF(V14="","","; ")&V15 ->  | AK16: =AK6&IF(AK6="","","; ")&AK7&IF(AK7="","","; ")&AK8&IF(AK8="","","; ")&AK9&IF(AK9="","","; ")&AK10&IF(AK10="","","; ")&AK11&IF(AK11="","","; ")&AK12&IF(AK12="","","; ")&AK13&IF(AK13="","","; ")&AK14&IF(AK14="","","; ")&AK15 -> Észak-Pest; | AL16: =AL6&IF(AL6="","","; ")&AL7&IF(AL7="","","; ")&AL8&IF(AL8="","","; ")&AL9&IF(AL9="","","; ")&AL10&IF(AL10="","","; ")&AL11&IF(AL11="","","; ")&AL12&IF(AL12="","","; ")&AL13&IF(AL13="","","; ")&AL14&IF(AL14="","","; ")&AL15 -> Belváros; Észak-Kelet | BA16: =BA6&IF(BA6="","","; ")&BA7&IF(BA7="","","; ")&BA8&IF(BA8="","","; ")&BA9&IF(BA9="","","; ")&BA10&IF(BA10="","","; ")&BA11&IF(BA11="","","; ")&BA12&IF(BA12="","","; ")&BA13&IF(BA13="","","; ")&BA14&IF(BA14="","","; ")&BA15 -> Észak-Pest; Dél-Nyugat; | BB16: =BB6&IF(BB6="","","; ")&BB7&IF(BB7="","","; ")&BB8&IF(BB8="","","; ")&BB9&IF(BB9="","","; ")&BB10&IF(BB10="","","; ")&BB11&IF(BB11="","","; ")&BB12&IF(BB12="","","; ")&BB13&IF(BB13="","","; ")&BB14&IF(BB14="","","; ")&BB15 -> Dél-Pest; Kelet-Pest; | BQ16: =BQ6&IF(BQ6="","","; ")&BQ7&IF(BQ7="","","; ")&BQ8&IF(BQ8="","","; ")&BQ9&IF(BQ9="","","; ")&BQ10&IF(BQ10="","","; ")&BQ11&IF(BQ11="","","; ")&BQ12&IF(BQ12="","","; ")&BQ13&IF(BQ13="","","; ")&BQ14&IF(BQ14="","","; ")&BQ15 ->  | BR16: =BR6&IF(BR6="","","; ")&BR7&IF(BR7="","","; ")&BR8&IF(BR8="","","; ")&BR9&IF(BR9="","","; ")&BR10&IF(BR10="","","; ")&BR11&IF(BR11="","","; ")&BR12&IF(BR12="","","; ")&BR13&IF(BR13="","","; ")&BR14&IF(BR14="","","; ")&BR15 -> Kelet-Pest; Észak-Nyugat; | CG16: =CG6&IF(CG6="","","; ")&CG7&IF(CG7="","","; ")&CG8&IF(CG8="","","; ")&CG9&IF(CG9="","","; ")&CG10&IF(CG10="","","; ")&CG11&IF(CG11="","","; ")&CG12&IF(CG12="","","; ")&CG13&IF(CG13="","","; ")&CG14&IF(CG14="","","; ")&CG15 -> Észak-Pest; Dél-Nyugat; | CH16: =CH6&IF(CH6="","","; ")&CH7&IF(CH7="","","; ")&CH8&IF(CH8="","","; ")&CH9&IF(CH9="","","; ")&CH10&IF(CH10="","","; ")&CH11&IF(CH11="","","; ")&CH12&IF(CH12="","","; ")&CH13&IF(CH13="","","; ")&CH14&IF(CH14="","","; ")&CH15 -> Kelet-Pest; Észak-Kelet | CW16: =CW6&IF(CW6="","","; ")&CW7&IF(CW7="","","; ")&CW8&IF(CW8="","","; ")&CW9&IF(CW9="","","; ")&CW10&IF(CW10="","","; ")&CW11&IF(CW11="","","; ")&CW12&IF(CW12="","","; ")&CW13&IF(CW13="","","; ")&CW14&IF(CW14="","","; ")&CW15 -> Észak-Pest; Dél-Kelet; | CX16: =CX6&IF(CX6="","","; ")&CX7&IF(CX7="","","; ")&CX8&IF(CX8="","","; ")&CX9&IF(CX9="","","; ")&CX10&IF(CX10="","","; ")&CX11&IF(CX11="","","; ")&CX12&IF(CX12="","","; ")&CX13&IF(CX13="","","; ")&CX14&IF(CX14="","","; ")&CX15 -> Kelet-Pest; Észak-Kelet | DM16: =DM6&IF(DM6="","","; ")&DM7&IF(DM7="","","; ")&DM8&IF(DM8="","","; ")&DM9&IF(DM9="","","; ")&DM10&IF(DM10="","","; ")&DM11&IF(DM11="","","; ")&DM12&IF(DM12="","","; ")&DM13&IF(DM13="","","; ")&DM14&IF(DM14="","","; ")&DM15 -> Észak-Pest; | DN16: =DN6&IF(DN6="","","; ")&DN7&IF(DN7="","","; ")&DN8&IF(DN8="","","; ")&DN9&IF(DN9="","","; ")&DN10&IF(DN10="","","; ")&DN11&IF(DN11="","","; ")&DN12&IF(DN12="","","; ")&DN13&IF(DN13="","","; ")&DN14&IF(DN14="","","; ")&DN15 -> Kelet-Pest; Észak-Nyugat; | EC16: =EC6&IF(EC6="","","; ")&EC7&IF(EC7="","","; ")&EC8&IF(EC8="","","; ")&EC9&IF(EC9="","","; ")&EC10&IF(EC10="","","; ")&EC11&IF(EC11="","","; ")&EC12&IF(EC12="","","; ")&EC13&IF(EC13="","","; ")&EC14&IF(EC14="","","; ")&EC15 -> Észak-Pest; | ED16: =ED6&IF(ED6="","","; ")&ED7&IF(ED7="","","; ")&ED8&IF(ED8="","","; ")&ED9&IF(ED9="","","; ")&ED10&IF(ED10="","","; ")&ED11&IF(ED11="","","; ")&ED12&IF(ED12="","","; ")&ED13&IF(ED13="","","; ")&ED14&IF(ED14="","","; ")&ED15 -> Dél-Buda; Észak-Nyugat; Dél-Kelet; | ES16: =ES6&IF(ES6="","","; ")&ES7&IF(ES7="","","; ")&ES8&IF(ES8="","","; ")&ES9&IF(ES9="","","; ")&ES10&IF(ES10="","","; ")&ES11&IF(ES11="","","; ")&ES12&IF(ES12="","","; ")&ES13&IF(ES13="","","; ")&ES14&IF(ES14="","","; ")&ES15 -> Észak-Pest; | ET16: =ET6&IF(ET6="","","; ")&ET7&IF(ET7="","","; ")&ET8&IF(ET8="","","; ")&ET9&IF(ET9="","","; ")&ET10&IF(ET10="","","; ")&ET11&IF(ET11="","","; ")&ET12&IF(ET12="","","; ")&ET13&IF(ET13="","","; ")&ET14&IF(ET14="","","; ")&ET15 -> Kelet-Pest;
A17: ='tabla 2012'!A27 -> 2013 | B17: ='tabla 2012'!B27 -> nem | C17: ='tabla 2012'!C27 -> férfi | D17: ='tabla 2012'!D27 -> 349 | E17: ='tabla 2012'!E27 -> BKV | F17: ='tabla 2012'!F27 -> top2 | G17: ='tabla 2012'!K27/100 -> 0 | H17: ='tabla 2012'!$K$4/100 -> 0 | K17: ='tabla 2012'!G27 -> 0 | L17: ='tabla 2012'!$G$4 -> 0 | N17: 0 | O17: 0 | P17: =IF((L17-1)=0,0,SQRT((1-H17)*H17/(L17-1))) -> 0 | Q17: 0 | R17: 0 | S17: =IF(R17=0,1,TDIST(R17,K17+L17-2,$B$2)) -> 1 | T17: NOT SIG. | W17: ='tabla 2012'!R27/100 -> 0.5376 | X17: ='tabla 2012'!$R$4/100 -> 0.5327 | AA17: ='tabla 2012'!N27 -> 346 | AB17: ='tabla 2012'!$N$4 -> 993 | AD17: -0.0049 | AE17: 0.02684287291 | AF17: 0.0158410295 | AG17: 0.0311685425 | AH17: 0.1572097893 | AI17: 0.8751032503 | AJ17: NOT SIG. | AM17: ='tabla 2012'!Y27/100 -> 0.602 | AN17: ='tabla 2012'!$Y$4/100 -> 0.6088 | AQ17: ='tabla 2012'!U27 -> 348 | AR17: ='tabla 2012'!$U$4 -> 997 | AT17: 0.0068 | AU17: 0.02627695542 | AV17: 0.01546347426 | AW17: 0.03048930013 | AX17: 0.2230290617 | AY17: 0.8235468042 | AZ17: NOT SIG. | BC17: ='tabla 2012'!AE27/100 -> 0.4713 | BD17: ='tabla 2012'!$AE$4/100 -> 0.4534 | BG17: ='tabla 2012'!AB27 -> 349 | BH17: ='tabla 2012'!$AB$4 -> 998 | BJ17: -0.0179 | BK17: 0.02675862252 | BL17: 0.01576623489 | BM17: 0.03105797871 | BN17: 0.5763414343 | BO17: 0.5644808521 | BP17: NOT SIG. | BS17: ='tabla 2012'!AK27/100 -> 0.5922 | BT17: ='tabla 2012'!$AK$4/100 -> 0.6045 | BW17: ='tabla 2012'!AH27 -> 347 | BX17: ='tabla 2012'!$AH$4 -> 995 | BZ17: 0.0123 | CA17: 0.0264192061 | CB17: 0.01550880032 | CC17: 0.03063490392 | CD17: 0.4015028097 | CE17: 0.6881139907 | CF17: NOT SIG. | CI17: ='tabla 2012'!AT27/100 -> 0.4526 | CJ17: ='tabla 2012'!$AT$4/100 -> 0.4796 | CM17: ='tabla 2012'!AN27 -> 346 | CN17: ='tabla 2012'!$AN$4 -> 993 | CP17: 0.027 | CQ17: 0.02679786061 | CR17: 0.01586179728 | CS17: 0.0311403588 | CT17: 0.8670420329 | CU17: 0.3860745577 | CV17: NOT SIG. | CY17: ='tabla 2012'!BC27/100 -> 0.6748 | CZ17: ='tabla 2012'!$BC$4/100 -> 0.6702 | DC17: ='tabla 2012'!AW27 -> 349 | DD17: ='tabla 2012'!$AW$4 -> 999 | DF17: =CZ17-CY17 -> -0.0046 | DG17: =IF((DC17-1)=0,0,SQRT((1-CY17)*CY17/(DC17-1))) -> 0.02511153053 | DH17: =IF((DD17-1)=0,0,SQRT((1-CZ17)*CZ17/(DD17-1))) -> 0.01488203312 | DI17: 0.02919013318 | DJ17: 0.1575874961 | DK17: =IF(DJ17=0,1,TDIST(DJ17,DC17+DD17-2,$B$2)) -> 0.8748054932 | DL17: NOT SIG. | DO17: ='tabla 2012'!BK27/100 -> 0.7076 | DP17: ='tabla 2012'!$BK$4/100 -> 0.7239 | DS17: ='tabla 2012'!BF27 -> 348 | DT17: ='tabla 2012'!$BF$4 -> 996 | DV17: =DP17-DO17 -> 0.0163 | DW17: =IF((DS17-1)=0,0,SQRT((1-DO17)*DO17/(DS17-1))) -> 0.02441843684 | DX17: =IF((DT17-1)=0,0,SQRT((1-DP17)*DP17/(DT17-1))) -> 0.01417297272 | DY17: 0.02823354766 | DZ17: 0.5773273765 | EA17: =IF(DZ17=0,1,TDIST(DZ17,DS17+DT17-2,$B$2)) -> 0.5638151621 | EB17: NOT SIG. | EE17: ='tabla 2012'!BO27/100 -> 0.579 | EF17: ='tabla 2012'!$BO$4/100 -> 0.5837 | EI17: ='tabla 2012'!BN27 -> 335 | EJ17: ='tabla 2012'!$BN$4 -> 959 | EL17: =EF17-EE17 -> 0.0047 | EM17: =IF((EI17-1)=0,0,SQRT((1-EE17)*EE17/(EI17-1))) -> 0.02701513215 | EN17: =IF((EJ17-1)=0,0,SQRT((1-EF17)*EF17/(EJ17-1))) -> 0.01592631487 | EO17: 0.03136024347 | EP17: 0.1498712854 | EQ17: =IF(EP17=0,1,TDIST(EP17,EI17+EJ17-2,$B$2)) -> 0.8808895585 | ER17: NOT SIG.
A18: ='tabla 2012'!A28 -> 2013 | B18: ='tabla 2012'!B28 -> nem | C18: ='tabla 2012'!C28 -> nő | D18: ='tabla 2012'!D28 -> 652 | E18: ='tabla 2012'!E28 -> BKV | F18: ='tabla 2012'!F28 -> top2 | G18: ='tabla 2012'!K28/100 -> 0 | H18: ='tabla 2012'!$K$4/100 -> 0 | K18: ='tabla 2012'!G28 -> 0 | L18: ='tabla 2012'!$G$4 -> 0 | N18: 0 | O18: 0 | P18: =IF((L18-1)=0,0,SQRT((1-H18)*H18/(L18-1))) -> 0 | Q18: 0 | R18: 0 | S18: =IF(R18=0,1,TDIST(R18,K18+L18-2,$B$2)) -> 1 | T18: NOT SIG. | W18: ='tabla 2012'!R28/100 -> 0.5301 | X18: ='tabla 2012'!$R$4/100 -> 0.5327 | AA18: ='tabla 2012'!N28 -> 647 | AB18: ='tabla 2012'!$N$4 -> 993 | AD18: 0.0026 | AE18: 0.01963655804 | AF18: 0.0158410295 | AG18: 0.02522959824 | AH18: 0.1030535633 | AI18: 0.9179330746 | AJ18: NOT SIG. | AM18: ='tabla 2012'!Y28/100 -> 0.6125 | AN18: ='tabla 2012'!$Y$4/100 -> 0.6088 | AQ18: ='tabla 2012'!U28 -> 649 | AR18: ='tabla 2012'!$U$4 -> 997 | AT18: -0.0037 | AU18: 0.01913821358 | AV18: 0.01546347426 | AW18: 0.02460467954 | AX18: 0.1503778984 | AY18: 0.8804849247 | AZ18: NOT SIG. | BC18: ='tabla 2012'!AE28/100 -> 0.4438 | BD18: ='tabla 2012'!$AE$4/100 -> 0.4534 | BG18: ='tabla 2012'!AB28 -> 649 | BH18: ='tabla 2012'!$AB$4 -> 998 | BJ18: 0.0096 | BK18: 0.01951738541 | BL18: 0.01576623489 | BM18: 0.02508988832 | BN18: 0.3826242619 | BO18: 0.7020478089 | BP18: NOT SIG. | BS18: ='tabla 2012'!AK28/100 -> 0.6111 | BT18: ='tabla 2012'!$AK$4/100 -> 0.6045 | BW18: ='tabla 2012'!AH28 -> 648 | BX18: ='tabla 2012'!$AH$4 -> 995 | BZ18: -0.0066 | CA18: 0.01916562441 | CB18: 0.01550880032 | CC18: 0.02465449343 | CD18: 0.2676996799 | CE18: 0.7889641382 | CF18: NOT SIG. | CI18: ='tabla 2012'!AT28/100 -> 0.494 | CJ18: ='tabla 2012'!$AT$4/100 -> 0.4796 | CM18: ='tabla 2012'!AN28 -> 647 | CN18: ='tabla 2012'!$AN$4 -> 993 | CP18: -0.0144 | CQ18: 0.01967082043 | CR18: 0.01586179728 | CS18: 0.02526930528 | CT18: 0.5698613333 | CU18: 0.5688498982 | CV18: NOT SIG. | CY18: ='tabla 2012'!BC28/100 -> 0.6677 | CZ18: ='tabla 2012'!$BC$4/100 -> 0.6702 | DC18: ='tabla 2012'!AW28 -> 650 | DD18: ='tabla 2012'!$AW$4 -> 999 | DF18: =CZ18-CY18 -> 0.0025 | DG18: =IF((DC18-1)=0,0,SQRT((1-CY18)*CY18/(DC18-1))) -> 0.01848985521 | DH18: =IF((DD18-1)=0,0,SQRT((1-CZ18)*CZ18/(DD18-1))) -> 0.01488203312 | DI18: 0.023734988 | DJ18: 0.1053297351 | DK18: =IF(DJ18=0,1,TDIST(DJ18,DC18+DD18-2,$B$2)) -> 0.9161269949 | DL18: NOT SIG. | DO18: ='tabla 2012'!BK28/100 -> 0.7326 | DP18: ='tabla 2012'!$BK$4/100 -> 0.7239 | DS18: ='tabla 2012'!BF28 -> 648 | DT18: ='tabla 2012'!$BF$4 -> 996 | DV18: =DP18-DO18 -> -0.0087 | DW18: =IF((DS18-1)=0,0,SQRT((1-DO18)*DO18/(DS18-1))) -> 0.01740051164 | DX18: =IF((DT18-1)=0,0,SQRT((1-DP18)*DP18/(DT18-1))) -> 0.01417297272 | DY18: 0.02244216926 | DZ18: 0.3876630597 | EA18: =IF(DZ18=0,1,TDIST(DZ18,DS18+DT18-2,$B$2)) -> 0.6983156414 | EB18: NOT SIG. | EE18: ='tabla 2012'!BO28/100 -> 0.5863 | EF18: ='tabla 2012'!$BO$4/100 -> 0.5837 | EI18: ='tabla 2012'!BN28 -> 624 | EJ18: ='tabla 2012'!$BN$4 -> 959 | EL18: =EF18-EE18 -> -0.0026 | EM18: =IF((EI18-1)=0,0,SQRT((1-EE18)*EE18/(EI18-1))) -> 0.01973143559 | EN18: =IF((EJ18-1)=0,0,SQRT((1-EF18)*EF18/(EJ18-1))) -> 0.01592631487 | EO18: 0.02535699225 | EP18: 0.1025358203 | EQ18: =IF(EP18=0,1,TDIST(EP18,EI18+EJ18-2,$B$2)) -> 0.9183443853 | ER18: NOT SIG.
U19: =U17&IF(U17="","","; ")&U18 ->  | V19: =V17&IF(V17="","","; ")&V18 ->  | AK19: =AK17&IF(AK17="","","; ")&AK18 ->  | AL19: =AL17&IF(AL17="","","; ")&AL18 ->  | BA19: =BA17&IF(BA17="","","; ")&BA18 ->  | BB19: =BB17&IF(BB17="","","; ")&BB18 ->  | BQ19: =BQ17&IF(BQ17="","","; ")&BQ18 ->  | BR19: =BR17&IF(BR17="","","; ")&BR18 ->  | CG19: =CG17&IF(CG17="","","; ")&CG18 ->  | CH19: =CH17&IF(CH17="","","; ")&CH18 ->  | CW19: =CW17&IF(CW17="","","; ")&CW18 ->  | CX19: =CX17&IF(CX17="","","; ")&CX18 ->  | DM19: =DM17&IF(DM17="","","; ")&DM18 ->  | DN19: =DN17&IF(DN17="","","; ")&DN18 ->  | EC19: =EC17&IF(EC17="","","; ")&EC18 ->  | ED19: =ED17&IF(ED17="","","; ")&ED18 ->  | ES19: =ES17&IF(ES17="","","; ")&ES18 ->  | ET19: =ET17&IF(ET17="","","; ")&ET18 -> 
A20: ='tabla 2012'!A29 -> 2013 | B20: ='tabla 2012'!B29 -> életkor | C20: ='tabla 2012'!C29 -> 14-29 éves | D20: ='tabla 2012'!D29 -> 201 | E20: ='tabla 2012'!E29 -> BKV | F20: ='tabla 2012'!F29 -> top2 | G20: ='tabla 2012'!K29/100 -> 0 | H20: ='tabla 2012'!$K$4/100 -> 0 | K20: ='tabla 2012'!G29 -> 0 | L20: ='tabla 2012'!$G$4 -> 0 | N20: 0 | O20: 0 | P20: =IF((L20-1)=0,0,SQRT((1-H20)*H20/(L20-1))) -> 0 | Q20: 0 | R20: 0 | S20: =IF(R20=0,1,TDIST(R20,K20+L20-2,$B$2)) -> 1 | T20: NOT SIG. | W20: ='tabla 2012'!R29/100 -> 0.5354 | X20: ='tabla 2012'!$R$4/100 -> 0.5327 | AA20: ='tabla 2012'!N29 -> 198 | AB20: ='tabla 2012'!$N$4 -> 993 | AD20: -0.0027 | AE20: 0.03553412887 | AF20: 0.0158410295 | AG20: 0.03890517357 | AH20: 0.06939951046 | AI20: 0.944683288 | AJ20: NOT SIG. | AM20: ='tabla 2012'!Y29/100 -> 0.5672 | AN20: ='tabla 2012'!$Y$4/100 -> 0.6088 | AQ20: ='tabla 2012'!U29 -> 201 | AR20: ='tabla 2012'!$U$4 -> 997 | AT20: 0.0416 | AU20: 0.03503456579 | AV20: 0.01546347426 | AW20: 0.0382954284 | AX20: 1.086291543 | AY20: 0.2775689157 | AZ20: NOT SIG. | BC20: ='tabla 2012'!AE29/100 -> 0.42 | BD20: ='tabla 2012'!$AE$4/100 -> 0.4534 | BG20: ='tabla 2012'!AB29 -> 200 | BH20: ='tabla 2012'!$AB$4 -> 998 | BJ20: 0.0334 | BK20: 0.03498743493 | BL20: 0.01576623489 | BM20: 0.03837570541 | BN20: 0.8703423076 | BO20: 0.3842880127 | BP20: NOT SIG. | BS20: ='tabla 2012'!AK29/100 -> 0.5995 | BT20: ='tabla 2012'!$AK$4/100 -> 0.6045 | BW20: ='tabla 2012'!AH29 -> 201 | BX20: ='tabla 2012'!$AH$4 -> 995 | BZ20: 0.005 | CA20: 0.03464821424 | CB20: 0.01550880032 | CC20: 0.03796079079 | CD20: 0.1317148536 | CE20: 0.8952320269 | CF20: NOT SIG. | CI20: ='tabla 2012'!AT29/100 -> 0.438 | CJ20: ='tabla 2012'!$AT$4/100 -> 0.4796 | CM20: ='tabla 2012'!AN29 -> 200 | CN20: ='tabla 2012'!$AN$4 -> 993 | CP20: 0.0416 | CQ20: 0.03517051072 | CR20: 0.01586179728 | CS20: 0.03858187965 | CT20: 1.078226369 | CU20: 0.2811510724 | CV20: NOT SIG. | CY20: ='tabla 2012'!BC29/100 -> 0.6468 | CZ20: ='tabla 2012'!$BC$4/100 -> 0.6702 | DC20: ='tabla 2012'!AW29 -> 201 | DD20: ='tabla 2012'!$AW$4 -> 999 | DF20: =CZ20-CY20 -> 0.0234 | DG20: =IF((DC20-1)=0,0,SQRT((1-CY20)*CY20/(DC20-1))) -> 0.03379717148 | DH20: 0.01488203312 | DI20: 0.03692862995 | DJ20: 0.6336547019 | DK20: =IF(DJ20=0,1,TDIST(DJ20,DC20+DD20-2,$B$2)) -> 0.5264271477 | DL20: NOT SIG. | DO20: ='tabla 2012'!BK29/100 -> 0.6629 | DP20: ='tabla 2012'!$BK$4/100 -> 0.7239 | DS20: ='tabla 2012'!BF29 -> 201 | DT20: ='tabla 2012'!$BF$4 -> 996 | DV20: =DP20-DO20 -> 0.061 | DW20: =IF((DS20-1)=0,0,SQRT((1-DO20)*DO20/(DS20-1))) -> 0.03342630626 | DX20: 0.01417297272 | DY20: 0.03630690163 | DZ20: 1.680121334 | EA20: =IF(DZ20=0,1,TDIST(DZ20,DS20+DT20-2,$B$2)) -> 0.09319507675 | EB20: NOT SIG. | EE20: ='tabla 2012'!BO29/100 -> 0.5548 | EF20: ='tabla 2012'!$BO$4/100 -> 0.5837 | EI20: ='tabla 2012'!BN29 -> 189 | EJ20: ='tabla 2012'!$BN$4 -> 959 | EL20: =EF20-EE20 -> 0.0289 | EM20: =IF((EI20-1)=0,0,SQRT((1-EE20)*EE20/(EI20-1))) -> 0.03624656697 | EN20: 0.01592631487 | EO20: 0.0395911748 | EP20: 0.7299606578 | EQ20: =IF(EP20=0,1,TDIST(EP20,EI20+EJ20-2,$B$2)) -> 0.4655634139 | ER20: NOT SIG.
A21: ='tabla 2012'!A30 -> 2013 | B21: ='tabla 2012'!B30 -> életkor | C21: ='tabla 2012'!C30 -> 30-39 éves | D21: ='tabla 2012'!D30 -> 208 | E21: ='tabla 2012'!E30 -> BKV | F21: ='tabla 2012'!F30 -> top2 | G21: ='tabla 2012'!K30/100 -> 0 | H21: ='tabla 2012'!$K$4/100 -> 0 | K21: ='tabla 2012'!G30 -> 0 | L21: ='tabla 2012'!$G$4 -> 0 | N21: 0 | O21: 0 | P21: 0 | Q21: 0 | R21: 0 | S21: 1 | T21: NOT SIG. | W21: ='tabla 2012'!R30/100 -> 0.5064 | X21: ='tabla 2012'!$R$4/100 -> 0.5327 | AA21: ='tabla 2012'!N30 -> 208 | AB21: ='tabla 2012'!$N$4 -> 993 | AD21: 0.0263 | AE21: 0.03474955531 | AF21: 0.0158410295 | AG21: 0.03818991765 | AH21: 0.6886634384 | AI21: 0.4911683156 | AJ21: NOT SIG. | AM21: ='tabla 2012'!Y30/100 -> 0.5625 | AN21: ='tabla 2012'!$Y$4/100 -> 0.6088 | AQ21: ='tabla 2012'!U30 -> 208 | AR21: ='tabla 2012'!$U$4 -> 997 | AT21: 0.0463 | AU21: 0.03447983027 | AV21: 0.01546347426 | AW21: 0.03778859261 | AX21: 1.22523748 | AY21: 0.2207255871 | AZ21: NOT SIG. | BC21: ='tabla 2012'!AE30/100 -> 0.4736 | BD21: ='tabla 2012'!$AE$4/100 -> 0.4534 | BG21: ='tabla 2012'!AB30 -> 208 | BH21: ='tabla 2012'!$AB$4 -> 998 | BJ21: -0.0202 | BK21: 0.03470392646 | BL21: 0.01576623489 | BM21: 0.03811740645 | BN21: 0.5299416167 | BO21: 0.5962501198 | BP21: NOT SIG. | BS21: ='tabla 2012'!AK30/100 -> 0.5697 | BT21: ='tabla 2012'!$AK$4/100 -> 0.6045 | BW21: ='tabla 2012'!AH30 -> 208 | BX21: ='tabla 2012'!$AH$4 -> 995 | BZ21: 0.0348 | CA21: 0.03441308523 | CB21: 0.01550880032 | CC21: 0.0377463021 | CD21: 0.9219446162 | CE21: 0.3567426278 | CF21: NOT SIG. | CI21: ='tabla 2012'!AT30/100 -> 0.4712 | CJ21: ='tabla 2012'!$AT$4/100 -> 0.4796 | CM21: ='tabla 2012'!AN30 -> 205 | CN21: ='tabla 2012'!$AN$4 -> 993 | CP21: 0.0084 | CQ21: 0.03494888144 | CR21: 0.01586179728 | CS21: 0.03837995475 | CT21: 0.2188642497 | CU21: 0.8267931377 | CV21: NOT SIG. | CY21: ='tabla 2012'!BC30/100 -> 0.6322 | CZ21: ='tabla 2012'!$BC$4/100 -> 0.6702 | DC21: ='tabla 2012'!AW30 -> 208 | DD21: ='tabla 2012'!$AW$4 -> 999 | DF21: 0.038 | DG21: 0.0335156723 | DH21: 0.01488203312 | DI21: 0.03667117669 | DJ21: 1.036236179 | DK21: 0.300299872 | DL21: NOT SIG. | DO21: ='tabla 2012'!BK30/100 -> 0.7043 | DP21: ='tabla 2012'!$BK$4/100 -> 0.7239 | DS21: ='tabla 2012'!BF30 -> 208 | DT21: ='tabla 2012'!$BF$4 -> 996 | DV21: 0.0196 | DW21: 0.03171898881 | DX21: 0.01417297272 | DY21: 0.03474143646 | DZ21: 0.5641678065 | EA21: 0.5727451844 | EB21: NOT SIG. | EE21: ='tabla 2012'!BO30/100 -> 0.5613 | EF21: ='tabla 2012'!$BO$4/100 -> 0.5837 | EI21: ='tabla 2012'!BN30 -> 201 | EJ21: ='tabla 2012'!$BN$4 -> 959 | EL21: 0.0224 | EM21: 0.03508862422 | EN21: 0.01592631487 | EO21: 0.03853386894 | EP21: 0.5813067989 | EQ21: 0.561146826 | ER21: NOT SIG.
A22: ='tabla 2012'!A31 -> 2013 | B22: ='tabla 2012'!B31 -> életkor | C22: ='tabla 2012'!C31 -> 40-49 éves | D22: ='tabla 2012'!D31 -> 195 | E22: ='tabla 2012'!E31 -> BKV | F22: ='tabla 2012'!F31 -> top2 | G22: ='tabla 2012'!K31/100 -> 0 | H22: ='tabla 2012'!$K$4/100 -> 0 | K22: ='tabla 2012'!G31 -> 0 | L22: ='tabla 2012'!$G$4 -> 0 | N22: 0 | O22: 0 | P22: 0 | Q22: 0 | R22: 0 | S22: 1 | T22: NOT SIG. | W22: ='tabla 2012'!R31/100 -> 0.5155 | X22: ='tabla 2012'!$R$4/100 -> 0.5327 | AA22: ='tabla 2012'!N31 -> 194 | AB22: ='tabla 2012'!$N$4 -> 993 | AD22: 0.0172 | AE22: 0.03597348981 | AF22: 0.0158410295 | AG22: 0.03930687198 | AH22: 0.4375825176 | AI22: 0.6617686864 | AJ22: NOT SIG. | AM22: ='tabla 2012'!Y31/100 -> 0.5979 | AN22: ='tabla 2012'!$Y$4/100 -> 0.6088 | AQ22: ='tabla 2012'!U31 -> 194 | AR22: ='tabla 2012'!$U$4 -> 997 | AT22: 0.0109 | AU22: 0.03529414445 | AV22: 0.01546347426 | AW22: 0.03853304644 | AX22: 0.2828740784 | AY22: 0.7773226036 | AZ22: NOT SIG. | BC22: ='tabla 2012'!AE31/100 -> 0.4407 | BD22: ='tabla 2012'!$AE$4/100 -> 0.4534 | BG22: ='tabla 2012'!AB31 -> 194 | BH22: ='tabla 2012'!$AB$4 -> 998 | BJ22: 0.0127 | BK22: 0.03573676863 | BL22: 0.01576623489 | BM22: 0.0390600921 | BN22: 0.3251400424 | BO22: 0.7451322378 | BP22: NOT SIG. | BS22: ='tabla 2012'!AK31/100 -> 0.5725 | BT22: ='tabla 2012'!$AK$4/100 -> 0.6045 | BW22: ='tabla 2012'!AH31 -> 193 | BX22: ='tabla 2012'!$AH$4 -> 995 | BZ22: 0.032 | CA22: 0.03570303952 | CB22: 0.01550880032 | CC22: 0.03892595431 | CD22: 0.8220736157 | CE22: 0.4112002356 | CF22: NOT SIG. | CI22: ='tabla 2012'!AT31/100 -> 0.4619 | CJ22: ='tabla 2012'!$AT$4/100 -> 0.4796 | CM22: ='tabla 2012'!AN31 -> 194 | CN22: ='tabla 2012'!$AN$4 -> 993 | CP22: 0.0177 | CQ22: 0.03588614624 | CR22: 0.01586179728 | CS22: 0.03923534255 | CT22: 0.4511238809 | CU22: 0.6519828064 | CV22: NOT SIG. | CY22: ='tabla 2012'!BC31/100 -> 0.7154 | CZ22: ='tabla 2012'!$BC$4/100 -> 0.6702 | DC22: ='tabla 2012'!AW31 -> 195 | DD22: ='tabla 2012'!$AW$4 -> 999 | DF22: -0.0452 | DG22: 0.03239597468 | DH22: 0.01488203312 | DI22: 0.03565072349 | DJ22: 1.267856458 | DK22: 0.2050968093 | DL22: NOT SIG. | DO22: ='tabla 2012'!BK31/100 -> 0.7577 | DP22: ='tabla 2012'!$BK$4/100 -> 0.7239 | DS22: ='tabla 2012'!BF31 -> 194 | DT22: ='tabla 2012'!$BF$4 -> 996 | DV22: -0.0338 | DW22: 0.03084229567 | DX22: 0.01417297272 | DY22: 0.03394289849 | DZ22: 0.9957900328 | EA22: 0.3195549514 | EB22: NOT SIG. | EE22: ='tabla 2012'!BO31/100 -> 0.5873 | EF22: ='tabla 2012'!$BO$4/100 -> 0.5837 | EI22: ='tabla 2012'!BN31 -> 189 | EJ22: ='tabla 2012'!$BN$4 -> 959 | EL22: -0.0036 | EM22: 0.03590610613 | EN22: 0.01592631487 | EO22: 0.03927971439 | EP22: 0.0916503609 | EQ22: 0.9269918549 | ER22: NOT SIG.
A23: ='tabla 2012'!A32 -> 2013 | B23: ='tabla 2012'!B32 -> életkor | C23: ='tabla 2012'!C32 -> 50-59 éves | D23: ='tabla 2012'!D32 -> 169 | E23: ='tabla 2012'!E32 -> BKV | F23: ='tabla 2012'!F32 -> top2 | G23: ='tabla 2012'!K32/100 -> 0 | H23: ='tabla 2012'!$K$4/100 -> 0 | K23: ='tabla 2012'!G32 -> 0 | L23: ='tabla 2012'!$G$4 -> 0 | N23: 0 | O23: 0 | P23: 0 | Q23: 0 | R23: 0 | S23: 1 | T23: NOT SIG. | W23: ='tabla 2012'!R32/100 -> 0.498 | X23: ='tabla 2012'!$R$4/100 -> 0.5327 | AA23: ='tabla 2012'!N32 -> 168 | AB23: ='tabla 2012'!$N$4 -> 993 | AD23: 0.0347 | AE23: 0.0386908521 | AF23: 0.0158410295 | AG23: 0.04180813619 | AH23: 0.8299819883 | AI23: 0.4067198879 | AJ23: NOT SIG. | AM23: ='tabla 2012'!Y32/100 -> 0.6101 | AN23: ='tabla 2012'!$Y$4/100 -> 0.6088 | AQ23: ='tabla 2012'!U32 -> 168 | AR23: ='tabla 2012'!$U$4 -> 997 | AT23: -0.0013 | AU23: 0.03774147721 | AV23: 0.01546347426 | AW23: 0.04078649455 | AX23: 0.03187329566 | AY23: 0.9745785637 | AZ23: NOT SIG. | BC23: ='tabla 2012'!AE32/100 -> 0.4231 | BD23: ='tabla 2012'!$AE$4/100 -> 0.4534 | BG23: ='tabla 2012'!AB32 -> 169 | BH23: ='tabla 2012'!$AB$4 -> 998 | BJ23: 0.0303 | BK23: 0.03811686213 | BL23: 0.01576623489 | BM23: 0.04124887079 | BN23: 0.7345655632 | BO23: 0.4627519415 | BP23: NOT SIG. | BS23: ='tabla 2012'!AK32/100 -> 0.6012 | BT23: ='tabla 2012'!$AK$4/100 -> 0.6045 | BW23: ='tabla 2012'!AH32 -> 168 | BX23: ='tabla 2012'!$AH$4 -> 995 | BZ23: 0.0033 | CA23: 0.03789036817 | CB23: 0.01550880032 | CC23: 0.04094145683 | CD23: 0.08060289632 | CE23: 0.9357716544 | CF23: NOT SIG. | CI23: ='tabla 2012'!AT32/100 -> 0.445 | CJ23: ='tabla 2012'!$AT$4/100 -> 0.4796 | CM23: ='tabla 2012'!AN32 -> 169 | CN23: ='tabla 2012'!$AN$4 -> 993 | CP23: 0.0346 | CQ23: 0.03834174338 | CR23: 0.01586179728 | CS23: 0.04149320304 | CT23: 0.833871513 | CU23: 0.4045250659 | CV23: NOT SIG. | CY23: ='tabla 2012'!BC32/100 -> 0.6331 | CZ23: ='tabla 2012'!$BC$4/100 -> 0.6702 | DC23: ='tabla 2012'!AW32 -> 169 | DD23: ='tabla 2012'!$AW$4 -> 999 | DF23: 0.0371 | DG23: 0.0371839371 | DH23: 0.01488203312 | DI23: 0.04005146799 | DJ23: 0.9263081195 | DK23: 0.3544775604 | DL23: NOT SIG. | DO23: ='tabla 2012'!BK32/100 -> 0.6856 | DP23: ='tabla 2012'!$BK$4/100 -> 0.7239 | DS23: ='tabla 2012'!BF32 -> 167 | DT23: ='tabla 2012'!$BF$4 -> 996 | DV23: 0.0383 | DW23: 0.03603484258 | DX23: 0.01417297272 | DY23: 0.03872186766 | DZ23: 0.989105183 | EA23: 0.322817771 | EB23: NOT SIG. | EE23: ='tabla 2012'!BO32/100 -> 0.5582 | EF23: ='tabla 2012'!$BO$4/100 -> 0.5837 | EI23: ='tabla 2012'!BN32 -> 163 | EJ23: ='tabla 2012'!$BN$4 -> 959 | EL23: 0.0255 | EM23: 0.03901667576 | EN23: 0.01592631487 | EO23: 0.0421420039 | EP23: 0.6050969968 | EQ23: 0.5452371268 | ER23: NOT SIG.
A24: ='tabla 2012'!A33 -> 2013 | B24: ='tabla 2012'!B33 -> életkor | C24: ='tabla 2012'!C33 -> 60-65 éves | D24: ='tabla 2012'!D33 -> 129 | E24: ='tabla 2012'!E33 -> BKV | F24: ='tabla 2012'!F33 -> top2 | G24: ='tabla 2012'!K33/100 -> 0 | H24: ='tabla 2012'!$K$4/100 -> 0 | K24: ='tabla 2012'!G33 -> 0 | L24: ='tabla 2012'!$G$4 -> 0 | N24: 0 | O24: 0 | P24: 0 | Q24: 0 | R24: 0 | S24: 1 | T24: NOT SIG. | W24: ='tabla 2012'!R33/100 -> 0.5328 | X24: ='tabla 2012'!$R$4/100 -> 0.5327 | AA24: ='tabla 2012'!N33 -> 127 | AB24: ='tabla 2012'!$N$4 -> 993 | AD24: -0.0001 | AE24: 0.04444759354 | AF24: 0.0158410295 | AG24: 0.0471860868 | AH24: 0.002119268767 | AI24: 0.9983094475 | AJ24: NOT SIG. | AM24: ='tabla 2012'!Y33/100 -> 0.6535 | AN24: ='tabla 2012'!$Y$4/100 -> 0.6088 | AQ24: ='tabla 2012'!U33 -> 127 | AR24: ='tabla 2012'!$U$4 -> 997 | AT24: -0.0447 | AU24: 0.04239251113 | AV24: 0.01546347426 | AW24: 0.04512476079 | AX24: 0.9905869687 | AY24: 0.3221008769 | AZ24: NOT SIG. | BC24: ='tabla 2012'!AE33/100 -> 0.5156 | BD24: ='tabla 2012'!$AE$4/100 -> 0.4534 | BG24: ='tabla 2012'!AB33 -> 128 | BH24: ='tabla 2012'!$AB$4 -> 998 | BJ24: -0.0622 | BK24: 0.0443462255 | BL24: 0.01576623489 | BM24: 0.04706550625 | BN24: 1.321562328 | BO24: 0.1865828601 | BP24: NOT SIG. | BS24: ='tabla 2012'!AK33/100 -> 0.6339 | BT24: ='tabla 2012'!$AK$4/100 -> 0.6045 | BW24: ='tabla 2012'!AH33 -> 127 | BX24: ='tabla 2012'!$AH$4 -> 995 | BZ24: -0.0294 | CA24: 0.04291656634 | CB24: 0.01550880032 | CC24: 0.04563282321 | CD24: 0.6442730897 | CE24: 0.5195302827 | CF24: NOT SIG. | CI24: ='tabla 2012'!AT33/100 -> 0.5206 | CJ24: ='tabla 2012'!$AT$4/100 -> 0.4796 | CM24: ='tabla 2012'!AN33 -> 126 | CN24: ='tabla 2012'!$AN$4 -> 993 | CP24: -0.041 | CQ24: 0.04468338752 | CR24: 0.01586179728 | CS24: 0.04741520571 | CT24: 0.8647015105 | CU24: 0.3873882976 | CV24: NOT SIG. | CY24: ='tabla 2012'!BC33/100 -> 0.6969 | CZ24: ='tabla 2012'!$BC$4/100 -> 0.6702 | DC24: ='tabla 2012'!AW33 -> 127 | DD24: ='tabla 2012'!$AW$4 -> 999 | DF24: -0.0267 | DG24: 0.04094425072 | DH24: 0.01488203312 | DI24: 0.0435649696 | DJ24: 0.6128777374 | DK24: 0.5400811654 | DL24: NOT SIG. | DO24: ='tabla 2012'!BK33/100 -> 0.7756 | DP24: ='tabla 2012'!$BK$4/100 -> 0.7239 | DS24: ='tabla 2012'!BF33 -> 127 | DT24: ='tabla 2012'!$BF$4 -> 996 | DV24: -0.0517 | DW24: 0.03716593422 | DX24: 0.01417297272 | DY24: 0.03977662407 | DZ24: 1.299758368 | EA24: 0.1939510027 | EB24: NOT SIG. | EE24: ='tabla 2012'!BO33/100 -> 0.6208 | EF24: ='tabla 2012'!$BO$4/100 -> 0.5837 | EI24: ='tabla 2012'!BN33 -> 120 | EJ24: ='tabla 2012'!$BN$4 -> 959 | EL24: -0.0371 | EM24: 0.0444771077 | EN24: 0.01592631487 | EO24: 0.04724257206 | EP24: 0.7853086398 | EQ24: 0.432445349 | ER24: NOT SIG.
A25: ='tabla 2012'!A34 -> 2013 | B25: ='tabla 2012'!B34 -> életkor | C25: ='tabla 2012'!C34 -> idősebb mint 65 éves | D25: ='tabla 2012'!D34 -> 99 | E25: ='tabla 2012'!E34 -> BKV | F25: ='tabla 2012'!F34 -> top2 | G25: ='tabla 2012'!K34/100 -> 0 | H25: ='tabla 2012'!$K$4/100 -> 0 | K25: ='tabla 2012'!G34 -> 0 | L25: ='tabla 2012'!$G$4 -> 0 | N25: 0 | O25: 0 | P25: 0 | Q25: 0 | R25: 0 | S25: 1 | T25: NOT SIG. | W25: ='tabla 2012'!R34/100 -> 0.6769 | X25: ='tabla 2012'!$R$4/100 -> 0.5327 | AA25: ='tabla 2012'!N34 -> 98 | AB25: ='tabla 2012'!$N$4 -> 993 | AD25: -0.1442 | AE25: 0.0474837346 | AF25: 0.0158410295 | AG25: 0.05005640086 | AH25: 2.880750464 | AI25: 0.004045072862 | AJ25: SIG | AL25: idősebb mint 65 éves | AM25: ='tabla 2012'!Y34/100 -> 0.7525 | AN25: ='tabla 2012'!$Y$4/100 -> 0.6088 | AQ25: ='tabla 2012'!U34 -> 99 | AR25: ='tabla 2012'!$U$4 -> 997 | AT25: -0.1437 | AU25: 0.04359411002 | AV25: 0.01546347426 | AW25: 0.04625543714 | AX25: 3.106661809 | AY25: 0.001940866967 | AZ25: SIG | BB25: idősebb mint 65 éves | BC25: ='tabla 2012'!AE34/100 -> 0.4747 | BD25: ='tabla 2012'!$AE$4/100 -> 0.4534 | BG25: ='tabla 2012'!AB34 -> 99 | BH25: ='tabla 2012'!$AB$4 -> 998 | BJ25: -0.0213 | BK25: 0.05044292693 | BL25: 0.01576623489 | BM25: 0.05284943746 | BN25: 0.403031726 | BO25: 0.6870035617 | BP25: NOT SIG. | BS25: ='tabla 2012'!AK34/100 -> 0.7194 | BT25: ='tabla 2012'!$AK$4/100 -> 0.6045 | BW25: ='tabla 2012'!AH34 -> 98 | BX25: ='tabla 2012'!$AH$4 -> 995 | BZ25: -0.1149 | CA25: 0.0456187292 | CB25: 0.01550880032 | CC25: 0.04818289469 | CD25: 2.384663701 | CE25: 0.01726479089 | CF25: SIG | CH25: idősebb mint 65 éves | CI25: ='tabla 2012'!AT34/100 -> 0.6222 | CJ25: ='tabla 2012'!$AT$4/100 -> 0.4796 | CM25: ='tabla 2012'!AN34 -> 99 | CN25: ='tabla 2012'!$AN$4 -> 993 | CP25: -0.1426 | CQ25: 0.04897595828 | CR25: 0.01586179728 | CS25: 0.05148049245 | CT25: 2.769981273 | CU25: 0.00570116157 | CV25: SIG | CX25: idősebb mint 65 éves | CY25: ='tabla 2012'!BC34/100 -> 0.7374 | CZ25: ='tabla 2012'!$BC$4/100 -> 0.6702 | DC25: ='tabla 2012'!AW34 -> 99 | DD25: ='tabla 2012'!$AW$4 -> 999 | DF25: -0.0672 | DG25: 0.04445144565 | DH25: 0.01488203312 | DI25: 0.04687649657 | DJ25: 1.433554231 | DK25: 0.1519847191 | DL25: NOT SIG. | DO25: ='tabla 2012'!BK34/100 -> 0.8207 | DP25: ='tabla 2012'!$BK$4/100 -> 0.7239 | DS25: ='tabla 2012'!BF34 -> 99 | DT25: ='tabla 2012'!$BF$4 -> 996 | DV25: -0.0968 | DW25: 0.03874978736 | DX25: 0.01417297272 | DY25: 0.04126038265 | DZ25: 2.346076158 | EA25: 0.0191501572 | EB25: SIG | ED25: idősebb mint 65 éves | EE25: ='tabla 2012'!BO34/100 -> 0.6795 | EF25: ='tabla 2012'!$BO$4/100 -> 0.5837 | EI25: ='tabla 2012'!BN34 -> 97 | EJ25: ='tabla 2012'!$BN$4 -> 959 | EL25: -0.0958 | EM25: 0.04762918289 | EN25: 0.01592631487 | EO25: 0.05022137561 | EP25: 1.90755428 | EQ25: 0.05672041136 | ER25: NOT SIG.
U26: =U20&IF(U20="","","; ")&U21&IF(U21="","","; ")&U22&IF(U22="","","; ")&U23&IF(U23="","","; ")&U24&IF(U24="","","; ")&U25 ->  | V26: =V20&IF(V20="","","; ")&V21&IF(V21="","","; ")&V22&IF(V22="","","; ")&V23&IF(V23="","","; ")&V24&IF(V24="","","; ")&V25 ->  | AK26: =AK20&IF(AK20="","","; ")&AK21&IF(AK21="","","; ")&AK22&IF(AK22="","","; ")&AK23&IF(AK23="","","; ")&AK24&IF(AK24="","","; ")&AK25 ->  | AL26: =AL20&IF(AL20="","","; ")&AL21&IF(AL21="","","; ")&AL22&IF(AL22="","","; ")&AL23&IF(AL23="","","; ")&AL24&IF(AL24="","","; ")&AL25 -> idősebb mint 65 éves | BA26: =BA20&IF(BA20="","","; ")&BA21&IF(BA21="","","; ")&BA22&IF(BA22="","","; ")&BA23&IF(BA23="","","; ")&BA24&IF(BA24="","","; ")&BA25 ->  | BB26: =BB20&IF(BB20="","","; ")&BB21&IF(BB21="","","; ")&BB22&IF(BB22="","","; ")&BB23&IF(BB23="","","; ")&BB24&IF(BB24="","","; ")&BB25 -> idősebb mint 65 éves | BQ26: =BQ20&IF(BQ20="","","; ")&BQ21&IF(BQ21="","","; ")&BQ22&IF(BQ22="","","; ")&BQ23&IF(BQ23="","","; ")&BQ24&IF(BQ24="","","; ")&BQ25 ->  | BR26: =BR20&IF(BR20="","","; ")&BR21&IF(BR21="","","; ")&BR22&IF(BR22="","","; ")&BR23&IF(BR23="","","; ")&BR24&IF(BR24="","","; ")&BR25 ->  | CG26: =CG20&IF(CG20="","","; ")&CG21&IF(CG21="","","; ")&CG22&IF(CG22="","","; ")&CG23&IF(CG23="","","; ")&CG24&IF(CG24="","","; ")&CG25 ->  | CH26: =CH20&IF(CH20="","","; ")&CH21&IF(CH21="","","; ")&CH22&IF(CH22="","","; ")&CH23&IF(CH23="","","; ")&CH24&IF(CH24="","","; ")&CH25 -> idősebb mint 65 éves | CW26: =CW20&IF(CW20="","","; ")&CW21&IF(CW21="","","; ")&CW22&IF(CW22="","","; ")&CW23&IF(CW23="","","; ")&CW24&IF(CW24="","","; ")&CW25 ->  | CX26: =CX20&IF(CX20="","","; ")&CX21&IF(CX21="","","; ")&CX22&IF(CX22="","","; ")&CX23&IF(CX23="","","; ")&CX24&IF(CX24="","","; ")&CX25 -> idősebb mint 65 éves | DM26: =DM20&IF(DM20="","","; ")&DM21&IF(DM21="","","; ")&DM22&IF(DM22="","","; ")&DM23&IF(DM23="","","; ")&DM24&IF(DM24="","","; ")&DM25 ->  | DN26: =DN20&IF(DN20="","","; ")&DN21&IF(DN21="","","; ")&DN22&IF(DN22="","","; ")&DN23&IF(DN23="","","; ")&DN24&IF(DN24="","","; ")&DN25 ->  | EC26: =EC20&IF(EC20="","","; ")&EC21&IF(EC21="","","; ")&EC22&IF(EC22="","","; ")&EC23&IF(EC23="","","; ")&EC24&IF(EC24="","","; ")&EC25 ->  | ED26: =ED20&IF(ED20="","","; ")&ED21&IF(ED21="","","; ")&ED22&IF(ED22="","","; ")&ED23&IF(ED23="","","; ")&ED24&IF(ED24="","","; ")&ED25 -> idősebb mint 65 éves | ES26: =ES20&IF(ES20="","","; ")&ES21&IF(ES21="","","; ")&ES22&IF(ES22="","","; ")&ES23&IF(ES23="","","; ")&ES24&IF(ES24="","","; ")&ES25 ->  | ET26: =ET20&IF(ET20="","","; ")&ET21&IF(ET21="","","; ")&ET22&IF(ET22="","","; ")&ET23&IF(ET23="","","; ")&ET24&IF(ET24="","","; ")&ET25 -> 
A27: ='tabla 2012'!A35 -> 2013 | B27: ='tabla 2012'!B35 -> iskolai végzettség | C27: ='tabla 2012'!C35 -> legfeljebb általános iskola | D27: ='tabla 2012'!D35 -> 104 | E27: ='tabla 2012'!E35 -> BKV | F27: ='tabla 2012'!F35 -> top2 | G27: ='tabla 2012'!K35/100 -> 0 | H27: ='tabla 2012'!$K$4/100 -> 0 | K27: ='tabla 2012'!G35 -> 0 | L27: ='tabla 2012'!$G$4 -> 0 | N27: 0 | O27: 0 | P27: =IF((L27-1)=0,0,SQRT((1-H27)*H27/(L27-1))) -> 0 | Q27: 0 | R27: 0 | S27: =IF(R27=0,1,TDIST(R27,K27+L27-2,$B$2)) -> 1 | T27: NOT SIG. | W27: ='tabla 2012'!R35/100 -> 0.5922 | X27: ='tabla 2012'!$R$4/100 -> 0.5327 | AA27: ='tabla 2012'!N35 -> 103 | AB27: ='tabla 2012'!$N$4 -> 993 | AD27: -0.0595 | AE27: 0.04865838904 | AF27: 0.0158410295 | AG27: 0.05117203376 | AH27: 1.162744484 | AI27: 0.2451867561 | AJ27: NOT SIG. | AM27: ='tabla 2012'!Y35/100 -> 0.6154 | AN27: ='tabla 2012'!$Y$4/100 -> 0.6088 | AQ27: ='tabla 2012'!U35 -> 104 | AR27: ='tabla 2012'!$U$4 -> 997 | AT27: -0.0066 | AU27: 0.04793632913 | AV27: 0.01546347426 | AW27: 0.05036874712 | AX27: 0.1310336345 | AY27: 0.895772682 | AZ27: NOT SIG. | BC27: ='tabla 2012'!AE35/100 -> 0.3077 | BD27: ='tabla 2012'!$AE$4/100 -> 0.4534 | BG27: ='tabla 2012'!AB35 -> 104 | BH27: ='tabla 2012'!$AB$4 -> 998 | BJ27: 0.1457 | BK27: 0.04547705172 | BL27: 0.01576623489 | BM27: 0.04813248794 | BN27: 3.027061476 | BO27: 0.002526913574 | BP27: SIG | BQ27: legfeljebb általános iskola | BS27: ='tabla 2012'!AK35/100 -> 0.6202 | BT27: ='tabla 2012'!$AK$4/100 -> 0.6045 | BW27: ='tabla 2012'!AH35 -> 104 | BX27: ='tabla 2012'!$AH$4 -> 995 | BZ27: -0.0157 | CA27: 0.04782167116 | CB27: 0.01550880032 | CC27: 0.05027360262 | CD27: 0.3122911266 | CE27: 0.7548786325 | CF27: NOT SIG. | CI27: ='tabla 2012'!AT35/100 -> 0.5038 | CJ27: ='tabla 2012'!$AT$4/100 -> 0.4796 | CM27: ='tabla 2012'!AN35 -> 104 | CN27: ='tabla 2012'!$AN$4 -> 993 | CP27: -0.0242 | CQ27: 0.04926504107 | CR27: 0.01586179728 | CS27: 0.05175558796 | CT27: 0.4675823608 | CU27: 0.6401763199 | CV27: NOT SIG. | CY27: ='tabla 2012'!BC35/100 -> 0.6827 | CZ27: ='tabla 2012'!$BC$4/100 -> 0.6702 | DC27: ='tabla 2012'!AW35 -> 104 | DD27: ='tabla 2012'!$AW$4 -> 999 | DF27: =CZ27-CY27 -> -0.0125 | DG27: =IF((DC27-1)=0,0,SQRT((1-CY27)*CY27/(DC27-1))) -> 0.0458597175 | DH27: 0.01488203312 | DI27: 0.04821398759 | DJ27: 0.2592608624 | DK27: =IF(DJ27=0,1,TDIST(DJ27,DC27+DD27-2,$B$2)) -> 0.7954824402 | DL27: NOT SIG. | DO27: ='tabla 2012'!BK35/100 -> 0.7549 | DP27: ='tabla 2012'!$BK$4/100 -> 0.7239 | DS27: ='tabla 2012'!BF35 -> 102 | DT27: ='tabla 2012'!$BF$4 -> 996 | DV27: =DP27-DO27 -> -0.031 | DW27: =IF((DS27-1)=0,0,SQRT((1-DO27)*DO27/(DS27-1))) -> 0.04280117399 | DX27: 0.01417297272 | DY27: 0.04508673475 | DZ27: 0.6875636519 | EA27: =IF(DZ27=0,1,TDIST(DZ27,DS27+DT27-2,$B$2)) -> 0.4918730767 | EB27: NOT SIG. | EE27: ='tabla 2012'!BO35/100 -> 0.5762 | EF27: ='tabla 2012'!$BO$4/100 -> 0.5837 | EI27: ='tabla 2012'!BN35 -> 99 | EJ27: ='tabla 2012'!$BN$4 -> 959 | EL27: =EF27-EE27 -> 0.0075 | EM27: =IF((EI27-1)=0,0,SQRT((1-EE27)*EE27/(EI27-1))) -> 0.04991764238 | EN27: 0.01592631487 | EO27: 0.05239674156 | EP27: 0.1431386719 | EQ27: =IF(EP27=0,1,TDIST(EP27,EI27+EJ27-2,$B$2)) -> 0.886207971 | ER27: NOT SIG.
A28: ='tabla 2012'!A36 -> 2013 | B28: ='tabla 2012'!B36 -> iskolai végzettség | C28: ='tabla 2012'!C36 -> szakmunkásképző | D28: ='tabla 2012'!D36 -> 204 | E28: ='tabla 2012'!E36 -> BKV | F28: ='tabla 2012'!F36 -> top2 | G28: ='tabla 2012'!K36/100 -> 0 | H28: ='tabla 2012'!$K$4/100 -> 0 | K28: ='tabla 2012'!G36 -> 0 | L28: ='tabla 2012'!$G$4 -> 0 | N28: 0 | O28: 0 | P28: =IF((L28-1)=0,0,SQRT((1-H28)*H28/(L28-1))) -> 0 | Q28: 0 | R28: 0 | S28: =IF(R28=0,1,TDIST(R28,K28+L28-2,$B$2)) -> 1 | T28: NOT SIG. | W28: ='tabla 2012'!R36/100 -> 0.5556 | X28: ='tabla 2012'!$R$4/100 -> 0.5327 | AA28: ='tabla 2012'!N36 -> 201 | AB28: ='tabla 2012'!$N$4 -> 993 | AD28: -0.0229 | AE28: 0.03513606694 | AF28: 0.0158410295 | AG28: 0.03854194359 | AH28: 0.5941578931 | AI28: 0.552519256 | AJ28: NOT SIG. | AM28: ='tabla 2012'!Y36/100 -> 0.6064 | AN28: ='tabla 2012'!$Y$4/100 -> 0.6088 | AQ28: ='tabla 2012'!U36 -> 202 | AR28: ='tabla 2012'!$U$4 -> 997 | AT28: 0.0024 | AU28: 0.03445951118 | AV28: 0.01546347426 | AW28: 0.03777005357 | AX28: 0.06354240392 | AY28: 0.9493452031 | AZ28: NOT SIG. | BC28: ='tabla 2012'!AE36/100 -> 0.4236 | BD28: ='tabla 2012'!$AE$4/100 -> 0.4534 | BG28: ='tabla 2012'!AB36 -> 203 | BH28: ='tabla 2012'!$AB$4 -> 998 | BJ28: 0.0298 | BK28: 0.0347667646 | BL28: 0.01576623489 | BM28: 0.03817462617 | BN28: 0.7806232304 | BO28: 0.4351782098 | BP28: NOT SIG. | BS28: ='tabla 2012'!AK36/100 -> 0.5936 | BT28: ='tabla 2012'!$AK$4/100 -> 0.6045 | BW28: ='tabla 2012'!AH36 -> 203 | BX28: ='tabla 2012'!$AH$4 -> 995 | BZ28: 0.0109 | CA28: 0.03455796107 | CB28: 0.01550880032 | CC28: 0.03787843134 | CD28: 0.2877627086 | CE28: 0.7735782392 | CF28: NOT SIG. | CI28: ='tabla 2012'!AT36/100 -> 0.4713 | CJ28: ='tabla 2012'!$AT$4/100 -> 0.4796 | CM28: ='tabla 2012'!AN36 -> 202 | CN28: ='tabla 2012'!$AN$4 -> 993 | CP28: 0.0083 | CQ28: 0.03520913425 | CR28: 0.01586179728 | CS28: 0.03861709139 | CT28: 0.2149307393 | CU28: 0.8298580528 | CV28: NOT SIG. | CY28: ='tabla 2012'!BC36/100 -> 0.6355 | CZ28: ='tabla 2012'!$BC$4/100 -> 0.6702 | DC28: ='tabla 2012'!AW36 -> 203 | DD28: ='tabla 2012'!$AW$4 -> 999 | DF28: =CZ28-CY28 -> 0.0347 | DG28: 0.03386342327 | DH28: 0.01488203312 | DI28: 0.03698927338 | DJ28: 0.9381098039 | DK28: =IF(DJ28=0,1,TDIST(DJ28,DC28+DD28-2,$B$2)) -> 0.3483767551 | DL28: NOT SIG. | DO28: ='tabla 2012'!BK36/100 -> 0.7228 | DP28: ='tabla 2012'!$BK$4/100 -> 0.7239 | DS28: ='tabla 2012'!BF36 -> 202 | DT28: ='tabla 2012'!$BF$4 -> 996 | DV28: =DP28-DO28 -> 0.0011 | DW28: 0.03157240435 | DX28: 0.01417297272 | DY28: 0.03460765627 | DZ28: 0.03178487418 | EA28: =IF(DZ28=0,1,TDIST(DZ28,DS28+DT28-2,$B$2)) -> 0.9746489125 | EB28: NOT SIG. | EE28: ='tabla 2012'!BO36/100 -> 0.5682 | EF28: ='tabla 2012'!$BO$4/100 -> 0.5837 | EI28: ='tabla 2012'!BN36 -> 196 | EJ28: ='tabla 2012'!$BN$4 -> 959 | EL28: =EF28-EE28 -> 0.0155 | EM28: 0.03547109766 | EN28: 0.01592631487 | EO28: 0.03888246744 | EP28: 0.3986372527 | EQ28: =IF(EP28=0,1,TDIST(EP28,EI28+EJ28-2,$B$2)) -> 0.6902343189 | ER28: NOT SIG.
A29: ='tabla 2012'!A37 -> 2013 | B29: ='tabla 2012'!B37 -> iskolai végzettség | C29: ='tabla 2012'!C37 -> érettségi | D29: ='tabla 2012'!D37 -> 464 | E29: ='tabla 2012'!E37 -> BKV | F29: ='tabla 2012'!F37 -> top2 | G29: ='tabla 2012'!K37/100 -> 0 | H29: ='tabla 2012'!$K$4/100 -> 0 | K29: ='tabla 2012'!G37 -> 0 | L29: ='tabla 2012'!$G$4 -> 0 | N29: 0 | O29: 0 | P29: =IF((L29-1)=0,0,SQRT((1-H29)*H29/(L29-1))) -> 0 | Q29: 0 | R29: 0 | S29: =IF(R29=0,1,TDIST(R29,K29+L29-2,$B$2)) -> 1 | T29: NOT SIG. | W29: ='tabla 2012'!R37/100 -> 0.5319 | X29: ='tabla 2012'!$R$4/100 -> 0.5327 | AA29: ='tabla 2012'!N37 -> 460 | AB29: ='tabla 2012'!$N$4 -> 993 | AD29: 0.0008 | AE29: 0.023290455 | AF29: 0.0158410295 | AG29: 0.02816706427 | AH29: 0.02840196593 | AI29: 0.9773454619 | AJ29: NOT SIG. | AM29: ='tabla 2012'!Y37/100 -> 0.621 | AN29: ='tabla 2012'!$Y$4/100 -> 0.6088 | AQ29: ='tabla 2012'!U37 -> 463 | AR29: ='tabla 2012'!$U$4 -> 997 | AT29: -0.0122 | AU29: 0.02257066824 | AV29: 0.01546347426 | AW29: 0.02735971676 | AX29: 0.445911049 | AY29: 0.6557277087 | AZ29: NOT SIG. | BC29: ='tabla 2012'!AE37/100 -> 0.4881 | BD29: ='tabla 2012'!$AE$4/100 -> 0.4534 | BG29: ='tabla 2012'!AB37 -> 463 | BH29: ='tabla 2012'!$AB$4 -> 998 | BJ29: -0.0347 | BK29: 0.02325551603 | BL29: 0.01576623489 | BM29: 0.02809614188 | BN29: 1.235045016 | BO29: 0.2170126004 | BP29: NOT SIG. | BS29: ='tabla 2012'!AK37/100 -> 0.6207 | BT29: ='tabla 2012'!$AK$4/100 -> 0.6045 | BW29: ='tabla 2012'!AH37 -> 460 | BX29: ='tabla 2012'!$AH$4 -> 995 | BZ29: -0.0162 | CA29: 0.02264779636 | CB29: 0.01550880032 | CC29: 0.02744896295 | CD29: 0.5901862314 | CE29: 0.5551575737 | CF29: NOT SIG. | CI29: ='tabla 2012'!AT37/100 -> 0.5043 | CJ29: ='tabla 2012'!$AT$4/100 -> 0.4796 | CM29: ='tabla 2012'!AN37 -> 460 | CN29: ='tabla 2012'!$AN$4 -> 993 | CP29: -0.0247 | CQ29: 0.02333713835 | CR29: 0.01586179728 | CS29: 0.02821734642 | CT29: 0.8753480796 | CU29: 0.3815294144 | CV29: NOT SIG. | CY29: ='tabla 2012'!BC37/100 -> 0.681 | CZ29: ='tabla 2012'!$BC$4/100 -> 0.6702 | DC29: ='tabla 2012'!AW37 -> 464 | DD29: ='tabla 2012'!$AW$4 -> 999 | DF29: =CZ29-CY29 -> -0.0108 | DG29: 0.02166099499 | DH29: 0.01488203312 | DI29: 0.02628066997 | DJ29: 0.4109484276 | DK29: =IF(DJ29=0,1,TDIST(DJ29,DC29+DD29-2,$B$2)) -> 0.6811706172 | DL29: NOT SIG. | DO29: ='tabla 2012'!BK37/100 -> 0.7171 | DP29: ='tabla 2012'!$BK$4/100 -> 0.7239 | DS29: ='tabla 2012'!BF37 -> 463 | DT29: ='tabla 2012'!$BF$4 -> 996 | DV29: =DP29-DO29 -> 0.0068 | DW29: 0.02095488816 | DX29: 0.01417297272 | DY29: 0.02529783575 | DZ29: 0.2687976975 | EA29: =IF(DZ29=0,1,TDIST(DZ29,DS29+DT29-2,$B$2)) -> 0.7881234205 | EB29: NOT SIG. | EE29: ='tabla 2012'!BO37/100 -> 0.6006 | EF29: ='tabla 2012'!$BO$4/100 -> 0.5837 | EI29: ='tabla 2012'!BN37 -> 444 | EJ29: ='tabla 2012'!$BN$4 -> 959 | EL29: =EF29-EE29 -> -0.0169 | EM29: 0.02326991683 | EN29: 0.01592631487 | EO29: 0.02819816545 | EP29: 0.5993297696 | EQ29: =IF(EP29=0,1,TDIST(EP29,EI29+EJ29-2,$B$2)) -> 0.5490499032 | ER29: NOT SIG.
A30: ='tabla 2012'!A38 -> 2013 | B30: ='tabla 2012'!B38 -> iskolai végzettség | C30: ='tabla 2012'!C38 -> főiskola, egyetem | D30: ='tabla 2012'!D38 -> 219 | E30: ='tabla 2012'!E38 -> BKV | F30: ='tabla 2012'!F38 -> top2 | G30: ='tabla 2012'!K38/100 -> 0 | H30: ='tabla 2012'!$K$4/100 -> 0 | K30: ='tabla 2012'!G38 -> 0 | L30: ='tabla 2012'!$G$4 -> 0 | N30: 0 | O30: 0 | P30: =IF((L30-1)=0,0,SQRT((1-H30)*H30/(L30-1))) -> 0 | Q30: 0 | R30: 0 | S30: =IF(R30=0,1,TDIST(R30,K30+L30-2,$B$2)) -> 1 | T30: NOT SIG. | W30: ='tabla 2012'!R38/100 -> 0.481 | X30: ='tabla 2012'!$R$4/100 -> 0.5327 | AA30: ='tabla 2012'!N38 -> 219 | AB30: ='tabla 2012'!$N$4 -> 993 | AD30: 0.0517 | AE30: 0.03383981424 | AF30: 0.0158410295 | AG30: 0.03736403676 | AH30: 1.383683469 | AI30: 0.1667105931 | AJ30: NOT SIG. | AM30: ='tabla 2012'!Y38/100 -> 0.5849 | AN30: ='tabla 2012'!$Y$4/100 -> 0.6088 | AQ30: ='tabla 2012'!U38 -> 218 | AR30: ='tabla 2012'!$U$4 -> 997 | AT30: 0.0239 | AU30: 0.03344932132 | AV30: 0.01546347426 | AW30: 0.03685072771 | AX30: 0.6485624975 | AY30: 0.5167439603 | AZ30: NOT SIG. | BC30: ='tabla 2012'!AE38/100 -> 0.4702 | BD30: ='tabla 2012'!$AE$4/100 -> 0.4534 | BG30: ='tabla 2012'!AB38 -> 218 | BH30: ='tabla 2012'!$AB$4 -> 998 | BJ30: -0.0168 | BK30: 0.03388187395 | BL30: 0.01576623489 | BM30: 0.03737051706 | BN30: 0.4495522493 | BO30: 0.6531135752 | BP30: NOT SIG. | BS30: ='tabla 2012'!AK38/100 -> 0.578 | BT30: ='tabla 2012'!$AK$4/100 -> 0.6045 | BW30: ='tabla 2012'!AH38 -> 218 | BX30: ='tabla 2012'!$AH$4 -> 995 | BZ30: 0.0265 | CA30: 0.03352665904 | CB30: 0.01550880032 | CC30: 0.03693994794 | CD30: 0.7173805454 | CE30: 0.4732776683 | CF30: NOT SIG. | CI30: ='tabla 2012'!AT38/100 -> 0.4175 | CJ30: ='tabla 2012'!$AT$4/100 -> 0.4796 | CM30: ='tabla 2012'!AN38 -> 217 | CN30: ='tabla 2012'!$AN$4 -> 993 | CP30: 0.0621 | CQ30: 0.03355438855 | CR30: 0.01586179728 | CS30: 0.03711460095 | CT30: 1.67319595 | CU30: 0.09454763821 | CV30: NOT SIG. | CY30: ='tabla 2012'!BC38/100 -> 0.6766 | CZ30: ='tabla 2012'!$BC$4/100 -> 0.6702 | DC30: ='tabla 2012'!AW38 -> 218 | DD30: ='tabla 2012'!$AW$4 -> 999 | DF30: =CZ30-CY30 -> -0.0064 | DG30: 0.03175456279 | DH30: 0.01488203312 | DI30: 0.03506889174 | DJ30: 0.1824979257 | DK30: =IF(DJ30=0,1,TDIST(DJ30,DC30+DD30-2,$B$2)) -> 0.8552224268 | DL30: NOT SIG. | DO30: ='tabla 2012'!BK38/100 -> 0.7283 | DP30: ='tabla 2012'!$BK$4/100 -> 0.7239 | DS30: ='tabla 2012'!BF38 -> 219 | DT30: ='tabla 2012'!$BF$4 -> 996 | DV30: =DP30-DO30 -> -0.0044 | DW30: 0.03012809884 | DX30: 0.01417297272 | DY30: 0.03329527737 | DZ30: 0.1321508739 | EA30: =IF(DZ30=0,1,TDIST(DZ30,DS30+DT30-2,$B$2)) -> 0.8948868737 | EB30: NOT SIG. | EE30: ='tabla 2012'!BO38/100 -> 0.5659 | EF30: ='tabla 2012'!$BO$4/100 -> 0.5837 | EI30: ='tabla 2012'!BN38 -> 211 | EJ30: ='tabla 2012'!$BN$4 -> 959 | EL30: =EF30-EE30 -> 0.0178 | EM30: 0.03420228271 | EN30: 0.01592631487 | EO30: 0.03772855216 | EP30: 0.4717912292 | EQ30: =IF(EP30=0,1,TDIST(EP30,EI30+EJ30-2,$B$2)) -> 0.6371639324 | ER30: NOT SIG.
U31: =U27&IF(U27="","","; ")&U28&IF(U28="","","; ")&U29&IF(U29="","","; ")&U30 ->  | V31: =V27&IF(V27="","","; ")&V28&IF(V28="","","; ")&V29&IF(V29="","","; ")&V30 ->  | AK31: =AK27&IF(AK27="","","; ")&AK28&IF(AK28="","","; ")&AK29&IF(AK29="","","; ")&AK30 ->  | AL31: =AL27&IF(AL27="","","; ")&AL28&IF(AL28="","","; ")&AL29&IF(AL29="","","; ")&AL30 ->  | BA31: =BA27&IF(BA27="","","; ")&BA28&IF(BA28="","","; ")&BA29&IF(BA29="","","; ")&BA30 ->  | BB31: =BB27&IF(BB27="","","; ")&BB28&IF(BB28="","","; ")&BB29&IF(BB29="","","; ")&BB30 ->  | BQ31: =BQ27&IF(BQ27="","","; ")&BQ28&IF(BQ28="","","; ")&BQ29&IF(BQ29="","","; ")&BQ30 -> legfeljebb általános iskola; | BR31: =BR27&IF(BR27="","","; ")&BR28&IF(BR28="","","; ")&BR29&IF(BR29="","","; ")&BR30 ->  | CG31: =CG27&IF(CG27="","","; ")&CG28&IF(CG28="","","; ")&CG29&IF(CG29="","","; ")&CG30 ->  | CH31: =CH27&IF(CH27="","","; ")&CH28&IF(CH28="","","; ")&CH29&IF(CH29="","","; ")&CH30 ->  | CW31: =CW27&IF(CW27="","","; ")&CW28&IF(CW28="","","; ")&CW29&IF(CW29="","","; ")&CW30 ->  | CX31: =CX27&IF(CX27="","","; ")&CX28&IF(CX28="","","; ")&CX29&IF(CX29="","","; ")&CX30 ->  | DM31: =DM27&IF(DM27="","","; ")&DM28&IF(DM28="","","; ")&DM29&IF(DM29="","","; ")&DM30 ->  | DN31: =DN27&IF(DN27="","","; ")&DN28&IF(DN28="","","; ")&DN29&IF(DN29="","","; ")&DN30 ->  | EC31: =EC27&IF(EC27="","","; ")&EC28&IF(EC28="","","; ")&EC29&IF(EC29="","","; ")&EC30 ->  | ED31: =ED27&IF(ED27="","","; ")&ED28&IF(ED28="","","; ")&ED29&IF(ED29="","","; ")&ED30 ->  | ES31: =ES27&IF(ES27="","","; ")&ES28&IF(ES28="","","; ")&ES29&IF(ES29="","","; ")&ES30 ->  | ET31: =ET27&IF(ET27="","","; ")&ET28&IF(ET28="","","; ")&ET29&IF(ET29="","","; ")&ET30 -> 
A32: ='tabla 2012'!A39 -> 2013 | B32: ='tabla 2012'!B39 -> foglalkozás | C32: ='tabla 2012'!C39 -> dolgozik | D32: ='tabla 2012'!D39 -> 626 | E32: ='tabla 2012'!E39 -> BKV | F32: ='tabla 2012'!F39 -> top2 | G32: ='tabla 2012'!K39/100 -> 0 | H32: ='tabla 2012'!$K$4/100 -> 0 | K32: ='tabla 2012'!G39 -> 0 | L32: ='tabla 2012'!$G$4 -> 0 | N32: 0 | O32: 0 | P32: =IF((L32-1)=0,0,SQRT((1-H32)*H32/(L32-1))) -> 0 | Q32: 0 | R32: 0 | S32: =IF(R32=0,1,TDIST(R32,K32+L32-2,$B$2)) -> 1 | T32: NOT SIG. | W32: ='tabla 2012'!R39/100 -> 0.5062 | X32: ='tabla 2012'!$R$4/100 -> 0.5327 | AA32: ='tabla 2012'!N39 -> 623 | AB32: ='tabla 2012'!$N$4 -> 993 | AD32: 0.0265 | AE32: 0.02004663213 | AF32: 0.0158410295 | AG32: 0.02555006214 | AH32: 1.037179473 | AI32: 0.299807583 | AJ32: NOT SIG. | AM32: ='tabla 2012'!Y39/100 -> 0.5851 | AN32: ='tabla 2012'!$Y$4/100 -> 0.6088 | AQ32: ='tabla 2012'!U39 -> 623 | AR32: ='tabla 2012'!$U$4 -> 997 | AT32: 0.0237 | AU32: 0.01975566141 | AV32: 0.01546347426 | AW32: 0.02508794917 | AX32: 0.9446766588 | AY32: 0.3449650199 | AZ32: NOT SIG. | BC32: ='tabla 2012'!AE39/100 -> 0.4576 | BD32: ='tabla 2012'!$AE$4/100 -> 0.4534 | BG32: ='tabla 2012'!AB39 -> 625 | BH32: ='tabla 2012'!$AB$4 -> 998 | BJ32: -0.0042 | BK32: 0.01994392138 | BL32: 0.01576623489 | BM32: 0.02542310293 | BN32: 0.165204067 | BO32: 0.8688039635 | BP32: NOT SIG. | BS32: ='tabla 2012'!AK39/100 -> 0.5801 | BT32: ='tabla 2012'!$AK$4/100 -> 0.6045 | BW32: ='tabla 2012'!AH39 -> 624 | BX32: ='tabla 2012'!$AH$4 -> 995 | BZ32: 0.0244 | CA32: 0.01977335424 | CB32: 0.01550880032 | CC32: 0.02512983138 | CD32: 0.9709575697 | CE32: 0.3317146213 | CF32: NOT SIG. | CI32: ='tabla 2012'!AT39/100 -> 0.4483 | CJ32: ='tabla 2012'!$AT$4/100 -> 0.4796 | CM32: ='tabla 2012'!AN39 -> 621 | CN32: ='tabla 2012'!$AN$4 -> 993 | CP32: 0.0313 | CQ32: 0.01997284891 | CR32: 0.01586179728 | CS32: 0.02550512314 | CT32: 1.227204426 | CU32: 0.2199249571 | CV32: NOT SIG. | CY32: ='tabla 2012'!BC39/100 -> 0.6653 | CZ32: ='tabla 2012'!$BC$4/100 -> 0.6702 | DC32: ='tabla 2012'!AW39 -> 626 | DD32: ='tabla 2012'!$AW$4 -> 999 | DF32: =CZ32-CY32 -> 0.0049 | DG32: =IF((DC32-1)=0,0,SQRT((1-CY32)*CY32/(DC32-1))) -> 0.01887541936 | DH32: 0.01488203312 | DI32: 0.0240365631 | DJ32: 0.2038560995 | DK32: =IF(DJ32=0,1,TDIST(DJ32,DC32+DD32-2,$B$2)) -> 0.8384915091 | DL32: NOT SIG. | DO32: ='tabla 2012'!BK39/100 -> 0.7067 | DP32: ='tabla 2012'!$BK$4/100 -> 0.7239 | DS32: ='tabla 2012'!BF39 -> 624 | DT32: ='tabla 2012'!$BF$4 -> 996 | DV32: =DP32-DO32 -> 0.0172 | DW32: =IF((DS32-1)=0,0,SQRT((1-DO32)*DO32/(DS32-1))) -> 0.01824019823 | DX32: 0.01417297272 | DY32: 0.02309930707 | DZ32: 0.7446110806 | EA32: =IF(DZ32=0,1,TDIST(DZ32,DS32+DT32-2,$B$2)) -> 0.4566150001 | EB32: NOT SIG. | EE32: ='tabla 2012'!BO39/100 -> 0.5673 | EF32: ='tabla 2012'!$BO$4/100 -> 0.5837 | EI32: ='tabla 2012'!BN39 -> 602 | EJ32: ='tabla 2012'!$BN$4 -> 959 | EL32: =EF32-EE32 -> 0.0164 | EM32: =IF((EI32-1)=0,0,SQRT((1-EE32)*EE32/(EI32-1))) -> 0.02020982735 | EN32: 0.01592631487 | EO32: 0.02573100516 | EP32: 0.6373633636 | EQ32: =IF(EP32=0,1,TDIST(EP32,EI32+EJ32-2,$B$2)) -> 0.5239817737 | ER32: NOT SIG.
A33: ='tabla 2012'!A40 -> 2013 | B33: ='tabla 2012'!B40 -> foglalkozás | C33: ='tabla 2012'!C40 -> nyugdíjas | D33: ='tabla 2012'!D40 -> 237 | E33: ='tabla 2012'!E40 -> BKV | F33: ='tabla 2012'!F40 -> top2 | G33: ='tabla 2012'!K40/100 -> 0 | H33: ='tabla 2012'!$K$4/100 -> 0 | K33: ='tabla 2012'!G40 -> 0 | L33: ='tabla 2012'!$G$4 -> 0 | N33: 0 | O33: 0 | P33: =IF((L33-1)=0,0,SQRT((1-H33)*H33/(L33-1))) -> 0 | Q33: 0 | R33: 0 | S33: =IF(R33=0,1,TDIST(R33,K33+L33-2,$B$2)) -> 1 | T33: NOT SIG. | W33: ='tabla 2012'!R40/100 -> 0.604 | X33: ='tabla 2012'!$R$4/100 -> 0.5327 | AA33: ='tabla 2012'!N40 -> 234 | AB33: ='tabla 2012'!$N$4 -> 993 | AD33: -0.0713 | AE33: 0.03203967498 | AF33: 0.0158410295 | AG33: 0.03574183806 | AH33: 1.994861033 | AI33: 0.04627927393 | AJ33: SIG | AL33: nyugdíjas | AM33: ='tabla 2012'!Y40/100 -> 0.7055 | AN33: ='tabla 2012'!$Y$4/100 -> 0.6088 | AQ33: ='tabla 2012'!U40 -> 236 | AR33: ='tabla 2012'!$U$4 -> 997 | AT33: -0.0967 | AU33: 0.02973426636 | AV33: 0.01546347426 | AW33: 0.03351485688 | AX33: 2.885287571 | AY33: 0.003978736122 | AZ33: SIG | BB33: nyugdíjas | BC33: ='tabla 2012'!AE40/100 -> 0.4682 | BD33: ='tabla 2012'!$AE$4/100 -> 0.4534 | BG33: ='tabla 2012'!AB40 -> 236 | BH33: ='tabla 2012'!$AB$4 -> 998 | BJ33: -0.0148 | BK33: 0.03255037079 | BL33: 0.01576623489 | BM33: 0.03616767619 | BN33: 0.4092051677 | BO33: 0.6824602297 | BP33: NOT SIG. | BS33: ='tabla 2012'!AK40/100 -> 0.6652 | BT33: ='tabla 2012'!$AK$4/100 -> 0.6045 | BW33: ='tabla 2012'!AH40 -> 233 | BX33: ='tabla 2012'!$AH$4 -> 995 | BZ33: -0.0607 | CA33: 0.03098309884 | CB33: 0.01550880032 | CC33: 0.03464787585 | CD33: 1.751911149 | CE33: 0.08003907148 | CF33: NOT SIG. | CI33: ='tabla 2012'!AT40/100 -> 0.5675 | CJ33: ='tabla 2012'!$AT$4/100 -> 0.4796 | CM33: ='tabla 2012'!AN40 -> 234 | CN33: ='tabla 2012'!$AN$4 -> 993 | CP33: -0.0879 | CQ33: 0.03245622671 | CR33: 0.01586179728 | CS33: 0.03612482893 | CT33: 2.433229516 | CU33: 0.0151070964 | CV33: SIG | CX33: nyugdíjas | CY33: ='tabla 2012'!BC40/100 -> 0.7043 | CZ33: ='tabla 2012'!$BC$4/100 -> 0.6702 | DC33: ='tabla 2012'!AW40 -> 235 | DD33: ='tabla 2012'!$AW$4 -> 999 | DF33: =CZ33-CY33 -> -0.0341 | DG33: 0.02983297593 | DH33: 0.01488203312 | DI33: 0.03333888665 | DJ33: 1.022829597 | DK33: =IF(DJ33=0,1,TDIST(DJ33,DC33+DD33-2,$B$2)) -> 0.306589216 | DL33: NOT SIG. | DO33: ='tabla 2012'!BK40/100 -> 0.783 | DP33: ='tabla 2012'!$BK$4/100 -> 0.7239 | DS33: ='tabla 2012'!BF40 -> 235 | DT33: ='tabla 2012'!$BF$4 -> 996 | DV33: =DP33-DO33 -> -0.0591 | DW33: 0.02694652825 | DX33: 0.01417297272 | DY33: 0.0304464865 | DZ33: 1.941110676 | EA33: =IF(DZ33=0,1,TDIST(DZ33,DS33+DT33-2,$B$2)) -> 0.05247321607 | EB33: NOT SIG. | EE33: ='tabla 2012'!BO40/100 -> 0.642 | EF33: ='tabla 2012'!$BO$4/100 -> 0.5837 | EI33: ='tabla 2012'!BN40 -> 226 | EJ33: ='tabla 2012'!$BN$4 -> 959 | EL33: =EF33-EE33 -> -0.0583 | EM33: 0.03196080933 | EN33: 0.01592631487 | EO33: 0.03570911422 | EP33: 1.632636409 | EQ33: =IF(EP33=0,1,TDIST(EP33,EI33+EJ33-2,$B$2)) -> 0.1028116065 | ER33: NOT SIG.
A34: ='tabla 2012'!A41 -> 2013 | B34: ='tabla 2012'!B41 -> foglalkozás | C34: ='tabla 2012'!C41 -> tanuló | D34: ='tabla 2012'!D41 -> 73 | E34: ='tabla 2012'!E41 -> BKV | F34: ='tabla 2012'!F41 -> top2 | G34: ='tabla 2012'!K41/100 -> 0 | H34: ='tabla 2012'!$K$4/100 -> 0 | K34: ='tabla 2012'!G41 -> 0 | L34: ='tabla 2012'!$G$4 -> 0 | N34: 0 | O34: 0 | P34: =IF((L34-1)=0,0,SQRT((1-H34)*H34/(L34-1))) -> 0 | Q34: 0 | R34: 0 | S34: =IF(R34=0,1,TDIST(R34,K34+L34-2,$B$2)) -> 1 | T34: NOT SIG. | W34: ='tabla 2012'!R41/100 -> 0.5822 | X34: ='tabla 2012'!$R$4/100 -> 0.5327 | AA34: ='tabla 2012'!N41 -> 71 | AB34: ='tabla 2012'!$N$4 -> 993 | AD34: -0.0495 | AE34: 0.05894830181 | AF34: 0.0158410295 | AG34: 0.06103966335 | AH34: 0.8109481161 | AI34: 0.4175771636 | AJ34: NOT SIG. | AM34: ='tabla 2012'!Y41/100 -> 0.6233 | AN34: ='tabla 2012'!$Y$4/100 -> 0.6088 | AQ34: ='tabla 2012'!U41 -> 73 | AR34: ='tabla 2012'!$U$4 -> 997 | AT34: -0.0145 | AU34: 0.05710578755 | AV34: 0.01546347426 | AW34: 0.05916240367 | AX34: 0.2450880813 | AY34: 0.8064353147 | AZ34: NOT SIG. | BC34: ='tabla 2012'!AE41/100 -> 0.3958 | BD34: ='tabla 2012'!$AE$4/100 -> 0.4534 | BG34: ='tabla 2012'!AB41 -> 72 | BH34: ='tabla 2012'!$AB$4 -> 998 | BJ34: 0.0576 | BK34: 0.05803621502 | BL34: 0.01576623489 | BM34: 0.06013964097 | BN34: 0.9577709323 | BO34: 0.3383950367 | BP34: NOT SIG. | BS34: ='tabla 2012'!AK41/100 -> 0.6507 | BT34: ='tabla 2012'!$AK$4/100 -> 0.6045 | BW34: ='tabla 2012'!AH41 -> 73 | BX34: ='tabla 2012'!$AH$4 -> 995 | BZ34: -0.0462 | CA34: 0.05618539623 | CB34: 0.01550880032 | CC34: 0.05828654765 | CD34: 0.7926357257 | CE34: 0.4281664522 | CF34: NOT SIG. | CI34: ='tabla 2012'!AT41/100 -> 0.463 | CJ34: ='tabla 2012'!$AT$4/100 -> 0.4796 | CM34: ='tabla 2012'!AN41 -> 73 | CN34: ='tabla 2012'!$AN$4 -> 993 | CP34: 0.0166 | CQ34: 0.05876400542 | CR34: 0.01586179728 | CS34: 0.0608671089 | CT34: 0.2727252912 | CU34: 0.7851173114 | CV34: NOT SIG. | CY34: ='tabla 2012'!BC41/100 -> 0.6986 | CZ34: ='tabla 2012'!$BC$4/100 -> 0.6702 | DC34: ='tabla 2012'!AW41 -> 73 | DD34: ='tabla 2012'!$AW$4 -> 999 | DF34: =CZ34-CY34 -> -0.0284 | DG34: 0.05407788108 | DH34: 0.01488203312 | DI34: 0.05608825307 | DJ34: 0.5063448841 | DK34: =IF(DJ34=0,1,TDIST(DJ34,DC34+DD34-2,$B$2)) -> 0.6127188699 | DL34: NOT SIG. | DO34: ='tabla 2012'!BK41/100 -> 0.6678 | DP34: ='tabla 2012'!$BK$4/100 -> 0.7239 | DS34: ='tabla 2012'!BF41 -> 73 | DT34: ='tabla 2012'!$BF$4 -> 996 | DV34: =DP34-DO34 -> 0.0561 | DW34: 0.05550815255 | DX34: 0.01417297272 | DY34: 0.05728898808 | DZ34: 0.9792457831 | EA34: =IF(DZ34=0,1,TDIST(DZ34,DS34+DT34-2,$B$2)) -> 0.3276805234 | EB34: NOT SIG. | EE34: ='tabla 2012'!BO41/100 -> 0.585 | EF34: ='tabla 2012'!$BO$4/100 -> 0.5837 | EI34: ='tabla 2012'!BN41 -> 68 | EJ34: ='tabla 2012'!$BN$4 -> 959 | EL34: =EF34-EE34 -> -0.0013 | EM34: 0.06019557677 | EN34: 0.01592631487 | EO34: 0.0622668047 | EP34: 0.02087789804 | EQ34: =IF(EP34=0,1,TDIST(EP34,EI34+EJ34-2,$B$2)) -> 0.9833471209 | ER34: NOT SIG.
A35: ='tabla 2012'!A42 -> 2013 | B35: ='tabla 2012'!B42 -> foglalkozás | C35: ='tabla 2012'!C42 -> egyéb | D35: ='tabla 2012'!D42 -> 62 | E35: ='tabla 2012'!E42 -> BKV | F35: ='tabla 2012'!F42 -> top2 | G35: ='tabla 2012'!K42/100 -> 0 | H35: ='tabla 2012'!$K$4/100 -> 0 | K35: ='tabla 2012'!G42 -> 0 | L35: ='tabla 2012'!$G$4 -> 0 | N35: 0 | O35: 0 | P35: =IF((L35-1)=0,0,SQRT((1-H35)*H35/(L35-1))) -> 0 | Q35: 0 | R35: 0 | S35: =IF(R35=0,1,TDIST(R35,K35+L35-2,$B$2)) -> 1 | T35: NOT SIG. | W35: ='tabla 2012'!R42/100 -> 0.4731 | X35: ='tabla 2012'!$R$4/100 -> 0.5327 | AA35: ='tabla 2012'!N42 -> 62 | AB35: ='tabla 2012'!$N$4 -> 993 | AD35: 0.0596 | AE35: 0.06392572406 | AF35: 0.0158410295 | AG35: 0.06585921661 | AH35: 0.904960658 | AI35: 0.3656932316 | AJ35: NOT SIG. | AM35: ='tabla 2012'!Y42/100 -> 0.4597 | AN35: ='tabla 2012'!$Y$4/100 -> 0.6088 | AQ35: ='tabla 2012'!U42 -> 62 | AR35: ='tabla 2012'!$U$4 -> 997 | AT35: 0.1491 | AU35: 0.06381015773 | AV35: 0.01546347426 | AW35: 0.0656571037 | AX35: 2.270889083 | AY35: 0.02335418307 | AZ35: SIG | BA35: egyéb | BC35: ='tabla 2012'!AE42/100 -> 0.3952 | BD35: ='tabla 2012'!$AE$4/100 -> 0.4534 | BG35: ='tabla 2012'!AB42 -> 62 | BH35: ='tabla 2012'!$AB$4 -> 998 | BJ35: 0.0582 | BK35: 0.06259641219 | BL35: 0.01576623489 | BM35: 0.06455141348 | BN35: 0.9016069031 | BO35: 0.3674709199 | BP35: NOT SIG. | BS35: ='tabla 2012'!AK42/100 -> 0.5645 | BT35: ='tabla 2012'!$AK$4/100 -> 0.6045 | BW35: ='tabla 2012'!AH42 -> 62 | BX35: ='tabla 2012'!$AH$4 -> 995 | BZ35: 0.04 | CA35: 0.06348353988 | CB35: 0.01550880032 | CC35: 0.06535046077 | CD35: 0.6120844371 | CE35: 0.5406137818 | CF35: NOT SIG. | CI35: ='tabla 2012'!AT42/100 -> 0.4645 | CJ35: ='tabla 2012'!$AT$4/100 -> 0.4796 | CM35: ='tabla 2012'!AN42 -> 62 | CN35: ='tabla 2012'!$AN$4 -> 993 | CP35: 0.0151 | CQ35: 0.06385687762 | CR35: 0.01586179728 | CS35: 0.06579739685 | CT35: 0.2294923617 | CU35: 0.8185308244 | CV35: NOT SIG. | CY35: ='tabla 2012'!BC42/100 -> 0.5565 | CZ35: ='tabla 2012'!$BC$4/100 -> 0.6702 | DC35: ='tabla 2012'!AW42 -> 62 | DD35: ='tabla 2012'!$AW$4 -> 999 | DF35: =CZ35-CY35 -> 0.1137 | DG35: 0.06360840108 | DH35: 0.01488203312 | DI35: 0.06532613258 | DJ35: 1.740497952 | DK35: =IF(DJ35=0,1,TDIST(DJ35,DC35+DD35-2,$B$2)) -> 0.08206206499 | DL35: NOT SIG. | DO35: ='tabla 2012'!BK42/100 -> 0.7377 | DP35: ='tabla 2012'!$BK$4/100 -> 0.7239 | DS35: ='tabla 2012'!BF42 -> 61 | DT35: ='tabla 2012'!$BF$4 -> 996 | DV35: =DP35-DO35 -> -0.0138 | DW35: 0.05678889416 | DX35: 0.01417297272 | DY35: 0.05853077529 | DZ35: 0.2357734018 | EA35: =IF(DZ35=0,1,TDIST(DZ35,DS35+DT35-2,$B$2)) -> 0.8136542693 | EB35: NOT SIG. | EE35: ='tabla 2012'!BO42/100 -> 0.5242 | EF35: ='tabla 2012'!$BO$4/100 -> 0.5837 | EI35: ='tabla 2012'!BN42 -> 60 | EJ35: ='tabla 2012'!$BN$4 -> 959 | EL35: =EF35-EE35 -> 0.0595 | EM35: 0.06501816695 | EN35: 0.01592631487 | EO35: 0.06694034314 | EP35: 0.8888511354 | EQ35: =IF(EP35=0,1,TDIST(EP35,EI35+EJ35-2,$B$2)) -> 0.3742932733 | ER35: NOT SIG.
U36: =U32&IF(U32="","","; ")&U33&IF(U33="","","; ")&U34&IF(U34="","","; ")&U35 ->  | V36: =V32&IF(V32="","","; ")&V33&IF(V33="","","; ")&V34&IF(V34="","","; ")&V35 ->  | AK36: =AK32&IF(AK32="","","; ")&AK33&IF(AK33="","","; ")&AK34&IF(AK34="","","; ")&AK35 ->  | AL36: =AL32&IF(AL32="","","; ")&AL33&IF(AL33="","","; ")&AL34&IF(AL34="","","; ")&AL35 -> nyugdíjas; | BA36: =BA32&IF(BA32="","","; ")&BA33&IF(BA33="","","; ")&BA34&IF(BA34="","","; ")&BA35 -> egyéb | BB36: =BB32&IF(BB32="","","; ")&BB33&IF(BB33="","","; ")&BB34&IF(BB34="","","; ")&BB35 -> nyugdíjas; | BQ36: =BQ32&IF(BQ32="","","; ")&BQ33&IF(BQ33="","","; ")&BQ34&IF(BQ34="","","; ")&BQ35 ->  | BR36: =BR32&IF(BR32="","","; ")&BR33&IF(BR33="","","; ")&BR34&IF(BR34="","","; ")&BR35 ->  | CG36: =CG32&IF(CG32="","","; ")&CG33&IF(CG33="","","; ")&CG34&IF(CG34="","","; ")&CG35 ->  | CH36: =CH32&IF(CH32="","","; ")&CH33&IF(CH33="","","; ")&CH34&IF(CH34="","","; ")&CH35 ->  | CW36: =CW32&IF(CW32="","","; ")&CW33&IF(CW33="","","; ")&CW34&IF(CW34="","","; ")&CW35 ->  | CX36: =CX32&IF(CX32="","","; ")&CX33&IF(CX33="","","; ")&CX34&IF(CX34="","","; ")&CX35 -> nyugdíjas; | DM36: =DM32&IF(DM32="","","; ")&DM33&IF(DM33="","","; ")&DM34&IF(DM34="","","; ")&DM35 ->  | DN36: =DN32&IF(DN32="","","; ")&DN33&IF(DN33="","","; ")&DN34&IF(DN34="","","; ")&DN35 ->  | EC36: =EC32&IF(EC32="","","; ")&EC33&IF(EC33="","","; ")&EC34&IF(EC34="","","; ")&EC35 ->  | ED36: =ED32&IF(ED32="","","; ")&ED33&IF(ED33="","","; ")&ED34&IF(ED34="","","; ")&ED35 ->  | ES36: =ES32&IF(ES32="","","; ")&ES33&IF(ES33="","","; ")&ES34&IF(ES34="","","; ")&ES35 ->  | ET36: =ET32&IF(ET32="","","; ")&ET33&IF(ET33="","","; ")&ET34&IF(ET34="","","; ")&ET35 -> 
A37: ='tabla 2012'!A43 -> 2013 | B37: ='tabla 2012'!B43 -> gyerek a háztartásban | C37: ='tabla 2012'!C43 -> nincs | D37: ='tabla 2012'!D43 -> 711 | E37: ='tabla 2012'!E43 -> BKV | F37: ='tabla 2012'!F43 -> top2 | G37: ='tabla 2012'!K43/100 -> 0 | H37: ='tabla 2012'!$K$4/100 -> 0 | K37: ='tabla 2012'!G43 -> 0 | L37: ='tabla 2012'!$G$4 -> 0 | N37: 0 | O37: 0 | P37: =IF((L37-1)=0,0,SQRT((1-H37)*H37/(L37-1))) -> 0 | Q37: 0 | R37: 0 | S37: =IF(R37=0,1,TDIST(R37,K37+L37-2,$B$2)) -> 1 | T37: NOT SIG. | W37: ='tabla 2012'!R43/100 -> 0.5421 | X37: ='tabla 2012'!$R$4/100 -> 0.5327 | AA37: ='tabla 2012'!N43 -> 704 | AB37: ='tabla 2012'!$N$4 -> 993 | AD37: -0.0094 | AE37: 0.01879089055 | AF37: 0.0158410295 | AG37: 0.02457713944 | AH37: 0.3824692463 | AI37: 0.702161287 | AJ37: NOT SIG. | AM37: ='tabla 2012'!Y43/100 -> 0.6335 | AN37: ='tabla 2012'!$Y$4/100 -> 0.6088 | AQ37: ='tabla 2012'!U43 -> 708 | AR37: ='tabla 2012'!$U$4 -> 997 | AT37: -0.0247 | AU37: 0.01812176909 | AV37: 0.01546347426 | AW37: 0.02382262687 | AX37: 1.036829403 | AY37: 0.2999625645 | AZ37: NOT SIG. | BC37: ='tabla 2012'!AE43/100 -> 0.4718 | BD37: ='tabla 2012'!$AE$4/100 -> 0.4534 | BG37: ='tabla 2012'!AB43 -> 709 | BH37: ='tabla 2012'!$AB$4 -> 998 | BJ37: -0.0184 | BK37: 0.01876123995 | BL37: 0.01576623489 | BM37: 0.02450629076 | BN37: 0.7508276214 | BO37: 0.4528600124 | BP37: NOT SIG. | BS37: ='tabla 2012'!AK43/100 -> 0.6113 | BT37: ='tabla 2012'!$AK$4/100 -> 0.6045 | BW37: ='tabla 2012'!AH43 -> 705 | BX37: ='tabla 2012'!$AH$4 -> 995 | BZ37: -0.0068 | CA37: 0.01837164897 | CB37: 0.01550880032 | CC37: 0.0240424702 | CD37: 0.2828328348 | CE37: 0.7773394569 | CF37: NOT SIG. | CI37: ='tabla 2012'!AT43/100 -> 0.4967 | CJ37: ='tabla 2012'!$AT$4/100 -> 0.4796 | CM37: ='tabla 2012'!AN43 -> 705 | CN37: ='tabla 2012'!$AN$4 -> 993 | CP37: -0.0171 | CQ37: 0.0188440486 | CR37: 0.01586179728 | CS37: 0.02463117497 | CT37: 0.6942421553 | CU37: 0.487625442 | CV37: NOT SIG. | CY37: ='tabla 2012'!BC43/100 -> 0.6791 | CZ37: ='tabla 2012'!$BC$4/100 -> 0.6702 | DC37: ='tabla 2012'!AW43 -> 709 | DD37: ='tabla 2012'!$AW$4 -> 999 | DF37: =CZ37-CY37 -> -0.0089 | DG37: =IF((DC37-1)=0,0,SQRT((1-CY37)*CY37/(DC37-1))) -> 0.01754426162 | DH37: =IF((DD37-1)=0,0,SQRT((1-CZ37)*CZ37/(DD37-1))) -> 0.01488203312 | DI37: 0.02300599977 | DJ37: 0.3868556067 | DK37: =IF(DJ37=0,1,TDIST(DJ37,DC37+DD37-2,$B$2)) -> 0.6989113565 | DL37: NOT SIG. | DO37: ='tabla 2012'!BK43/100 -> 0.7249 | DP37: ='tabla 2012'!$BK$4/100 -> 0.7239 | DS37: ='tabla 2012'!BF43 -> 706 | DT37: ='tabla 2012'!$BF$4 -> 996 | DV37: =DP37-DO37 -> -0.001 | DW37: =IF((DS37-1)=0,0,SQRT((1-DO37)*DO37/(DS37-1))) -> 0.01681859786 | DX37: =IF((DT37-1)=0,0,SQRT((1-DP37)*DP37/(DT37-1))) -> 0.01417297272 | DY37: 0.02199405351 | DZ37: 0.04546683491 | EA37: =IF(DZ37=0,1,TDIST(DZ37,DS37+DT37-2,$B$2)) -> 0.9637405495 | EB37: NOT SIG. | EE37: ='tabla 2012'!BO43/100 -> 0.5959 | EF37: ='tabla 2012'!$BO$4/100 -> 0.5837 | EI37: ='tabla 2012'!BN43 -> 679 | EJ37: ='tabla 2012'!$BN$4 -> 959 | EL37: =EF37-EE37 -> -0.0122 | EM37: =IF((EI37-1)=0,0,SQRT((1-EE37)*EE37/(EI37-1))) -> 0.01884587347 | EN37: =IF((EJ37-1)=0,0,SQRT((1-EF37)*EF37/(EJ37-1))) -> 0.01592631487 | EO37: 0.02467416568 | EP37: 0.4944442765 | EQ37: =IF(EP37=0,1,TDIST(EP37,EI37+EJ37-2,$B$2)) -> 0.6210588363 | ER37: NOT SIG.
A38: ='tabla 2012'!A44 -> 2013 | B38: ='tabla 2012'!B44 -> gyerek a háztartásban | C38: ='tabla 2012'!C44 -> van | D38: ='tabla 2012'!D44 -> 290 | E38: ='tabla 2012'!E44 -> BKV | F38: ='tabla 2012'!F44 -> top2 | G38: ='tabla 2012'!K44/100 -> 0 | H38: ='tabla 2012'!$K$4/100 -> 0 | K38: ='tabla 2012'!G44 -> 0 | L38: ='tabla 2012'!$G$4 -> 0 | N38: 0 | O38: 0 | P38: =IF((L38-1)=0,0,SQRT((1-H38)*H38/(L38-1))) -> 0 | Q38: 0 | R38: 0 | S38: =IF(R38=0,1,TDIST(R38,K38+L38-2,$B$2)) -> 1 | T38: NOT SIG. | W38: ='tabla 2012'!R44/100 -> 0.5098 | X38: ='tabla 2012'!$R$4/100 -> 0.5327 | AA38: ='tabla 2012'!N44 -> 289 | AB38: ='tabla 2012'!$N$4 -> 993 | AD38: 0.0229 | AE38: 0.02945712279 | AF38: 0.0158410295 | AG38: 0.03344637946 | AH38: 0.6846779941 | AI38: 0.4936710911 | AJ38: NOT SIG. | AM38: ='tabla 2012'!Y44/100 -> 0.5484 | AN38: ='tabla 2012'!$Y$4/100 -> 0.6088 | AQ38: ='tabla 2012'!U44 -> 289 | AR38: ='tabla 2012'!$U$4 -> 997 | AT38: 0.0604 | AU38: 0.02932442099 | AV38: 0.01546347426 | AW38: 0.0331517828 | AX38: 1.821923134 | AY38: 0.0686991863 | AZ38: NOT SIG. | BC38: ='tabla 2012'!AE44/100 -> 0.4083 | BD38: ='tabla 2012'!$AE$4/100 -> 0.4534 | BG38: ='tabla 2012'!AB44 -> 289 | BH38: ='tabla 2012'!$AB$4 -> 998 | BJ38: 0.0451 | BK38: 0.02896304578 | BL38: 0.01576623489 | BM38: 0.03297623665 | BN38: 1.367651515 | BO38: 0.1716603238 | BP38: NOT SIG. | BS38: ='tabla 2012'!AK44/100 -> 0.5879 | BT38: ='tabla 2012'!$AK$4/100 -> 0.6045 | BW38: ='tabla 2012'!AH44 -> 290 | BX38: ='tabla 2012'!$AH$4 -> 995 | BZ38: 0.0166 | CA38: 0.02895370305 | CB38: 0.01550880032 | CC38: 0.03284569694 | CD38: 0.5053934471 | CE38: 0.6133693278 | CF38: NOT SIG. | CI38: ='tabla 2012'!AT44/100 -> 0.4375 | CJ38: ='tabla 2012'!$AT$4/100 -> 0.4796 | CM38: ='tabla 2012'!AN44 -> 288 | CN38: ='tabla 2012'!$AN$4 -> 993 | CP38: 0.0421 | CQ38: 0.02928258035 | CR38: 0.01586179728 | CS38: 0.03330264442 | CT38: 1.264163875 | CU38: 0.2064015464 | CV38: NOT SIG. | CY38: ='tabla 2012'!BC44/100 -> 0.6483 | CZ38: ='tabla 2012'!$BC$4/100 -> 0.6702 | DC38: ='tabla 2012'!AW44 -> 290 | DD38: ='tabla 2012'!$AW$4 -> 999 | DF38: =CZ38-CY38 -> 0.0219 | DG38: =IF((DC38-1)=0,0,SQRT((1-CY38)*CY38/(DC38-1))) -> 0.02808828827 | DH38: =IF((DD38-1)=0,0,SQRT((1-CZ38)*CZ38/(DD38-1))) -> 0.01488203312 | DI38: 0.03178721201 | DJ38: 0.6889563008 | DK38: =IF(DJ38=0,1,TDIST(DJ38,DC38+DD38-2,$B$2)) -> 0.4909749476 | DL38: NOT SIG. | DO38: ='tabla 2012'!BK44/100 -> 0.7216 | DP38: ='tabla 2012'!$BK$4/100 -> 0.7239 | DS38: ='tabla 2012'!BF44 -> 290 | DT38: ='tabla 2012'!$BF$4 -> 996 | DV38: =DP38-DO38 -> 0.0023 | DW38: =IF((DS38-1)=0,0,SQRT((1-DO38)*DO38/(DS38-1))) -> 0.02636537522 | DX38: =IF((DT38-1)=0,0,SQRT((1-DP38)*DP38/(DT38-1))) -> 0.01417297272 | DY38: 0.02993336209 | DZ38: 0.07683734266 | EA38: =IF(DZ38=0,1,TDIST(DZ38,DS38+DT38-2,$B$2)) -> 0.9387649141 | EB38: NOT SIG. | EE38: ='tabla 2012'!BO44/100 -> 0.5546 | EF38: ='tabla 2012'!$BO$4/100 -> 0.5837 | EI38: ='tabla 2012'!BN44 -> 280 | EJ38: ='tabla 2012'!$BN$4 -> 959 | EL38: =EF38-EE38 -> 0.0291 | EM38: =IF((EI38-1)=0,0,SQRT((1-EE38)*EE38/(EI38-1))) -> 0.02975520436 | EN38: =IF((EJ38-1)=0,0,SQRT((1-EF38)*EF38/(EJ38-1))) -> 0.01592631487 | EO38: 0.0337493658 | EP38: 0.8622384248 | EQ38: =IF(EP38=0,1,TDIST(EP38,EI38+EJ38-2,$B$2)) -> 0.38872345 | ER38: NOT SIG.
U39: =U37&IF(U37="","","; ")&U38 ->  | V39: =V37&IF(V37="","","; ")&V38 ->  | AK39: =AK37&IF(AK37="","","; ")&AK38 ->  | AL39: =AL37&IF(AL37="","","; ")&AL38 ->  | BA39: =BA37&IF(BA37="","","; ")&BA38 ->  | BB39: =BB37&IF(BB37="","","; ")&BB38 ->  | BQ39: =BQ37&IF(BQ37="","","; ")&BQ38 ->  | BR39: =BR37&IF(BR37="","","; ")&BR38 ->  | CG39: =CG37&IF(CG37="","","; ")&CG38 ->  | CH39: =CH37&IF(CH37="","","; ")&CH38 ->  | CW39: =CW37&IF(CW37="","","; ")&CW38 ->  | CX39: =CX37&IF(CX37="","","; ")&CX38 ->  | DM39: =DM37&IF(DM37="","","; ")&DM38 ->  | DN39: =DN37&IF(DN37="","","; ")&DN38 ->  | EC39: =EC37&IF(EC37="","","; ")&EC38 ->  | ED39: =ED37&IF(ED37="","","; ")&ED38 ->  | ES39: =ES37&IF(ES37="","","; ")&ES38 ->  | ET39: =ET37&IF(ET37="","","; ")&ET38 -> 
A40: ='tabla 2012'!A45 -> 2013 | B40: ='tabla 2012'!B45 -> anyagi helyzet | C40: ='tabla 2012'!C45 -> jól kijönnek | D40: ='tabla 2012'!D45 -> 470 | E40: ='tabla 2012'!E45 -> BKV | F40: ='tabla 2012'!F45 -> top2 | G40: ='tabla 2012'!K45/100 -> 0 | H40: ='tabla 2012'!$K$4/100 -> 0 | K40: ='tabla 2012'!G45 -> 0 | L40: ='tabla 2012'!$G$4 -> 0 | N40: 0 | O40: 0 | P40: =IF((L40-1)=0,0,SQRT((1-H40)*H40/(L40-1))) -> 0 | Q40: 0 | R40: 0 | S40: =IF(R40=0,1,TDIST(R40,K40+L40-2,$B$2)) -> 1 | T40: NOT SIG. | W40: ='tabla 2012'!R45/100 -> 0.5708 | X40: ='tabla 2012'!$R$4/100 -> 0.5327 | AA40: ='tabla 2012'!N45 -> 466 | AB40: ='tabla 2012'!$N$4 -> 993 | AD40: -0.0381 | AE40: 0.02295331213 | AF40: 0.0158410295 | AG40: 0.02788893604 | AH40: 1.366133149 | AI40: 0.1721079884 | AJ40: NOT SIG. | AM40: ='tabla 2012'!Y45/100 -> 0.6258 | AN40: ='tabla 2012'!$Y$4/100 -> 0.6088 | AQ40: ='tabla 2012'!U45 -> 469 | AR40: ='tabla 2012'!$U$4 -> 997 | AT40: -0.017 | AU40: 0.02236900901 | AV40: 0.01546347426 | AW40: 0.02719359484 | AX40: 0.6251472121 | AY40: 0.5319718698 | AZ40: NOT SIG. | BC40: ='tabla 2012'!AE45/100 -> 0.4872 | BD40: ='tabla 2012'!$AE$4/100 -> 0.4534 | BG40: ='tabla 2012'!AB45 -> 469 | BH40: ='tabla 2012'!$AB$4 -> 998 | BJ40: -0.0338 | BK40: 0.02310493343 | BL40: 0.01576623489 | BM40: 0.02797163047 | BN40: 1.208367172 | BO40: 0.2271010708 | BP40: NOT SIG. | BS40: ='tabla 2012'!AK45/100 -> 0.6373 | BT40: ='tabla 2012'!$AK$4/100 -> 0.6045 | BW40: ='tabla 2012'!AH45 -> 466 | BX40: ='tabla 2012'!$AH$4 -> 995 | BZ40: -0.0328 | CA40: 0.02229560495 | CB40: 0.01550880032 | CC40: 0.02715910321 | CD40: 1.207698198 | CE40: 0.227359104 | CF40: NOT SIG. | CI40: ='tabla 2012'!AT45/100 -> 0.4968 | CJ40: ='tabla 2012'!$AT$4/100 -> 0.4796 | CM40: ='tabla 2012'!AN45 -> 465 | CN40: ='tabla 2012'!$AN$4 -> 993 | CP40: -0.0172 | CQ40: 0.02321144189 | CR40: 0.01586179728 | CS40: 0.02811347804 | CT40: 0.6118061941 | CU40: 0.5407615091 | CV40: NOT SIG. | CY40: ='tabla 2012'!BC45/100 -> 0.7196 | CZ40: ='tabla 2012'!$BC$4/100 -> 0.6702 | DC40: ='tabla 2012'!AW45 -> 469 | DD40: ='tabla 2012'!$AW$4 -> 999 | DF40: =CZ40-CY40 -> -0.0494 | DG40: =IF((DC40-1)=0,0,SQRT((1-CY40)*CY40/(DC40-1))) -> 0.02076403037 | DH40: 0.01488203312 | DI40: 0.02554642572 | DJ40: 1.933734313 | DK40: =IF(DJ40=0,1,TDIST(DJ40,DC40+DD40-2,$B$2)) -> 0.05333809186 | DL40: NOT SIG. | DO40: ='tabla 2012'!BK45/100 -> 0.7516 | DP40: ='tabla 2012'!$BK$4/100 -> 0.7239 | DS40: ='tabla 2012'!BF45 -> 469 | DT40: ='tabla 2012'!$BF$4 -> 996 | DV40: =DP40-DO40 -> -0.0277 | DW40: =IF((DS40-1)=0,0,SQRT((1-DO40)*DO40/(DS40-1))) -> 0.0199731358 | DX40: 0.01417297272 | DY40: 0.02449080051 | DZ40: 1.131036937 | EA40: =IF(DZ40=0,1,TDIST(DZ40,DS40+DT40-2,$B$2)) -> 0.2582249153 | EB40: NOT SIG. | EE40: ='tabla 2012'!BO45/100 -> 0.6125 | EF40: ='tabla 2012'!$BO$4/100 -> 0.5837 | EI40: ='tabla 2012'!BN45 -> 456 | EJ40: ='tabla 2012'!$BN$4 -> 959 | EL40: =EF40-EE40 -> -0.0288 | EM40: =IF((EI40-1)=0,0,SQRT((1-EE40)*EE40/(EI40-1))) -> 0.02283932169 | EN40: 0.01592631487 | EO40: 0.02784388839 | EP40: 1.034338293 | EQ40: =IF(EP40=0,1,TDIST(EP40,EI40+EJ40-2,$B$2)) -> 0.3011550297 | ER40: NOT SIG.
A41: ='tabla 2012'!A46 -> 2013 | B41: ='tabla 2012'!B46 -> anyagi helyzet | C41: ='tabla 2012'!C46 -> éppen kijönnek | D41: ='tabla 2012'!D46 -> 414 | E41: ='tabla 2012'!E46 -> BKV | F41: ='tabla 2012'!F46 -> top2 | G41: ='tabla 2012'!K46/100 -> 0 | H41: ='tabla 2012'!$K$4/100 -> 0 | K41: ='tabla 2012'!G46 -> 0 | L41: ='tabla 2012'!$G$4 -> 0 | N41: 0 | O41: 0 | P41: =IF((L41-1)=0,0,SQRT((1-H41)*H41/(L41-1))) -> 0 | Q41: 0 | R41: 0 | S41: =IF(R41=0,1,TDIST(R41,K41+L41-2,$B$2)) -> 1 | T41: NOT SIG. | W41: ='tabla 2012'!R46/100 -> 0.5085 | X41: ='tabla 2012'!$R$4/100 -> 0.5327 | AA41: ='tabla 2012'!N46 -> 411 | AB41: ='tabla 2012'!$N$4 -> 993 | AD41: 0.0242 | AE41: 0.02468967149 | AF41: 0.0158410295 | AG41: 0.02933458869 | AH41: 0.8249646945 | AI41: 0.4095319724 | AJ41: NOT SIG. | AM41: ='tabla 2012'!Y46/100 -> 0.6277 | AN41: ='tabla 2012'!$Y$4/100 -> 0.6088 | AQ41: ='tabla 2012'!U46 -> 411 | AR41: ='tabla 2012'!$U$4 -> 997 | AT41: -0.0189 | AU41: 0.0238743004 | AV41: 0.01546347426 | AW41: 0.02844470523 | AX41: 0.6644470332 | AY41: 0.5065131924 | AZ41: NOT SIG. | BC41: ='tabla 2012'!AE46/100 -> 0.4442 | BD41: ='tabla 2012'!$AE$4/100 -> 0.4534 | BG41: ='tabla 2012'!AB46 -> 412 | BH41: ='tabla 2012'!$AB$4 -> 998 | BJ41: 0.0092 | BK41: 0.02450911544 | BL41: 0.01576623489 | BM41: 0.02914225287 | BN41: 0.3156928204 | BO41: 0.752282463 | BP41: NOT SIG. | BS41: ='tabla 2012'!AK46/100 -> 0.5811 | BT41: ='tabla 2012'!$AK$4/100 -> 0.6045 | BW41: ='tabla 2012'!AH46 -> 413 | BX41: ='tabla 2012'!$AH$4 -> 995 | BZ41: 0.0234 | CA41: 0.02430703632 | CB41: 0.01550880032 | CC41: 0.02883322566 | CD41: 0.8115637243 | CE41: 0.4171793804 | CF41: NOT SIG. | CI41: ='tabla 2012'!AT46/100 -> 0.4762 | CJ41: ='tabla 2012'!$AT$4/100 -> 0.4796 | CM41: ='tabla 2012'!AN46 -> 412 | CN41: ='tabla 2012'!$AN$4 -> 993 | CP41: 0.0034 | CQ41: 0.02463522491 | CR41: 0.01586179728 | CS41: 0.02930001569 | CT41: 0.1160408935 | CU41: 0.9076367389 | CV41: NOT SIG. | CY41: ='tabla 2012'!BC46/100 -> 0.6489 | CZ41: ='tabla 2012'!$BC$4/100 -> 0.6702 | DC41: ='tabla 2012'!AW46 -> 413 | DD41: ='tabla 2012'!$AW$4 -> 999 | DF41: =CZ41-CY41 -> 0.0213 | DG41: 0.02351557994 | DH41: 0.01488203312 | DI41: 0.0278290749 | DJ41: 0.7653865634 | DK41: =IF(DJ41=0,1,TDIST(DJ41,DC41+DD41-2,$B$2)) -> 0.4441694842 | DL41: NOT SIG. | DO41: ='tabla 2012'!BK46/100 -> 0.7177 | DP41: ='tabla 2012'!$BK$4/100 -> 0.7239 | DS41: ='tabla 2012'!BF46 -> 410 | DT41: ='tabla 2012'!$BF$4 -> 996 | DV41: =DP41-DO41 -> 0.0062 | DW41: 0.02225692991 | DX41: 0.01417297272 | DY41: 0.02638643752 | DZ41: 0.2349691957 | EA41: =IF(DZ41=0,1,TDIST(DZ41,DS41+DT41-2,$B$2)) -> 0.8142669059 | EB41: NOT SIG. | EE41: ='tabla 2012'!BO46/100 -> 0.5741 | EF41: ='tabla 2012'!$BO$4/100 -> 0.5837 | EI41: ='tabla 2012'!BN46 -> 394 | EJ41: ='tabla 2012'!$BN$4 -> 959 | EL41: =EF41-EE41 -> 0.0096 | EM41: 0.02494315114 | EN41: 0.01592631487 | EO41: 0.02959405842 | EP41: 0.3243894387 | EQ41: =IF(EP41=0,1,TDIST(EP41,EI41+EJ41-2,$B$2)) -> 0.7456934315 | ER41: NOT SIG.
A42: ='tabla 2012'!A47 -> 2013 | B42: ='tabla 2012'!B47 -> anyagi helyzet | C42: ='tabla 2012'!C47 -> gondjaik vannak | D42: ='tabla 2012'!D47 -> 113 | E42: ='tabla 2012'!E47 -> BKV | F42: ='tabla 2012'!F47 -> top2 | G42: ='tabla 2012'!K47/100 -> 0 | H42: ='tabla 2012'!$K$4/100 -> 0 | K42: ='tabla 2012'!G47 -> 0 | L42: ='tabla 2012'!$G$4 -> 0 | N42: 0 | O42: 0 | P42: =IF((L42-1)=0,0,SQRT((1-H42)*H42/(L42-1))) -> 0 | Q42: 0 | R42: 0 | S42: =IF(R42=0,1,TDIST(R42,K42+L42-2,$B$2)) -> 1 | T42: NOT SIG. | W42: ='tabla 2012'!R47/100 -> 0.4792 | X42: ='tabla 2012'!$R$4/100 -> 0.5327 | AA42: ='tabla 2012'!N47 -> 112 | AB42: ='tabla 2012'!$N$4 -> 993 | AD42: 0.0535 | AE42: 0.04741681763 | AF42: 0.0158410295 | AG42: 0.0499929276 | AH42: 1.070151371 | AI42: 0.2847852989 | AJ42: NOT SIG. | AM42: ='tabla 2012'!Y47/100 -> 0.4646 | AN42: ='tabla 2012'!$Y$4/100 -> 0.6088 | AQ42: ='tabla 2012'!U47 -> 113 | AR42: ='tabla 2012'!$U$4 -> 997 | AT42: 0.1442 | AU42: 0.04712699787 | AV42: 0.01546347426 | AW42: 0.04959912262 | AX42: 2.907309492 | AY42: 0.003718155405 | AZ42: SIG | BA42: gondjaik vannak | BC42: ='tabla 2012'!AE47/100 -> 0.3407 | BD42: ='tabla 2012'!$AE$4/100 -> 0.4534 | BG42: ='tabla 2012'!AB47 -> 113 | BH42: ='tabla 2012'!$AB$4 -> 998 | BJ42: 0.1127 | BK42: 0.04478355785 | BL42: 0.01576623489 | BM42: 0.04747779709 | BN42: 2.373741136 | BO42: 0.017778458 | BP42: SIG | BQ42: gondjaik vannak | BS42: ='tabla 2012'!AK47/100 -> 0.5491 | BT42: ='tabla 2012'!$AK$4/100 -> 0.6045 | BW42: ='tabla 2012'!AH47 -> 112 | BX42: ='tabla 2012'!$AH$4 -> 995 | BZ42: 0.0554 | CA42: 0.0472285215 | CB42: 0.01550880032 | CC42: 0.04970971867 | CD42: 1.114470198 | CE42: 0.2653198599 | CF42: NOT SIG. | CI42: ='tabla 2012'!AT47/100 -> 0.4232 | CJ42: ='tabla 2012'!$AT$4/100 -> 0.4796 | CM42: ='tabla 2012'!AN47 -> 112 | CN42: ='tabla 2012'!$AN$4 -> 993 | CP42: 0.0564 | CQ42: 0.04689472204 | CR42: 0.01586179728 | CS42: 0.04950466208 | CT42: 1.139286637 | CU42: 0.254830978 | CV42: NOT SIG. | CY42: ='tabla 2012'!BC47/100 -> 0.5442 | CZ42: ='tabla 2012'!$BC$4/100 -> 0.6702 | DC42: ='tabla 2012'!AW47 -> 113 | DD42: ='tabla 2012'!$AW$4 -> 999 | DF42: =CZ42-CY42 -> 0.126 | DG42: 0.04706059544 | DH42: 0.01488203312 | DI42: 0.04935761899 | DJ42: 2.552797371 | DK42: =IF(DJ42=0,1,TDIST(DJ42,DC42+DD42-2,$B$2)) -> 0.0108190812 | DL42: SIG | DM42: gondjaik vannak | DO42: ='tabla 2012'!BK47/100 -> 0.6327 | DP42: ='tabla 2012'!$BK$4/100 -> 0.7239 | DS42: ='tabla 2012'!BF47 -> 113 | DT42: ='tabla 2012'!$BF$4 -> 996 | DV42: =DP42-DO42 -> 0.0912 | DW42: 0.04555125743 | DX42: 0.01417297272 | DY42: 0.047705243 | DZ42: 1.911739555 | EA42: =IF(DZ42=0,1,TDIST(DZ42,DS42+DT42-2,$B$2)) -> 0.05616755768 | EB42: NOT SIG. | EE42: ='tabla 2012'!BO47/100 -> 0.4997 | EF42: ='tabla 2012'!$BO$4/100 -> 0.5837 | EI42: ='tabla 2012'!BN47 -> 105 | EJ42: ='tabla 2012'!$BN$4 -> 959 | EL42: =EF42-EE42 -> 0.084 | EM42: 0.04902902496 | EN42: 0.01592631487 | EO42: 0.05155087578 | EP42: 1.629458253 | EQ42: =IF(EP42=0,1,TDIST(EP42,EI42+EJ42-2,$B$2)) -> 0.1035125989 | ER42: NOT SIG.
U43: =U40&IF(U40="","","; ")&U41&IF(U41="","","; ")&U42 ->  | V43: =V40&IF(V40="","","; ")&V41&IF(V41="","","; ")&V42 ->  | AK43: =AK40&IF(AK40="","","; ")&AK41&IF(AK41="","","; ")&AK42 ->  | AL43: =AL40&IF(AL40="","","; ")&AL41&IF(AL41="","","; ")&AL42 ->  | BA43: =BA40&IF(BA40="","","; ")&BA41&IF(BA41="","","; ")&BA42 -> gondjaik vannak | BB43: =BB40&IF(BB40="","","; ")&BB41&IF(BB41="","","; ")&BB42 ->  | BQ43: =BQ40&IF(BQ40="","","; ")&BQ41&IF(BQ41="","","; ")&BQ42 -> gondjaik vannak | BR43: =BR40&IF(BR40="","","; ")&BR41&IF(BR41="","","; ")&BR42 ->  | CG43: =CG40&IF(CG40="","","; ")&CG41&IF(CG41="","","; ")&CG42 ->  | CH43: =CH40&IF(CH40="","","; ")&CH41&IF(CH41="","","; ")&CH42 ->  | CW43: =CW40&IF(CW40="","","; ")&CW41&IF(CW41="","","; ")&CW42 ->  | CX43: =CX40&IF(CX40="","","; ")&CX41&IF(CX41="","","; ")&CX42 ->  | DM43: =DM40&IF(DM40="","","; ")&DM41&IF(DM41="","","; ")&DM42 -> gondjaik vannak | DN43: =DN40&IF(DN40="","","; ")&DN41&IF(DN41="","","; ")&DN42 ->  | EC43: =EC40&IF(EC40="","","; ")&EC41&IF(EC41="","","; ")&EC42 ->  | ED43: =ED40&IF(ED40="","","; ")&ED41&IF(ED41="","","; ")&ED42 ->  | ES43: =ES40&IF(ES40="","","; ")&ES41&IF(ES41="","","; ")&ES42 ->  | ET43: =ET40&IF(ET40="","","; ")&ET41&IF(ET41="","","; ")&ET42 -> 
A44: ='tabla 2012'!A48 -> 2013 | B44: ='tabla 2012'!B48 -> uticélok | C44: ='tabla 2012'!C48 -> munka | D44: ='tabla 2012'!D48 -> 471 | E44: ='tabla 2012'!E48 -> BKV | F44: ='tabla 2012'!F48 -> top2 | G44: ='tabla 2012'!K48/100 -> 0 | H44: ='tabla 2012'!$K$4/100 -> 0 | K44: ='tabla 2012'!G48 -> 0 | L44: ='tabla 2012'!$G$4 -> 0 | N44: 0 | O44: 0 | P44: =IF((L44-1)=0,0,SQRT((1-H44)*H44/(L44-1))) -> 0 | Q44: 0 | R44: 0 | S44: =IF(R44=0,1,TDIST(R44,K44+L44-2,$B$2)) -> 1 | T44: NOT SIG. | W44: ='tabla 2012'!R48/100 -> 0.5032 | X44: ='tabla 2012'!$R$4/100 -> 0.5327 | AA44: ='tabla 2012'!N48 -> 469 | AB44: ='tabla 2012'!$N$4 -> 993 | AD44: 0.0295 | AE44: 0.02311203483 | AF44: 0.0158410295 | AG44: 0.02801971395 | AH44: 1.052830163 | AI44: 0.292593049 | AJ44: NOT SIG. | AM44: ='tabla 2012'!Y48/100 -> 0.5789 | AN44: ='tabla 2012'!$Y$4/100 -> 0.6088 | AQ44: ='tabla 2012'!U48 -> 469 | AR44: ='tabla 2012'!$U$4 -> 997 | AT44: 0.0299 | AU44: 0.02282293372 | AV44: 0.01546347426 | AW44: 0.02756819435 | AX44: 1.084583184 | AY44: 0.2782848778 | AZ44: NOT SIG. | BC44: ='tabla 2012'!AE48/100 -> 0.45 | BD44: ='tabla 2012'!$AE$4/100 -> 0.4534 | BG44: ='tabla 2012'!AB48 -> 470 | BH44: ='tabla 2012'!$AB$4 -> 998 | BJ44: 0.0034 | BK44: 0.0229721255 | BL44: 0.01576623489 | BM44: 0.02786202994 | BN44: 0.1220298739 | BO44: 0.9028920839 | BP44: NOT SIG. | BS44: ='tabla 2012'!AK48/100 -> 0.5596 | BT44: ='tabla 2012'!$AK$4/100 -> 0.6045 | BW44: ='tabla 2012'!AH48 -> 470 | BX44: ='tabla 2012'!$AH$4 -> 995 | BZ44: 0.0449 | CA44: 0.0229232445 | CB44: 0.01550880032 | CC44: 0.02767666934 | CD44: 1.622305034 | CE44: 0.1049535086 | CF44: NOT SIG. | CI44: ='tabla 2012'!AT48/100 -> 0.4484 | CJ44: ='tabla 2012'!$AT$4/100 -> 0.4796 | CM44: ='tabla 2012'!AN48 -> 467 | CN44: ='tabla 2012'!$AN$4 -> 993 | CP44: 0.0312 | CQ44: 0.02303838186 | CR44: 0.01586179728 | CS44: 0.02797076423 | CT44: 1.115450395 | CU44: 0.264841279 | CV44: NOT SIG. | CY44: ='tabla 2012'!BC48/100 -> 0.6561 | CZ44: ='tabla 2012'!$BC$4/100 -> 0.6702 | DC44: ='tabla 2012'!AW48 -> 471 | DD44: ='tabla 2012'!$AW$4 -> 999 | DF44: =CZ44-CY44 -> 0.0141 | DG44: =IF((DC44-1)=0,0,SQRT((1-CY44)*CY44/(DC44-1))) -> 0.02191049443 | DH44: 0.01488203312 | DI44: 0.02648668865 | DJ44: 0.5323428755 | DK44: =IF(DJ44=0,1,TDIST(DJ44,DC44+DD44-2,$B$2)) -> 0.5945691018 | DL44: NOT SIG. | DO44: ='tabla 2012'!BK48/100 -> 0.6952 | DP44: ='tabla 2012'!$BK$4/100 -> 0.7239 | DS44: ='tabla 2012'!BF48 -> 470 | DT44: ='tabla 2012'!$BF$4 -> 996 | DV44: =DP44-DO44 -> 0.0287 | DW44: =IF((DS44-1)=0,0,SQRT((1-DO44)*DO44/(DS44-1))) -> 0.02125572593 | DX44: 0.01417297272 | DY44: 0.02554758385 | DZ44: 1.123393906 | EA44: =IF(DZ44=0,1,TDIST(DZ44,DS44+DT44-2,$B$2)) -> 0.261454418 | EB44: NOT SIG. | EE44: ='tabla 2012'!BO48/100 -> 0.5606 | EF44: ='tabla 2012'!$BO$4/100 -> 0.5837 | EI44: ='tabla 2012'!BN48 -> 454 | EJ44: ='tabla 2012'!$BN$4 -> 959 | EL44: =EF44-EE44 -> 0.0231 | EM44: =IF((EI44-1)=0,0,SQRT((1-EE44)*EE44/(EI44-1))) -> 0.02331886843 | EN44: 0.01592631487 | EO44: 0.02823857521 | EP44: 0.8180299405 | EQ44: =IF(EP44=0,1,TDIST(EP44,EI44+EJ44-2,$B$2)) -> 0.4134782087 | ER44: NOT SIG.
A45: ='tabla 2012'!A49 -> 2013 | B45: ='tabla 2012'!B49 -> uticélok | C45: ='tabla 2012'!C49 -> tanulás | D45: ='tabla 2012'!D49 -> 87 | E45: ='tabla 2012'!E49 -> BKV | F45: ='tabla 2012'!F49 -> top2 | G45: ='tabla 2012'!K49/100 -> 0 | H45: ='tabla 2012'!$K$4/100 -> 0 | K45: ='tabla 2012'!G49 -> 0 | L45: ='tabla 2012'!$G$4 -> 0 | N45: 0 | O45: 0 | P45: 0 | Q45: 0 | R45: 0 | S45: 1 | T45: NOT SIG. | W45: ='tabla 2012'!R49/100 -> 0.5686 | X45: ='tabla 2012'!$R$4/100 -> 0.5327 | AA45: ='tabla 2012'!N49 -> 85 | AB45: ='tabla 2012'!$N$4 -> 993 | AD45: -0.0359 | AE45: 0.05403857088 | AF45: 0.0158410295 | AG45: 0.05631256839 | AH45: 0.6375130992 | AI45: 0.5239263077 | AJ45: NOT SIG. | AM45: ='tabla 2012'!Y49/100 -> 0.5747 | AN45: ='tabla 2012'!$Y$4/100 -> 0.6088 | AQ45: ='tabla 2012'!U49 -> 87 | AR45: ='tabla 2012'!$U$4 -> 997 | AT45: 0.0341 | AU45: 0.05331127439 | AV45: 0.01546347426 | AW45: 0.0555086571 | AX45: 0.6143185907 | AY45: 0.539133967 | AZ45: NOT SIG. | BC45: ='tabla 2012'!AE49/100 -> 0.4244 | BD45: ='tabla 2012'!$AE$4/100 -> 0.4534 | BG45: ='tabla 2012'!AB49 -> 86 | BH45: ='tabla 2012'!$AB$4 -> 998 | BJ45: 0.029 | BK45: 0.05360911248 | BL45: 0.01576623489 | BM45: 0.05587943364 | BN45: 0.5189744797 | BO45: 0.603884665 | BP45: NOT SIG. | BS45: ='tabla 2012'!AK49/100 -> 0.6667 | BT45: ='tabla 2012'!$AK$4/100 -> 0.6045 | BW45: ='tabla 2012'!AH49 -> 87 | BX45: ='tabla 2012'!$AH$4 -> 995 | BZ45: -0.0622 | CA45: 0.05083158581 | CB45: 0.01550880032 | CC45: 0.05314483045 | CD45: 1.170386649 | CE45: 0.2421035971 | CF45: NOT SIG. | CI45: ='tabla 2012'!AT49/100 -> 0.4184 | CJ45: ='tabla 2012'!$AT$4/100 -> 0.4796 | CM45: ='tabla 2012'!AN49 -> 87 | CN45: ='tabla 2012'!$AN$4 -> 993 | CP45: 0.0612 | CQ45: 0.05319352994 | CR45: 0.01586179728 | CS45: 0.05550809167 | CT45: 1.102541957 | CU45: 0.2704722091 | CV45: NOT SIG. | CY45: ='tabla 2012'!BC49/100 -> 0.7011 | CZ45: ='tabla 2012'!$BC$4/100 -> 0.6702 | DC45: ='tabla 2012'!AW49 -> 87 | DD45: ='tabla 2012'!$AW$4 -> 999 | DF45: -0.0309 | DG45: 0.04936324661 | DH45: 0.01488203312 | DI45: 0.05155778337 | DJ45: 0.5993275502 | DK45: 0.5490797158 | DL45: NOT SIG. | DO45: ='tabla 2012'!BK49/100 -> 0.7184 | DP45: ='tabla 2012'!$BK$4/100 -> 0.7239 | DS45: ='tabla 2012'!BF49 -> 87 | DT45: ='tabla 2012'!$BF$4 -> 996 | DV45: 0.0055 | DW45: 0.0485009518 | DX45: 0.01417297272 | DY45: 0.05052935267 | DZ45: 0.1088476244 | EA45: 0.91334355 | EB45: NOT SIG. | EE45: ='tabla 2012'!BO49/100 -> 0.5838 | EF45: ='tabla 2012'!$BO$4/100 -> 0.5837 | EI45: ='tabla 2012'!BN49 -> 82 | EJ45: ='tabla 2012'!$BN$4 -> 959 | EL45: -0.0001 | EM45: 0.0547697267 | EN45: 0.01592631487 | EO45: 0.05703832456 | EP45: 0.001753207177 | EQ45: 0.9986014803 | ER45: NOT SIG.
A46: ='tabla 2012'!A50 -> 2013 | B46: ='tabla 2012'!B50 -> uticélok | C46: ='tabla 2012'!C50 -> bevásárlás | D46: ='tabla 2012'!D50 -> 108 | E46: ='tabla 2012'!E50 -> BKV | F46: ='tabla 2012'!F50 -> top2 | G46: ='tabla 2012'!K50/100 -> 0 | H46: ='tabla 2012'!$K$4/100 -> 0 | K46: ='tabla 2012'!G50 -> 0 | L46: ='tabla 2012'!$G$4 -> 0 | N46: 0 | O46: 0 | P46: 0 | Q46: 0 | R46: 0 | S46: 1 | T46: NOT SIG. | W46: ='tabla 2012'!R50/100 -> 0.5794 | X46: ='tabla 2012'!$R$4/100 -> 0.5327 | AA46: ='tabla 2012'!N50 -> 107 | AB46: ='tabla 2012'!$N$4 -> 993 | AD46: -0.0467 | AE46: 0.04794804972 | AF46: 0.0158410295 | AG46: 0.05049706613 | AH46: 0.9248062032 | AI46: 0.3552699229 | AJ46: NOT SIG. | AM46: ='tabla 2012'!Y50/100 -> 0.6963 | AN46: ='tabla 2012'!$Y$4/100 -> 0.6088 | AQ46: ='tabla 2012'!U50 -> 107 | AR46: ='tabla 2012'!$U$4 -> 997 | AT46: -0.0875 | AU46: 0.04466503318 | AV46: 0.01546347426 | AW46: 0.04726610017 | AX46: 1.851221059 | AY46: 0.06440515382 | AZ46: NOT SIG. | BC46: ='tabla 2012'!AE50/100 -> 0.4766 | BD46: ='tabla 2012'!$AE$4/100 -> 0.4534 | BG46: ='tabla 2012'!AB50 -> 107 | BH46: ='tabla 2012'!$AB$4 -> 998 | BJ46: -0.0232 | BK46: 0.04851108024 | BL46: 0.01576623489 | BM46: 0.05100881363 | BN46: 0.4548233599 | BO46: 0.649325824 | BP46: NOT SIG. | BS46: ='tabla 2012'!AK50/100 -> 0.6714 | BT46: ='tabla 2012'!$AK$4/100 -> 0.6045 | BW46: ='tabla 2012'!AH50 -> 105 | BX46: ='tabla 2012'!$AH$4 -> 995 | BZ46: -0.0669 | CA46: 0.04605828665 | CB46: 0.01550880032 | CC46: 0.04859926601 | CD46: 1.376564 | CE46: 0.1689277183 | CF46: NOT SIG. | CI46: ='tabla 2012'!AT50/100 -> 0.5458 | CJ46: ='tabla 2012'!$AT$4/100 -> 0.4796 | CM46: ='tabla 2012'!AN50 -> 107 | CN46: ='tabla 2012'!$AN$4 -> 993 | CP46: -0.0662 | CQ46: 0.04836012313 | CR46: 0.01586179728 | CS46: 0.05089497148 | CT46: 1.300717892 | CU46: 0.1936279501 | CV46: NOT SIG. | CY46: ='tabla 2012'!BC50/100 -> 0.7103 | CZ46: ='tabla 2012'!$BC$4/100 -> 0.6702 | DC46: ='tabla 2012'!AW50 -> 107 | DD46: ='tabla 2012'!$AW$4 -> 999 | DF46: -0.0401 | DG46: 0.04405976965 | DH46: 0.01488203312 | DI46: 0.04650524929 | DJ46: 0.8622682517 | DK46: 0.3887271765 | DL46: NOT SIG. | DO46: ='tabla 2012'!BK50/100 -> 0.757 | DP46: ='tabla 2012'!$BK$4/100 -> 0.7239 | DS46: ='tabla 2012'!BF50 -> 107 | DT46: ='tabla 2012'!$BF$4 -> 996 | DV46: -0.0331 | DW46: 0.04165797394 | DX46: 0.01417297272 | DY46: 0.04400295386 | DZ46: 0.7522222282 | EA46: 0.4520782101 | EB46: NOT SIG. | EE46: ='tabla 2012'!BO50/100 -> 0.6203 | EF46: ='tabla 2012'!$BO$4/100 -> 0.5837 | EI46: ='tabla 2012'!BN50 -> 105 | EJ46: ='tabla 2012'!$BN$4 -> 959 | EL46: -0.0366 | EM46: 0.04758877433 | EN46: 0.01592631487 | EO46: 0.05018305439 | EP46: 0.7293298594 | EQ46: 0.4659607281 | ER46: NOT SIG.
A47: ='tabla 2012'!A51 -> 2013 | B47: ='tabla 2012'!B51 -> uticélok | C47: ='tabla 2012'!C51 -> ügyintézés | D47: ='tabla 2012'!D51 -> 198 | E47: ='tabla 2012'!E51 -> BKV | F47: ='tabla 2012'!F51 -> top2 | G47: ='tabla 2012'!K51/100 -> 0 | H47: ='tabla 2012'!$K$4/100 -> 0 | K47: ='tabla 2012'!G51 -> 0 | L47: ='tabla 2012'!$G$4 -> 0 | N47: 0 | O47: 0 | P47: 0 | Q47: 0 | R47: 0 | S47: 1 | T47: NOT SIG. | W47: ='tabla 2012'!R51/100 -> 0.5094 | X47: ='tabla 2012'!$R$4/100 -> 0.5327 | AA47: ='tabla 2012'!N51 -> 195 | AB47: ='tabla 2012'!$N$4 -> 993 | AD47: 0.0233 | AE47: 0.03589156349 | AF47: 0.0158410295 | AG47: 0.03923190724 | AH47: 0.5939043406 | AI47: 0.5526893529 | AJ47: NOT SIG. | AM47: ='tabla 2012'!Y51/100 -> 0.6061 | AN47: ='tabla 2012'!$Y$4/100 -> 0.6088 | AQ47: ='tabla 2012'!U51 -> 198 | AR47: ='tabla 2012'!$U$4 -> 997 | AT47: 0.0027 | AU47: 0.03481224404 | AV47: 0.01546347426 | AW47: 0.03809214317 | AX47: 0.07088075848 | AY47: 0.9435045371 | AZ47: NOT SIG. | BC47: ='tabla 2012'!AE51/100 -> 0.4874 | BD47: ='tabla 2012'!$AE$4/100 -> 0.4534 | BG47: ='tabla 2012'!AB51 -> 198 | BH47: ='tabla 2012'!$AB$4 -> 998 | BJ47: -0.034 | BK47: 0.03561221202 | BL47: 0.01576623489 | BM47: 0.0389461655 | BN47: 0.8729999363 | BO47: 0.3828386425 | BP47: NOT SIG. | BS47: ='tabla 2012'!AK51/100 -> 0.6097 | BT47: ='tabla 2012'!$AK$4/100 -> 0.6045 | BW47: ='tabla 2012'!AH51 -> 196 | BX47: ='tabla 2012'!$AH$4 -> 995 | BZ47: -0.0052 | CA47: 0.03493333651 | CB47: 0.01550880032 | CC47: 0.03822120991 | CD47: 0.1360501149 | CE47: 0.8918046934 | CF47: NOT SIG. | CI47: ='tabla 2012'!AT51/100 -> 0.4843 | CJ47: ='tabla 2012'!$AT$4/100 -> 0.4796 | CM47: ='tabla 2012'!AN51 -> 197 | CN47: ='tabla 2012'!$AN$4 -> 993 | CP47: -0.0047 | CQ47: 0.03569667494 | CR47: 0.01586179728 | CS47: 0.03906211995 | CT47: 0.1203211706 | CU47: 0.9042490792 | CV47: NOT SIG. | CY47: ='tabla 2012'!BC51/100 -> 0.6345 | CZ47: ='tabla 2012'!$BC$4/100 -> 0.6702 | DC47: ='tabla 2012'!AW51 -> 197 | DD47: ='tabla 2012'!$AW$4 -> 999 | DF47: 0.0357 | DG47: 0.03439786345 | DH47: 0.01488203312 | DI47: 0.03747916648 | DJ47: 0.9525291876 | DK47: 0.3410214531 | DL47: NOT SIG. | DO47: ='tabla 2012'!BK51/100 -> 0.7513 | DP47: ='tabla 2012'!$BK$4/100 -> 0.7239 | DS47: ='tabla 2012'!BF51 -> 196 | DT47: ='tabla 2012'!$BF$4 -> 996 | DV47: -0.0274 | DW47: 0.03095474861 | DX47: 0.01417297272 | DY47: 0.0340451115 | DZ47: 0.8048145178 | EA47: 0.4210874852 | EB47: NOT SIG. | EE47: ='tabla 2012'!BO51/100 -> 0.5895 | EF47: ='tabla 2012'!$BO$4/100 -> 0.5837 | EI47: ='tabla 2012'!BN51 -> 188 | EJ47: ='tabla 2012'!$BN$4 -> 959 | EL47: -0.0058 | EM47: 0.03597308486 | EN47: 0.01592631487 | EO47: 0.03934094991 | EP47: 0.1474290787 | EQ47: 0.8828193102 | ER47: NOT SIG.
A48: ='tabla 2012'!A52 -> 2013 | B48: ='tabla 2012'!B52 -> uticélok | C48: ='tabla 2012'!C52 -> családlátogatás | D48: ='tabla 2012'!D52 -> 99 | E48: ='tabla 2012'!E52 -> BKV | F48: ='tabla 2012'!F52 -> top2 | G48: ='tabla 2012'!K52/100 -> 0 | H48: ='tabla 2012'!$K$4/100 -> 0 | K48: ='tabla 2012'!G52 -> 0 | L48: ='tabla 2012'!$G$4 -> 0 | N48: 0 | O48: 0 | P48: 0 | Q48: 0 | R48: 0 | S48: 1 | T48: NOT SIG. | W48: ='tabla 2012'!R52/100 -> 0.6397 | X48: ='tabla 2012'!$R$4/100 -> 0.5327 | AA48: ='tabla 2012'!N52 -> 99 | AB48: ='tabla 2012'!$N$4 -> 993 | AD48: -0.107 | AE48: 0.0484961507 | AF48: 0.0158410295 | AG48: 0.05101778953 | AH48: 2.097307645 | AI48: 0.03619624272 | AJ48: SIG | AL48: családlátogatás | AM48: ='tabla 2012'!Y52/100 -> 0.6888 | AN48: ='tabla 2012'!$Y$4/100 -> 0.6088 | AQ48: ='tabla 2012'!U52 -> 98 | AR48: ='tabla 2012'!$U$4 -> 997 | AT48: -0.08 | AU48: 0.04700894409 | AV48: 0.01546347426 | AW48: 0.04948696658 | AX48: 1.616587266 | AY48: 0.1062559648 | AZ48: NOT SIG. | BC48: ='tabla 2012'!AE52/100 -> 0.4394 | BD48: ='tabla 2012'!$AE$4/100 -> 0.4534 | BG48: ='tabla 2012'!AB52 -> 99 | BH48: ='tabla 2012'!$AB$4 -> 998 | BJ48: 0.014 | BK48: 0.05013529043 | BL48: 0.01576623489 | BM48: 0.05255588939 | BN48: 0.2663830859 | BO48: 0.7899943418 | BP48: NOT SIG. | BS48: ='tabla 2012'!AK52/100 -> 0.6717 | BT48: ='tabla 2012'!$AK$4/100 -> 0.6045 | BW48: ='tabla 2012'!AH52 -> 99 | BX48: ='tabla 2012'!$AH$4 -> 995 | BZ48: -0.0672 | CA48: 0.04743622034 | CB48: 0.01550880032 | CC48: 0.04990709256 | CD48: 1.346502001 | CE48: 0.1784200845 | CF48: NOT SIG. | CI48: ='tabla 2012'!AT52/100 -> 0.5876 | CJ48: ='tabla 2012'!$AT$4/100 -> 0.4796 | CM48: ='tabla 2012'!AN52 -> 97 | CN48: ='tabla 2012'!$AN$4 -> 993 | CP48: -0.108 | CQ48: 0.05024173232 | CR48: 0.01586179728 | CS48: 0.05268612986 | CT48: 2.049875371 | CU48: 0.04061588565 | CV48: SIG | CX48: családlátogatás | CY48: ='tabla 2012'!BC52/100 -> 0.7778 | CZ48: ='tabla 2012'!$BC$4/100 -> 0.6702 | DC48: ='tabla 2012'!AW52 -> 99 | DD48: ='tabla 2012'!$AW$4 -> 999 | DF48: -0.1076 | DG48: 0.04199455261 | DH48: 0.01488203312 | DI48: 0.04455353363 | DJ48: 2.415072189 | DK48: 0.01589495952 | DL48: SIG | DN48: családlátogatás | DO48: ='tabla 2012'!BK52/100 -> 0.7908 | DP48: ='tabla 2012'!$BK$4/100 -> 0.7239 | DS48: ='tabla 2012'!BF52 -> 98 | DT48: ='tabla 2012'!$BF$4 -> 996 | DV48: -0.0669 | DW48: 0.04129793185 | DX48: 0.01417297272 | DY48: 0.04366225293 | DZ48: 1.532215942 | EA48: 0.1257587947 | EB48: NOT SIG. | EE48: ='tabla 2012'!BO52/100 -> 0.6581 | EF48: ='tabla 2012'!$BO$4/100 -> 0.5837 | EI48: ='tabla 2012'!BN52 -> 94 | EJ48: ='tabla 2012'!$BN$4 -> 959 | EL48: -0.0744 | EM48: 0.04918741753 | EN48: 0.01592631487 | EO48: 0.051701543 | EP48: 1.439028619 | EQ48: 0.1504401528 | ER48: NOT SIG.
A49: ='tabla 2012'!A53 -> 2013 | B49: ='tabla 2012'!B53 -> uticélok | C49: ='tabla 2012'!C53 -> egyéb | D49: ='tabla 2012'!D53 -> 21 | E49: ='tabla 2012'!E53 -> BKV | F49: ='tabla 2012'!F53 -> top2 | G49: ='tabla 2012'!K53/100 -> 0 | H49: ='tabla 2012'!$K$4/100 -> 0 | K49: ='tabla 2012'!G53 -> 0 | L49: ='tabla 2012'!$G$4 -> 0 | N49: 0 | O49: 0 | P49: 0 | Q49: 0 | R49: 0 | S49: 1 | T49: NOT SIG. | W49: ='tabla 2012'!R53/100 -> 0.6349 | X49: ='tabla 2012'!$R$4/100 -> 0.5327 | AA49: ='tabla 2012'!N53 -> 21 | AB49: ='tabla 2012'!$N$4 -> 993 | AD49: -0.1022 | AE49: 0.1076573244 | AF49: 0.0158410295 | AG49: 0.1088165324 | AH49: 0.9391955228 | AI49: 0.3478544717 | AJ49: NOT SIG. | AM49: ='tabla 2012'!Y53/100 -> 0.5952 | AN49: ='tabla 2012'!$Y$4/100 -> 0.6088 | AQ49: ='tabla 2012'!U53 -> 21 | AR49: ='tabla 2012'!$U$4 -> 997 | AT49: 0.0136 | AU49: 0.1097581341 | AV49: 0.01546347426 | AW49: 0.1108420815 | AX49: 0.1226970823 | AY49: 0.9023712398 | AZ49: NOT SIG. | BC49: ='tabla 2012'!AE53/100 -> 0.3095 | BD49: ='tabla 2012'!$AE$4/100 -> 0.4534 | BG49: ='tabla 2012'!AB53 -> 21 | BH49: ='tabla 2012'!$AB$4 -> 998 | BJ49: 0.1439 | BK49: 0.1033706317 | BL49: 0.01576623489 | BM49: 0.1045660636 | BN49: 1.376163499 | BO49: 0.1690739598 | BP49: NOT SIG. | BS49: ='tabla 2012'!AK53/100 -> 0.6905 | BT49: ='tabla 2012'!$AK$4/100 -> 0.6045 | BW49: ='tabla 2012'!AH53 -> 21 | BX49: ='tabla 2012'!$AH$4 -> 995 | BZ49: -0.086 | CA49: 0.1033706317 | CB49: 0.01550880032 | CC49: 0.104527558 | CD49: 0.8227495373 | CE49: 0.4108438752 | CF49: NOT SIG. | CI49: ='tabla 2012'!AT53/100 -> 0.5333 | CJ49: ='tabla 2012'!$AT$4/100 -> 0.4796 | CM49: ='tabla 2012'!AN53 -> 21 | CN49: ='tabla 2012'!$AN$4 -> 993 | CP49: -0.0537 | CQ49: 0.111555168 | CR49: 0.01586179728 | CS49: 0.1126772032 | CT49: 0.4765826493 | CU49: 0.6337622238 | CV49: NOT SIG. | CY49: ='tabla 2012'!BC53/100 -> 0.5476 | CZ49: ='tabla 2012'!$BC$4/100 -> 0.6702 | DC49: ='tabla 2012'!AW53 -> 21 | DD49: ='tabla 2012'!$AW$4 -> 999 | DF49: 0.1226 | DG49: 0.1112956064 | DH49: 0.01488203312 | DI49: 0.1122861831 | DJ49: 1.091852948 | DK49: 0.2751560765 | DL49: NOT SIG. | DO49: ='tabla 2012'!BK53/100 -> 0.7262 | DP49: ='tabla 2012'!$BK$4/100 -> 0.7239 | DS49: ='tabla 2012'!BF53 -> 21 | DT49: ='tabla 2012'!$BF$4 -> 996 | DV49: -0.0023 | DW49: 0.09970796357 | DX49: 0.01417297272 | DY49: 0.1007102336 | DZ49: 0.02283779828 | EA49: 0.981784146 | EB49: NOT SIG. | EE49: ='tabla 2012'!BO53/100 -> 0.5657 | EF49: ='tabla 2012'!$BO$4/100 -> 0.5837 | EI49: ='tabla 2012'!BN53 -> 21 | EJ49: ='tabla 2012'!$BN$4 -> 959 | EL49: 0.018 | EM49: 0.1108339997 | EN49: 0.01592631487 | EO49: 0.1119724207 | EP49: 0.1607538703 | EQ49: 0.872320457 | ER49: NOT SIG.
U50: =U44&IF(U44="","","; ")&U45&IF(U45="","","; ")&U46&IF(U46="","","; ")&U47&IF(U47="","","; ")&U48&IF(U48="","","; ")&U49 ->  | V50: =V44&IF(V44="","","; ")&V45&IF(V45="","","; ")&V46&IF(V46="","","; ")&V47&IF(V47="","","; ")&V48&IF(V48="","","; ")&V49 ->  | AK50: =AK44&IF(AK44="","","; ")&AK45&IF(AK45="","","; ")&AK46&IF(AK46="","","; ")&AK47&IF(AK47="","","; ")&AK48&IF(AK48="","","; ")&AK49 ->  | AL50: =AL44&IF(AL44="","","; ")&AL45&IF(AL45="","","; ")&AL46&IF(AL46="","","; ")&AL47&IF(AL47="","","; ")&AL48&IF(AL48="","","; ")&AL49 -> családlátogatás; | BA50: =BA44&IF(BA44="","","; ")&BA45&IF(BA45="","","; ")&BA46&IF(BA46="","","; ")&BA47&IF(BA47="","","; ")&BA48&IF(BA48="","","; ")&BA49 ->  | BB50: =BB44&IF(BB44="","","; ")&BB45&IF(BB45="","","; ")&BB46&IF(BB46="","","; ")&BB47&IF(BB47="","","; ")&BB48&IF(BB48="","","; ")&BB49 ->  | BQ50: =BQ44&IF(BQ44="","","; ")&BQ45&IF(BQ45="","","; ")&BQ46&IF(BQ46="","","; ")&BQ47&IF(BQ47="","","; ")&BQ48&IF(BQ48="","","; ")&BQ49 ->  | BR50: =BR44&IF(BR44="","","; ")&BR45&IF(BR45="","","; ")&BR46&IF(BR46="","","; ")&BR47&IF(BR47="","","; ")&BR48&IF(BR48="","","; ")&BR49 ->  | CG50: =CG44&IF(CG44="","","; ")&CG45&IF(CG45="","","; ")&CG46&IF(CG46="","","; ")&CG47&IF(CG47="","","; ")&CG48&IF(CG48="","","; ")&CG49 ->  | CH50: =CH44&IF(CH44="","","; ")&CH45&IF(CH45="","","; ")&CH46&IF(CH46="","","; ")&CH47&IF(CH47="","","; ")&CH48&IF(CH48="","","; ")&CH49 ->  | CW50: =CW44&IF(CW44="","","; ")&CW45&IF(CW45="","","; ")&CW46&IF(CW46="","","; ")&CW47&IF(CW47="","","; ")&CW48&IF(CW48="","","; ")&CW49 ->  | CX50: =CX44&IF(CX44="","","; ")&CX45&IF(CX45="","","; ")&CX46&IF(CX46="","","; ")&CX47&IF(CX47="","","; ")&CX48&IF(CX48="","","; ")&CX49 -> családlátogatás; | DM50: =DM44&IF(DM44="","","; ")&DM45&IF(DM45="","","; ")&DM46&IF(DM46="","","; ")&DM47&IF(DM47="","","; ")&DM48&IF(DM48="","","; ")&DM49 ->  | DN50: =DN44&IF(DN44="","","; ")&DN45&IF(DN45="","","; ")&DN46&IF(DN46="","","; ")&DN47&IF(DN47="","","; ")&DN48&IF(DN48="","","; ")&DN49 -> családlátogatás; | EC50: =EC44&IF(EC44="","","; ")&EC45&IF(EC45="","","; ")&EC46&IF(EC46="","","; ")&EC47&IF(EC47="","","; ")&EC48&IF(EC48="","","; ")&EC49 ->  | ED50: =ED44&IF(ED44="","","; ")&ED45&IF(ED45="","","; ")&ED46&IF(ED46="","","; ")&ED47&IF(ED47="","","; ")&ED48&IF(ED48="","","; ")&ED49 ->  | ES50: =ES44&IF(ES44="","","; ")&ES45&IF(ES45="","","; ")&ES46&IF(ES46="","","; ")&ES47&IF(ES47="","","; ")&ES48&IF(ES48="","","; ")&ES49 ->  | ET50: =ET44&IF(ET44="","","; ")&ET45&IF(ET45="","","; ")&ET46&IF(ET46="","","; ")&ET47&IF(ET47="","","; ")&ET48&IF(ET48="","","; ")&ET49 -> 
A51: ='tabla 2012'!A54 -> 2013 | B51: ='tabla 2012'!B54 -> utazások száma havonta | C51: ='tabla 2012'!C54 -> kevesebb mint 5 | D51: ='tabla 2012'!D54 -> 112 | E51: ='tabla 2012'!E54 -> BKV | F51: ='tabla 2012'!F54 -> top2 | G51: ='tabla 2012'!K54/100 -> 0 | H51: ='tabla 2012'!$K$4/100 -> 0 | K51: ='tabla 2012'!G54 -> 0 | L51: ='tabla 2012'!$G$4 -> 0 | N51: 0 | O51: 0 | P51: =IF((L51-1)=0,0,SQRT((1-H51)*H51/(L51-1))) -> 0 | Q51: 0 | R51: 0 | S51: =IF(R51=0,1,TDIST(R51,K51+L51-2,$B$2)) -> 1 | T51: NOT SIG. | W51: ='tabla 2012'!R54/100 -> 0.5697 | X51: ='tabla 2012'!$R$4/100 -> 0.5327 | AA51: ='tabla 2012'!N54 -> 110 | AB51: ='tabla 2012'!$N$4 -> 993 | AD51: -0.037 | AE51: 0.04742371083 | AF51: 0.0158410295 | AG51: 0.04999946564 | AH51: 0.7400079086 | AI51: 0.459452957 | AJ51: NOT SIG. | AM51: ='tabla 2012'!Y54/100 -> 0.6036 | AN51: ='tabla 2012'!$Y$4/100 -> 0.6088 | AQ51: ='tabla 2012'!U54 -> 111 | AR51: ='tabla 2012'!$U$4 -> 997 | AT51: 0.0052 | AU51: 0.04663855604 | AV51: 0.01546347426 | AW51: 0.04913526173 | AX51: 0.1058303104 | AY51: 0.9157361783 | AZ51: NOT SIG. | BC51: ='tabla 2012'!AE54/100 -> 0.4777 | BD51: ='tabla 2012'!$AE$4/100 -> 0.4534 | BG51: ='tabla 2012'!AB54 -> 112 | BH51: ='tabla 2012'!$AB$4 -> 998 | BJ51: -0.0243 | BK51: 0.04741067561 | BL51: 0.01576623489 | BM51: 0.04996344989 | BN51: 0.486355527 | BO51: 0.6268112951 | BP51: NOT SIG. | BS51: ='tabla 2012'!AK54/100 -> 0.5804 | BT51: ='tabla 2012'!$AK$4/100 -> 0.6045 | BW51: ='tabla 2012'!AH54 -> 112 | BX51: ='tabla 2012'!$AH$4 -> 995 | BZ51: 0.0241 | CA51: 0.04684033066 | CB51: 0.01550880032 | CC51: 0.04934105252 | CD51: 0.4884370878 | CE51: 0.6253371904 | CF51: NOT SIG. | CI51: ='tabla 2012'!AT54/100 -> 0.5586 | CJ51: ='tabla 2012'!$AT$4/100 -> 0.4796 | CM51: ='tabla 2012'!AN54 -> 111 | CN51: ='tabla 2012'!$AN$4 -> 993 | CP51: -0.079 | CQ51: 0.0473445821 | CR51: 0.01586179728 | CS51: 0.04993101308 | CT51: 1.582182999 | CU51: 0.1138947396 | CV51: NOT SIG. | CY51: ='tabla 2012'!BC54/100 -> 0.6486 | CZ51: ='tabla 2012'!$BC$4/100 -> 0.6702 | DC51: ='tabla 2012'!AW54 -> 111 | DD51: ='tabla 2012'!$AW$4 -> 999 | DF51: =CZ51-CY51 -> 0.0216 | DG51: =IF((DC51-1)=0,0,SQRT((1-CY51)*CY51/(DC51-1))) -> 0.04551903099 | DH51: 0.01488203312 | DI51: 0.04789005212 | DJ51: 0.4510331279 | DK51: =IF(DJ51=0,1,TDIST(DJ51,DC51+DD51-2,$B$2)) -> 0.6520539275 | DL51: NOT SIG. | DO51: ='tabla 2012'!BK54/100 -> 0.8273 | DP51: ='tabla 2012'!$BK$4/100 -> 0.7239 | DS51: ='tabla 2012'!BF54 -> 110 | DT51: ='tabla 2012'!$BF$4 -> 996 | DV51: =DP51-DO51 -> -0.1034 | DW51: =IF((DS51-1)=0,0,SQRT((1-DO51)*DO51/(DS51-1))) -> 0.03620465655 | DX51: 0.01417297272 | DY51: 0.03887994742 | DZ51: 2.659468617 | EA51: =IF(DZ51=0,1,TDIST(DZ51,DS51+DT51-2,$B$2)) -> 0.007939708772 | EB51: SIG | ED51: kevesebb mint 5 | EE51: ='tabla 2012'!BO54/100 -> 0.6038 | EF51: ='tabla 2012'!$BO$4/100 -> 0.5837 | EI51: ='tabla 2012'!BN54 -> 105 | EJ51: ='tabla 2012'!$BN$4 -> 959 | EL51: =EF51-EE51 -> -0.0201 | EM51: =IF((EI51-1)=0,0,SQRT((1-EE51)*EE51/(EI51-1))) -> 0.04796087749 | EN51: 0.01592631487 | EO51: 0.05053605915 | EP51: 0.3977358017 | EQ51: =IF(EP51=0,1,TDIST(EP51,EI51+EJ51-2,$B$2)) -> 0.6909048763 | ER51: NOT SIG.
A52: ='tabla 2012'!A55 -> 2013 | B52: ='tabla 2012'!B55 -> utazások száma havonta | C52: ='tabla 2012'!C55 -> 6-10 | D52: ='tabla 2012'!D55 -> 161 | E52: ='tabla 2012'!E55 -> BKV | F52: ='tabla 2012'!F55 -> top2 | G52: ='tabla 2012'!K55/100 -> 0 | H52: ='tabla 2012'!$K$4/100 -> 0 | K52: ='tabla 2012'!G55 -> 0 | L52: ='tabla 2012'!$G$4 -> 0 | N52: 0 | O52: 0 | P52: 0 | Q52: 0 | R52: 0 | S52: 1 | T52: NOT SIG. | W52: ='tabla 2012'!R55/100 -> 0.5708 | X52: ='tabla 2012'!$R$4/100 -> 0.5327 | AA52: ='tabla 2012'!N55 -> 160 | AB52: ='tabla 2012'!$N$4 -> 993 | AD52: -0.0381 | AE52: 0.03925303818 | AF52: 0.0158410295 | AG52: 0.04232894071 | AH52: 0.9000933961 | AI52: 0.3682588276 | AJ52: NOT SIG. | AM52: ='tabla 2012'!Y55/100 -> 0.6563 | AN52: ='tabla 2012'!$Y$4/100 -> 0.6088 | AQ52: ='tabla 2012'!U55 -> 160 | AR52: ='tabla 2012'!$U$4 -> 997 | AT52: -0.0475 | AU52: 0.03766538457 | AV52: 0.01546347426 | AW52: 0.04071609302 | AX52: 1.166614881 | AY52: 0.2436067463 | AZ52: NOT SIG. | BC52: ='tabla 2012'!AE55/100 -> 0.5094 | BD52: ='tabla 2012'!$AE$4/100 -> 0.4534 | BG52: ='tabla 2012'!AB55 -> 160 | BH52: ='tabla 2012'!$AB$4 -> 998 | BJ52: -0.056 | BK52: 0.03964557126 | BL52: 0.01576623489 | BM52: 0.04266550695 | BN52: 1.312535676 | BO52: 0.1895999838 | BP52: NOT SIG. | BS52: ='tabla 2012'!AK55/100 -> 0.6855 | BT52: ='tabla 2012'!$AK$4/100 -> 0.6045 | BW52: ='tabla 2012'!AH55 -> 159 | BX52: ='tabla 2012'!$AH$4 -> 995 | BZ52: -0.081 | CA52: 0.03693903205 | CB52: 0.01550880032 | CC52: 0.04006263815 | CD52: 2.021833901 | CE52: 0.04342431249 | CF52: SIG | CH52: 6-10 | CI52: ='tabla 2012'!AT55/100 -> 0.5165 | CJ52: ='tabla 2012'!$AT$4/100 -> 0.4796 | CM52: ='tabla 2012'!AN55 -> 158 | CN52: ='tabla 2012'!$AN$4 -> 993 | CP52: -0.0369 | CQ52: 0.03988261039 | CR52: 0.01586179728 | CS52: 0.04292108135 | CT52: 0.8597173892 | CU52: 0.390124181 | CV52: NOT SIG. | CY52: ='tabla 2012'!BC55/100 -> 0.7094 | CZ52: ='tabla 2012'!$BC$4/100 -> 0.6702 | DC52: ='tabla 2012'!AW55 -> 160 | DD52: ='tabla 2012'!$AW$4 -> 999 | DF52: -0.0392 | DG52: 0.03600765467 | DH52: 0.01488203312 | DI52: 0.03896185448 | DJ52: 1.006112274 | DK52: 0.3145719303 | DL52: NOT SIG. | DO52: ='tabla 2012'!BK55/100 -> 0.7752 | DP52: ='tabla 2012'!$BK$4/100 -> 0.7239 | DS52: ='tabla 2012'!BF55 -> 159 | DT52: ='tabla 2012'!$BF$4 -> 996 | DV52: -0.0513 | DW52: 0.03321058242 | DX52: 0.01417297272 | DY52: 0.03610839155 | DZ52: 1.42072238 | EA52: 0.1556678508 | EB52: NOT SIG. | EE52: ='tabla 2012'!BO55/100 -> 0.6337 | EF52: ='tabla 2012'!$BO$4/100 -> 0.5837 | EI52: ='tabla 2012'!BN55 -> 156 | EJ52: ='tabla 2012'!$BN$4 -> 959 | EL52: -0.05 | EM52: 0.0386985296 | EN52: 0.01592631487 | EO52: 0.04184762477 | EP52: 1.194810943 | EQ52: 0.2324154451 | ER52: NOT SIG.
A53: ='tabla 2012'!A56 -> 2013 | B53: ='tabla 2012'!B56 -> utazások száma havonta | C53: ='tabla 2012'!C56 -> 11-20 | D53: ='tabla 2012'!D56 -> 168 | E53: ='tabla 2012'!E56 -> BKV | F53: ='tabla 2012'!F56 -> top2 | G53: ='tabla 2012'!K56/100 -> 0 | H53: ='tabla 2012'!$K$4/100 -> 0 | K53: ='tabla 2012'!G56 -> 0 | L53: ='tabla 2012'!$G$4 -> 0 | N53: 0 | O53: 0 | P53: 0 | Q53: 0 | R53: 0 | S53: 1 | T53: NOT SIG. | W53: ='tabla 2012'!R56/100 -> 0.504 | X53: ='tabla 2012'!$R$4/100 -> 0.5327 | AA53: ='tabla 2012'!N56 -> 168 | AB53: ='tabla 2012'!$N$4 -> 993 | AD53: 0.0287 | AE53: 0.03868992349 | AF53: 0.0158410295 | AG53: 0.04180727682 | AH53: 0.6864833632 | AI53: 0.4925456654 | AJ53: NOT SIG. | AM53: ='tabla 2012'!Y56/100 -> 0.5595 | AN53: ='tabla 2012'!$Y$4/100 -> 0.6088 | AQ53: ='tabla 2012'!U56 -> 168 | AR53: ='tabla 2012'!$U$4 -> 997 | AT53: 0.0493 | AU53: 0.03841623207 | AV53: 0.01546347426 | AW53: 0.04141166409 | AX53: 1.190485847 | AY53: 0.2340984264 | AZ53: NOT SIG. | BC53: ='tabla 2012'!AE56/100 -> 0.4613 | BD53: ='tabla 2012'!$AE$4/100 -> 0.4534 | BG53: ='tabla 2012'!AB56 -> 168 | BH53: ='tabla 2012'!$AB$4 -> 998 | BJ53: -0.0079 | BK53: 0.0385750928 | BL53: 0.01576623489 | BM53: 0.04167267626 | BN53: 0.1895726579 | BO53: 0.8496770655 | BP53: NOT SIG. | BS53: ='tabla 2012'!AK56/100 -> 0.5868 | BT53: ='tabla 2012'!$AK$4/100 -> 0.6045 | BW53: ='tabla 2012'!AH56 -> 167 | BX53: ='tabla 2012'!$AH$4 -> 995 | BZ53: 0.0177 | CA53: 0.03821828238 | CB53: 0.01550880032 | CC53: 0.04124512087 | CD53: 0.4291416688 | CE53: 0.6678998171 | CF53: NOT SIG. | CI53: ='tabla 2012'!AT56/100 -> 0.4893 | CJ53: ='tabla 2012'!$AT$4/100 -> 0.4796 | CM53: ='tabla 2012'!AN56 -> 168 | CN53: ='tabla 2012'!$AN$4 -> 993 | CP53: -0.0097 | CQ53: 0.03868230111 | CR53: 0.01586179728 | CS53: 0.04180809769 | CT53: 0.2320124698 | CU53: 0.8165692868 | CV53: NOT SIG. | CY53: ='tabla 2012'!BC56/100 -> 0.6726 | CZ53: ='tabla 2012'!$BC$4/100 -> 0.6702 | DC53: ='tabla 2012'!AW56 -> 168 | DD53: ='tabla 2012'!$AW$4 -> 999 | DF53: -0.0024 | DG53: 0.03631278292 | DH53: 0.01488203312 | DI53: 0.0392440201 | DJ53: 0.06115581416 | DK53: 0.9512456085 | DL53: NOT SIG. | DO53: ='tabla 2012'!BK56/100 -> 0.7173 | DP53: ='tabla 2012'!$BK$4/100 -> 0.7239 | DS53: ='tabla 2012'!BF56 -> 168 | DT53: ='tabla 2012'!$BF$4 -> 996 | DV53: 0.0066 | DW53: 0.03484617265 | DX53: 0.01417297272 | DY53: 0.03761819911 | DZ53: 0.1754469952 | EA53: 0.8607589835 | EB53: NOT SIG. | EE53: ='tabla 2012'!BO56/100 -> 0.5672 | EF53: ='tabla 2012'!$BO$4/100 -> 0.5837 | EI53: ='tabla 2012'!BN56 -> 167 | EJ53: ='tabla 2012'!$BN$4 -> 959 | EL53: 0.0165 | EM53: 0.03845543188 | EN53: 0.01592631487 | EO53: 0.04162292333 | EP53: 0.3964161736 | EQ53: 0.691873281 | ER53: NOT SIG.
A54: ='tabla 2012'!A57 -> 2013 | B54: ='tabla 2012'!B57 -> utazások száma havonta | C54: ='tabla 2012'!C57 -> 21-43 | D54: ='tabla 2012'!D57 -> 149 | E54: ='tabla 2012'!E57 -> BKV | F54: ='tabla 2012'!F57 -> top2 | G54: ='tabla 2012'!K57/100 -> 0 | H54: ='tabla 2012'!$K$4/100 -> 0 | K54: ='tabla 2012'!G57 -> 0 | L54: ='tabla 2012'!$G$4 -> 0 | N54: 0 | O54: 0 | P54: 0 | Q54: 0 | R54: 0 | S54: 1 | T54: NOT SIG. | W54: ='tabla 2012'!R57/100 -> 0.5293 | X54: ='tabla 2012'!$R$4/100 -> 0.5327 | AA54: ='tabla 2012'!N57 -> 148 | AB54: ='tabla 2012'!$N$4 -> 993 | AD54: 0.0034 | AE54: 0.04116843699 | AF54: 0.0158410295 | AG54: 0.04411097845 | AH54: 0.07707831745 | AI54: 0.9385747789 | AJ54: NOT SIG. | AM54: ='tabla 2012'!Y57/100 -> 0.6376 | AN54: ='tabla 2012'!$Y$4/100 -> 0.6088 | AQ54: ='tabla 2012'!U57 -> 149 | AR54: ='tabla 2012'!$U$4 -> 997 | AT54: -0.0288 | AU54: 0.03951276222 | AV54: 0.01546347426 | AW54: 0.04243085451 | AX54: 0.6787513552 | AY54: 0.4974327034 | AZ54: NOT SIG. | BC54: ='tabla 2012'!AE57/100 -> 0.4195 | BD54: ='tabla 2012'!$AE$4/100 -> 0.4534 | BG54: ='tabla 2012'!AB57 -> 149 | BH54: ='tabla 2012'!$AB$4 -> 998 | BJ54: 0.0339 | BK54: 0.04056357623 | BL54: 0.01576623489 | BM54: 0.04351985614 | BN54: 0.7789547807 | BO54: 0.4361673074 | BP54: NOT SIG. | BS54: ='tabla 2012'!AK57/100 -> 0.652 | BT54: ='tabla 2012'!$AK$4/100 -> 0.6045 | BW54: ='tabla 2012'!AH57 -> 148 | BX54: ='tabla 2012'!$AH$4 -> 995 | BZ54: -0.0475 | CA54: 0.03928753243 | CB54: 0.01550880032 | CC54: 0.04223781589 | CD54: 1.124584664 | CE54: 0.2610015966 | CF54: NOT SIG. | CI54: ='tabla 2012'!AT57/100 -> 0.4932 | CJ54: ='tabla 2012'!$AT$4/100 -> 0.4796 | CM54: ='tabla 2012'!AN57 -> 148 | CN54: ='tabla 2012'!$AN$4 -> 993 | CP54: -0.0136 | CQ54: 0.04123549095 | CR54: 0.01586179728 | CS54: 0.04418101772 | CT54: 0.307824507 | CU54: 0.758272152 | CV54: NOT SIG. | CY54: ='tabla 2012'!BC57/100 -> 0.7215 | CZ54: ='tabla 2012'!$BC$4/100 -> 0.6702 | DC54: ='tabla 2012'!AW57 -> 149 | DD54: ='tabla 2012'!$AW$4 -> 999 | DF54: -0.0513 | DG54: 0.03684681126 | DH54: 0.01488203312 | DI54: 0.0397386765 | DJ54: 1.290933783 | DK54: 0.1969869937 | DL54: NOT SIG. | DO54: ='tabla 2012'!BK57/100 -> 0.7315 | DP54: ='tabla 2012'!$BK$4/100 -> 0.7239 | DS54: ='tabla 2012'!BF57 -> 149 | DT54: ='tabla 2012'!$BF$4 -> 996 | DV54: -0.0076 | DW54: 0.03642910089 | DX54: 0.01417297272 | DY54: 0.0390890336 | DZ54: 0.1944279329 | EA54: 0.8458753701 | EB54: NOT SIG. | EE54: ='tabla 2012'!BO57/100 -> 0.593 | EF54: ='tabla 2012'!$BO$4/100 -> 0.5837 | EI54: ='tabla 2012'!BN57 -> 145 | EJ54: ='tabla 2012'!$BN$4 -> 959 | EL54: -0.0093 | EM54: 0.04093957268 | EN54: 0.01592631487 | EO54: 0.04392830655 | EP54: 0.2117085936 | EQ54: 0.83237353 | ER54: NOT SIG.
A55: ='tabla 2012'!A58 -> 2013 | B55: ='tabla 2012'!B58 -> utazások száma havonta | C55: ='tabla 2012'!C58 -> 44 | D55: ='tabla 2012'!D58 -> 54 | E55: ='tabla 2012'!E58 -> BKV | F55: ='tabla 2012'!F58 -> top2 | G55: ='tabla 2012'!K58/100 -> 0 | H55: ='tabla 2012'!$K$4/100 -> 0 | K55: ='tabla 2012'!G58 -> 0 | L55: ='tabla 2012'!$G$4 -> 0 | N55: 0 | O55: 0 | P55: 0 | Q55: 0 | R55: 0 | S55: 1 | T55: NOT SIG. | W55: ='tabla 2012'!R58/100 -> 0.6358 | X55: ='tabla 2012'!$R$4/100 -> 0.5327 | AA55: ='tabla 2012'!N58 -> 54 | AB55: ='tabla 2012'!$N$4 -> 993 | AD55: -0.1031 | AE55: 0.06609860559 | AF55: 0.0158410295 | AG55: 0.06797031614 | AH55: 1.516838612 | AI55: 0.1296098702 | AJ55: NOT SIG. | AM55: ='tabla 2012'!Y58/100 -> 0.6111 | AN55: ='tabla 2012'!$Y$4/100 -> 0.6088 | AQ55: ='tabla 2012'!U58 -> 54 | AR55: ='tabla 2012'!$U$4 -> 997 | AT55: -0.0023 | AU55: 0.066963351 | AV55: 0.01546347426 | AW55: 0.06872560959 | AX55: 0.03346641832 | AY55: 0.9733090117 | AZ55: NOT SIG. | BC55: ='tabla 2012'!AE58/100 -> 0.537 | BD55: ='tabla 2012'!$AE$4/100 -> 0.4534 | BG55: ='tabla 2012'!AB58 -> 54 | BH55: ='tabla 2012'!$AB$4 -> 998 | BJ55: -0.0836 | BK55: 0.06849197722 | BL55: 0.01576623489 | BM55: 0.07028317797 | BN55: 1.189473817 | BO55: 0.2345221701 | BP55: NOT SIG. | BS55: ='tabla 2012'!AK58/100 -> 0.6759 | BT55: ='tabla 2012'!$AK$4/100 -> 0.6045 | BW55: ='tabla 2012'!AH58 -> 54 | BX55: ='tabla 2012'!$AH$4 -> 995 | BZ55: -0.0714 | CA55: 0.06428990795 | CB55: 0.01550880032 | CC55: 0.06613406952 | CD55: 1.079625079 | CE55: 0.2805578083 | CF55: NOT SIG. | CI55: ='tabla 2012'!AT58/100 -> 0.4778 | CJ55: ='tabla 2012'!$AT$4/100 -> 0.4796 | CM55: ='tabla 2012'!AN58 -> 54 | CN55: ='tabla 2012'!$AN$4 -> 993 | CP55: 0.0018 | CQ55: 0.0686125518 | CR55: 0.01586179728 | CS55: 0.07042214763 | CT55: 0.02556014067 | CU55: 0.9796130588 | CV55: NOT SIG. | CY55: ='tabla 2012'!BC58/100 -> 0.7963 | CZ55: ='tabla 2012'!$BC$4/100 -> 0.6702 | DC55: ='tabla 2012'!AW58 -> 54 | DD55: ='tabla 2012'!$AW$4 -> 999 | DF55: -0.1261 | DG55: 0.05532175354 | DH55: 0.01488203312 | DI55: 0.05728849208 | DJ55: 2.201140149 | DK55: 0.02794290507 | DL55: SIG | DN55: 44 | DO55: ='tabla 2012'!BK58/100 -> 0.8519 | DP55: ='tabla 2012'!$BK$4/100 -> 0.7239 | DS55: ='tabla 2012'!BF58 -> 54 | DT55: ='tabla 2012'!$BF$4 -> 996 | DV55: -0.128 | DW55: 0.04879034663 | DX55: 0.01417297272 | DY55: 0.05080719516 | DZ55: 2.519328209 | EA55: 0.01190571938 | EB55: SIG | ED55: 44 | EE55: ='tabla 2012'!BO58/100 -> 0.6538 | EF55: ='tabla 2012'!$BO$4/100 -> 0.5837 | EI55: ='tabla 2012'!BN58 -> 54 | EJ55: ='tabla 2012'!$BN$4 -> 959 | EL55: -0.0701 | EM55: 0.06535037064 | EN55: 0.01592631487 | EO55: 0.06726305411 | EP55: 1.042176882 | EQ55: 0.2975788237 | ER55: NOT SIG.
A56: ='tabla 2012'!A59 -> 2013 | B56: ='tabla 2012'!B59 -> utazások száma havonta | C56: ='tabla 2012'!C59 -> 45-60 | D56: ='tabla 2012'!D59 -> 148 | E56: ='tabla 2012'!E59 -> BKV | F56: ='tabla 2012'!F59 -> top2 | G56: ='tabla 2012'!K59/100 -> 0 | H56: ='tabla 2012'!$K$4/100 -> 0 | K56: ='tabla 2012'!G59 -> 0 | L56: ='tabla 2012'!$G$4 -> 0 | N56: 0 | O56: 0 | P56: 0 | Q56: 0 | R56: 0 | S56: 1 | T56: NOT SIG. | W56: ='tabla 2012'!R59/100 -> 0.5465 | X56: ='tabla 2012'!$R$4/100 -> 0.5327 | AA56: ='tabla 2012'!N59 -> 147 | AB56: ='tabla 2012'!$N$4 -> 993 | AD56: -0.0138 | AE56: 0.04120095673 | AF56: 0.0158410295 | AG56: 0.04414133042 | AH56: 0.3126321719 | AI56: 0.7546174118 | AJ56: NOT SIG. | AM56: ='tabla 2012'!Y59/100 -> 0.5578 | AN56: ='tabla 2012'!$Y$4/100 -> 0.6088 | AQ56: ='tabla 2012'!U59 -> 147 | AR56: ='tabla 2012'!$U$4 -> 997 | AT56: 0.051 | AU56: 0.04110287461 | AV56: 0.01546347426 | AW56: 0.04391543393 | AX56: 1.161322921 | AY56: 0.2457532778 | AZ56: NOT SIG. | BC56: ='tabla 2012'!AE59/100 -> 0.4797 | BD56: ='tabla 2012'!$AE$4/100 -> 0.4534 | BG56: ='tabla 2012'!AB59 -> 148 | BH56: ='tabla 2012'!$AB$4 -> 998 | BJ56: -0.0263 | BK56: 0.04120530231 | BL56: 0.01576623489 | BM56: 0.04411860267 | BN56: 0.5961204211 | BO56: 0.5512127097 | BP56: NOT SIG. | BS56: ='tabla 2012'!AK59/100 -> 0.6096 | BT56: ='tabla 2012'!$AK$4/100 -> 0.6045 | BW56: ='tabla 2012'!AH59 -> 146 | BX56: ='tabla 2012'!$AH$4 -> 995 | BZ56: -0.0051 | CA56: 0.04051290471 | CB56: 0.01550880032 | CC56: 0.0433799301 | CD56: 0.1175658879 | CE56: 0.9064323626 | CF56: NOT SIG. | CI56: ='tabla 2012'!AT59/100 -> 0.4721 | CJ56: ='tabla 2012'!$AT$4/100 -> 0.4796 | CM56: ='tabla 2012'!AN59 -> 147 | CN56: ='tabla 2012'!$AN$4 -> 993 | CP56: 0.0075 | CQ56: 0.04131582254 | CR56: 0.01586179728 | CS56: 0.04425600304 | CT56: 0.169468535 | CU56: 0.8654582387 | CV56: NOT SIG. | CY56: ='tabla 2012'!BC59/100 -> 0.6858 | CZ56: ='tabla 2012'!$BC$4/100 -> 0.6702 | DC56: ='tabla 2012'!AW59 -> 148 | DD56: ='tabla 2012'!$AW$4 -> 999 | DF56: -0.0156 | DG56: 0.03828627931 | DH56: 0.01488203312 | DI56: 0.04107692897 | DJ56: 0.3797752264 | DK56: 0.7041827009 | DL56: NOT SIG. | DO56: ='tabla 2012'!BK59/100 -> 0.6503 | DP56: ='tabla 2012'!$BK$4/100 -> 0.7239 | DS56: ='tabla 2012'!BF59 -> 148 | DT56: ='tabla 2012'!$BF$4 -> 996 | DV56: 0.0736 | DW56: 0.03933199957 | DX56: 0.01417297272 | DY56: 0.04180764698 | DZ56: 1.760443491 | EA56: 0.07860027242 | EB56: NOT SIG. | EE56: ='tabla 2012'!BO59/100 -> 0.5777 | EF56: ='tabla 2012'!$BO$4/100 -> 0.5837 | EI56: ='tabla 2012'!BN59 -> 137 | EJ56: ='tabla 2012'!$BN$4 -> 959 | EL56: 0.006 | EM56: 0.04235378916 | EN56: 0.01592631487 | EO56: 0.04524920951 | EP56: 0.1325990015 | EQ56: 0.8945349061 | ER56: NOT SIG.
A57: ='tabla 2012'!A60 -> 2013 | B57: ='tabla 2012'!B60 -> utazások száma havonta | C57: ='tabla 2012'!C60 -> 61 felett | D57: ='tabla 2012'!D60 -> 207 | E57: ='tabla 2012'!E60 -> BKV | F57: ='tabla 2012'!F60 -> top2 | G57: ='tabla 2012'!K60/100 -> 0 | H57: ='tabla 2012'!$K$4/100 -> 0 | K57: ='tabla 2012'!G60 -> 0 | L57: ='tabla 2012'!$G$4 -> 0 | N57: 0 | O57: 0 | P57: 0 | Q57: 0 | R57: 0 | S57: 1 | T57: NOT SIG. | W57: ='tabla 2012'!R60/100 -> 0.4771 | X57: ='tabla 2012'!$R$4/100 -> 0.5327 | AA57: ='tabla 2012'!N60 -> 204 | AB57: ='tabla 2012'!$N$4 -> 993 | AD57: 0.0556 | AE57: 0.03505629463 | AF57: 0.0158410295 | AG57: 0.03846923458 | AH57: 1.445310795 | AI57: 0.1486327844 | AJ57: NOT SIG. | AM57: ='tabla 2012'!Y60/100 -> 0.6311 | AN57: ='tabla 2012'!$Y$4/100 -> 0.6088 | AQ57: ='tabla 2012'!U60 -> 206 | AR57: ='tabla 2012'!$U$4 -> 997 | AT57: -0.0223 | AU57: 0.03369973511 | AV57: 0.01546347426 | AW57: 0.03707817663 | AX57: 0.601431948 | AY57: 0.547665827 | AZ57: NOT SIG. | BC57: ='tabla 2012'!AE60/100 -> 0.378 | BD57: ='tabla 2012'!$AE$4/100 -> 0.4534 | BG57: ='tabla 2012'!AB60 -> 205 | BH57: ='tabla 2012'!$AB$4 -> 998 | BJ57: 0.0754 | BK57: 0.03394892357 | BL57: 0.01576623489 | BM57: 0.03743131809 | BN57: 2.014355995 | BO57: 0.04419475111 | BP57: SIG | BQ57: 61 felett | BS57: ='tabla 2012'!AK60/100 -> 0.5145 | BT57: ='tabla 2012'!$AK$4/100 -> 0.6045 | BW57: ='tabla 2012'!AH60 -> 207 | BX57: ='tabla 2012'!$AH$4 -> 995 | BZ57: 0.09 | CA57: 0.03482199882 | CB57: 0.01550880032 | CC57: 0.03811947651 | CD57: 2.360997795 | CE57: 0.0183849914 | CF57: SIG | CG57: 61 felett | CI57: ='tabla 2012'!AT60/100 -> 0.401 | CJ57: ='tabla 2012'!$AT$4/100 -> 0.4796 | CM57: ='tabla 2012'!AN60 -> 205 | CN57: ='tabla 2012'!$AN$4 -> 993 | CP57: 0.0786 | CQ57: 0.03431393417 | CR57: 0.01586179728 | CS57: 0.03780268101 | CT57: 2.079217609 | CU57: 0.03781001909 | CV57: SIG | CW57: 61 felett | CY57: ='tabla 2012'!BC60/100 -> 0.5749 | CZ57: ='tabla 2012'!$BC$4/100 -> 0.6702 | DC57: ='tabla 2012'!AW60 -> 207 | DD57: ='tabla 2012'!$AW$4 -> 999 | DF57: 0.0953 | DG57: 0.03444356507 | DH57: 0.01488203312 | DI57: 0.03752111518 | DJ57: 2.539903186 | DK57: 0.01121317283 | DL57: SIG | DM57: 61 felett | DO57: ='tabla 2012'!BK60/100 -> 0.6553 | DP57: ='tabla 2012'!$BK$4/100 -> 0.7239 | DS57: ='tabla 2012'!BF60 -> 206 | DT57: ='tabla 2012'!$BF$4 -> 996 | DV57: 0.0686 | DW57: 0.03319432144 | DX57: 0.01417297272 | DY57: 0.03609343613 | DZ57: 1.900622589 | EA57: 0.05759089502 | EB57: NOT SIG. | EE57: ='tabla 2012'!BO60/100 -> 0.531 | EF57: ='tabla 2012'!$BO$4/100 -> 0.5837 | EI57: ='tabla 2012'!BN60 -> 193 | EJ57: ='tabla 2012'!$BN$4 -> 959 | EL57: 0.0527 | EM57: 0.03601497085 | EN57: 0.01592631487 | EO57: 0.0393792538 | EP57: 1.338268121 | EQ57: 0.1810735828 | ER57: NOT SIG.
U58: =U51&IF(U51="","","; ")&U52&IF(U52="","","; ")&U53&IF(U53="","","; ")&U54&IF(U54="","","; ")&U55&IF(U55="","","; ")&U56&IF(U56="","","; ")&U57 ->  | V58: =V51&IF(V51="","","; ")&V52&IF(V52="","","; ")&V53&IF(V53="","","; ")&V54&IF(V54="","","; ")&V55&IF(V55="","","; ")&V56&IF(V56="","","; ")&V57 ->  | AK58: =AK51&IF(AK51="","","; ")&AK52&IF(AK52="","","; ")&AK53&IF(AK53="","","; ")&AK54&IF(AK54="","","; ")&AK55&IF(AK55="","","; ")&AK56&IF(AK56="","","; ")&AK57 ->  | AL58: =AL51&IF(AL51="","","; ")&AL52&IF(AL52="","","; ")&AL53&IF(AL53="","","; ")&AL54&IF(AL54="","","; ")&AL55&IF(AL55="","","; ")&AL56&IF(AL56="","","; ")&AL57 ->  | BA58: =BA51&IF(BA51="","","; ")&BA52&IF(BA52="","","; ")&BA53&IF(BA53="","","; ")&BA54&IF(BA54="","","; ")&BA55&IF(BA55="","","; ")&BA56&IF(BA56="","","; ")&BA57 ->  | BB58: =BB51&IF(BB51="","","; ")&BB52&IF(BB52="","","; ")&BB53&IF(BB53="","","; ")&BB54&IF(BB54="","","; ")&BB55&IF(BB55="","","; ")&BB56&IF(BB56="","","; ")&BB57 ->  | BQ58: =BQ51&IF(BQ51="","","; ")&BQ52&IF(BQ52="","","; ")&BQ53&IF(BQ53="","","; ")&BQ54&IF(BQ54="","","; ")&BQ55&IF(BQ55="","","; ")&BQ56&IF(BQ56="","","; ")&BQ57 -> 61 felett | BR58: =BR51&IF(BR51="","","; ")&BR52&IF(BR52="","","; ")&BR53&IF(BR53="","","; ")&BR54&IF(BR54="","","; ")&BR55&IF(BR55="","","; ")&BR56&IF(BR56="","","; ")&BR57 ->  | CG58: =CG51&IF(CG51="","","; ")&CG52&IF(CG52="","","; ")&CG53&IF(CG53="","","; ")&CG54&IF(CG54="","","; ")&CG55&IF(CG55="","","; ")&CG56&IF(CG56="","","; ")&CG57 -> 61 felett | CH58: =CH51&IF(CH51="","","; ")&CH52&IF(CH52="","","; ")&CH53&IF(CH53="","","; ")&CH54&IF(CH54="","","; ")&CH55&IF(CH55="","","; ")&CH56&IF(CH56="","","; ")&CH57 -> 6-10; | CW58: =CW51&IF(CW51="","","; ")&CW52&IF(CW52="","","; ")&CW53&IF(CW53="","","; ")&CW54&IF(CW54="","","; ")&CW55&IF(CW55="","","; ")&CW56&IF(CW56="","","; ")&CW57 -> 61 felett | CX58: =CX51&IF(CX51="","","; ")&CX52&IF(CX52="","","; ")&CX53&IF(CX53="","","; ")&CX54&IF(CX54="","","; ")&CX55&IF(CX55="","","; ")&CX56&IF(CX56="","","; ")&CX57 ->  | DM58: =DM51&IF(DM51="","","; ")&DM52&IF(DM52="","","; ")&DM53&IF(DM53="","","; ")&DM54&IF(DM54="","","; ")&DM55&IF(DM55="","","; ")&DM56&IF(DM56="","","; ")&DM57 -> 61 felett | DN58: =DN51&IF(DN51="","","; ")&DN52&IF(DN52="","","; ")&DN53&IF(DN53="","","; ")&DN54&IF(DN54="","","; ")&DN55&IF(DN55="","","; ")&DN56&IF(DN56="","","; ")&DN57 -> 44; | EC58: =EC51&IF(EC51="","","; ")&EC52&IF(EC52="","","; ")&EC53&IF(EC53="","","; ")&EC54&IF(EC54="","","; ")&EC55&IF(EC55="","","; ")&EC56&IF(EC56="","","; ")&EC57 ->  | ED58: =ED51&IF(ED51="","","; ")&ED52&IF(ED52="","","; ")&ED53&IF(ED53="","","; ")&ED54&IF(ED54="","","; ")&ED55&IF(ED55="","","; ")&ED56&IF(ED56="","","; ")&ED57 -> kevesebb mint 5; 44; | ES58: =ES51&IF(ES51="","","; ")&ES52&IF(ES52="","","; ")&ES53&IF(ES53="","","; ")&ES54&IF(ES54="","","; ")&ES55&IF(ES55="","","; ")&ES56&IF(ES56="","","; ")&ES57 ->  | ET58: =ET51&IF(ET51="","","; ")&ET52&IF(ET52="","","; ")&ET53&IF(ET53="","","; ")&ET54&IF(ET54="","","; ")&ET55&IF(ET55="","","; ")&ET56&IF(ET56="","","; ")&ET57 -> 
A59: ='tabla 2012'!A61 -> 2013 | B59: ='tabla 2012'!B61 -> utazási gyakoriság | C59: ='tabla 2012'!C61 -> naponta | D59: ='tabla 2012'!D61 -> 388 | E59: ='tabla 2012'!E61 -> BKV | F59: ='tabla 2012'!F61 -> top2 | G59: ='tabla 2012'!K61/100 -> 0 | H59: ='tabla 2012'!$K$4/100 -> 0 | K59: ='tabla 2012'!G61 -> 0 | L59: ='tabla 2012'!$G$4 -> 0 | N59: 0 | O59: 0 | P59: =IF((L59-1)=0,0,SQRT((1-H59)*H59/(L59-1))) -> 0 | Q59: 0 | R59: 0 | S59: =IF(R59=0,1,TDIST(R59,K59+L59-2,$B$2)) -> 1 | T59: NOT SIG. | W59: ='tabla 2012'!R61/100 -> 0.5022 | X59: ='tabla 2012'!$R$4/100 -> 0.5327 | AA59: ='tabla 2012'!N61 -> 385 | AB59: ='tabla 2012'!$N$4 -> 993 | AD59: 0.0305 | AE59: 0.02551527116 | AF59: 0.0158410295 | AG59: 0.03003277007 | AH59: 1.015557337 | AI59: 0.3100187617 | AJ59: NOT SIG. | AM59: ='tabla 2012'!Y61/100 -> 0.5801 | AN59: ='tabla 2012'!$Y$4/100 -> 0.6088 | AQ59: ='tabla 2012'!U61 -> 387 | AR59: ='tabla 2012'!$U$4 -> 997 | AT59: 0.0287 | AU59: 0.02512064104 | AV59: 0.01546347426 | AW59: 0.02949857017 | AX59: 0.9729285125 | AY59: 0.3307590884 | AZ59: NOT SIG. | BC59: ='tabla 2012'!AE61/100 -> 0.3889 | BD59: ='tabla 2012'!$AE$4/100 -> 0.4534 | BG59: ='tabla 2012'!AB61 -> 387 | BH59: ='tabla 2012'!$AB$4 -> 998 | BJ59: 0.0645 | BK59: 0.02481312487 | BL59: 0.01576623489 | BM59: 0.02939838989 | BN59: 2.193997707 | BO59: 0.02840145402 | BP59: SIG | BQ59: naponta | BS59: ='tabla 2012'!AK61/100 -> 0.5504 | BT59: ='tabla 2012'!$AK$4/100 -> 0.6045 | BW59: ='tabla 2012'!AH61 -> 387 | BX59: ='tabla 2012'!$AH$4 -> 995 | BZ59: 0.0541 | CA59: 0.02531970909 | CB59: 0.01550880032 | CC59: 0.02969192745 | CD59: 1.822044059 | CE59: 0.06866464743 | CF59: NOT SIG. | CI59: ='tabla 2012'!AT61/100 -> 0.3881 | CJ59: ='tabla 2012'!$AT$4/100 -> 0.4796 | CM59: ='tabla 2012'!AN61 -> 385 | CN59: ='tabla 2012'!$AN$4 -> 993 | CP59: 0.0915 | CQ59: 0.02486831935 | CR59: 0.01586179728 | CS59: 0.0294962696 | CT59: 3.102087188 | CU59: 0.001960697723 | CV59: SIG | CW59: naponta | CY59: ='tabla 2012'!BC61/100 -> 0.634 | CZ59: ='tabla 2012'!$BC$4/100 -> 0.6702 | DC59: ='tabla 2012'!AW61 -> 388 | DD59: ='tabla 2012'!$AW$4 -> 999 | DF59: =CZ59-CY59 -> 0.0362 | DG59: =IF((DC59-1)=0,0,SQRT((1-CY59)*CY59/(DC59-1))) -> 0.02448666779 | DH59: 0.01488203312 | DI59: 0.02865435061 | DJ59: 1.263333463 | DK59: =IF(DJ59=0,1,TDIST(DJ59,DC59+DD59-2,$B$2)) -> 0.2066819839 | DL59: NOT SIG. | DO59: ='tabla 2012'!BK61/100 -> 0.6576 | DP59: ='tabla 2012'!$BK$4/100 -> 0.7239 | DS59: ='tabla 2012'!BF61 -> 387 | DT59: ='tabla 2012'!$BF$4 -> 996 | DV59: =DP59-DO59 -> 0.0663 | DW59: =IF((DS59-1)=0,0,SQRT((1-DO59)*DO59/(DS59-1))) -> 0.02415205716 | DX59: 0.01417297272 | DY59: 0.0280034823 | DZ59: 2.367562694 | EA59: =IF(DZ59=0,1,TDIST(DZ59,DS59+DT59-2,$B$2)) -> 0.01804284991 | EB59: SIG | EC59: naponta | EE59: ='tabla 2012'!BO61/100 -> 0.5344 | EF59: ='tabla 2012'!$BO$4/100 -> 0.5837 | EI59: ='tabla 2012'!BN61 -> 367 | EJ59: ='tabla 2012'!$BN$4 -> 959 | EL59: =EF59-EE59 -> 0.0493 | EM59: =IF((EI59-1)=0,0,SQRT((1-EE59)*EE59/(EI59-1))) -> 0.02607349009 | EN59: 0.01592631487 | EO59: 0.03055281314 | EP59: 1.613599369 | EQ59: =IF(EP59=0,1,TDIST(EP59,EI59+EJ59-2,$B$2)) -> 0.1068526461 | ER59: NOT SIG.
A60: ='tabla 2012'!A62 -> 2013 | B60: ='tabla 2012'!B62 -> utazási gyakoriság | C60: ='tabla 2012'!C62 -> hetente többször | D60: ='tabla 2012'!D62 -> 331 | E60: ='tabla 2012'!E62 -> BKV | F60: ='tabla 2012'!F62 -> top2 | G60: ='tabla 2012'!K62/100 -> 0 | H60: ='tabla 2012'!$K$4/100 -> 0 | K60: ='tabla 2012'!G62 -> 0 | L60: ='tabla 2012'!$G$4 -> 0 | N60: 0 | O60: 0 | P60: =IF((L60-1)=0,0,SQRT((1-H60)*H60/(L60-1))) -> 0 | Q60: 0 | R60: 0 | S60: =IF(R60=0,1,TDIST(R60,K60+L60-2,$B$2)) -> 1 | T60: NOT SIG. | W60: ='tabla 2012'!R62/100 -> 0.5343 | X60: ='tabla 2012'!$R$4/100 -> 0.5327 | AA60: ='tabla 2012'!N62 -> 330 | AB60: ='tabla 2012'!$N$4 -> 993 | AD60: -0.0016 | AE60: 0.02750095384 | AF60: 0.0158410295 | AG60: 0.03173705528 | AH60: 0.05041425507 | AI60: 0.9597998984 | AJ60: NOT SIG. | AM60: ='tabla 2012'!Y62/100 -> 0.6424 | AN60: ='tabla 2012'!$Y$4/100 -> 0.6088 | AQ60: ='tabla 2012'!U62 -> 330 | AR60: ='tabla 2012'!$U$4 -> 997 | AT60: -0.0336 | AU60: 0.02642430492 | AV60: 0.01546347426 | AW60: 0.03061638331 | AX60: 1.097451638 | AY60: 0.2726434093 | AZ60: NOT SIG. | BC60: ='tabla 2012'!AE62/100 -> 0.5091 | BD60: ='tabla 2012'!$AE$4/100 -> 0.4534 | BG60: ='tabla 2012'!AB62 -> 330 | BH60: ='tabla 2012'!$AB$4 -> 998 | BJ60: -0.0557 | BK60: 0.02756132648 | BL60: 0.01576623489 | BM60: 0.03175217913 | BN60: 1.75421031 | BO60: 0.07962543684 | BP60: NOT SIG. | BS60: ='tabla 2012'!AK62/100 -> 0.6453 | BT60: ='tabla 2012'!$AK$4/100 -> 0.6045 | BW60: ='tabla 2012'!AH62 -> 327 | BX60: ='tabla 2012'!$AH$4 -> 995 | BZ60: -0.0408 | CA60: 0.02649736125 | CB60: 0.01550880032 | CC60: 0.03070232956 | CD60: 1.32888939 | CE60: 0.1841141237 | CF60: NOT SIG. | CI60: ='tabla 2012'!AT62/100 -> 0.5606 | CJ60: ='tabla 2012'!$AT$4/100 -> 0.4796 | CM60: ='tabla 2012'!AN62 -> 330 | CN60: ='tabla 2012'!$AN$4 -> 993 | CP60: -0.081 | CQ60: 0.02736267953 | CR60: 0.01586179728 | CS60: 0.03162772271 | CT60: 2.561044333 | CU60: 0.01054608839 | CV60: SIG | CX60: hetente többször | CY60: ='tabla 2012'!BC62/100 -> 0.7175 | CZ60: ='tabla 2012'!$BC$4/100 -> 0.6702 | DC60: ='tabla 2012'!AW62 -> 331 | DD60: ='tabla 2012'!$AW$4 -> 999 | DF60: =CZ60-CY60 -> -0.0473 | DG60: 0.02478353253 | DH60: 0.01488203312 | DI60: 0.0289084485 | DJ60: 1.636199881 | DK60: =IF(DJ60=0,1,TDIST(DJ60,DC60+DD60-2,$B$2)) -> 0.1020347135 | DL60: NOT SIG. | DO60: ='tabla 2012'!BK62/100 -> 0.7636 | DP60: ='tabla 2012'!$BK$4/100 -> 0.7239 | DS60: ='tabla 2012'!BF62 -> 330 | DT60: ='tabla 2012'!$BF$4 -> 996 | DV60: =DP60-DO60 -> -0.0397 | DW60: 0.02342387528 | DX60: 0.01417297272 | DY60: 0.02737793069 | DZ60: 1.45007307 | EA60: =IF(DZ60=0,1,TDIST(DZ60,DS60+DT60-2,$B$2)) -> 0.1472749825 | EB60: NOT SIG. | EE60: ='tabla 2012'!BO62/100 -> 0.6241 | EF60: ='tabla 2012'!$BO$4/100 -> 0.5837 | EI60: ='tabla 2012'!BN62 -> 321 | EJ60: ='tabla 2012'!$BN$4 -> 959 | EL60: =EF60-EE60 -> -0.0404 | EM60: 0.02707623439 | EN60: 0.01592631487 | EO60: 0.03141289503 | EP60: 1.286096043 | EQ60: =IF(EP60=0,1,TDIST(EP60,EI60+EJ60-2,$B$2)) -> 0.1986424987 | ER60: NOT SIG.
A61: ='tabla 2012'!A63 -> 2013 | B61: ='tabla 2012'!B63 -> utazási gyakoriság | C61: ='tabla 2012'!C63 -> legfeljebb hetente egyszer | D61: ='tabla 2012'!D63 -> 282 | E61: ='tabla 2012'!E63 -> BKV | F61: ='tabla 2012'!F63 -> top2 | G61: ='tabla 2012'!K63/100 -> 0 | H61: ='tabla 2012'!$K$4/100 -> 0 | K61: ='tabla 2012'!G63 -> 0 | L61: ='tabla 2012'!$G$4 -> 0 | N61: 0 | O61: 0 | P61: =IF((L61-1)=0,0,SQRT((1-H61)*H61/(L61-1))) -> 0 | Q61: 0 | R61: 0 | S61: =IF(R61=0,1,TDIST(R61,K61+L61-2,$B$2)) -> 1 | T61: NOT SIG. | W61: ='tabla 2012'!R63/100 -> 0.5731 | X61: ='tabla 2012'!$R$4/100 -> 0.5327 | AA61: ='tabla 2012'!N63 -> 278 | AB61: ='tabla 2012'!$N$4 -> 993 | AD61: -0.0404 | AE61: 0.02971928776 | AF61: 0.0158410295 | AG61: 0.03367750407 | AH61: 1.19961384 | AI61: 0.2305132735 | AJ61: NOT SIG. | AM61: ='tabla 2012'!Y63/100 -> 0.6089 | AN61: ='tabla 2012'!$Y$4/100 -> 0.6088 | AQ61: ='tabla 2012'!U63 -> 280 | AR61: ='tabla 2012'!$U$4 -> 997 | AT61: -0.0001 | AU61: 0.02921559889 | AV61: 0.01546347426 | AW61: 0.03305556314 | AX61: 0.00302520939 | AY61: 0.9975867091 | AZ61: NOT SIG. | BC61: ='tabla 2012'!AE63/100 -> 0.4769 | BD61: ='tabla 2012'!$AE$4/100 -> 0.4534 | BG61: ='tabla 2012'!AB63 -> 281 | BH61: ='tabla 2012'!$AB$4 -> 998 | BJ61: -0.0235 | BK61: 0.0298488089 | BL61: 0.01576623489 | BM61: 0.03375685938 | BN61: 0.6961548091 | BO61: 0.4864585666 | BP61: NOT SIG. | BS61: ='tabla 2012'!AK63/100 -> 0.6317 | BT61: ='tabla 2012'!$AK$4/100 -> 0.6045 | BW61: ='tabla 2012'!AH63 -> 281 | BX61: ='tabla 2012'!$AH$4 -> 995 | BZ61: -0.0272 | CA61: 0.02882552874 | CB61: 0.01550880032 | CC61: 0.03273276637 | CD61: 0.830971623 | CE61: 0.4061453638 | CF61: NOT SIG. | CI61: ='tabla 2012'!AT63/100 -> 0.5101 | CJ61: ='tabla 2012'!$AT$4/100 -> 0.4796 | CM61: ='tabla 2012'!AN63 -> 278 | CN61: ='tabla 2012'!$AN$4 -> 993 | CP61: -0.0305 | CQ61: 0.03003595859 | CR61: 0.01586179728 | CS61: 0.03396697546 | CT61: 0.897930993 | CU61: 0.3693926683 | CV61: NOT SIG. | CY61: ='tabla 2012'!BC63/100 -> 0.6643 | CZ61: ='tabla 2012'!$BC$4/100 -> 0.6702 | DC61: ='tabla 2012'!AW63 -> 280 | DD61: ='tabla 2012'!$AW$4 -> 999 | DF61: =CZ61-CY61 -> 0.0059 | DG61: 0.02827194552 | DH61: 0.01488203312 | DI61: 0.03194961366 | DJ61: 0.1846657698 | DK61: =IF(DJ61=0,1,TDIST(DJ61,DC61+DD61-2,$B$2)) -> 0.8535205179 | DL61: NOT SIG. | DO61: ='tabla 2012'!BK63/100 -> 0.7688 | DP61: ='tabla 2012'!$BK$4/100 -> 0.7239 | DS61: ='tabla 2012'!BF63 -> 279 | DT61: ='tabla 2012'!$BF$4 -> 996 | DV61: =DP61-DO61 -> -0.0449 | DW61: 0.02528588767 | DX61: 0.01417297272 | DY61: 0.0289870535 | DZ61: 1.548967369 | EA61: =IF(DZ61=0,1,TDIST(DZ61,DS61+DT61-2,$B$2)) -> 0.1216381204 | EB61: NOT SIG. | EE61: ='tabla 2012'!BO63/100 -> 0.6045 | EF61: ='tabla 2012'!$BO$4/100 -> 0.5837 | EI61: ='tabla 2012'!BN63 -> 271 | EJ61: ='tabla 2012'!$BN$4 -> 959 | EL61: =EF61-EE61 -> -0.0208 | EM61: 0.02975702531 | EN61: 0.01592631487 | EO61: 0.03375097126 | EP61: 0.616278561 | EQ61: =IF(EP61=0,1,TDIST(EP61,EI61+EJ61-2,$B$2)) -> 0.5378249057 | ER61: NOT SIG.
U62: =U59&IF(U59="","","; ")&U60&IF(U60="","","; ")&U61 ->  | V62: =V59&IF(V59="","","; ")&V60&IF(V60="","","; ")&V61 ->  | AK62: =AK59&IF(AK59="","","; ")&AK60&IF(AK60="","","; ")&AK61 ->  | AL62: =AL59&IF(AL59="","","; ")&AL60&IF(AL60="","","; ")&AL61 ->  | BA62: =BA59&IF(BA59="","","; ")&BA60&IF(BA60="","","; ")&BA61 ->  | BB62: =BB59&IF(BB59="","","; ")&BB60&IF(BB60="","","; ")&BB61 ->  | BQ62: =BQ59&IF(BQ59="","","; ")&BQ60&IF(BQ60="","","; ")&BQ61 -> naponta; | BR62: =BR59&IF(BR59="","","; ")&BR60&IF(BR60="","","; ")&BR61 ->  | CG62: =CG59&IF(CG59="","","; ")&CG60&IF(CG60="","","; ")&CG61 ->  | CH62: =CH59&IF(CH59="","","; ")&CH60&IF(CH60="","","; ")&CH61 ->  | CW62: =CW59&IF(CW59="","","; ")&CW60&IF(CW60="","","; ")&CW61 -> naponta; | CX62: =CX59&IF(CX59="","","; ")&CX60&IF(CX60="","","; ")&CX61 -> hetente többször; | DM62: =DM59&IF(DM59="","","; ")&DM60&IF(DM60="","","; ")&DM61 ->  | DN62: =DN59&IF(DN59="","","; ")&DN60&IF(DN60="","","; ")&DN61 ->  | EC62: =EC59&IF(EC59="","","; ")&EC60&IF(EC60="","","; ")&EC61 -> naponta; | ED62: =ED59&IF(ED59="","","; ")&ED60&IF(ED60="","","; ")&ED61 ->  | ES62: =ES59&IF(ES59="","","; ")&ES60&IF(ES60="","","; ")&ES61 ->  | ET62: =ET59&IF(ET59="","","; ")&ET60&IF(ET60="","","; ")&ET61 -> 
A63: ='tabla 2012'!A64 -> 2013 | B63: ='tabla 2012'!B64 -> havi költése budapesti tömegközlekedésre | C63: ='tabla 2012'!C64 -> Kevesebb, mint 5.000 Forintot | D63: ='tabla 2012'!D64 -> 357 | E63: ='tabla 2012'!E64 -> BKV | F63: ='tabla 2012'!F64 -> top2 | G63: ='tabla 2012'!K64/100 -> 0 | H63: ='tabla 2012'!$K$4/100 -> 0 | K63: ='tabla 2012'!G64 -> 0 | L63: ='tabla 2012'!$G$4 -> 0 | N63: 0 | O63: 0 | P63: =IF((L63-1)=0,0,SQRT((1-H63)*H63/(L63-1))) -> 0 | Q63: 0 | R63: 0 | S63: =IF(R63=0,1,TDIST(R63,K63+L63-2,$B$2)) -> 1 | T63: NOT SIG. | W63: ='tabla 2012'!R64/100 -> 0.58 | X63: ='tabla 2012'!$R$4/100 -> 0.5327 | AA63: ='tabla 2012'!N64 -> 354 | AB63: ='tabla 2012'!$N$4 -> 993 | AD63: -0.0473 | AE63: 0.0262694687 | AF63: 0.0158410295 | AG63: 0.03067610147 | AH63: 1.541916923 | AI63: 0.1233290113 | AJ63: NOT SIG. | AM63: ='tabla 2012'!Y64/100 -> 0.6507 | AN63: ='tabla 2012'!$Y$4/100 -> 0.6088 | AQ63: ='tabla 2012'!U64 -> 355 | AR63: ='tabla 2012'!$U$4 -> 997 | AT63: -0.0419 | AU63: 0.02533891795 | AV63: 0.01546347426 | AW63: 0.02968467279 | AX63: 1.411502842 | AY63: 0.158326824 | AZ63: NOT SIG. | BC63: ='tabla 2012'!AE64/100 -> 0.4705 | BD63: ='tabla 2012'!$AE$4/100 -> 0.4534 | BG63: ='tabla 2012'!AB64 -> 356 | BH63: ='tabla 2012'!$AB$4 -> 998 | BJ63: -0.0171 | BK63: 0.02649101628 | BL63: 0.01576623489 | BM63: 0.03082771653 | BN63: 0.5546956417 | BO63: 0.5791946057 | BP63: NOT SIG. | BS63: ='tabla 2012'!AK64/100 -> 0.6544 | BT63: ='tabla 2012'!$AK$4/100 -> 0.6045 | BW63: ='tabla 2012'!AH64 -> 353 | BX63: ='tabla 2012'!$AH$4 -> 995 | BZ63: -0.0499 | CA63: 0.02534761958 | CB63: 0.01550880032 | CC63: 0.02971573162 | CD63: 1.679245211 | CE63: 0.09333635177 | CF63: NOT SIG. | CI63: ='tabla 2012'!AT64/100 -> 0.5472 | CJ63: ='tabla 2012'!$AT$4/100 -> 0.4796 | CM63: ='tabla 2012'!AN64 -> 352 | CN63: ='tabla 2012'!$AN$4 -> 993 | CP63: -0.0676 | CQ63: 0.02656884623 | CR63: 0.01586179728 | CS63: 0.03094350017 | CT63: 2.184626808 | CU63: 0.02908861099 | CV63: SIG | CX63: Kevesebb, mint 5.000 Forintot | CY63: ='tabla 2012'!BC64/100 -> 0.6972 | CZ63: ='tabla 2012'!$BC$4/100 -> 0.6702 | DC63: ='tabla 2012'!AW64 -> 355 | DD63: ='tabla 2012'!$AW$4 -> 999 | DF63: =CZ63-CY63 -> -0.027 | DG63: =IF((DC63-1)=0,0,SQRT((1-CY63)*CY63/(DC63-1))) -> 0.02442052485 | DH63: 0.01488203312 | DI63: 0.02859784859 | DJ63: 0.9441269653 | DK63: =IF(DJ63=0,1,TDIST(DJ63,DC63+DD63-2,$B$2)) -> 0.3452734555 | DL63: NOT SIG. | DO63: ='tabla 2012'!BK64/100 -> 0.7698 | DP63: ='tabla 2012'!$BK$4/100 -> 0.7239 | DS63: ='tabla 2012'!BF64 -> 354 | DT63: ='tabla 2012'!$BF$4 -> 996 | DV63: =DP63-DO63 -> -0.0459 | DW63: =IF((DS63-1)=0,0,SQRT((1-DO63)*DO63/(DS63-1))) -> 0.02240548041 | DX63: 0.01417297272 | DY63: 0.02651185976 | DZ63: 1.731300648 | EA63: =IF(DZ63=0,1,TDIST(DZ63,DS63+DT63-2,$B$2)) -> 0.08362694485 | EB63: NOT SIG. | EE63: ='tabla 2012'!BO64/100 -> 0.6231 | EF63: ='tabla 2012'!$BO$4/100 -> 0.5837 | EI63: ='tabla 2012'!BN64 -> 341 | EJ63: ='tabla 2012'!$BN$4 -> 959 | EL63: =EF63-EE63 -> -0.0394 | EM63: =IF((EI63-1)=0,0,SQRT((1-EE63)*EE63/(EI63-1))) -> 0.02628164143 | EN63: 0.01592631487 | EO63: 0.03073063914 | EP63: 1.282108056 | EQ63: =IF(EP63=0,1,TDIST(EP63,EI63+EJ63-2,$B$2)) -> 0.2000336842 | ER63: NOT SIG.
A64: ='tabla 2012'!A65 -> 2013 | B64: ='tabla 2012'!B65 -> havi költése budapesti tömegközlekedésre | C64: ='tabla 2012'!C65 -> 5.001- 10.000 Forintot | D64: ='tabla 2012'!D65 -> 182 | E64: ='tabla 2012'!E65 -> BKV | F64: ='tabla 2012'!F65 -> top2 | G64: ='tabla 2012'!K65/100 -> 0 | H64: ='tabla 2012'!$K$4/100 -> 0 | K64: ='tabla 2012'!G65 -> 0 | L64: ='tabla 2012'!$G$4 -> 0 | N64: 0 | O64: 0 | P64: =IF((L64-1)=0,0,SQRT((1-H64)*H64/(L64-1))) -> 0 | Q64: 0 | R64: 0 | S64: =IF(R64=0,1,TDIST(R64,K64+L64-2,$B$2)) -> 1 | T64: NOT SIG. | W64: ='tabla 2012'!R65/100 -> 0.487 | X64: ='tabla 2012'!$R$4/100 -> 0.5327 | AA64: ='tabla 2012'!N65 -> 180 | AB64: ='tabla 2012'!$N$4 -> 993 | AD64: 0.0457 | AE64: 0.03735912085 | AF64: 0.0158410295 | AG64: 0.04057883841 | AH64: 1.126202765 | AI64: 0.2603104489 | AJ64: NOT SIG. | AM64: ='tabla 2012'!Y65/100 -> 0.6044 | AN64: ='tabla 2012'!$Y$4/100 -> 0.6088 | AQ64: ='tabla 2012'!U65 -> 182 | AR64: ='tabla 2012'!$U$4 -> 997 | AT64: 0.0044 | AU64: 0.03634553633 | AV64: 0.01546347426 | AW64: 0.03949831702 | AX64: 0.1113971514 | AY64: 0.9113204118 | AZ64: NOT SIG. | BC64: ='tabla 2012'!AE65/100 -> 0.3489 | BD64: ='tabla 2012'!$AE$4/100 -> 0.4534 | BG64: ='tabla 2012'!AB65 -> 182 | BH64: ='tabla 2012'!$AB$4 -> 998 | BJ64: 0.1045 | BK64: 0.03542705446 | BL64: 0.01576623489 | BM64: 0.03877693065 | BN64: 2.694901279 | BO64: 0.007141117019 | BP64: SIG | BQ64: 5.001- 10.000 Forintot | BS64: ='tabla 2012'!AK65/100 -> 0.533 | BT64: ='tabla 2012'!$AK$4/100 -> 0.6045 | BW64: ='tabla 2012'!AH65 -> 182 | BX64: ='tabla 2012'!$AH$4 -> 995 | BZ64: 0.0715 | CA64: 0.03708367424 | CB64: 0.01550880032 | CC64: 0.04019604187 | CD64: 1.778782106 | CE64: 0.07553396108 | CF64: NOT SIG. | CI64: ='tabla 2012'!AT65/100 -> 0.4451 | CJ64: ='tabla 2012'!$AT$4/100 -> 0.4796 | CM64: ='tabla 2012'!AN65 -> 182 | CN64: ='tabla 2012'!$AN$4 -> 993 | CP64: 0.0345 | CQ64: 0.03693999838 | CR64: 0.01586179728 | CS64: 0.04020149367 | CT64: 0.8581770688 | CU64: 0.3909700122 | CV64: NOT SIG. | CY64: ='tabla 2012'!BC65/100 -> 0.6566 | CZ64: ='tabla 2012'!$BC$4/100 -> 0.6702 | DC64: ='tabla 2012'!AW65 -> 182 | DD64: ='tabla 2012'!$AW$4 -> 999 | DF64: =CZ64-CY64 -> 0.0136 | DG64: 0.03529484648 | DH64: 0.01488203312 | DI64: 0.03830406111 | DJ64: 0.355053736 | DK64: =IF(DJ64=0,1,TDIST(DJ64,DC64+DD64-2,$B$2)) -> 0.7226128384 | DL64: NOT SIG. | DO64: ='tabla 2012'!BK65/100 -> 0.7445 | DP64: ='tabla 2012'!$BK$4/100 -> 0.7239 | DS64: ='tabla 2012'!BF65 -> 181 | DT64: ='tabla 2012'!$BF$4 -> 996 | DV64: =DP64-DO64 -> -0.0206 | DW64: 0.03250809728 | DX64: 0.01417297272 | DY64: 0.03546335496 | DZ64: 0.5808813077 | EA64: =IF(DZ64=0,1,TDIST(DZ64,DS64+DT64-2,$B$2)) -> 0.5614318463 | EB64: NOT SIG. | EE64: ='tabla 2012'!BO65/100 -> 0.5423 | EF64: ='tabla 2012'!$BO$4/100 -> 0.5837 | EI64: ='tabla 2012'!BN65 -> 179 | EJ64: ='tabla 2012'!$BN$4 -> 959 | EL64: =EF64-EE64 -> 0.0414 | EM64: 0.03734223066 | EN64: 0.01592631487 | EO64: 0.040596671 | EP64: 1.019788051 | EQ64: =IF(EP64=0,1,TDIST(EP64,EI64+EJ64-2,$B$2)) -> 0.3080461175 | ER64: NOT SIG.
A65: ='tabla 2012'!A66 -> 2013 | B65: ='tabla 2012'!B66 -> havi költése budapesti tömegközlekedésre | C65: ='tabla 2012'!C66 -> 10.001-15.000 Forintot | D65: ='tabla 2012'!D66 -> 208 | E65: ='tabla 2012'!E66 -> BKV | F65: ='tabla 2012'!F66 -> top2 | G65: ='tabla 2012'!K66/100 -> 0 | H65: ='tabla 2012'!$K$4/100 -> 0 | K65: ='tabla 2012'!G66 -> 0 | L65: ='tabla 2012'!$G$4 -> 0 | N65: 0 | O65: 0 | P65: =IF((L65-1)=0,0,SQRT((1-H65)*H65/(L65-1))) -> 0 | Q65: 0 | R65: 0 | S65: =IF(R65=0,1,TDIST(R65,K65+L65-2,$B$2)) -> 1 | T65: NOT SIG. | W65: ='tabla 2012'!R66/100 -> 0.5065 | X65: ='tabla 2012'!$R$4/100 -> 0.5327 | AA65: ='tabla 2012'!N66 -> 206 | AB65: ='tabla 2012'!$N$4 -> 993 | AD65: 0.0262 | AE65: 0.0349185638 | AF65: 0.0158410295 | AG65: 0.03834376499 | AH65: 0.6832923165 | AI65: 0.494554381 | AJ65: NOT SIG. | AM65: ='tabla 2012'!Y66/100 -> 0.587 | AN65: ='tabla 2012'!$Y$4/100 -> 0.6088 | AQ65: ='tabla 2012'!U66 -> 207 | AR65: ='tabla 2012'!$U$4 -> 997 | AT65: 0.0218 | AU65: 0.03430524034 | AV65: 0.01546347426 | AW65: 0.03762935756 | AX65: 0.5793348973 | AY65: 0.5624717779 | AZ65: NOT SIG. | BC65: ='tabla 2012'!AE66/100 -> 0.5097 | BD65: ='tabla 2012'!$AE$4/100 -> 0.4534 | BG65: ='tabla 2012'!AB66 -> 207 | BH65: ='tabla 2012'!$AB$4 -> 998 | BJ65: -0.0563 | BK65: 0.03483009454 | BL65: 0.01576623489 | BM65: 0.03823231157 | BN65: 1.472576407 | BO65: 0.1411268598 | BP65: NOT SIG. | BS65: ='tabla 2012'!AK66/100 -> 0.6232 | BT65: ='tabla 2012'!$AK$4/100 -> 0.6045 | BW65: ='tabla 2012'!AH66 -> 207 | BX65: ='tabla 2012'!$AH$4 -> 995 | BZ65: -0.0187 | CA65: 0.03376257479 | CB65: 0.01550880032 | CC65: 0.03715419685 | CD65: 0.5033078787 | CE65: 0.614840198 | CF65: NOT SIG. | CI65: ='tabla 2012'!AT66/100 -> 0.4567 | CJ65: ='tabla 2012'!$AT$4/100 -> 0.4796 | CM65: ='tabla 2012'!AN66 -> 208 | CN65: ='tabla 2012'!$AN$4 -> 993 | CP65: 0.0229 | CQ65: 0.03462184323 | CR65: 0.01586179728 | CS65: 0.03808239281 | CT65: 0.601327761 | CU65: 0.5477353711 | CV65: NOT SIG. | CY65: ='tabla 2012'!BC66/100 -> 0.6803 | CZ65: ='tabla 2012'!$BC$4/100 -> 0.6702 | DC65: ='tabla 2012'!AW66 -> 208 | DD65: ='tabla 2012'!$AW$4 -> 999 | DF65: =CZ65-CY65 -> -0.0101 | DG65: 0.03241428012 | DH65: 0.01488203312 | DI65: 0.03566735854 | DJ65: 0.283172077 | DK65: =IF(DJ65=0,1,TDIST(DJ65,DC65+DD65-2,$B$2)) -> 0.7770935707 | DL65: NOT SIG. | DO65: ='tabla 2012'!BK66/100 -> 0.6791 | DP65: ='tabla 2012'!$BK$4/100 -> 0.7239 | DS65: ='tabla 2012'!BF66 -> 208 | DT65: ='tabla 2012'!$BF$4 -> 996 | DV65: =DP65-DO65 -> 0.0448 | DW65: 0.03244640248 | DX65: 0.01417297272 | DY65: 0.03540680993 | DZ65: 1.265293317 | EA65: =IF(DZ65=0,1,TDIST(DZ65,DS65+DT65-2,$B$2)) -> 0.2060114234 | EB65: NOT SIG. | EE65: ='tabla 2012'!BO66/100 -> 0.5788 | EF65: ='tabla 2012'!$BO$4/100 -> 0.5837 | EI65: ='tabla 2012'!BN66 -> 198 | EJ65: ='tabla 2012'!$BN$4 -> 959 | EL65: =EF65-EE65 -> 0.0049 | EM65: 0.03517833897 | EN65: 0.01592631487 | EO65: 0.03861558025 | EP65: 0.1268917874 | EQ65: =IF(EP65=0,1,TDIST(EP65,EI65+EJ65-2,$B$2)) -> 0.8990481332 | ER65: NOT SIG.
A66: ='tabla 2012'!A67 -> 2013 | B66: ='tabla 2012'!B67 -> havi költése budapesti tömegközlekedésre | C66: ='tabla 2012'!C67 -> 15.001-20.000 Forintot | D66: ='tabla 2012'!D67 -> 92 | E66: ='tabla 2012'!E67 -> BKV | F66: ='tabla 2012'!F67 -> top2 | G66: ='tabla 2012'!K67/100 -> 0 | H66: ='tabla 2012'!$K$4/100 -> 0 | K66: ='tabla 2012'!G67 -> 0 | L66: ='tabla 2012'!$G$4 -> 0 | N66: 0 | O66: 0 | P66: =IF((L66-1)=0,0,SQRT((1-H66)*H66/(L66-1))) -> 0 | Q66: 0 | R66: 0 | S66: =IF(R66=0,1,TDIST(R66,K66+L66-2,$B$2)) -> 1 | T66: NOT SIG. | W66: ='tabla 2012'!R67/100 -> 0.471 | X66: ='tabla 2012'!$R$4/100 -> 0.5327 | AA66: ='tabla 2012'!N67 -> 92 | AB66: ='tabla 2012'!$N$4 -> 993 | AD66: 0.0617 | AE66: 0.05232600681 | AF66: 0.0158410295 | AG66: =SQRT(AE66*AE66+AF66*AF66) -> 0.05467128318 | AH66: 1.128563231 | AI66: 0.2593320625 | AJ66: NOT SIG. | AM66: ='tabla 2012'!Y67/100 -> 0.5543 | AN66: ='tabla 2012'!$Y$4/100 -> 0.6088 | AQ66: ='tabla 2012'!U67 -> 92 | AR66: ='tabla 2012'!$U$4 -> 997 | AT66: 0.0545 | AU66: 0.05210423935 | AV66: 0.01546347426 | AW66: =SQRT(AU66*AU66+AV66*AV66) -> 0.05435044429 | AX66: 1.002751693 | AY66: 0.3162038464 | AZ66: NOT SIG. | BC66: ='tabla 2012'!AE67/100 -> 0.4565 | BD66: ='tabla 2012'!$AE$4/100 -> 0.4534 | BG66: ='tabla 2012'!AB67 -> 92 | BH66: ='tabla 2012'!$AB$4 -> 998 | BJ66: -0.0031 | BK66: 0.05221550336 | BL66: 0.01576623489 | BM66: =SQRT(BK66*BK66+BL66*BL66) -> 0.05454386266 | BN66: 0.05683499204 | BO66: 0.9546870749 | BP66: NOT SIG. | BS66: ='tabla 2012'!AK67/100 -> 0.5272 | BT66: ='tabla 2012'!$AK$4/100 -> 0.6045 | BW66: ='tabla 2012'!AH67 -> 92 | BX66: ='tabla 2012'!$AH$4 -> 995 | BZ66: 0.0773 | CA66: 0.05233662807 | CB66: 0.01550880032 | CC66: 0.05458612942 | CD66: 1.416110664 | CE66: 0.1570301115 | CF66: NOT SIG. | CI66: ='tabla 2012'!AT67/100 -> 0.4505 | CJ66: ='tabla 2012'!$AT$4/100 -> 0.4796 | CM66: ='tabla 2012'!AN67 -> 91 | CN66: ='tabla 2012'!$AN$4 -> 993 | CP66: 0.0291 | CQ66: 0.05244571267 | CR66: 0.01586179728 | CS66: 0.0547918734 | CT66: 0.5311006577 | CU66: 0.5954580285 | CV66: NOT SIG. | CY66: ='tabla 2012'!BC67/100 -> 0.663 | CZ66: ='tabla 2012'!$BC$4/100 -> 0.6702 | DC66: ='tabla 2012'!AW67 -> 92 | DD66: ='tabla 2012'!$AW$4 -> 999 | DF66: =CZ66-CY66 -> 0.0072 | DG66: 0.04955083969 | DH66: 0.01488203312 | DI66: 0.05173741996 | DJ66: 0.1391642646 | DK66: =IF(DJ66=0,1,TDIST(DJ66,DC66+DD66-2,$B$2)) -> 0.8893460773 | DL66: NOT SIG. | DO66: ='tabla 2012'!BK67/100 -> 0.6848 | DP66: ='tabla 2012'!$BK$4/100 -> 0.7239 | DS66: ='tabla 2012'!BF67 -> 92 | DT66: ='tabla 2012'!$BF$4 -> 996 | DV66: =DP66-DO66 -> 0.0391 | DW66: 0.04870283969 | DX66: 0.01417297272 | DY66: 0.05072316778 | DZ66: 0.7708509093 | EA66: =IF(DZ66=0,1,TDIST(DZ66,DS66+DT66-2,$B$2)) -> 0.4409629769 | EB66: NOT SIG. | EE66: ='tabla 2012'!BO67/100 -> 0.5502 | EF66: ='tabla 2012'!$BO$4/100 -> 0.5837 | EI66: ='tabla 2012'!BN67 -> 91 | EJ66: ='tabla 2012'!$BN$4 -> 959 | EL66: =EF66-EE66 -> 0.0335 | EM66: 0.05243831932 | EN66: 0.01592631487 | EO66: 0.05480351119 | EP66: 0.6112747025 | EQ66: =IF(EP66=0,1,TDIST(EP66,EI66+EJ66-2,$B$2)) -> 0.5411502989 | ER66: NOT SIG.
A67: ='tabla 2012'!A68 -> 2013 | B67: ='tabla 2012'!B68 -> havi költése budapesti tömegközlekedésre | C67: ='tabla 2012'!C68 -> több mint 20.000 forintot | D67: ='tabla 2012'!D68 -> 149 | E67: ='tabla 2012'!E68 -> BKV | F67: ='tabla 2012'!F68 -> top2 | G67: ='tabla 2012'!K68/100 -> 0 | H67: ='tabla 2012'!$K$4/100 -> 0 | K67: ='tabla 2012'!G68 -> 0 | L67: ='tabla 2012'!$G$4 -> 0 | N67: =H67-G67 -> 0 | O67: =IF((K67-1)=0,0,SQRT((1-G67)*G67/(K67-1))) -> 0 | P67: =IF((L67-1)=0,0,SQRT((1-H67)*H67/(L67-1))) -> 0 | Q67: =SQRT(O67*O67+P67*P67) -> 0 | R67: =IF(Q67>0,ABS(N67)/Q67,0) -> 0 | S67: =IF(R67=0,1,TDIST(R67,K67+L67-2,$B$2)) -> 1 | T67: =IF(S67<=($B$1),"SIG","NOT SIG.") -> NOT SIG. | W67: ='tabla 2012'!R68/100 -> 0.5495 | X67: ='tabla 2012'!$R$4/100 -> 0.5327 | AA67: ='tabla 2012'!N68 -> 148 | AB67: ='tabla 2012'!$N$4 -> 993 | AD67: -0.0168 | AE67: 0.04103671411 | AF67: 0.0158410295 | AG67: 0.04398806793 | AH67: 0.3819217526 | AI67: 0.7025906469 | AJ67: =IF(AI67<=($B$1),"SIG","NOT SIG.") -> NOT SIG. | AM67: ='tabla 2012'!Y68/100 -> 0.5845 | AN67: ='tabla 2012'!$Y$4/100 -> 0.6088 | AQ67: ='tabla 2012'!U68 -> 148 | AR67: ='tabla 2012'!$U$4 -> 997 | AT67: 0.0243 | AU67: 0.04064612088 | AV67: 0.01546347426 | AW67: 0.04348823035 | AX67: 0.5587718747 | AY67: 0.5764268696 | AZ67: =IF(AY67<=($B$1),"SIG","NOT SIG.") -> NOT SIG. | BC67: ='tabla 2012'!AE68/100 -> 0.473 | BD67: ='tabla 2012'!$AE$4/100 -> 0.4534 | BG67: ='tabla 2012'!AB68 -> 148 | BH67: ='tabla 2012'!$AB$4 -> 998 | BJ67: -0.0196 | BK67: 0.04117913414 | BL67: 0.01576623489 | BM67: 0.04409416346 | BN67: 0.4445032735 | BO67: 0.6567628391 | BP67: =IF(BO67<=($B$1),"SIG","NOT SIG.") -> NOT SIG. | BS67: ='tabla 2012'!AK68/100 -> 0.5878 | BT67: ='tabla 2012'!$AK$4/100 -> 0.6045 | BW67: ='tabla 2012'!AH68 -> 148 | BX67: ='tabla 2012'!$AH$4 -> 995 | BZ67: 0.0167 | CA67: 0.04059851209 | CB67: 0.01550880032 | CC67: 0.04345989037 | CD67: 0.3842623591 | CE67: 0.7008556042 | CF67: NOT SIG. | CI67: ='tabla 2012'!AT68/100 -> 0.4203 | CJ67: ='tabla 2012'!$AT$4/100 -> 0.4796 | CM67: ='tabla 2012'!AN68 -> 148 | CN67: ='tabla 2012'!$AN$4 -> 993 | CP67: 0.0593 | CQ67: 0.04071202249 | CR67: 0.01586179728 | CS67: 0.04369285283 | CT67: 1.357201376 | CU67: 0.1749861041 | CV67: NOT SIG. | CY67: ='tabla 2012'!BC68/100 -> 0.604 | CZ67: ='tabla 2012'!$BC$4/100 -> 0.6702 | DC67: ='tabla 2012'!AW68 -> 149 | DD67: ='tabla 2012'!$AW$4 -> 999 | DF67: =CZ67-CY67 -> 0.0662 | DG67: 0.04020084711 | DH67: 0.01488203312 | DI67: 0.04286703883 | DJ67: 1.544310076 | DK67: =IF(DJ67=0,1,TDIST(DJ67,DC67+DD67-2,$B$2)) -> 0.1227893136 | DL67: NOT SIG. | DO67: ='tabla 2012'!BK68/100 -> 0.6791 | DP67: ='tabla 2012'!$BK$4/100 -> 0.7239 | DS67: ='tabla 2012'!BF68 -> 148 | DT67: ='tabla 2012'!$BF$4 -> 996 | DV67: =DP67-DO67 -> 0.0448 | DW67: 0.03850286587 | DX67: 0.01417297272 | DY67: 0.04102857341 | DZ67: 1.091921953 | EA67: =IF(DZ67=0,1,TDIST(DZ67,DS67+DT67-2,$B$2)) -> 0.2750977114 | EB67: NOT SIG. | EE67: ='tabla 2012'!BO68/100 -> 0.5708 | EF67: ='tabla 2012'!$BO$4/100 -> 0.5837 | EI67: ='tabla 2012'!BN68 -> 139 | EJ67: ='tabla 2012'!$BN$4 -> 959 | EL67: =EF67-EE67 -> 0.0129 | EM67: 0.04213396165 | EN67: 0.01592631487 | EO67: 0.04504351485 | EP67: 0.2863897288 | EQ67: =IF(EP67=0,1,TDIST(EP67,EI67+EJ67-2,$B$2)) -> 0.7746337658 | ER67: NOT SIG.
U68: =U63&IF(U63="","","; ")&U64&IF(U64="","","; ")&U65&IF(U65="","","; ")&U66&IF(U66="","","; ")&U67 ->  | V68: =V63&IF(V63="","","; ")&V64&IF(V64="","","; ")&V65&IF(V65="","","; ")&V66&IF(V66="","","; ")&V67 ->  | AK68: =AK63&IF(AK63="","","; ")&AK64&IF(AK64="","","; ")&AK65&IF(AK65="","","; ")&AK66&IF(AK66="","","; ")&AK67 ->  | AL68: =AL63&IF(AL63="","","; ")&AL64&IF(AL64="","","; ")&AL65&IF(AL65="","","; ")&AL66&IF(AL66="","","; ")&AL67 ->  | BA68: =BA63&IF(BA63="","","; ")&BA64&IF(BA64="","","; ")&BA65&IF(BA65="","","; ")&BA66&IF(BA66="","","; ")&BA67 ->  | BB68: =BB63&IF(BB63="","","; ")&BB64&IF(BB64="","","; ")&BB65&IF(BB65="","","; ")&BB66&IF(BB66="","","; ")&BB67 ->  | BQ68: =BQ63&IF(BQ63="","","; ")&BQ64&IF(BQ64="","","; ")&BQ65&IF(BQ65="","","; ")&BQ66&IF(BQ66="","","; ")&BQ67 -> 5.001- 10.000 Forintot; | BR68: =BR63&IF(BR63="","","; ")&BR64&IF(BR64="","","; ")&BR65&IF(BR65="","","; ")&BR66&IF(BR66="","","; ")&BR67 ->  | CG68: =CG63&IF(CG63="","","; ")&CG64&IF(CG64="","","; ")&CG65&IF(CG65="","","; ")&CG66&IF(CG66="","","; ")&CG67 ->  | CH68: =CH63&IF(CH63="","","; ")&CH64&IF(CH64="","","; ")&CH65&IF(CH65="","","; ")&CH66&IF(CH66="","","; ")&CH67 ->  | CW68: =CW63&IF(CW63="","","; ")&CW64&IF(CW64="","","; ")&CW65&IF(CW65="","","; ")&CW66&IF(CW66="","","; ")&CW67 ->  | CX68: =CX63&IF(CX63="","","; ")&CX64&IF(CX64="","","; ")&CX65&IF(CX65="","","; ")&CX66&IF(CX66="","","; ")&CX67 -> Kevesebb, mint 5.000 Forintot; | DM68: =DM63&IF(DM63="","","; ")&DM64&IF(DM64="","","; ")&DM65&IF(DM65="","","; ")&DM66&IF(DM66="","","; ")&DM67 ->  | DN68: =DN63&IF(DN63="","","; ")&DN64&IF(DN64="","","; ")&DN65&IF(DN65="","","; ")&DN66&IF(DN66="","","; ")&DN67 ->  | EC68: =EC63&IF(EC63="","","; ")&EC64&IF(EC64="","","; ")&EC65&IF(EC65="","","; ")&EC66&IF(EC66="","","; ")&EC67 ->  | ED68: =ED63&IF(ED63="","","; ")&ED64&IF(ED64="","","; ")&ED65&IF(ED65="","","; ")&ED66&IF(ED66="","","; ")&ED67 ->  | ES68: =ES63&IF(ES63="","","; ")&ES64&IF(ES64="","","; ")&ES65&IF(ES65="","","; ")&ES66&IF(ES66="","","; ")&ES67 ->  | ET68: =ET63&IF(ET63="","","; ")&ET64&IF(ET64="","","; ")&ET65&IF(ET65="","","; ")&ET66&IF(ET66="","","; ")&ET67 -> 
A69: ='tabla 2012'!A69 -> 2013 | B69: ='tabla 2012'!B69 -> lakóhely | C69: ='tabla 2012'!C69 -> Észak-Buda | D69: ='tabla 2012'!D69 -> 80 | E69: ='tabla 2012'!E69 -> BKV | F69: ='tabla 2012'!F69 -> bottom2 | G69: ='tabla 2012'!K69/100 -> 0 | H69: ='tabla 2012'!$K$5/100 -> 0 | K69: ='tabla 2012'!G69 -> 0 | L69: ='tabla 2012'!$G$5 -> 0 | N69: 0 | O69: 0 | P69: =IF((L69-1)=0,0,SQRT((1-H69)*H69/(L69-1))) -> 0 | Q69: 0 | R69: 0 | S69: =IF(R69=0,1,TDIST(R69,K69+L69-2,$B$2)) -> 1 | T69: NOT SIG. | W69: ='tabla 2012'!R69/100 -> 0.1013 | X69: ='tabla 2012'!$R$5/100 -> 0.1638 | AA69: ='tabla 2012'!N69 -> 79 | AB69: ='tabla 2012'!$N$5 -> 993 | AD69: 0.0625 | AE69: 0.03416369155 | AF69: 0.01175049587 | AG69: 0.03612799432 | AH69: 1.729960414 | AI69: 0.08392570804 | AJ69: NOT SIG. | AM69: ='tabla 2012'!Y69/100 -> 0.0949 | AN69: ='tabla 2012'!$Y$5/100 -> 0.1595 | AQ69: ='tabla 2012'!U69 -> 79 | AR69: ='tabla 2012'!$U$5 -> 997 | AT69: 0.0646 | AU69: 0.03318440899 | AV69: 0.01160164396 | AW69: 0.03515399184 | AX69: 1.837629146 | AY69: 0.06639316985 | AZ69: NOT SIG. | BC69: ='tabla 2012'!AE69/100 -> 0.1646 | BD69: ='tabla 2012'!$AE$5/100 -> 0.2174 | BG69: ='tabla 2012'!AB69 -> 79 | BH69: ='tabla 2012'!$AB$5 -> 998 | BJ69: 0.0528 | BK69: 0.04198700043 | BL69: 0.0130632763 | BM69: 0.04397223434 | BN69: 1.200757723 | BO69: 0.2301097072 | BP69: NOT SIG. | BS69: ='tabla 2012'!AK69/100 -> 0.0813 | BT69: ='tabla 2012'!$AK$5/100 -> 0.1352 | BW69: ='tabla 2012'!AH69 -> 80 | BX69: ='tabla 2012'!$AH$5 -> 995 | BZ69: 0.0539 | CA69: 0.03074812128 | CB69: 0.01084558529 | CC69: 0.03260481072 | CD69: 1.653130284 | CE69: 0.09859687645 | CF69: NOT SIG. | CI69: ='tabla 2012'!AT69/100 -> 0.1873 | CJ69: ='tabla 2012'!$AT$5/100 -> 0.1392 | CM69: ='tabla 2012'!AN69 -> 79 | CN69: ='tabla 2012'!$AN$5 -> 993 | CP69: -0.0481 | CQ69: 0.04417603336 | CR69: 0.01099043572 | CS69: 0.04552264931 | CT69: 1.056616887 | CU69: 0.2909249675 | CV69: NOT SIG. | CY69: ='tabla 2012'!BC69/100 -> 0.1063 | CZ69: ='tabla 2012'!$BC$5/100 -> 0.0716 | DC69: ='tabla 2012'!AW69 -> 80 | DD69: ='tabla 2012'!$AW$5 -> 999 | DF69: =CZ69-CY69 -> -0.0347 | DG69: =IF((DC69-1)=0,0,SQRT((1-CY69)*CY69/(DC69-1))) -> 0.03467759463 | DH69: =IF((DD69-1)=0,0,SQRT((1-CZ69)*CZ69/(DD69-1))) -> 0.008161289929 | DI69: 0.03562502243 | DJ69: 0.9740344745 | DK69: =IF(DJ69=0,1,TDIST(DJ69,DC69+DD69-2,$B$2)) -> 0.3302581366 | DL69: NOT SIG. | DO69: ='tabla 2012'!BK69/100 -> 0.0594 | DP69: ='tabla 2012'!$BK$5/100 -> 0.0482 | DS69: ='tabla 2012'!BF69 -> 80 | DT69: ='tabla 2012'!$BF$5 -> 996 | DV69: =DP69-DO69 -> -0.0112 | DW69: =IF((DS69-1)=0,0,SQRT((1-DO69)*DO69/(DS69-1))) -> 0.02659390813 | DX69: =IF((DT69-1)=0,0,SQRT((1-DP69)*DP69/(DT69-1))) -> 0.006790235378 | DY69: 0.02744709904 | DZ69: 0.4080576961 | EA69: =IF(DZ69=0,1,TDIST(DZ69,DS69+DT69-2,$B$2)) -> 0.6833126508 | EB69: NOT SIG. | EE69: ='tabla 2012'!BO69/100 -> 0.1108 | EF69: ='tabla 2012'!$BO$5/100 -> 0.1346 | EI69: ='tabla 2012'!BN69 -> 70 | EJ69: ='tabla 2012'!$BN$5 -> 959 | EL69: =EF69-EE69 -> 0.0238 | EM69: =IF((EI69-1)=0,0,SQRT((1-EE69)*EE69/(EI69-1))) -> 0.03778723042 | EN69: =IF((EJ69-1)=0,0,SQRT((1-EF69)*EF69/(EJ69-1))) -> 0.01102676758 | EO69: 0.03936323648 | EP69: 0.6046250799 | EQ69: =IF(EP69=0,1,TDIST(EP69,EI69+EJ69-2,$B$2)) -> 0.545561692 | ER69: NOT SIG.
A70: ='tabla 2012'!A70 -> 2013 | B70: ='tabla 2012'!B70 -> lakóhely | C70: ='tabla 2012'!C70 -> Dél-Buda | D70: ='tabla 2012'!D70 -> 70 | E70: ='tabla 2012'!E70 -> BKV | F70: ='tabla 2012'!F70 -> bottom2 | G70: ='tabla 2012'!K70/100 -> 0 | H70: ='tabla 2012'!$K$5/100 -> 0 | K70: ='tabla 2012'!G70 -> 0 | L70: ='tabla 2012'!$G$5 -> 0 | N70: 0 | O70: 0 | P70: 0 | Q70: 0 | R70: 0 | S70: 1 | T70: NOT SIG. | W70: ='tabla 2012'!R70/100 -> 0.1 | X70: ='tabla 2012'!$R$5/100 -> 0.1638 | AA70: ='tabla 2012'!N70 -> 70 | AB70: ='tabla 2012'!$N$5 -> 993 | AD70: 0.0638 | AE70: 0.03611575593 | AF70: 0.01175049587 | AG70: 0.03797923089 | AH70: 1.679865508 | AI70: 0.09327787499 | AJ70: NOT SIG. | AM70: ='tabla 2012'!Y70/100 -> 0.2643 | AN70: ='tabla 2012'!$Y$5/100 -> 0.1595 | AQ70: ='tabla 2012'!U70 -> 70 | AR70: ='tabla 2012'!$U$5 -> 997 | AT70: -0.1048 | AU70: 0.05308531689 | AV70: 0.01160164396 | AW70: 0.05433828312 | AX70: 1.928658654 | AY70: 0.05403876863 | AZ70: NOT SIG. | BC70: ='tabla 2012'!AE70/100 -> 0.1571 | BD70: ='tabla 2012'!$AE$5/100 -> 0.2174 | BG70: ='tabla 2012'!AB70 -> 70 | BH70: ='tabla 2012'!$AB$5 -> 998 | BJ70: 0.0603 | BK70: 0.04380781315 | BL70: 0.0130632763 | BM70: 0.04571404248 | BN70: 1.319069518 | BO70: 0.1874291436 | BP70: NOT SIG. | BS70: ='tabla 2012'!AK70/100 -> 0.0929 | BT70: ='tabla 2012'!$AK$5/100 -> 0.1352 | BW70: ='tabla 2012'!AH70 -> 70 | BX70: ='tabla 2012'!$AH$5 -> 995 | BZ70: 0.0423 | CA70: 0.03494708008 | CB70: 0.01084558529 | CC70: 0.03659132583 | CD70: 1.156011679 | CE70: 0.2479361282 | CF70: NOT SIG. | CI70: ='tabla 2012'!AT70/100 -> 0.0696 | CJ70: ='tabla 2012'!$AT$5/100 -> 0.1392 | CM70: ='tabla 2012'!AN70 -> 69 | CN70: ='tabla 2012'!$AN$5 -> 993 | CP70: 0.0696 | CQ70: 0.03085922495 | CR70: 0.01099043572 | CS70: 0.03275792182 | CT70: 2.124676906 | CU70: 0.03384448187 | CV70: SIG | CW70: Dél-Buda | CY70: ='tabla 2012'!BC70/100 -> 0.0143 | CZ70: ='tabla 2012'!$BC$5/100 -> 0.0716 | DC70: ='tabla 2012'!AW70 -> 70 | DD70: ='tabla 2012'!$AW$5 -> 999 | DF70: 0.0573 | DG70: 0.01429275179 | DH70: 0.008161289929 | DI70: 0.01645871827 | DJ70: 3.481437563 | DK70: 0.0005189128546 | DL70: SIG | DM70: Dél-Buda | DO70: ='tabla 2012'!BK70/100 -> 0.0143 | DP70: ='tabla 2012'!$BK$5/100 -> 0.0482 | DS70: ='tabla 2012'!BF70 -> 70 | DT70: ='tabla 2012'!$BF$5 -> 996 | DV70: 0.0339 | DW70: 0.01429275179 | DX70: 0.006790235378 | DY70: 0.01582371796 | DZ70: 2.142353654 | EA70: 0.03239145903 | EB70: SIG | EC70: Dél-Buda | EE70: ='tabla 2012'!BO70/100 -> 0.096 | EF70: ='tabla 2012'!$BO$5/100 -> 0.1346 | EI70: ='tabla 2012'!BN70 -> 69 | EJ70: ='tabla 2012'!$BN$5 -> 959 | EL70: 0.0386 | EM70: 0.03572443553 | EN70: 0.01102676758 | EO70: 0.03738749654 | EP70: 1.032430721 | EQ70: 0.3021136841 | ER70: NOT SIG.
A71: ='tabla 2012'!A71 -> 2013 | B71: ='tabla 2012'!B71 -> lakóhely | C71: ='tabla 2012'!C71 -> Észak-Pest | D71: ='tabla 2012'!D71 -> 150 | E71: ='tabla 2012'!E71 -> BKV | F71: ='tabla 2012'!F71 -> bottom2 | G71: ='tabla 2012'!K71/100 -> 0 | H71: ='tabla 2012'!$K$5/100 -> 0 | K71: ='tabla 2012'!G71 -> 0 | L71: ='tabla 2012'!$G$5 -> 0 | N71: 0 | O71: 0 | P71: 0 | Q71: 0 | R71: 0 | S71: 1 | T71: NOT SIG. | W71: ='tabla 2012'!R71/100 -> 0.2013 | X71: ='tabla 2012'!$R$5/100 -> 0.1638 | AA71: ='tabla 2012'!N71 -> 149 | AB71: ='tabla 2012'!$N$5 -> 993 | AD71: -0.0375 | AE71: 0.0329596713 | AF71: 0.01175049587 | AG71: 0.03499162879 | AH71: 1.071684894 | AI71: 0.2840884098 | AJ71: NOT SIG. | AM71: ='tabla 2012'!Y71/100 -> 0.2181 | AN71: ='tabla 2012'!$Y$5/100 -> 0.1595 | AQ71: ='tabla 2012'!U71 -> 149 | AR71: ='tabla 2012'!$U$5 -> 997 | AT71: -0.0586 | AU71: 0.03394474743 | AV71: 0.01160164396 | AW71: 0.03587260823 | AX71: 1.633558386 | AY71: 0.1026267677 | AZ71: NOT SIG. | BC71: ='tabla 2012'!AE71/100 -> 0.1946 | BD71: ='tabla 2012'!$AE$5/100 -> 0.2174 | BG71: ='tabla 2012'!AB71 -> 149 | BH71: ='tabla 2012'!$AB$5 -> 998 | BJ71: 0.0228 | BK71: 0.03254215976 | BL71: 0.0130632763 | BM71: 0.03506624231 | BN71: 0.6501979824 | BO71: 0.5156947756 | BP71: NOT SIG. | BS71: ='tabla 2012'!AK71/100 -> 0.1846 | BT71: ='tabla 2012'!$AK$5/100 -> 0.1352 | BW71: ='tabla 2012'!AH71 -> 149 | BX71: ='tabla 2012'!$AH$5 -> 995 | BZ71: -0.0494 | CA71: 0.03189116204 | CB71: 0.01084558529 | CC71: 0.03368490666 | CD71: 1.466532192 | CE71: 0.1427786607 | CF71: NOT SIG. | CI71: ='tabla 2012'!AT71/100 -> 0.2147 | CJ71: ='tabla 2012'!$AT$5/100 -> 0.1392 | CM71: ='tabla 2012'!AN71 -> 150 | CN71: ='tabla 2012'!$AN$5 -> 993 | CP71: -0.0755 | CQ71: 0.03363881487 | CR71: 0.01099043572 | CS71: 0.03538869231 | CT71: 2.133449842 | CU71: 0.03310067261 | CV71: SIG | CX71: Észak-Pest | CY71: ='tabla 2012'!BC71/100 -> 0.1644 | CZ71: ='tabla 2012'!$BC$5/100 -> 0.0716 | DC71: ='tabla 2012'!AW71 -> 149 | DD71: ='tabla 2012'!$AW$5 -> 999 | DF71: -0.0928 | DG71: 0.03046626845 | DH71: 0.008161289929 | DI71: 0.03154045286 | DJ71: 2.942253252 | DK71: 0.003323893495 | DL71: SIG | DN71: Észak-Pest | DO71: ='tabla 2012'!BK71/100 -> 0.1409 | DP71: ='tabla 2012'!$BK$5/100 -> 0.0482 | DS71: ='tabla 2012'!BF71 -> 149 | DT71: ='tabla 2012'!$BF$5 -> 996 | DV71: -0.0927 | DW71: 0.02859871359 | DX71: 0.006790235378 | DY71: 0.02939377001 | DZ71: 3.153729514 | EA71: 0.001653993532 | EB71: SIG | ED71: Észak-Pest | EE71: ='tabla 2012'!BO71/100 -> 0.1958 | EF71: ='tabla 2012'!$BO$5/100 -> 0.1346 | EI71: ='tabla 2012'!BN71 -> 142 | EJ71: ='tabla 2012'!$BN$5 -> 959 | EL71: -0.0612 | EM71: 0.03341787435 | EN71: 0.01102676758 | EO71: 0.03519011125 | EP71: 1.739124937 | EQ71: 0.082292778 | ER71: NOT SIG.
A72: ='tabla 2012'!A72 -> 2013 | B72: ='tabla 2012'!B72 -> lakóhely | C72: ='tabla 2012'!C72 -> Dél-Pest | D72: ='tabla 2012'!D72 -> 150 | E72: ='tabla 2012'!E72 -> BKV | F72: ='tabla 2012'!F72 -> bottom2 | G72: ='tabla 2012'!K72/100 -> 0 | H72: ='tabla 2012'!$K$5/100 -> 0 | K72: ='tabla 2012'!G72 -> 0 | L72: ='tabla 2012'!$G$5 -> 0 | N72: 0 | O72: 0 | P72: 0 | Q72: 0 | R72: 0 | S72: 1 | T72: NOT SIG. | W72: ='tabla 2012'!R72/100 -> 0.1454 | X72: ='tabla 2012'!$R$5/100 -> 0.1638 | AA72: ='tabla 2012'!N72 -> 149 | AB72: ='tabla 2012'!$N$5 -> 993 | AD72: 0.0184 | AE72: 0.02897562349 | AF72: 0.01175049587 | AG72: 0.03126756962 | AH72: 0.5884691463 | AI72: 0.5563340052 | AJ72: NOT SIG. | AM72: ='tabla 2012'!Y72/100 -> 0.0767 | AN72: ='tabla 2012'!$Y$5/100 -> 0.1595 | AQ72: ='tabla 2012'!U72 -> 150 | AR72: ='tabla 2012'!$U$5 -> 997 | AT72: 0.0828 | AU72: 0.02180097744 | AV72: 0.01160164396 | AW72: 0.02469576401 | AX72: 3.352801718 | AY72: 0.0008261355677 | AZ72: SIG | BA72: Dél-Pest | BC72: ='tabla 2012'!AE72/100 -> 0.3567 | BD72: ='tabla 2012'!$AE$5/100 -> 0.2174 | BG72: ='tabla 2012'!AB72 -> 150 | BH72: ='tabla 2012'!$AB$5 -> 998 | BJ72: -0.1393 | BK72: 0.0392432707 | BL72: 0.0130632763 | BM72: 0.04136040961 | BN72: 3.36795504 | BO72: 0.0007824397992 | BP72: SIG | BR72: Dél-Pest | BS72: ='tabla 2012'!AK72/100 -> 0.094 | BT72: ='tabla 2012'!$AK$5/100 -> 0.1352 | BW72: ='tabla 2012'!AH72 -> 149 | BX72: ='tabla 2012'!$AH$5 -> 995 | BZ72: 0.0412 | CA72: 0.02398817276 | CB72: 0.01084558529 | CC72: 0.02632601665 | CD72: 1.564991793 | CE72: 0.1178618766 | CF72: NOT SIG. | CI72: ='tabla 2012'!AT72/100 -> 0.1 | CJ72: ='tabla 2012'!$AT$5/100 -> 0.1392 | CM72: ='tabla 2012'!AN72 -> 148 | CN72: ='tabla 2012'!$AN$5 -> 993 | CP72: 0.0392 | CQ72: 0.02474358297 | CR72: 0.01099043572 | CS72: 0.02707461127 | CT72: 1.447850889 | CU72: 0.1479339481 | CV72: NOT SIG. | CY72: ='tabla 2012'!BC72/100 -> 0.03 | CZ72: ='tabla 2012'!$BC$5/100 -> 0.0716 | DC72: ='tabla 2012'!AW72 -> 150 | DD72: ='tabla 2012'!$AW$5 -> 999 | DF72: 0.0416 | DG72: 0.01397504968 | DH72: 0.008161289929 | DI72: 0.01618359252 | DJ72: 2.570504661 | DK72: 0.01028031883 | DL72: SIG | DM72: Dél-Pest | DO72: ='tabla 2012'!BK72/100 -> 0.035 | DP72: ='tabla 2012'!$BK$5/100 -> 0.0482 | DS72: ='tabla 2012'!BF72 -> 150 | DT72: ='tabla 2012'!$BF$5 -> 996 | DV72: 0.0132 | DW72: 0.01505582453 | DX72: 0.006790235378 | DY72: 0.01651620867 | DZ72: 0.7992148963 | EA72: 0.4243317162 | EB72: NOT SIG. | EE72: ='tabla 2012'!BO72/100 -> 0.1182 | EF72: ='tabla 2012'!$BO$5/100 -> 0.1346 | EI72: ='tabla 2012'!BN72 -> 143 | EJ72: ='tabla 2012'!$BN$5 -> 959 | EL72: 0.0164 | EM72: 0.02709253314 | EN72: 0.01102676758 | EO72: 0.02925055479 | EP72: 0.5606731263 | EQ72: 0.5751345688 | ER72: NOT SIG.
A73: ='tabla 2012'!A73 -> 2013 | B73: ='tabla 2012'!B73 -> lakóhely | C73: ='tabla 2012'!C73 -> Kelet-Pest | D73: ='tabla 2012'!D73 -> 90 | E73: ='tabla 2012'!E73 -> BKV | F73: ='tabla 2012'!F73 -> bottom2 | G73: ='tabla 2012'!K73/100 -> 0 | H73: ='tabla 2012'!$K$5/100 -> 0 | K73: ='tabla 2012'!G73 -> 0 | L73: ='tabla 2012'!$G$5 -> 0 | N73: 0 | O73: 0 | P73: 0 | Q73: 0 | R73: 0 | S73: 1 | T73: NOT SIG. | W73: ='tabla 2012'!R73/100 -> 0.1815 | X73: ='tabla 2012'!$R$5/100 -> 0.1638 | AA73: ='tabla 2012'!N73 -> 90 | AB73: ='tabla 2012'!$N$5 -> 993 | AD73: -0.0177 | AE73: 0.04085569975 | AF73: 0.01175049587 | AG73: 0.0425119084 | AH73: 0.4163539269 | AI73: 0.6772336873 | AJ73: NOT SIG. | AM73: ='tabla 2012'!Y73/100 -> 0.0722 | AN73: ='tabla 2012'!$Y$5/100 -> 0.1595 | AQ73: ='tabla 2012'!U73 -> 90 | AR73: ='tabla 2012'!$U$5 -> 997 | AT73: 0.0873 | AU73: 0.02743473563 | AV73: 0.01160164396 | AW73: 0.02978695791 | AX73: 2.930812883 | AY73: 0.003451613432 | AZ73: SIG | BA73: Kelet-Pest | BC73: ='tabla 2012'!AE73/100 -> 0.0667 | BD73: ='tabla 2012'!$AE$5/100 -> 0.2174 | BG73: ='tabla 2012'!AB73 -> 90 | BH73: ='tabla 2012'!$AB$5 -> 998 | BJ73: 0.1507 | BK73: 0.02644712979 | BL73: 0.0130632763 | BM73: 0.02949745517 | BN73: 5.108915298 | BO73: 3.825444131e-07 | BP73: SIG | BQ73: Kelet-Pest | BS73: ='tabla 2012'!AK73/100 -> 0.1067 | BT73: ='tabla 2012'!$AK$5/100 -> 0.1352 | BW73: ='tabla 2012'!AH73 -> 89 | BX73: ='tabla 2012'!$AH$5 -> 995 | BZ73: 0.0285 | CA73: 0.03291088346 | CB73: 0.01084558529 | CC73: 0.03465188264 | CD73: 0.8224661355 | CE73: 0.4109928642 | CF73: NOT SIG. | CI73: ='tabla 2012'!AT73/100 -> 0.0432 | CJ73: ='tabla 2012'!$AT$5/100 -> 0.1392 | CM73: ='tabla 2012'!AN73 -> 88 | CN73: ='tabla 2012'!$AN$5 -> 993 | CP73: 0.096 | CQ73: 0.02179680457 | CR73: 0.01099043572 | CS73: 0.02441086576 | CT73: 3.932674939 | CU73: 8.936664738e-05 | CV73: SIG | CW73: Kelet-Pest | CY73: ='tabla 2012'!BC73/100 -> 0.0167 | CZ73: ='tabla 2012'!$BC$5/100 -> 0.0716 | DC73: ='tabla 2012'!AW73 -> 90 | DD73: ='tabla 2012'!$AW$5 -> 999 | DF73: 0.0549 | DG73: 0.01358333 | DH73: 0.008161289929 | DI73: 0.01584656137 | DJ73: 3.464474009 | DK73: 0.0005519823794 | DL73: SIG | DM73: Kelet-Pest | DO73: ='tabla 2012'!BK73/100 -> 0.0056 | DP73: ='tabla 2012'!$BK$5/100 -> 0.0482 | DS73: ='tabla 2012'!BF73 -> 90 | DT73: ='tabla 2012'!$BF$5 -> 996 | DV73: 0.0426 | DW73: 0.00791005618 | DX73: 0.006790235378 | DY73: 0.01042479186 | DZ73: 4.086412524 | EA73: 4.703990152e-05 | EB73: SIG | EC73: Kelet-Pest | EE73: ='tabla 2012'!BO73/100 -> 0.0687 | EF73: ='tabla 2012'!$BO$5/100 -> 0.1346 | EI73: ='tabla 2012'!BN73 -> 87 | EJ73: ='tabla 2012'!$BN$5 -> 959 | EL73: 0.0659 | EM73: 0.02727557686 | EN73: 0.01102676758 | EO73: 0.02942017499 | EP73: 2.239959484 | EQ73: 0.02530335467 | ER73: SIG | ES73: Kelet-Pest
A74: ='tabla 2012'!A74 -> 2013 | B74: ='tabla 2012'!B74 -> lakóhely | C74: ='tabla 2012'!C74 -> Belváros | D74: ='tabla 2012'!D74 -> 60 | E74: ='tabla 2012'!E74 -> BKV | F74: ='tabla 2012'!F74 -> bottom2 | G74: ='tabla 2012'!K74/100 -> 0 | H74: ='tabla 2012'!$K$5/100 -> 0 | K74: ='tabla 2012'!G74 -> 0 | L74: ='tabla 2012'!$G$5 -> 0 | N74: 0 | O74: 0 | P74: 0 | Q74: 0 | R74: 0 | S74: 1 | T74: NOT SIG. | W74: ='tabla 2012'!R74/100 -> 0.0734 | X74: ='tabla 2012'!$R$5/100 -> 0.1638 | AA74: ='tabla 2012'!N74 -> 59 | AB74: ='tabla 2012'!$N$5 -> 993 | AD74: 0.0904 | AE74: 0.03424366037 | AF74: 0.01175049587 | AG74: 0.03620362453 | AH74: 2.496987558 | AI74: 0.01267761363 | AJ74: SIG | AK74: Belváros | AM74: ='tabla 2012'!Y74/100 -> 0.2583 | AN74: ='tabla 2012'!$Y$5/100 -> 0.1595 | AQ74: ='tabla 2012'!U74 -> 60 | AR74: ='tabla 2012'!$U$5 -> 997 | AT74: -0.0988 | AU74: 0.05698365957 | AV74: 0.01160164396 | AW74: 0.05815269211 | AX74: 1.698975514 | AY74: 0.0896186194 | AZ74: NOT SIG. | BC74: ='tabla 2012'!AE74/100 -> 0.1917 | BD74: ='tabla 2012'!$AE$5/100 -> 0.2174 | BG74: ='tabla 2012'!AB74 -> 60 | BH74: ='tabla 2012'!$AB$5 -> 998 | BJ74: 0.0257 | BK74: 0.05124734139 | BL74: 0.0130632763 | BM74: 0.05288609635 | BN74: 0.4859500279 | BO74: 0.6271034146 | BP74: NOT SIG. | BS74: ='tabla 2012'!AK74/100 -> 0.0083 | BT74: ='tabla 2012'!$AK$5/100 -> 0.1352 | BW74: ='tabla 2012'!AH74 -> 60 | BX74: ='tabla 2012'!$AH$5 -> 995 | BZ74: 0.1269 | CA74: 0.01181144949 | CB74: 0.01084558529 | CC74: 0.01603549373 | CD74: 7.913694589 | CE74: 6.297993449e-15 | CF74: SIG | CG74: Belváros | CI74: ='tabla 2012'!AT74/100 -> 0.06 | CJ74: ='tabla 2012'!$AT$5/100 -> 0.1392 | CM74: ='tabla 2012'!AN74 -> 60 | CN74: ='tabla 2012'!$AN$5 -> 993 | CP74: 0.0792 | CQ74: 0.0309181533 | CR74: 0.01099043572 | CS74: 0.03281344055 | CT74: 2.4136451 | CU74: 0.01596400513 | CV74: SIG | CW74: Belváros | CY74: ='tabla 2012'!BC74/100 -> 0.05 | CZ74: ='tabla 2012'!$BC$5/100 -> 0.0716 | DC74: ='tabla 2012'!AW74 -> 60 | DD74: ='tabla 2012'!$AW$5 -> 999 | DF74: 0.0216 | DG74: 0.02837401533 | DH74: 0.008161289929 | DI74: 0.02952442038 | DJ74: 0.7315977661 | DK74: 0.4645762733 | DL74: NOT SIG. | DO74: ='tabla 2012'!BK74/100 -> 0.0167 | DP74: ='tabla 2012'!$BK$5/100 -> 0.0482 | DS74: ='tabla 2012'!BF74 -> 60 | DT74: ='tabla 2012'!$BF$5 -> 996 | DV74: 0.0315 | DW74: 0.01668304224 | DX74: 0.006790235378 | DY74: 0.01801197365 | DZ74: 1.748836669 | EA74: 0.08061032261 | EB74: NOT SIG. | EE74: ='tabla 2012'!BO74/100 -> 0.0939 | EF74: ='tabla 2012'!$BO$5/100 -> 0.1346 | EI74: ='tabla 2012'!BN74 -> 58 | EJ74: ='tabla 2012'!$BN$5 -> 959 | EL74: 0.0407 | EM74: 0.03863522391 | EN74: 0.01102676758 | EO74: 0.04017798066 | EP74: 1.012992672 | EQ74: 0.3113050727 | ER74: NOT SIG.
A75: ='tabla 2012'!A75 -> 2013 | B75: ='tabla 2012'!B75 -> lakóhely | C75: ='tabla 2012'!C75 -> Dél-Nyugat | D75: ='tabla 2012'!D75 -> 101 | E75: ='tabla 2012'!E75 -> BKV | F75: ='tabla 2012'!F75 -> bottom2 | G75: ='tabla 2012'!K75/100 -> 0 | H75: ='tabla 2012'!$K$5/100 -> 0 | K75: ='tabla 2012'!G75 -> 0 | L75: ='tabla 2012'!$G$5 -> 0 | N75: 0 | O75: 0 | P75: 0 | Q75: 0 | R75: 0 | S75: 1 | T75: NOT SIG. | W75: ='tabla 2012'!R75/100 -> 0.2112 | X75: ='tabla 2012'!$R$5/100 -> 0.1638 | AA75: ='tabla 2012'!N75 -> 101 | AB75: ='tabla 2012'!$N$5 -> 993 | AD75: -0.0474 | AE75: 0.04081599686 | AF75: 0.01175049587 | AG75: 0.0424737537 | AH75: 1.115983304 | AI75: 0.2646747905 | AJ75: NOT SIG. | AM75: ='tabla 2012'!Y75/100 -> 0.2624 | AN75: ='tabla 2012'!$Y$5/100 -> 0.1595 | AQ75: ='tabla 2012'!U75 -> 101 | AR75: ='tabla 2012'!$U$5 -> 997 | AT75: -0.1029 | AU75: 0.04399389048 | AV75: 0.01160164396 | AW75: 0.045497918 | AX75: 2.26164195 | AY75: 0.02391482622 | AZ75: SIG | BB75: Dél-Nyugat | BC75: ='tabla 2012'!AE75/100 -> 0.2525 | BD75: ='tabla 2012'!$AE$5/100 -> 0.2174 | BG75: ='tabla 2012'!AB75 -> 101 | BH75: ='tabla 2012'!$AB$5 -> 998 | BJ75: -0.0351 | BK75: 0.04344464869 | BL75: 0.0130632763 | BM75: 0.04536614032 | BN75: 0.7737047885 | BO75: 0.4392720833 | BP75: NOT SIG. | BS75: ='tabla 2012'!AK75/100 -> 0.2079 | BT75: ='tabla 2012'!$AK$5/100 -> 0.1352 | BW75: ='tabla 2012'!AH75 -> 101 | BX75: ='tabla 2012'!$AH$5 -> 995 | BZ75: -0.0727 | CA75: 0.04058048669 | CB75: 0.01084558529 | CC75: 0.04200479283 | CD75: 1.730754876 | CE75: 0.08377744907 | CF75: NOT SIG. | CI75: ='tabla 2012'!AT75/100 -> 0.24 | CJ75: ='tabla 2012'!$AT$5/100 -> 0.1392 | CM75: ='tabla 2012'!AN75 -> 100 | CN75: ='tabla 2012'!$AN$5 -> 993 | CP75: -0.1008 | CQ75: 0.0429234696 | CR75: 0.01099043572 | CS75: 0.0443081699 | CT75: 2.274975478 | CU75: 0.02310077015 | CV75: SIG | CX75: Dél-Nyugat | CY75: ='tabla 2012'!BC75/100 -> 0.104 | CZ75: ='tabla 2012'!$BC$5/100 -> 0.0716 | DC75: ='tabla 2012'!AW75 -> 101 | DD75: ='tabla 2012'!$AW$5 -> 999 | DF75: -0.0324 | DG75: 0.03052605445 | DH75: 0.008161289929 | DI75: 0.03159820649 | DJ75: 1.025374653 | DK75: 0.3054122839 | DL75: NOT SIG. | DO75: ='tabla 2012'!BK75/100 -> 0.0631 | DP75: ='tabla 2012'!$BK$5/100 -> 0.0482 | DS75: ='tabla 2012'!BF75 -> 99 | DT75: ='tabla 2012'!$BF$5 -> 996 | DV75: -0.0149 | DW75: 0.02456112533 | DX75: 0.006790235378 | DY75: 0.02548246797 | DZ75: 0.5847157354 | EA75: 0.5588595461 | EB75: NOT SIG. | EE75: ='tabla 2012'!BO75/100 -> 0.1909 | EF75: ='tabla 2012'!$BO$5/100 -> 0.1346 | EI75: ='tabla 2012'!BN75 -> 98 | EJ75: ='tabla 2012'!$BN$5 -> 959 | EL75: -0.0563 | EM75: 0.03990416225 | EN75: 0.01102676758 | EO75: 0.04139965904 | EP75: 1.359914582 | EQ75: 0.1741474912 | ER75: NOT SIG.
A76: ='tabla 2012'!A76 -> 2013 | B76: ='tabla 2012'!B76 -> lakóhely | C76: ='tabla 2012'!C76 -> Észak-Nyugat | D76: ='tabla 2012'!D76 -> 100 | E76: ='tabla 2012'!E76 -> BKV | F76: ='tabla 2012'!F76 -> bottom2 | G76: ='tabla 2012'!K76/100 -> 0 | H76: ='tabla 2012'!$K$5/100 -> 0 | K76: ='tabla 2012'!G76 -> 0 | L76: ='tabla 2012'!$G$5 -> 0 | N76: 0 | O76: 0 | P76: 0 | Q76: 0 | R76: 0 | S76: 1 | T76: NOT SIG. | W76: ='tabla 2012'!R76/100 -> 0.24 | X76: ='tabla 2012'!$R$5/100 -> 0.1638 | AA76: ='tabla 2012'!N76 -> 100 | AB76: ='tabla 2012'!$N$5 -> 993 | AD76: -0.0762 | AE76: 0.0429234696 | AF76: 0.01175049587 | AG76: 0.04450279087 | AH76: 1.712252164 | AI76: 0.08713437393 | AJ76: NOT SIG. | AM76: ='tabla 2012'!Y76/100 -> 0.0909 | AN76: ='tabla 2012'!$Y$5/100 -> 0.1595 | AQ76: ='tabla 2012'!U76 -> 99 | AR76: ='tabla 2012'!$U$5 -> 997 | AT76: 0.0686 | AU76: 0.02903853703 | AV76: 0.01160164396 | AW76: 0.03127034978 | AX76: 2.193771432 | AY76: 0.02846163432 | AZ76: SIG | BA76: Észak-Nyugat | BC76: ='tabla 2012'!AE76/100 -> 0.13 | BD76: ='tabla 2012'!$AE$5/100 -> 0.2174 | BG76: ='tabla 2012'!AB76 -> 100 | BH76: ='tabla 2012'!$AB$5 -> 998 | BJ76: 0.0874 | BK76: 0.0337997669 | BL76: 0.0130632763 | BM76: 0.03623635509 | BN76: 2.411942365 | BO76: 0.01603131531 | BP76: SIG | BQ76: Észak-Nyugat | BS76: ='tabla 2012'!AK76/100 -> 0.215 | BT76: ='tabla 2012'!$AK$5/100 -> 0.1352 | BW76: ='tabla 2012'!AH76 -> 100 | BX76: ='tabla 2012'!$AH$5 -> 995 | BZ76: -0.0798 | CA76: 0.04128919931 | CB76: 0.01084558529 | CC76: 0.04268986648 | CD76: 1.869296078 | CE76: 0.06184886328 | CF76: NOT SIG. | CI76: ='tabla 2012'!AT76/100 -> 0.112 | CJ76: ='tabla 2012'!$AT$5/100 -> 0.1392 | CM76: ='tabla 2012'!AN76 -> 100 | CN76: ='tabla 2012'!$AN$5 -> 993 | CP76: 0.0272 | CQ76: 0.03169552114 | CR76: 0.01099043572 | CS76: 0.03354691846 | CT76: 0.8108047252 | CU76: 0.417654653 | CV76: NOT SIG. | CY76: ='tabla 2012'!BC76/100 -> 0.035 | CZ76: ='tabla 2012'!$BC$5/100 -> 0.0716 | DC76: ='tabla 2012'!AW76 -> 100 | DD76: ='tabla 2012'!$AW$5 -> 999 | DF76: 0.0366 | DG76: 0.0184705608 | DH76: 0.008161289929 | DI76: 0.02019327288 | DJ76: 1.812484793 | DK76: 0.07018458616 | DL76: NOT SIG. | DO76: ='tabla 2012'!BK76/100 -> 0.0325 | DP76: ='tabla 2012'!$BK$5/100 -> 0.0482 | DS76: ='tabla 2012'!BF76 -> 100 | DT76: ='tabla 2012'!$BF$5 -> 996 | DV76: 0.0157 | DW76: 0.01782171811 | DX76: 0.006790235378 | DY76: 0.01907146908 | DZ76: 0.8232192253 | EA76: 0.4105627477 | EB76: NOT SIG. | EE76: ='tabla 2012'!BO76/100 -> 0.1223 | EF76: ='tabla 2012'!$BO$5/100 -> 0.1346 | EI76: ='tabla 2012'!BN76 -> 99 | EJ76: ='tabla 2012'!$BN$5 -> 959 | EL76: 0.0123 | EM76: 0.03309582716 | EN76: 0.01102676758 | EO76: 0.03488442889 | EP76: 0.3525928442 | EQ76: 0.7244640632 | ER76: NOT SIG.
A77: ='tabla 2012'!A77 -> 2013 | B77: ='tabla 2012'!B77 -> lakóhely | C77: ='tabla 2012'!C77 -> Dél-Kelet | D77: ='tabla 2012'!D77 -> 100 | E77: ='tabla 2012'!E77 -> BKV | F77: ='tabla 2012'!F77 -> bottom2 | G77: ='tabla 2012'!K77/100 -> 0 | H77: ='tabla 2012'!$K$5/100 -> 0 | K77: ='tabla 2012'!G77 -> 0 | L77: ='tabla 2012'!$G$5 -> 0 | N77: 0 | O77: 0 | P77: 0 | Q77: 0 | R77: 0 | S77: 1 | T77: NOT SIG. | W77: ='tabla 2012'!R77/100 -> 0.2313 | X77: ='tabla 2012'!$R$5/100 -> 0.1638 | AA77: ='tabla 2012'!N77 -> 98 | AB77: ='tabla 2012'!$N$5 -> 993 | AD77: -0.0675 | AE77: 0.04281346618 | AF77: 0.01175049587 | AG77: 0.04439670078 | AH77: 1.520383245 | AI77: 0.1287049607 | AJ77: NOT SIG. | AM77: ='tabla 2012'!Y77/100 -> 0.1818 | AN77: ='tabla 2012'!$Y$5/100 -> 0.1595 | AQ77: ='tabla 2012'!U77 -> 99 | AR77: ='tabla 2012'!$U$5 -> 997 | AT77: -0.0223 | AU77: 0.03895952374 | AV77: 0.01160164396 | AW77: 0.04065024763 | AX77: 0.548582144 | AY77: 0.5834041733 | AZ77: NOT SIG. | BC77: ='tabla 2012'!AE77/100 -> 0.1869 | BD77: ='tabla 2012'!$AE$5/100 -> 0.2174 | BG77: ='tabla 2012'!AB77 -> 99 | BH77: ='tabla 2012'!$AB$5 -> 998 | BJ77: 0.0305 | BK77: 0.03937890117 | BL77: 0.0130632763 | BM77: 0.04148911959 | BN77: 0.7351324949 | BO77: 0.4624162195 | BP77: NOT SIG. | BS77: ='tabla 2012'!AK77/100 -> 0.197 | BT77: ='tabla 2012'!$AK$5/100 -> 0.1352 | BW77: ='tabla 2012'!AH77 -> 99 | BX77: ='tabla 2012'!$AH$5 -> 995 | BZ77: -0.0618 | CA77: 0.04017703172 | CB77: 0.01084558529 | CC77: 0.04161514866 | CD77: 1.485036147 | CE77: 0.137822854 | CF77: NOT SIG. | CI77: ='tabla 2012'!AT77/100 -> 0.1556 | CJ77: ='tabla 2012'!$AT$5/100 -> 0.1392 | CM77: ='tabla 2012'!AN77 -> 99 | CN77: ='tabla 2012'!$AN$5 -> 993 | CP77: -0.0164 | CQ77: 0.03661557603 | CR77: 0.01099043572 | CS77: 0.03822944004 | CT77: 0.428988758 | CU77: 0.6680161761 | CV77: NOT SIG. | CY77: ='tabla 2012'!BC77/100 -> 0.1061 | CZ77: ='tabla 2012'!$BC$5/100 -> 0.0716 | DC77: ='tabla 2012'!AW77 -> 99 | DD77: ='tabla 2012'!$AW$5 -> 999 | DF77: -0.0345 | DG77: 0.03110922004 | DH77: 0.008161289929 | DI77: 0.03216193752 | DJ77: 1.072696568 | DK77: 0.2836434111 | DL77: NOT SIG. | DO77: ='tabla 2012'!BK77/100 -> 0.0102 | DP77: ='tabla 2012'!$BK$5/100 -> 0.0482 | DS77: ='tabla 2012'!BF77 -> 98 | DT77: ='tabla 2012'!$BF$5 -> 996 | DV77: 0.038 | DW77: 0.01020206165 | DX77: 0.006790235378 | DY77: 0.0122551768 | DZ77: 3.100730461 | EA77: 0.001979906232 | EB77: SIG | EC77: Dél-Kelet | EE77: ='tabla 2012'!BO77/100 -> 0.1536 | EF77: ='tabla 2012'!$BO$5/100 -> 0.1346 | EI77: ='tabla 2012'!BN77 -> 97 | EJ77: ='tabla 2012'!$BN$5 -> 959 | EL77: -0.019 | EM77: 0.0368 | EN77: 0.01102676758 | EO77: 0.03841652774 | EP77: 0.4945787951 | EQ77: 0.6210005425 | ER77: NOT SIG.
A78: ='tabla 2012'!A78 -> 2013 | B78: ='tabla 2012'!B78 -> lakóhely | C78: ='tabla 2012'!C78 -> Észak-Kelet | D78: ='tabla 2012'!D78 -> 100 | E78: ='tabla 2012'!E78 -> BKV | F78: ='tabla 2012'!F78 -> bottom2 | G78: ='tabla 2012'!K78/100 -> 0 | H78: ='tabla 2012'!$K$5/100 -> 0 | K78: ='tabla 2012'!G78 -> 0 | L78: ='tabla 2012'!$G$5 -> 0 | N78: 0 | O78: 0 | P78: 0 | Q78: 0 | R78: 0 | S78: 1 | T78: NOT SIG. | W78: ='tabla 2012'!R78/100 -> 0.0748 | X78: ='tabla 2012'!$R$5/100 -> 0.1638 | AA78: ='tabla 2012'!N78 -> 98 | AB78: ='tabla 2012'!$N$5 -> 993 | AD78: 0.089 | AE78: 0.02671054466 | AF78: 0.01175049587 | AG78: 0.02918094154 | AH78: 3.049935859 | AI78: 0.00234423356 | AJ78: SIG | AK78: Észak-Kelet | AM78: ='tabla 2012'!Y78/100 -> 0.135 | AN78: ='tabla 2012'!$Y$5/100 -> 0.1595 | AQ78: ='tabla 2012'!U78 -> 100 | AR78: ='tabla 2012'!$U$5 -> 997 | AT78: 0.0245 | AU78: 0.03434451127 | AV78: 0.01160164396 | AW78: 0.03625111856 | AX78: 0.6758412146 | AY78: 0.4992841699 | AZ78: NOT SIG. | BC78: ='tabla 2012'!AE78/100 -> 0.36 | BD78: ='tabla 2012'!$AE$5/100 -> 0.2174 | BG78: ='tabla 2012'!AB78 -> 100 | BH78: ='tabla 2012'!$AB$5 -> 998 | BJ78: -0.1426 | BK78: 0.04824181513 | BL78: 0.0130632763 | BM78: 0.04997921483 | BN78: 2.853186079 | BO78: 0.004409732211 | BP78: SIG | BR78: Észak-Kelet | BS78: ='tabla 2012'!AK78/100 -> 0.0816 | BT78: ='tabla 2012'!$AK$5/100 -> 0.1352 | BW78: ='tabla 2012'!AH78 -> 98 | BX78: ='tabla 2012'!$AH$5 -> 995 | BZ78: 0.0536 | CA78: 0.02779554218 | CB78: 0.01084558529 | CC78: 0.02983653608 | CD78: 1.796455187 | CE78: 0.07269869094 | CF78: NOT SIG. | CI78: ='tabla 2012'!AT78/100 -> 0.136 | CJ78: ='tabla 2012'!$AT$5/100 -> 0.1392 | CM78: ='tabla 2012'!AN78 -> 100 | CN78: ='tabla 2012'!$AN$5 -> 993 | CP78: 0.0032 | CQ78: 0.034451547 | CR78: 0.01099043572 | CS78: 0.03616211786 | CT78: 0.08849039241 | CU78: 0.9295031602 | CV78: NOT SIG. | CY78: ='tabla 2012'!BC78/100 -> 0.04 | CZ78: ='tabla 2012'!$BC$5/100 -> 0.0716 | DC78: ='tabla 2012'!AW78 -> 100 | DD78: ='tabla 2012'!$AW$5 -> 999 | DF78: 0.0316 | DG78: 0.01969463856 | DH78: 0.008161289929 | DI78: 0.02131866415 | DJ78: 1.482269235 | DK78: 0.1385558669 | DL78: NOT SIG. | DO78: ='tabla 2012'!BK78/100 -> 0.04 | DP78: ='tabla 2012'!$BK$5/100 -> 0.0482 | DS78: ='tabla 2012'!BF78 -> 100 | DT78: ='tabla 2012'!$BF$5 -> 996 | DV78: 0.0082 | DW78: 0.01969463856 | DX78: 0.006790235378 | DY78: 0.02083233267 | DZ78: 0.3936189063 | EA78: 0.6939391208 | EB78: NOT SIG. | EE78: ='tabla 2012'!BO78/100 -> 0.1356 | EF78: ='tabla 2012'!$BO$5/100 -> 0.1346 | EI78: ='tabla 2012'!BN78 -> 96 | EJ78: ='tabla 2012'!$BN$5 -> 959 | EL78: -0.001 | EM78: 0.03512573506 | EN78: 0.01102676758 | EO78: 0.03681585075 | EP78: 0.02716221355 | EQ78: 0.9783355005 | ER78: NOT SIG.
U79: =U69&IF(U69="","","; ")&U70&IF(U70="","","; ")&U71&IF(U71="","","; ")&U72&IF(U72="","","; ")&U73&IF(U73="","","; ")&U74&IF(U74="","","; ")&U75&IF(U75="","","; ")&U76&IF(U76="","","; ")&U77&IF(U77="","","; ")&U78 ->  | V79: =V69&IF(V69="","","; ")&V70&IF(V70="","","; ")&V71&IF(V71="","","; ")&V72&IF(V72="","","; ")&V73&IF(V73="","","; ")&V74&IF(V74="","","; ")&V75&IF(V75="","","; ")&V76&IF(V76="","","; ")&V77&IF(V77="","","; ")&V78 ->  | AK79: =AK69&IF(AK69="","","; ")&AK70&IF(AK70="","","; ")&AK71&IF(AK71="","","; ")&AK72&IF(AK72="","","; ")&AK73&IF(AK73="","","; ")&AK74&IF(AK74="","","; ")&AK75&IF(AK75="","","; ")&AK76&IF(AK76="","","; ")&AK77&IF(AK77="","","; ")&AK78 -> Belváros; Észak-Kelet | AL79: =AL69&IF(AL69="","","; ")&AL70&IF(AL70="","","; ")&AL71&IF(AL71="","","; ")&AL72&IF(AL72="","","; ")&AL73&IF(AL73="","","; ")&AL74&IF(AL74="","","; ")&AL75&IF(AL75="","","; ")&AL76&IF(AL76="","","; ")&AL77&IF(AL77="","","; ")&AL78 ->  | BA79: =BA69&IF(BA69="","","; ")&BA70&IF(BA70="","","; ")&BA71&IF(BA71="","","; ")&BA72&IF(BA72="","","; ")&BA73&IF(BA73="","","; ")&BA74&IF(BA74="","","; ")&BA75&IF(BA75="","","; ")&BA76&IF(BA76="","","; ")&BA77&IF(BA77="","","; ")&BA78 -> Dél-Pest; Kelet-Pest; Észak-Nyugat; | BB79: =BB69&IF(BB69="","","; ")&BB70&IF(BB70="","","; ")&BB71&IF(BB71="","","; ")&BB72&IF(BB72="","","; ")&BB73&IF(BB73="","","; ")&BB74&IF(BB74="","","; ")&BB75&IF(BB75="","","; ")&BB76&IF(BB76="","","; ")&BB77&IF(BB77="","","; ")&BB78 -> Dél-Nyugat; | BQ79: =BQ69&IF(BQ69="","","; ")&BQ70&IF(BQ70="","","; ")&BQ71&IF(BQ71="","","; ")&BQ72&IF(BQ72="","","; ")&BQ73&IF(BQ73="","","; ")&BQ74&IF(BQ74="","","; ")&BQ75&IF(BQ75="","","; ")&BQ76&IF(BQ76="","","; ")&BQ77&IF(BQ77="","","; ")&BQ78 -> Kelet-Pest; Észak-Nyugat; | BR79: =BR69&IF(BR69="","","; ")&BR70&IF(BR70="","","; ")&BR71&IF(BR71="","","; ")&BR72&IF(BR72="","","; ")&BR73&IF(BR73="","","; ")&BR74&IF(BR74="","","; ")&BR75&IF(BR75="","","; ")&BR76&IF(BR76="","","; ")&BR77&IF(BR77="","","; ")&BR78 -> Dél-Pest; Észak-Kelet | CG79: =CG69&IF(CG69="","","; ")&CG70&IF(CG70="","","; ")&CG71&IF(CG71="","","; ")&CG72&IF(CG72="","","; ")&CG73&IF(CG73="","","; ")&CG74&IF(CG74="","","; ")&CG75&IF(CG75="","","; ")&CG76&IF(CG76="","","; ")&CG77&IF(CG77="","","; ")&CG78 -> Belváros; | CH79: =CH69&IF(CH69="","","; ")&CH70&IF(CH70="","","; ")&CH71&IF(CH71="","","; ")&CH72&IF(CH72="","","; ")&CH73&IF(CH73="","","; ")&CH74&IF(CH74="","","; ")&CH75&IF(CH75="","","; ")&CH76&IF(CH76="","","; ")&CH77&IF(CH77="","","; ")&CH78 ->  | CW79: =CW69&IF(CW69="","","; ")&CW70&IF(CW70="","","; ")&CW71&IF(CW71="","","; ")&CW72&IF(CW72="","","; ")&CW73&IF(CW73="","","; ")&CW74&IF(CW74="","","; ")&CW75&IF(CW75="","","; ")&CW76&IF(CW76="","","; ")&CW77&IF(CW77="","","; ")&CW78 -> Dél-Buda; Kelet-Pest; Belváros; | CX79: =CX69&IF(CX69="","","; ")&CX70&IF(CX70="","","; ")&CX71&IF(CX71="","","; ")&CX72&IF(CX72="","","; ")&CX73&IF(CX73="","","; ")&CX74&IF(CX74="","","; ")&CX75&IF(CX75="","","; ")&CX76&IF(CX76="","","; ")&CX77&IF(CX77="","","; ")&CX78 -> Észak-Pest; Dél-Nyugat; | DM79: =DM69&IF(DM69="","","; ")&DM70&IF(DM70="","","; ")&DM71&IF(DM71="","","; ")&DM72&IF(DM72="","","; ")&DM73&IF(DM73="","","; ")&DM74&IF(DM74="","","; ")&DM75&IF(DM75="","","; ")&DM76&IF(DM76="","","; ")&DM77&IF(DM77="","","; ")&DM78 -> Dél-Buda; Dél-Pest; Kelet-Pest; | DN79: =DN69&IF(DN69="","","; ")&DN70&IF(DN70="","","; ")&DN71&IF(DN71="","","; ")&DN72&IF(DN72="","","; ")&DN73&IF(DN73="","","; ")&DN74&IF(DN74="","","; ")&DN75&IF(DN75="","","; ")&DN76&IF(DN76="","","; ")&DN77&IF(DN77="","","; ")&DN78 -> Észak-Pest; | EC79: =EC69&IF(EC69="","","; ")&EC70&IF(EC70="","","; ")&EC71&IF(EC71="","","; ")&EC72&IF(EC72="","","; ")&EC73&IF(EC73="","","; ")&EC74&IF(EC74="","","; ")&EC75&IF(EC75="","","; ")&EC76&IF(EC76="","","; ")&EC77&IF(EC77="","","; ")&EC78 -> Dél-Buda; Kelet-Pest; Dél-Kelet; | ED79: =ED69&IF(ED69="","","; ")&ED70&IF(ED70="","","; ")&ED71&IF(ED71="","","; ")&ED72&IF(ED72="","","; ")&ED73&IF(ED73="","","; ")&ED74&IF(ED74="","","; ")&ED75&IF(ED75="","","; ")&ED76&IF(ED76="","","; ")&ED77&IF(ED77="","","; ")&ED78 -> Észak-Pest; | ES79: =ES69&IF(ES69="","","; ")&ES70&IF(ES70="","","; ")&ES71&IF(ES71="","","; ")&ES72&IF(ES72="","","; ")&ES73&IF(ES73="","","; ")&ES74&IF(ES74="","","; ")&ES75&IF(ES75="","","; ")&ES76&IF(ES76="","","; ")&ES77&IF(ES77="","","; ")&ES78 -> Kelet-Pest; | ET79: =ET69&IF(ET69="","","; ")&ET70&IF(ET70="","","; ")&ET71&IF(ET71="","","; ")&ET72&IF(ET72="","","; ")&ET73&IF(ET73="","","; ")&ET74&IF(ET74="","","; ")&ET75&IF(ET75="","","; ")&ET76&IF(ET76="","","; ")&ET77&IF(ET77="","","; ")&ET78 -> 
A80: ='tabla 2012'!A79 -> 2013 | B80: ='tabla 2012'!B79 -> nem | C80: ='tabla 2012'!C79 -> férfi | D80: ='tabla 2012'!D79 -> 349 | E80: ='tabla 2012'!E79 -> BKV | F80: ='tabla 2012'!F79 -> bottom2 | G80: ='tabla 2012'!K79/100 -> 0 | H80: ='tabla 2012'!$K$5/100 -> 0 | K80: ='tabla 2012'!G79 -> 0 | L80: ='tabla 2012'!$G$5 -> 0 | N80: 0 | O80: 0 | P80: =IF((L80-1)=0,0,SQRT((1-H80)*H80/(L80-1))) -> 0 | Q80: 0 | R80: 0 | S80: =IF(R80=0,1,TDIST(R80,K80+L80-2,$B$2)) -> 1 | T80: NOT SIG. | W80: ='tabla 2012'!R79/100 -> 0.1551 | X80: ='tabla 2012'!$R$5/100 -> 0.1638 | AA80: ='tabla 2012'!N79 -> 346 | AB80: ='tabla 2012'!$N$5 -> 993 | AD80: 0.0087 | AE80: 0.01948942411 | AF80: 0.01175049587 | AG80: 0.02275767575 | AH80: 0.3822886 | AI80: 0.702308067 | AJ80: NOT SIG. | AM80: ='tabla 2012'!Y79/100 -> 0.1739 | AN80: ='tabla 2012'!$Y$5/100 -> 0.1595 | AQ80: ='tabla 2012'!U79 -> 348 | AR80: ='tabla 2012'!$U$5 -> 997 | AT80: -0.0144 | AU80: 0.0203470459 | AV80: 0.01160164396 | AW80: 0.02342222063 | AX80: 0.6148008008 | AY80: 0.5387904277 | AZ80: NOT SIG. | BC80: ='tabla 2012'!AE79/100 -> 0.1977 | BD80: ='tabla 2012'!$AE$5/100 -> 0.2174 | BG80: ='tabla 2012'!AB79 -> 349 | BH80: ='tabla 2012'!$AB$5 -> 998 | BJ80: 0.0197 | BK80: 0.02134922473 | BL80: 0.0130632763 | BM80: 0.02502875515 | BN80: 0.7870946791 | BO80: 0.4313651122 | BP80: NOT SIG. | BS80: ='tabla 2012'!AK79/100 -> 0.134 | BT80: ='tabla 2012'!$AK$5/100 -> 0.1352 | BW80: ='tabla 2012'!AH79 -> 347 | BX80: ='tabla 2012'!$AH$5 -> 995 | BZ80: 0.0012 | CA80: 0.01831358193 | CB80: 0.01084558529 | CC80: 0.02128412562 | CD80: 0.05638004686 | CE80: 0.9550474572 | CF80: NOT SIG. | CI80: ='tabla 2012'!AT79/100 -> 0.1445 | CJ80: ='tabla 2012'!$AT$5/100 -> 0.1392 | CM80: ='tabla 2012'!AN79 -> 346 | CN80: ='tabla 2012'!$AN$5 -> 993 | CP80: -0.0053 | CQ80: 0.01892929254 | CR80: 0.01099043572 | CS80: 0.02188853109 | CT80: 0.2421359377 | CU80: 0.8087119669 | CV80: NOT SIG. | CY80: ='tabla 2012'!BC79/100 -> 0.0774 | CZ80: ='tabla 2012'!$BC$5/100 -> 0.0716 | DC80: ='tabla 2012'!AW79 -> 349 | DD80: ='tabla 2012'!$AW$5 -> 999 | DF80: =CZ80-CY80 -> -0.0058 | DG80: =IF((DC80-1)=0,0,SQRT((1-CY80)*CY80/(DC80-1))) -> 0.01432476756 | DH80: =IF((DD80-1)=0,0,SQRT((1-CZ80)*CZ80/(DD80-1))) -> 0.008161289929 | DI80: 0.0164865284 | DJ80: 0.3518023842 | DK80: =IF(DJ80=0,1,TDIST(DJ80,DC80+DD80-2,$B$2)) -> 0.7250415372 | DL80: NOT SIG. | DO80: ='tabla 2012'!BK79/100 -> 0.0553 | DP80: ='tabla 2012'!$BK$5/100 -> 0.0482 | DS80: ='tabla 2012'!BF79 -> 348 | DT80: ='tabla 2012'!$BF$5 -> 996 | DV80: =DP80-DO80 -> -0.0071 | DW80: =IF((DS80-1)=0,0,SQRT((1-DO80)*DO80/(DS80-1))) -> 0.01227000631 | DX80: =IF((DT80-1)=0,0,SQRT((1-DP80)*DP80/(DT80-1))) -> 0.006790235378 | DY80: 0.01402356414 | DZ80: 0.5062906925 | EA80: =IF(DZ80=0,1,TDIST(DZ80,DS80+DT80-2,$B$2)) -> 0.612735757 | EB80: NOT SIG. | EE80: ='tabla 2012'!BO79/100 -> 0.1361 | EF80: ='tabla 2012'!$BO$5/100 -> 0.1346 | EI80: ='tabla 2012'!BN79 -> 335 | EJ80: ='tabla 2012'!$BN$5 -> 959 | EL80: =EF80-EE80 -> -0.0015 | EM80: =IF((EI80-1)=0,0,SQRT((1-EE80)*EE80/(EI80-1))) -> 0.01876236439 | EN80: =IF((EJ80-1)=0,0,SQRT((1-EF80)*EF80/(EJ80-1))) -> 0.01102676758 | EO80: 0.0217627186 | EP80: 0.06892521232 | EQ80: =IF(EP80=0,1,TDIST(EP80,EI80+EJ80-2,$B$2)) -> 0.9450598152 | ER80: NOT SIG.
A81: ='tabla 2012'!A80 -> 2013 | B81: ='tabla 2012'!B80 -> nem | C81: ='tabla 2012'!C80 -> nő | D81: ='tabla 2012'!D80 -> 652 | E81: ='tabla 2012'!E80 -> BKV | F81: ='tabla 2012'!F80 -> bottom2 | G81: ='tabla 2012'!K80/100 -> 0 | H81: ='tabla 2012'!$K$5/100 -> 0 | K81: ='tabla 2012'!G80 -> 0 | L81: ='tabla 2012'!$G$5 -> 0 | N81: 0 | O81: 0 | P81: =IF((L81-1)=0,0,SQRT((1-H81)*H81/(L81-1))) -> 0 | Q81: 0 | R81: 0 | S81: =IF(R81=0,1,TDIST(R81,K81+L81-2,$B$2)) -> 1 | T81: NOT SIG. | W81: ='tabla 2012'!R80/100 -> 0.1685 | X81: ='tabla 2012'!$R$5/100 -> 0.1638 | AA81: ='tabla 2012'!N80 -> 647 | AB81: ='tabla 2012'!$N$5 -> 993 | AD81: =X81-W81 -> -0.0047 | AE81: =IF((AA81-1)=0,0,SQRT((1-W81)*W81/(AA81-1))) -> 0.01472701809 | AF81: =IF((AB81-1)=0,0,SQRT((1-X81)*X81/(AB81-1))) -> 0.01175049587 | AG81: 0.01884036133 | AH81: =IF(AG81>0,ABS(AD81)/AG81,0) -> 0.24946443 | AI81: =IF(AH81=0,1,TDIST(AH81,AA81+AB81-2,$B$2)) -> 0.8030328306 | AJ81: NOT SIG. | AM81: ='tabla 2012'!Y80/100 -> 0.1518 | AN81: ='tabla 2012'!$Y$5/100 -> 0.1595 | AQ81: ='tabla 2012'!U80 -> 649 | AR81: ='tabla 2012'!$U$5 -> 997 | AT81: =AN81-AM81 -> 0.0077 | AU81: =IF((AQ81-1)=0,0,SQRT((1-AM81)*AM81/(AQ81-1))) -> 0.01409605277 | AV81: =IF((AR81-1)=0,0,SQRT((1-AN81)*AN81/(AR81-1))) -> 0.01160164396 | AW81: 0.01825641932 | AX81: =IF(AW81>0,ABS(AT81)/AW81,0) -> 0.4217694536 | AY81: =IF(AX81=0,1,TDIST(AX81,AQ81+AR81-2,$B$2)) -> 0.673248447 | AZ81: NOT SIG. | BC81: ='tabla 2012'!AE80/100 -> 0.228 | BD81: ='tabla 2012'!$AE$5/100 -> 0.2174 | BG81: ='tabla 2012'!AB80 -> 649 | BH81: ='tabla 2012'!$AB$5 -> 998 | BJ81: =BD81-BC81 -> -0.0106 | BK81: =IF((BG81-1)=0,0,SQRT((1-BC81)*BC81/(BG81-1))) -> 0.01648119018 | BL81: =IF((BH81-1)=0,0,SQRT((1-BD81)*BD81/(BH81-1))) -> 0.0130632763 | BM81: 0.02103042599 | BN81: =IF(BM81>0,ABS(BJ81)/BM81,0) -> 0.5040316352 | BO81: =IF(BN81=0,1,TDIST(BN81,BG81+BH81-2,$B$2)) -> 0.6143066427 | BP81: NOT SIG. | BS81: ='tabla 2012'!AK80/100 -> 0.1358 | BT81: ='tabla 2012'!$AK$5/100 -> 0.1352 | BW81: ='tabla 2012'!AH80 -> 648 | BX81: ='tabla 2012'!$AH$5 -> 995 | BZ81: -0.0006 | CA81: 0.01346805483 | CB81: 0.01084558529 | CC81: 0.01729205659 | CD81: 0.03469801275 | CE81: 0.9723247655 | CF81: NOT SIG. | CI81: ='tabla 2012'!AT80/100 -> 0.1363 | CJ81: ='tabla 2012'!$AT$5/100 -> 0.1392 | CM81: ='tabla 2012'!AN80 -> 647 | CN81: ='tabla 2012'!$AN$5 -> 993 | CP81: 0.0029 | CQ81: 0.01349935843 | CR81: 0.01099043572 | CS81: 0.01740753732 | CT81: 0.1665945014 | CU81: 0.867709682 | CV81: NOT SIG. | CY81: ='tabla 2012'!BC80/100 -> 0.0685 | CZ81: ='tabla 2012'!$BC$5/100 -> 0.0716 | DC81: ='tabla 2012'!AW80 -> 650 | DD81: ='tabla 2012'!$AW$5 -> 999 | DF81: =CZ81-CY81 -> 0.0031 | DG81: =IF((DC81-1)=0,0,SQRT((1-CY81)*CY81/(DC81-1))) -> 0.009915494249 | DH81: =IF((DD81-1)=0,0,SQRT((1-CZ81)*CZ81/(DD81-1))) -> 0.008161289929 | DI81: 0.01284226146 | DJ81: 0.2413905066 | DK81: =IF(DJ81=0,1,TDIST(DJ81,DC81+DD81-2,$B$2)) -> 0.8092825179 | DL81: NOT SIG. | DO81: ='tabla 2012'!BK80/100 -> 0.0444 | DP81: ='tabla 2012'!$BK$5/100 -> 0.0482 | DS81: ='tabla 2012'!BF80 -> 648 | DT81: ='tabla 2012'!$BF$5 -> 996 | DV81: =DP81-DO81 -> 0.0038 | DW81: =IF((DS81-1)=0,0,SQRT((1-DO81)*DO81/(DS81-1))) -> 0.00809799334 | DX81: =IF((DT81-1)=0,0,SQRT((1-DP81)*DP81/(DT81-1))) -> 0.006790235378 | DY81: 0.0105681026 | DZ81: 0.3595725877 | EA81: =IF(DZ81=0,1,TDIST(DZ81,DS81+DT81-2,$B$2)) -> 0.7192130229 | EB81: NOT SIG. | EE81: ='tabla 2012'!BO80/100 -> 0.1338 | EF81: ='tabla 2012'!$BO$5/100 -> 0.1346 | EI81: ='tabla 2012'!BN80 -> 624 | EJ81: ='tabla 2012'!$BN$5 -> 959 | EL81: =EF81-EE81 -> 0.0008 | EM81: =IF((EI81-1)=0,0,SQRT((1-EE81)*EE81/(EI81-1))) -> 0.0136393327 | EN81: =IF((EJ81-1)=0,0,SQRT((1-EF81)*EF81/(EJ81-1))) -> 0.01102676758 | EO81: 0.01753912768 | EP81: 0.04561230265 | EQ81: =IF(EP81=0,1,TDIST(EP81,EI81+EJ81-2,$B$2)) -> 0.9636250236 | ER81: NOT SIG.
U82: =U80&IF(U80="","","; ")&U81 ->  | V82: =V80&IF(V80="","","; ")&V81 ->  | AK82: =AK80&IF(AK80="","","; ")&AK81 ->  | AL82: =AL80&IF(AL80="","","; ")&AL81 ->  | BA82: =BA80&IF(BA80="","","; ")&BA81 ->  | BB82: =BB80&IF(BB80="","","; ")&BB81 ->  | BQ82: =BQ80&IF(BQ80="","","; ")&BQ81 ->  | BR82: =BR80&IF(BR80="","","; ")&BR81 ->  | CG82: =CG80&IF(CG80="","","; ")&CG81 ->  | CH82: =CH80&IF(CH80="","","; ")&CH81 ->  | CW82: =CW80&IF(CW80="","","; ")&CW81 ->  | CX82: =CX80&IF(CX80="","","; ")&CX81 ->  | DM82: =DM80&IF(DM80="","","; ")&DM81 ->  | DN82: =DN80&IF(DN80="","","; ")&DN81 ->  | EC82: =EC80&IF(EC80="","","; ")&EC81 ->  | ED82: =ED80&IF(ED80="","","; ")&ED81 ->  | ES82: =ES80&IF(ES80="","","; ")&ES81 ->  | ET82: =ET80&IF(ET80="","","; ")&ET81 -> 
A83: ='tabla 2012'!A81 -> 2013 | B83: ='tabla 2012'!B81 -> életkor | C83: ='tabla 2012'!C81 -> 14-29 éves | D83: ='tabla 2012'!D81 -> 201 | E83: ='tabla 2012'!E81 -> BKV | F83: ='tabla 2012'!F81 -> bottom2 | G83: ='tabla 2012'!K81/100 -> 0 | H83: ='tabla 2012'!$K$5/100 -> 0 | K83: ='tabla 2012'!G81 -> 0 | L83: ='tabla 2012'!$G$5 -> 0 | N83: 0 | O83: 0 | P83: =IF((L83-1)=0,0,SQRT((1-H83)*H83/(L83-1))) -> 0 | Q83: 0 | R83: 0 | S83: =IF(R83=0,1,TDIST(R83,K83+L83-2,$B$2)) -> 1 | T83: NOT SIG. | W83: ='tabla 2012'!R81/100 -> 0.1431 | X83: ='tabla 2012'!$R$5/100 -> 0.1638 | AA83: ='tabla 2012'!N81 -> 198 | AB83: ='tabla 2012'!$N$5 -> 993 | AD83: 0.0207 | AE83: 0.02494892142 | AF83: 0.01175049587 | AG83: 0.02757757845 | AH83: 0.7506097765 | AI83: 0.4530360505 | AJ83: NOT SIG. | AM83: ='tabla 2012'!Y81/100 -> 0.1866 | AN83: ='tabla 2012'!$Y$5/100 -> 0.1595 | AQ83: ='tabla 2012'!U81 -> 201 | AR83: ='tabla 2012'!$U$5 -> 997 | AT83: -0.0271 | AU83: 0.02754817961 | AV83: 0.01160164396 | AW83: 0.02989147609 | AX83: 0.906612973 | AY83: 0.364794115 | AZ83: NOT SIG. | BC83: ='tabla 2012'!AE81/100 -> 0.21 | BD83: ='tabla 2012'!$AE$5/100 -> 0.2174 | BG83: ='tabla 2012'!AB81 -> 200 | BH83: ='tabla 2012'!$AB$5 -> 998 | BJ83: 0.0074 | BK83: 0.02887331539 | BL83: 0.0130632763 | BM83: 0.03169096921 | BN83: 0.2335050074 | BO83: 0.8154092407 | BP83: NOT SIG. | BS83: ='tabla 2012'!AK81/100 -> 0.1119 | BT83: ='tabla 2012'!$AK$5/100 -> 0.1352 | BW83: ='tabla 2012'!AH81 -> 201 | BX83: ='tabla 2012'!$AH$5 -> 995 | BZ83: =BT83-BS83 -> 0.0233 | CA83: =IF((BW83-1)=0,0,SQRT((1-BS83)*BS83/(BW83-1))) -> 0.02229107333 | CB83: =IF((BX83-1)=0,0,SQRT((1-BT83)*BT83/(BX83-1))) -> 0.01084558529 | CC83: =SQRT(CA83*CA83+CB83*CB83) -> 0.02478948709 | CD83: =IF(CC83>0,ABS(BZ83)/CC83,0) -> 0.9399145659 | CE83: =IF(CD83=0,1,TDIST(CD83,BW83+BX83-2,$B$2)) -> 0.3474514899 | CF83: =IF(CE83<=($B$1),"SIG","NOT SIG.") -> NOT SIG. | CI83: ='tabla 2012'!AT81/100 -> 0.17 | CJ83: ='tabla 2012'!$AT$5/100 -> 0.1392 | CM83: ='tabla 2012'!AN81 -> 200 | CN83: ='tabla 2012'!$AN$5 -> 993 | CP83: =CJ83-CI83 -> -0.0308 | CQ83: =IF((CM83-1)=0,0,SQRT((1-CI83)*CI83/(CM83-1))) -> 0.02662790315 | CR83: =IF((CN83-1)=0,0,SQRT((1-CJ83)*CJ83/(CN83-1))) -> 0.01099043572 | CS83: =SQRT(CQ83*CQ83+CR83*CR83) -> 0.02880685515 | CT83: =IF(CS83>0,ABS(CP83)/CS83,0) -> 1.069189949 | CU83: =IF(CT83=0,1,TDIST(CT83,CM83+CN83-2,$B$2)) -> 0.2852007317 | CV83: =IF(CU83<=($B$1),"SIG","NOT SIG.") -> NOT SIG. | CY83: ='tabla 2012'!BC81/100 -> 0.0622 | CZ83: ='tabla 2012'!$BC$5/100 -> 0.0716 | DC83: ='tabla 2012'!AW81 -> 201 | DD83: ='tabla 2012'!$AW$5 -> 999 | DF83: =CZ83-CY83 -> 0.0094 | DG83: =IF((DC83-1)=0,0,SQRT((1-CY83)*CY83/(DC83-1))) -> 0.01707793313 | DH83: 0.008161289929 | DI83: =SQRT(DG83*DG83+DH83*DH83) -> 0.0189278222 | DJ83: =IF(DI83>0,ABS(DF83)/DI83,0) -> 0.4966234308 | DK83: =IF(DJ83=0,1,TDIST(DJ83,DC83+DD83-2,$B$2)) -> 0.6195457394 | DL83: =IF(DK83<=($B$1),"SIG","NOT SIG.") -> NOT SIG. | DO83: ='tabla 2012'!BK81/100 -> 0.0672 | DP83: ='tabla 2012'!$BK$5/100 -> 0.0482 | DS83: ='tabla 2012'!BF81 -> 201 | DT83: ='tabla 2012'!$BF$5 -> 996 | DV83: =DP83-DO83 -> -0.019 | DW83: =IF((DS83-1)=0,0,SQRT((1-DO83)*DO83/(DS83-1))) -> 0.01770369453 | DX83: 0.006790235378 | DY83: =SQRT(DW83*DW83+DX83*DX83) -> 0.01896122613 | DZ83: =IF(DY83>0,ABS(DV83)/DY83,0) -> 1.002044903 | EA83: =IF(DZ83=0,1,TDIST(DZ83,DS83+DT83-2,$B$2)) -> 0.3165247635 | EB83: =IF(EA83<=($B$1),"SIG","NOT SIG.") -> NOT SIG. | EE83: ='tabla 2012'!BO81/100 -> 0.1354 | EF83: ='tabla 2012'!$BO$5/100 -> 0.1346 | EI83: ='tabla 2012'!BN81 -> 189 | EJ83: ='tabla 2012'!$BN$5 -> 959 | EL83: =EF83-EE83 -> -0.0008 | EM83: =IF((EI83-1)=0,0,SQRT((1-EE83)*EE83/(EI83-1))) -> 0.0249538766 | EN83: 0.01102676758 | EO83: =SQRT(EM83*EM83+EN83*EN83) -> 0.02728159747 | EP83: =IF(EO83>0,ABS(EL83)/EO83,0) -> 0.02932379604 | EQ83: =IF(EP83=0,1,TDIST(EP83,EI83+EJ83-2,$B$2)) -> 0.9766114543 | ER83: =IF(EQ83<=($B$1),"SIG","NOT SIG.") -> NOT SIG.
A84: ='tabla 2012'!A82 -> 2013 | B84: ='tabla 2012'!B82 -> életkor | C84: ='tabla 2012'!C82 -> 30-39 éves | D84: ='tabla 2012'!D82 -> 208 | E84: ='tabla 2012'!E82 -> BKV | F84: ='tabla 2012'!F82 -> bottom2 | G84: ='tabla 2012'!K82/100 -> 0 | H84: ='tabla 2012'!$K$5/100 -> 0 | K84: ='tabla 2012'!G82 -> 0 | L84: ='tabla 2012'!$G$5 -> 0 | N84: 0 | O84: 0 | P84: 0 | Q84: 0 | R84: 0 | S84: 1 | T84: NOT SIG. | U84: =IF(AND(N84>0,T84="SIG"),$C84,"") ->  | V84: =IF(AND(N84<0,T84="SIG"),$C84,"") ->  | W84: ='tabla 2012'!R82/100 -> 0.1955 | X84: ='tabla 2012'!$R$5/100 -> 0.1638 | AA84: ='tabla 2012'!N82 -> 208 | AB84: ='tabla 2012'!$N$5 -> 993 | AD84: -0.0317 | AE84: 0.02756457066 | AF84: 0.01175049587 | AG84: 0.02996464098 | AH84: 1.05791356 | AI84: 0.2903079404 | AJ84: NOT SIG. | AK84: =IF(AND(AD84>0,AJ84="SIG"),$C84,"") ->  | AL84: =IF(AND(AD84<0,AJ84="SIG"),$C84,"") ->  | AM84: ='tabla 2012'!Y82/100 -> 0.2019 | AN84: ='tabla 2012'!$Y$5/100 -> 0.1595 | AQ84: ='tabla 2012'!U82 -> 208 | AR84: ='tabla 2012'!$U$5 -> 997 | AT84: -0.0424 | AU84: 0.02790047789 | AV84: 0.01160164396 | AW84: 0.03021646586 | AX84: 1.403208442 | AY84: 0.1608127368 | AZ84: NOT SIG. | BA84: =IF(AND(AT84>0,AZ84="SIG"),$C84,"") ->  | BB84: =IF(AND(AT84<0,AZ84="SIG"),$C84,"") ->  | BC84: ='tabla 2012'!AE82/100 -> 0.1851 | BD84: ='tabla 2012'!$AE$5/100 -> 0.2174 | BG84: ='tabla 2012'!AB82 -> 208 | BH84: ='tabla 2012'!$AB$5 -> 998 | BJ84: 0.0323 | BK84: 0.02699418349 | BL84: 0.0130632763 | BM84: 0.02998891678 | BN84: 1.077064578 | BO84: 0.2816671725 | BP84: NOT SIG. | BQ84: =IF(AND(BJ84>0,BP84="SIG"),$C84,"") ->  | BR84: =IF(AND(BJ84<0,BP84="SIG"),$C84,"") ->  | BS84: ='tabla 2012'!AK82/100 -> 0.1466 | BT84: ='tabla 2012'!$AK$5/100 -> 0.1352 | BW84: ='tabla 2012'!AH82 -> 208 | BX84: ='tabla 2012'!$AH$5 -> 995 | BZ84: -0.0114 | CA84: 0.02458431612 | CB84: 0.01084558529 | CC84: 0.02687034275 | CD84: 0.4242595678 | CE84: 0.6714525048 | CF84: NOT SIG. | CG84: =IF(AND(BZ84>0,CF84="SIG"),$C84,"") ->  | CH84: =IF(AND(BZ84<0,CF84="SIG"),$C84,"") ->  | CI84: ='tabla 2012'!AT82/100 -> 0.1444 | CJ84: ='tabla 2012'!$AT$5/100 -> 0.1392 | CM84: ='tabla 2012'!AN82 -> 205 | CN84: ='tabla 2012'!$AN$5 -> 993 | CP84: -0.0052 | CQ84: 0.02460956294 | CR84: 0.01099043572 | CS84: 0.0269521848 | CT84: 0.1929342663 | CU84: 0.8470432053 | CV84: NOT SIG. | CW84: =IF(AND(CP84>0,CV84="SIG"),$C84,"") ->  | CX84: =IF(AND(CP84<0,CV84="SIG"),$C84,"") ->  | CY84: ='tabla 2012'!BC82/100 -> 0.0889 | CZ84: ='tabla 2012'!$BC$5/100 -> 0.0716 | DC84: ='tabla 2012'!AW82 -> 208 | DD84: ='tabla 2012'!$AW$5 -> 999 | DF84: -0.0173 | DG84: 0.01978102223 | DH84: 0.008161289929 | DI84: 0.02139849279 | DJ84: 0.8084681555 | DK84: 0.4189807126 | DL84: NOT SIG. | DM84: =IF(AND(DF84>0,DL84="SIG"),$C84,"") ->  | DN84: =IF(AND(DF84<0,DL84="SIG"),$C84,"") ->  | DO84: ='tabla 2012'!BK82/100 -> 0.0541 | DP84: ='tabla 2012'!$BK$5/100 -> 0.0482 | DS84: ='tabla 2012'!BF82 -> 208 | DT84: ='tabla 2012'!$BF$5 -> 996 | DV84: -0.0059 | DW84: 0.01572302383 | DX84: 0.006790235378 | DY84: 0.01712661014 | DZ84: 0.3444931573 | EA84: 0.7305357028 | EB84: NOT SIG. | EC84: =IF(AND(DV84>0,EB84="SIG"),$C84,"") ->  | ED84: =IF(AND(DV84<0,EB84="SIG"),$C84,"") ->  | EE84: ='tabla 2012'!BO82/100 -> 0.1475 | EF84: ='tabla 2012'!$BO$5/100 -> 0.1346 | EI84: ='tabla 2012'!BN82 -> 201 | EJ84: ='tabla 2012'!$BN$5 -> 959 | EL84: -0.0129 | EM84: 0.0250742647 | EN84: 0.01102676758 | EO84: 0.02739175703 | EP84: 0.4709445978 | EQ84: 0.6377689982 | ER84: NOT SIG. | ES84: =IF(AND(EL84>0,ER84="SIG"),$C84,"") ->  | ET84: =IF(AND(EL84<0,ER84="SIG"),$C84,"") -> 
A85: ='tabla 2012'!A83 -> 2013 | B85: ='tabla 2012'!B83 -> életkor | C85: ='tabla 2012'!C83 -> 40-49 éves | D85: ='tabla 2012'!D83 -> 195 | E85: ='tabla 2012'!E83 -> BKV | F85: ='tabla 2012'!F83 -> bottom2 | G85: ='tabla 2012'!K83/100 -> 0 | H85: ='tabla 2012'!$K$5/100 -> 0 | K85: ='tabla 2012'!G83 -> 0 | L85: ='tabla 2012'!$G$5 -> 0 | N85: 0 | O85: 0 | P85: 0 | Q85: 0 | R85: 0 | S85: 1 | T85: NOT SIG. | W85: ='tabla 2012'!R83/100 -> 0.1615 | X85: ='tabla 2012'!$R$5/100 -> 0.1638 | AA85: ='tabla 2012'!N83 -> 194 | AB85: ='tabla 2012'!$N$5 -> 993 | AD85: 0.0023 | AE85: 0.02648860836 | AF85: 0.01175049587 | AG85: 0.02897793171 | AH85: 0.07937074402 | AI85: 0.9367511391 | AJ85: NOT SIG. | AM85: ='tabla 2012'!Y83/100 -> 0.1495 | AN85: ='tabla 2012'!$Y$5/100 -> 0.1595 | AQ85: ='tabla 2012'!U83 -> 194 | AR85: ='tabla 2012'!$U$5 -> 997 | AT85: 0.01 | AU85: 0.02566723582 | AV85: 0.01160164396 | AW85: 0.02816744819 | AX85: 0.3550197353 | AY85: 0.7226377693 | AZ85: NOT SIG. | BC85: ='tabla 2012'!AE83/100 -> 0.2448 | BD85: ='tabla 2012'!$AE$5/100 -> 0.2174 | BG85: ='tabla 2012'!AB83 -> 194 | BH85: ='tabla 2012'!$AB$5 -> 998 | BJ85: -0.0274 | BK85: 0.03094981396 | BL85: 0.0130632763 | BM85: 0.03359375198 | BN85: 0.8156278589 | BO85: 0.4148762293 | BP85: NOT SIG. | BS85: ='tabla 2012'!AK83/100 -> 0.1425 | BT85: ='tabla 2012'!$AK$5/100 -> 0.1352 | BW85: ='tabla 2012'!AH83 -> 193 | BX85: ='tabla 2012'!$AH$5 -> 995 | BZ85: -0.0073 | CA85: 0.02522748068 | CB85: 0.01084558529 | CC85: 0.02746001642 | CD85: 0.2658410647 | CE85: 0.7904078197 | CF85: NOT SIG. | CI85: ='tabla 2012'!AT83/100 -> 0.1392 | CJ85: ='tabla 2012'!$AT$5/100 -> 0.1392 | CM85: ='tabla 2012'!AN83 -> 194 | CN85: ='tabla 2012'!$AN$5 -> 993 | CP85: 0 | CQ85: 0.02491679002 | CR85: 0.01099043572 | CS85: 0.02723299657 | CT85: 0 | CU85: 1 | CV85: NOT SIG. | CY85: ='tabla 2012'!BC83/100 -> 0.0744 | CZ85: ='tabla 2012'!$BC$5/100 -> 0.0716 | DC85: ='tabla 2012'!AW83 -> 195 | DD85: ='tabla 2012'!$AW$5 -> 999 | DF85: -0.0028 | DG85: 0.01884071047 | DH85: 0.008161289929 | DI85: 0.02053238964 | DJ85: 0.1363699038 | DK85: 0.8915518918 | DL85: NOT SIG. | DO85: ='tabla 2012'!BK83/100 -> 0.0438 | DP85: ='tabla 2012'!$BK$5/100 -> 0.0482 | DS85: ='tabla 2012'!BF83 -> 194 | DT85: ='tabla 2012'!$BF$5 -> 996 | DV85: 0.0044 | DW85: 0.01473101835 | DX85: 0.006790235378 | DY85: 0.01622067194 | DZ85: 0.2712587997 | EA85: 0.7862391174 | EB85: NOT SIG. | EE85: ='tabla 2012'!BO83/100 -> 0.1346 | EF85: ='tabla 2012'!$BO$5/100 -> 0.1346 | EI85: ='tabla 2012'!BN83 -> 189 | EJ85: ='tabla 2012'!$BN$5 -> 959 | EL85: 0 | EM85: 0.02489155629 | EN85: 0.01102676758 | EO85: 0.02722460611 | EP85: 0 | EQ85: 1 | ER85: NOT SIG.
A86: ='tabla 2012'!A84 -> 2013 | B86: ='tabla 2012'!B84 -> életkor | C86: ='tabla 2012'!C84 -> 50-59 éves | D86: ='tabla 2012'!D84 -> 169 | E86: ='tabla 2012'!E84 -> BKV | F86: ='tabla 2012'!F84 -> bottom2 | G86: ='tabla 2012'!K84/100 -> 0 | H86: ='tabla 2012'!$K$5/100 -> 0 | K86: ='tabla 2012'!G84 -> 0 | L86: ='tabla 2012'!$G$5 -> 0 | N86: 0 | O86: 0 | P86: 0 | Q86: 0 | R86: 0 | S86: 1 | T86: NOT SIG. | W86: ='tabla 2012'!R84/100 -> 0.1468 | X86: ='tabla 2012'!$R$5/100 -> 0.1638 | AA86: ='tabla 2012'!N84 -> 168 | AB86: ='tabla 2012'!$N$5 -> 993 | AD86: 0.017 | AE86: 0.02738610164 | AF86: 0.01175049587 | AG86: 0.02980054892 | AH86: 0.5704592907 | AI86: 0.5684767986 | AJ86: NOT SIG. | AM86: ='tabla 2012'!Y84/100 -> 0.1577 | AN86: ='tabla 2012'!$Y$5/100 -> 0.1595 | AQ86: ='tabla 2012'!U84 -> 168 | AR86: ='tabla 2012'!$U$5 -> 997 | AT86: 0.0018 | AU86: 0.02820272102 | AV86: 0.01160164396 | AW86: 0.0304957639 | AX86: 0.05902459129 | AY86: 0.9529426613 | AZ86: NOT SIG. | BC86: ='tabla 2012'!AE84/100 -> 0.2308 | BD86: ='tabla 2012'!$AE$5/100 -> 0.2174 | BG86: ='tabla 2012'!AB84 -> 169 | BH86: ='tabla 2012'!$AB$5 -> 998 | BJ86: -0.0134 | BK86: 0.0325074497 | BL86: 0.0130632763 | BM86: 0.03503403307 | BN86: 0.3824852244 | BO86: 0.7021712528 | BP86: NOT SIG. | BS86: ='tabla 2012'!AK84/100 -> 0.1488 | BT86: ='tabla 2012'!$AK$5/100 -> 0.1352 | BW86: ='tabla 2012'!AH84 -> 168 | BX86: ='tabla 2012'!$AH$5 -> 995 | BZ86: -0.0136 | CA86: 0.02753968938 | CB86: 0.01084558529 | CC86: 0.02959833123 | CD86: 0.4594853641 | CE86: 0.6459716815 | CF86: NOT SIG. | CI86: ='tabla 2012'!AT84/100 -> 0.1467 | CJ86: ='tabla 2012'!$AT$5/100 -> 0.1392 | CM86: ='tabla 2012'!AN84 -> 169 | CN86: ='tabla 2012'!$AN$5 -> 993 | CP86: -0.0075 | CQ86: 0.02729677179 | CR86: 0.01099043572 | CS86: 0.02942623706 | CT86: 0.2548745864 | CU86: 0.7988651433 | CV86: NOT SIG. | CY86: ='tabla 2012'!BC84/100 -> 0.0769 | CZ86: ='tabla 2012'!$BC$5/100 -> 0.0716 | DC86: ='tabla 2012'!AW84 -> 169 | DD86: ='tabla 2012'!$AW$5 -> 999 | DF86: -0.0053 | DG86: 0.02055573 | DH86: 0.008161289929 | DI86: 0.02211661568 | DJ86: 0.2396388343 | DK86: 0.8106523746 | DL86: NOT SIG. | DO86: ='tabla 2012'!BK84/100 -> 0.0449 | DP86: ='tabla 2012'!$BK$5/100 -> 0.0482 | DS86: ='tabla 2012'!BF84 -> 167 | DT86: ='tabla 2012'!$BF$5 -> 996 | DV86: 0.0033 | DW86: 0.01607287433 | DX86: 0.006790235378 | DY86: 0.01744834048 | DZ86: 0.1891297343 | EA86: 0.8500241938 | EB86: NOT SIG. | EE86: ='tabla 2012'!BO84/100 -> 0.136 | EF86: ='tabla 2012'!$BO$5/100 -> 0.1346 | EI86: ='tabla 2012'!BN84 -> 163 | EJ86: ='tabla 2012'!$BN$5 -> 959 | EL86: -0.0014 | EM86: 0.02693201317 | EN86: 0.01102676758 | EO86: 0.02910194043 | EP86: 0.04810675781 | EQ86: 0.9616397372 | ER86: NOT SIG.
A87: ='tabla 2012'!A85 -> 2013 | B87: ='tabla 2012'!B85 -> életkor | C87: ='tabla 2012'!C85 -> 60-65 éves | D87: ='tabla 2012'!D85 -> 129 | E87: ='tabla 2012'!E85 -> BKV | F87: ='tabla 2012'!F85 -> bottom2 | G87: ='tabla 2012'!K85/100 -> 0 | H87: ='tabla 2012'!$K$5/100 -> 0 | K87: ='tabla 2012'!G85 -> 0 | L87: ='tabla 2012'!$G$5 -> 0 | N87: 0 | O87: 0 | P87: 0 | Q87: 0 | R87: 0 | S87: 1 | T87: NOT SIG. | W87: ='tabla 2012'!R85/100 -> 0.1942 | X87: ='tabla 2012'!$R$5/100 -> 0.1638 | AA87: ='tabla 2012'!N85 -> 127 | AB87: ='tabla 2012'!$N$5 -> 993 | AD87: -0.0304 | AE87: 0.0352413853 | AF87: 0.01175049587 | AG87: 0.03714874683 | AH87: 0.8183317767 | AI87: 0.4133421466 | AJ87: NOT SIG. | AM87: ='tabla 2012'!Y85/100 -> 0.126 | AN87: ='tabla 2012'!$Y$5/100 -> 0.1595 | AQ87: ='tabla 2012'!U85 -> 127 | AR87: ='tabla 2012'!$U$5 -> 997 | AT87: 0.0335 | AU87: 0.029563491 | AV87: 0.01160164396 | AW87: 0.0317584342 | AX87: 1.054837899 | AY87: 0.2917265547 | AZ87: NOT SIG. | BC87: ='tabla 2012'!AE85/100 -> 0.1914 | BD87: ='tabla 2012'!$AE$5/100 -> 0.2174 | BG87: ='tabla 2012'!AB85 -> 128 | BH87: ='tabla 2012'!$AB$5 -> 998 | BJ87: 0.026 | BK87: 0.03490888477 | BL87: 0.0130632763 | BM87: 0.03727303883 | BN87: 0.6975551448 | BO87: 0.4855997023 | BP87: NOT SIG. | BS87: ='tabla 2012'!AK85/100 -> 0.1457 | BT87: ='tabla 2012'!$AK$5/100 -> 0.1352 | BW87: ='tabla 2012'!AH85 -> 127 | BX87: ='tabla 2012'!$AH$5 -> 995 | BZ87: -0.0105 | CA87: 0.03143038541 | CB87: 0.01084558529 | CC87: 0.03324899769 | CD87: 0.3157989933 | CE87: 0.7522139192 | CF87: NOT SIG. | CI87: ='tabla 2012'!AT85/100 -> 0.1175 | CJ87: ='tabla 2012'!$AT$5/100 -> 0.1392 | CM87: ='tabla 2012'!AN85 -> 126 | CN87: ='tabla 2012'!$AN$5 -> 993 | CP87: 0.0217 | CQ87: 0.02880190966 | CR87: 0.01099043572 | CS87: 0.03082757982 | CT87: 0.7039151347 | CU87: 0.4816323367 | CV87: NOT SIG. | CY87: ='tabla 2012'!BC85/100 -> 0.0669 | CZ87: ='tabla 2012'!$BC$5/100 -> 0.0716 | DC87: ='tabla 2012'!AW85 -> 127 | DD87: ='tabla 2012'!$AW$5 -> 999 | DF87: 0.0047 | DG87: 0.02225829433 | DH87: 0.008161289929 | DI87: 0.02370734738 | DJ87: 0.1982507753 | DK87: 0.8428847126 | DL87: NOT SIG. | DO87: ='tabla 2012'!BK85/100 -> 0.0315 | DP87: ='tabla 2012'!$BK$5/100 -> 0.0482 | DS87: ='tabla 2012'!BF85 -> 127 | DT87: ='tabla 2012'!$BF$5 -> 996 | DV87: 0.0167 | DW87: 0.01556036632 | DX87: 0.006790235378 | DY87: 0.01697740547 | DZ87: 0.9836603143 | EA87: 0.3254948094 | EB87: NOT SIG. | EE87: ='tabla 2012'!BO85/100 -> 0.1266 | EF87: ='tabla 2012'!$BO$5/100 -> 0.1346 | EI87: ='tabla 2012'!BN85 -> 120 | EJ87: ='tabla 2012'!$BN$5 -> 959 | EL87: 0.008 | EM87: 0.03048245673 | EN87: 0.01102676758 | EO87: 0.03241557915 | EP87: 0.2467949119 | EQ87: 0.8051139811 | ER87: NOT SIG.
A88: ='tabla 2012'!A86 -> 2013 | B88: ='tabla 2012'!B86 -> életkor | C88: ='tabla 2012'!C86 -> idősebb mint 65 éves | D88: ='tabla 2012'!D86 -> 99 | E88: ='tabla 2012'!E86 -> BKV | F88: ='tabla 2012'!F86 -> bottom2 | G88: ='tabla 2012'!K86/100 -> 0 | H88: ='tabla 2012'!$K$5/100 -> 0 | K88: ='tabla 2012'!G86 -> 0 | L88: ='tabla 2012'!$G$5 -> 0 | N88: 0 | O88: 0 | P88: 0 | Q88: 0 | R88: 0 | S88: 1 | T88: NOT SIG. | W88: ='tabla 2012'!R86/100 -> 0.1327 | X88: ='tabla 2012'!$R$5/100 -> 0.1638 | AA88: ='tabla 2012'!N86 -> 98 | AB88: ='tabla 2012'!$N$5 -> 993 | AD88: 0.0311 | AE88: 0.03444564072 | AF88: 0.01175049587 | AG88: 0.03639472926 | AH88: 0.8545193392 | AI88: 0.3930052395 | AJ88: NOT SIG. | AM88: ='tabla 2012'!Y86/100 -> 0.0808 | AN88: ='tabla 2012'!$Y$5/100 -> 0.1595 | AQ88: ='tabla 2012'!U86 -> 99 | AR88: ='tabla 2012'!$U$5 -> 997 | AT88: 0.0787 | AU88: 0.02752945732 | AV88: 0.01160164396 | AW88: 0.02987422238 | AX88: 2.634378194 | AY88: 0.008548187768 | AZ88: SIG | BA88: idősebb mint 65 éves | BC88: ='tabla 2012'!AE86/100 -> 0.2576 | BD88: ='tabla 2012'!$AE$5/100 -> 0.2174 | BG88: ='tabla 2012'!AB86 -> 99 | BH88: ='tabla 2012'!$AB$5 -> 998 | BJ88: -0.0402 | BK88: 0.04417523547 | BL88: 0.0130632763 | BM88: 0.04606626332 | BN88: 0.8726559765 | BO88: 0.3830419334 | BP88: NOT SIG. | BS88: ='tabla 2012'!AK86/100 -> 0.1071 | BT88: ='tabla 2012'!$AK$5/100 -> 0.1352 | BW88: ='tabla 2012'!AH86 -> 98 | BX88: ='tabla 2012'!$AH$5 -> 995 | BZ88: 0.0281 | CA88: 0.03139859968 | CB88: 0.01084558529 | CC88: 0.03321895215 | CD88: 0.8459026603 | CE88: 0.3977925346 | CF88: NOT SIG. | CI88: ='tabla 2012'!AT86/100 -> 0.0808 | CJ88: ='tabla 2012'!$AT$5/100 -> 0.1392 | CM88: ='tabla 2012'!AN86 -> 99 | CN88: ='tabla 2012'!$AN$5 -> 993 | CP88: 0.0584 | CQ88: 0.02752945732 | CR88: 0.01099043572 | CS88: 0.02964221142 | CT88: 1.970163399 | CU88: 0.04907245974 | CV88: SIG | CW88: idősebb mint 65 éves | CY88: ='tabla 2012'!BC86/100 -> 0.0455 | CZ88: ='tabla 2012'!$BC$5/100 -> 0.0716 | DC88: ='tabla 2012'!AW86 -> 99 | DD88: ='tabla 2012'!$AW$5 -> 999 | DF88: 0.0261 | DG88: 0.02105138272 | DH88: 0.008161289929 | DI88: 0.02257802843 | DJ88: 1.155991104 | DK88: 0.2479367214 | DL88: NOT SIG. | DO88: ='tabla 2012'!BK86/100 -> 0.0328 | DP88: ='tabla 2012'!$BK$5/100 -> 0.0482 | DS88: ='tabla 2012'!BF86 -> 99 | DT88: ='tabla 2012'!$BF$5 -> 996 | DV88: 0.0154 | DW88: 0.01799210711 | DX88: 0.006790235378 | DY88: 0.0192307882 | DZ88: 0.80079921 | EA88: 0.423421929 | EB88: NOT SIG. | EE88: ='tabla 2012'!BO86/100 -> 0.1134 | EF88: ='tabla 2012'!$BO$5/100 -> 0.1346 | EI88: ='tabla 2012'!BN86 -> 97 | EJ88: ='tabla 2012'!$BN$5 -> 959 | EL88: 0.0212 | EM88: 0.03236195683 | EN88: 0.01102676758 | EO88: 0.03418897269 | EP88: 0.6200829781 | EQ88: 0.5353371931 | ER88: NOT SIG.
U89: =U83&IF(U83="","","; ")&U84&IF(U84="","","; ")&U85&IF(U85="","","; ")&U86&IF(U86="","","; ")&U87&IF(U87="","","; ")&U88 ->  | V89: =V83&IF(V83="","","; ")&V84&IF(V84="","","; ")&V85&IF(V85="","","; ")&V86&IF(V86="","","; ")&V87&IF(V87="","","; ")&V88 ->  | AK89: =AK83&IF(AK83="","","; ")&AK84&IF(AK84="","","; ")&AK85&IF(AK85="","","; ")&AK86&IF(AK86="","","; ")&AK87&IF(AK87="","","; ")&AK88 ->  | AL89: =AL83&IF(AL83="","","; ")&AL84&IF(AL84="","","; ")&AL85&IF(AL85="","","; ")&AL86&IF(AL86="","","; ")&AL87&IF(AL87="","","; ")&AL88 ->  | BA89: =BA83&IF(BA83="","","; ")&BA84&IF(BA84="","","; ")&BA85&IF(BA85="","","; ")&BA86&IF(BA86="","","; ")&BA87&IF(BA87="","","; ")&BA88 -> idősebb mint 65 éves | BB89: =BB83&IF(BB83="","","; ")&BB84&IF(BB84="","","; ")&BB85&IF(BB85="","","; ")&BB86&IF(BB86="","","; ")&BB87&IF(BB87="","","; ")&BB88 ->  | BQ89: =BQ83&IF(BQ83="","","; ")&BQ84&IF(BQ84="","","; ")&BQ85&IF(BQ85="","","; ")&BQ86&IF(BQ86="","","; ")&BQ87&IF(BQ87="","","; ")&BQ88 ->  | BR89: =BR83&IF(BR83="","","; ")&BR84&IF(BR84="","","; ")&BR85&IF(BR85="","","; ")&BR86&IF(BR86="","","; ")&BR87&IF(BR87="","","; ")&BR88 ->  | CG89: =CG83&IF(CG83="","","; ")&CG84&IF(CG84="","","; ")&CG85&IF(CG85="","","; ")&CG86&IF(CG86="","","; ")&CG87&IF(CG87="","","; ")&CG88 ->  | CH89: =CH83&IF(CH83="","","; ")&CH84&IF(CH84="","","; ")&CH85&IF(CH85="","","; ")&CH86&IF(CH86="","","; ")&CH87&IF(CH87="","","; ")&CH88 ->  | CW89: =CW83&IF(CW83="","","; ")&CW84&IF(CW84="","","; ")&CW85&IF(CW85="","","; ")&CW86&IF(CW86="","","; ")&CW87&IF(CW87="","","; ")&CW88 -> idősebb mint 65 éves | CX89: =CX83&IF(CX83="","","; ")&CX84&IF(CX84="","","; ")&CX85&IF(CX85="","","; ")&CX86&IF(CX86="","","; ")&CX87&IF(CX87="","","; ")&CX88 ->  | DM89: =DM83&IF(DM83="","","; ")&DM84&IF(DM84="","","; ")&DM85&IF(DM85="","","; ")&DM86&IF(DM86="","","; ")&DM87&IF(DM87="","","; ")&DM88 ->  | DN89: =DN83&IF(DN83="","","; ")&DN84&IF(DN84="","","; ")&DN85&IF(DN85="","","; ")&DN86&IF(DN86="","","; ")&DN87&IF(DN87="","","; ")&DN88 ->  | EC89: =EC83&IF(EC83="","","; ")&EC84&IF(EC84="","","; ")&EC85&IF(EC85="","","; ")&EC86&IF(EC86="","","; ")&EC87&IF(EC87="","","; ")&EC88 ->  | ED89: =ED83&IF(ED83="","","; ")&ED84&IF(ED84="","","; ")&ED85&IF(ED85="","","; ")&ED86&IF(ED86="","","; ")&ED87&IF(ED87="","","; ")&ED88 ->  | ES89: =ES83&IF(ES83="","","; ")&ES84&IF(ES84="","","; ")&ES85&IF(ES85="","","; ")&ES86&IF(ES86="","","; ")&ES87&IF(ES87="","","; ")&ES88 ->  | ET89: =ET83&IF(ET83="","","; ")&ET84&IF(ET84="","","; ")&ET85&IF(ET85="","","; ")&ET86&IF(ET86="","","; ")&ET87&IF(ET87="","","; ")&ET88 -> 
A90: ='tabla 2012'!A87 -> 2013 | B90: ='tabla 2012'!B87 -> iskolai végzettség | C90: ='tabla 2012'!C87 -> legfeljebb általános iskola | D90: ='tabla 2012'!D87 -> 104 | E90: ='tabla 2012'!E87 -> BKV | F90: ='tabla 2012'!F87 -> bottom2 | G90: ='tabla 2012'!K87/100 -> 0 | H90: ='tabla 2012'!$K$5/100 -> 0 | K90: ='tabla 2012'!G87 -> 0 | L90: ='tabla 2012'!$G$5 -> 0 | N90: 0 | O90: 0 | P90: =IF((L90-1)=0,0,SQRT((1-H90)*H90/(L90-1))) -> 0 | Q90: 0 | R90: 0 | S90: =IF(R90=0,1,TDIST(R90,K90+L90-2,$B$2)) -> 1 | T90: NOT SIG. | W90: ='tabla 2012'!R87/100 -> 0.1294 | X90: ='tabla 2012'!$R$5/100 -> 0.1638 | AA90: ='tabla 2012'!N87 -> 103 | AB90: ='tabla 2012'!$N$5 -> 993 | AD90: 0.0344 | AE90: 0.03323352312 | AF90: 0.01175049587 | AG90: 0.03524969804 | AH90: 0.9758948845 | AI90: 0.329332295 | AJ90: NOT SIG. | AM90: ='tabla 2012'!Y87/100 -> 0.1394 | AN90: ='tabla 2012'!$Y$5/100 -> 0.1595 | AQ90: ='tabla 2012'!U87 -> 104 | AR90: ='tabla 2012'!$U$5 -> 997 | AT90: 0.0201 | AU90: 0.03412820489 | AV90: 0.01160164396 | AW90: 0.03604625517 | AX90: 0.5576168705 | AY90: 0.5772195915 | AZ90: NOT SIG. | BC90: ='tabla 2012'!AE87/100 -> 0.2837 | BD90: ='tabla 2012'!$AE$5/100 -> 0.2174 | BG90: ='tabla 2012'!AB87 -> 104 | BH90: ='tabla 2012'!$AB$5 -> 998 | BJ90: -0.0663 | BK90: 0.04441795207 | BL90: 0.0130632763 | BM90: 0.04629906752 | BN90: 1.431994283 | BO90: 0.1524295368 | BP90: NOT SIG. | BS90: ='tabla 2012'!AK87/100 -> 0.1346 | BT90: ='tabla 2012'!$AK$5/100 -> 0.1352 | BW90: ='tabla 2012'!AH87 -> 104 | BX90: ='tabla 2012'!$AH$5 -> 995 | BZ90: 0.0006 | CA90: 0.03362887687 | CB90: 0.01084558529 | CC90: 0.03533451683 | CD90: 0.01698056331 | CE90: 0.9864552095 | CF90: NOT SIG. | CI90: ='tabla 2012'!AT87/100 -> 0.1577 | CJ90: ='tabla 2012'!$AT$5/100 -> 0.1392 | CM90: ='tabla 2012'!AN87 -> 104 | CN90: ='tabla 2012'!$AN$5 -> 993 | CP90: -0.0185 | CQ90: 0.03591125929 | CR90: 0.01099043572 | CS90: 0.03755540202 | CT90: 0.4926055641 | CU90: 0.6223900718 | CV90: NOT SIG. | CY90: ='tabla 2012'!BC87/100 -> 0.0865 | CZ90: ='tabla 2012'!$BC$5/100 -> 0.0716 | DC90: ='tabla 2012'!AW87 -> 104 | DD90: ='tabla 2012'!$AW$5 -> 999 | DF90: =CZ90-CY90 -> -0.0149 | DG90: =IF((DC90-1)=0,0,SQRT((1-CY90)*CY90/(DC90-1))) -> 0.02769770065 | DH90: 0.008161289929 | DI90: 0.0288750632 | DJ90: 0.5160161866 | DK90: =IF(DJ90=0,1,TDIST(DJ90,DC90+DD90-2,$B$2)) -> 0.6059467139 | DL90: NOT SIG. | DO90: ='tabla 2012'!BK87/100 -> 0.0564 | DP90: ='tabla 2012'!$BK$5/100 -> 0.0482 | DS90: ='tabla 2012'!BF87 -> 102 | DT90: ='tabla 2012'!$BF$5 -> 996 | DV90: =DP90-DO90 -> -0.0082 | DW90: =IF((DS90-1)=0,0,SQRT((1-DO90)*DO90/(DS90-1))) -> 0.02295476395 | DX90: 0.006790235378 | DY90: 0.02393801338 | DZ90: 0.3425514001 | EA90: =IF(DZ90=0,1,TDIST(DZ90,DS90+DT90-2,$B$2)) -> 0.7320016512 | EB90: NOT SIG. | EE90: ='tabla 2012'!BO87/100 -> 0.143 | EF90: ='tabla 2012'!$BO$5/100 -> 0.1346 | EI90: ='tabla 2012'!BN87 -> 99 | EJ90: ='tabla 2012'!$BN$5 -> 959 | EL90: =EF90-EE90 -> -0.0084 | EM90: =IF((EI90-1)=0,0,SQRT((1-EE90)*EE90/(EI90-1))) -> 0.03536269798 | EN90: 0.01102676758 | EO90: 0.03704200334 | EP90: 0.2267695924 | EQ90: =IF(EP90=0,1,TDIST(EP90,EI90+EJ90-2,$B$2)) -> 0.8206467988 | ER90: NOT SIG.
A91: ='tabla 2012'!A88 -> 2013 | B91: ='tabla 2012'!B88 -> iskolai végzettség | C91: ='tabla 2012'!C88 -> szakmunkásképző | D91: ='tabla 2012'!D88 -> 204 | E91: ='tabla 2012'!E88 -> BKV | F91: ='tabla 2012'!F88 -> bottom2 | G91: ='tabla 2012'!K88/100 -> 0 | H91: ='tabla 2012'!$K$5/100 -> 0 | K91: ='tabla 2012'!G88 -> 0 | L91: ='tabla 2012'!$G$5 -> 0 | N91: 0 | O91: 0 | P91: =IF((L91-1)=0,0,SQRT((1-H91)*H91/(L91-1))) -> 0 | Q91: 0 | R91: 0 | S91: =IF(R91=0,1,TDIST(R91,K91+L91-2,$B$2)) -> 1 | T91: NOT SIG. | W91: ='tabla 2012'!R88/100 -> 0.1509 | X91: ='tabla 2012'!$R$5/100 -> 0.1638 | AA91: ='tabla 2012'!N88 -> 201 | AB91: ='tabla 2012'!$N$5 -> 993 | AD91: 0.0129 | AE91: 0.02531098477 | AF91: 0.01175049587 | AG91: 0.02790555685 | AH91: 0.4622735202 | AI91: 0.6439695498 | AJ91: NOT SIG. | AM91: ='tabla 2012'!Y88/100 -> 0.1361 | AN91: ='tabla 2012'!$Y$5/100 -> 0.1595 | AQ91: ='tabla 2012'!U88 -> 202 | AR91: ='tabla 2012'!$U$5 -> 997 | AT91: 0.0234 | AU91: 0.02418592885 | AV91: 0.01160164396 | AW91: 0.02682456517 | AX91: 0.8723347368 | AY91: 0.3832007358 | AZ91: NOT SIG. | BC91: ='tabla 2012'!AE88/100 -> 0.2808 | BD91: ='tabla 2012'!$AE$5/100 -> 0.2174 | BG91: ='tabla 2012'!AB88 -> 203 | BH91: ='tabla 2012'!$AB$5 -> 998 | BJ91: -0.0634 | BK91: 0.03161896912 | BL91: 0.0130632763 | BM91: 0.03421123201 | BN91: 1.853192542 | BO91: 0.06410029657 | BP91: NOT SIG. | BS91: ='tabla 2012'!AK88/100 -> 0.1355 | BT91: ='tabla 2012'!$AK$5/100 -> 0.1352 | BW91: ='tabla 2012'!AH88 -> 203 | BX91: ='tabla 2012'!$AH$5 -> 995 | BZ91: -0.0003 | CA91: 0.02408110779 | CB91: 0.01084558529 | CC91: 0.02641072647 | CD91: 0.01135902113 | CE91: 0.9909389017 | CF91: NOT SIG. | CI91: ='tabla 2012'!AT88/100 -> 0.1208 | CJ91: ='tabla 2012'!$AT$5/100 -> 0.1392 | CM91: ='tabla 2012'!AN88 -> 202 | CN91: ='tabla 2012'!$AN$5 -> 993 | CP91: 0.0184 | CQ91: 0.02298684028 | CR91: 0.01099043572 | CS91: 0.02547909934 | CT91: 0.7221605345 | CU91: 0.4703373093 | CV91: NOT SIG. | CY91: ='tabla 2012'!BC88/100 -> 0.0665 | CZ91: ='tabla 2012'!$BC$5/100 -> 0.0716 | DC91: ='tabla 2012'!AW88 -> 203 | DD91: ='tabla 2012'!$AW$5 -> 999 | DF91: =CZ91-CY91 -> 0.0051 | DG91: 0.01753041911 | DH91: 0.008161289929 | DI91: 0.01933706925 | DJ91: 0.2637421386 | DK91: =IF(DJ91=0,1,TDIST(DJ91,DC91+DD91-2,$B$2)) -> 0.7920239054 | DL91: NOT SIG. | DO91: ='tabla 2012'!BK88/100 -> 0.052 | DP91: ='tabla 2012'!$BK$5/100 -> 0.0482 | DS91: ='tabla 2012'!BF88 -> 202 | DT91: ='tabla 2012'!$BF$5 -> 996 | DV91: =DP91-DO91 -> -0.0038 | DW91: 0.0156605789 | DX91: 0.006790235378 | DY91: 0.01706930074 | DZ91: 0.2226218905 | EA91: =IF(DZ91=0,1,TDIST(DZ91,DS91+DT91-2,$B$2)) -> 0.8238678094 | EB91: NOT SIG. | EE91: ='tabla 2012'!BO88/100 -> 0.14 | EF91: ='tabla 2012'!$BO$5/100 -> 0.1346 | EI91: ='tabla 2012'!BN88 -> 196 | EJ91: ='tabla 2012'!$BN$5 -> 959 | EL91: =EF91-EE91 -> -0.0054 | EM91: 0.02484825743 | EN91: 0.01102676758 | EO91: 0.02718502346 | EP91: 0.1986387839 | EQ91: =IF(EP91=0,1,TDIST(EP91,EI91+EJ91-2,$B$2)) -> 0.8425803321 | ER91: NOT SIG.
A92: ='tabla 2012'!A89 -> 2013 | B92: ='tabla 2012'!B89 -> iskolai végzettség | C92: ='tabla 2012'!C89 -> érettségi | D92: ='tabla 2012'!D89 -> 464 | E92: ='tabla 2012'!E89 -> BKV | F92: ='tabla 2012'!F89 -> bottom2 | G92: ='tabla 2012'!K89/100 -> 0 | H92: ='tabla 2012'!$K$5/100 -> 0 | K92: ='tabla 2012'!G89 -> 0 | L92: ='tabla 2012'!$G$5 -> 0 | N92: 0 | O92: 0 | P92: =IF((L92-1)=0,0,SQRT((1-H92)*H92/(L92-1))) -> 0 | Q92: 0 | R92: 0 | S92: =IF(R92=0,1,TDIST(R92,K92+L92-2,$B$2)) -> 1 | T92: NOT SIG. | W92: ='tabla 2012'!R89/100 -> 0.1609 | X92: ='tabla 2012'!$R$5/100 -> 0.1638 | AA92: ='tabla 2012'!N89 -> 460 | AB92: ='tabla 2012'!$N$5 -> 993 | AD92: 0.0029 | AE92: 0.01715056927 | AF92: 0.01175049587 | AG92: 0.02078980951 | AH92: 0.1394914176 | AI92: 0.8890811957 | AJ92: NOT SIG. | AM92: ='tabla 2012'!Y89/100 -> 0.1706 | AN92: ='tabla 2012'!$Y$5/100 -> 0.1595 | AQ92: ='tabla 2012'!U89 -> 463 | AR92: ='tabla 2012'!$U$5 -> 997 | AT92: -0.0111 | AU92: 0.01750050339 | AV92: 0.01160164396 | AW92: 0.0209968036 | AX92: 0.5286518943 | AY92: 0.5971274157 | AZ92: NOT SIG. | BC92: ='tabla 2012'!AE89/100 -> 0.1901 | BD92: ='tabla 2012'!$AE$5/100 -> 0.2174 | BG92: ='tabla 2012'!AB89 -> 463 | BH92: ='tabla 2012'!$AB$5 -> 998 | BJ92: 0.0273 | BK92: 0.01825516531 | BL92: 0.0130632763 | BM92: 0.02244772256 | BN92: 1.216159008 | BO92: 0.224121076 | BP92: NOT SIG. | BS92: ='tabla 2012'!AK89/100 -> 0.1239 | BT92: ='tabla 2012'!$AK$5/100 -> 0.1352 | BW92: ='tabla 2012'!AH89 -> 460 | BX92: ='tabla 2012'!$AH$5 -> 995 | BZ92: 0.0113 | CA92: 0.01537822287 | CB92: 0.01084558529 | CC92: 0.01881798233 | CD92: 0.6004894575 | CE92: 0.548273732 | CF92: NOT SIG. | CI92: ='tabla 2012'!AT89/100 -> 0.1317 | CJ92: ='tabla 2012'!$AT$5/100 -> 0.1392 | CM92: ='tabla 2012'!AN89 -> 460 | CN92: ='tabla 2012'!$AN$5 -> 993 | CP92: 0.0075 | CQ92: 0.01578415893 | CR92: 0.01099043572 | CS92: 0.01923354753 | CT92: 0.3899436642 | CU92: 0.6966354357 | CV92: NOT SIG. | CY92: ='tabla 2012'!BC89/100 -> 0.0614 | CZ92: ='tabla 2012'!$BC$5/100 -> 0.0716 | DC92: ='tabla 2012'!AW89 -> 464 | DD92: ='tabla 2012'!$AW$5 -> 999 | DF92: =CZ92-CY92 -> 0.0102 | DG92: 0.01115665401 | DH92: 0.008161289929 | DI92: 0.0138230815 | DJ92: 0.7378962501 | DK92: =IF(DJ92=0,1,TDIST(DJ92,DC92+DD92-2,$B$2)) -> 0.4606959976 | DL92: NOT SIG. | DO92: ='tabla 2012'!BK89/100 -> 0.0454 | DP92: ='tabla 2012'!$BK$5/100 -> 0.0482 | DS92: ='tabla 2012'!BF89 -> 463 | DT92: ='tabla 2012'!$BF$5 -> 996 | DV92: =DP92-DO92 -> 0.0028 | DW92: 0.009685402056 | DX92: 0.006790235378 | DY92: 0.01182853793 | DZ92: 0.2367156463 | EA92: =IF(DZ92=0,1,TDIST(DZ92,DS92+DT92-2,$B$2)) -> 0.812910671 | EB92: NOT SIG. | EE92: ='tabla 2012'!BO89/100 -> 0.1263 | EF92: ='tabla 2012'!$BO$5/100 -> 0.1346 | EI92: ='tabla 2012'!BN89 -> 444 | EJ92: ='tabla 2012'!$BN$5 -> 959 | EL92: =EF92-EE92 -> 0.0083 | EM92: 0.01578268832 | EN92: 0.01102676758 | EO92: 0.01925312582 | EP92: 0.4310988292 | EQ92: =IF(EP92=0,1,TDIST(EP92,EI92+EJ92-2,$B$2)) -> 0.6664628321 | ER92: NOT SIG.
A93: ='tabla 2012'!A90 -> 2013 | B93: ='tabla 2012'!B90 -> iskolai végzettség | C93: ='tabla 2012'!C90 -> főiskola, egyetem | D93: ='tabla 2012'!D90 -> 219 | E93: ='tabla 2012'!E90 -> BKV | F93: ='tabla 2012'!F90 -> bottom2 | G93: ='tabla 2012'!K90/100 -> 0 | H93: ='tabla 2012'!$K$5/100 -> 0 | K93: ='tabla 2012'!G90 -> 0 | L93: ='tabla 2012'!$G$5 -> 0 | N93: 0 | O93: 0 | P93: =IF((L93-1)=0,0,SQRT((1-H93)*H93/(L93-1))) -> 0 | Q93: 0 | R93: 0 | S93: =IF(R93=0,1,TDIST(R93,K93+L93-2,$B$2)) -> 1 | T93: NOT SIG. | W93: ='tabla 2012'!R90/100 -> 0.1979 | X93: ='tabla 2012'!$R$5/100 -> 0.1638 | AA93: ='tabla 2012'!N90 -> 219 | AB93: ='tabla 2012'!$N$5 -> 993 | AD93: -0.0341 | AE93: 0.02698416032 | AF93: 0.01175049587 | AG93: 0.02943159971 | AH93: 1.158618639 | AI93: 0.2468402813 | AJ93: NOT SIG. | AM93: ='tabla 2012'!Y90/100 -> 0.1697 | AN93: ='tabla 2012'!$Y$5/100 -> 0.1595 | AQ93: ='tabla 2012'!U90 -> 218 | AR93: ='tabla 2012'!$U$5 -> 997 | AT93: -0.0102 | AU93: 0.02548171026 | AV93: 0.01160164396 | AW93: 0.02799849461 | AX93: 0.3643053008 | AY93: 0.7156935367 | AZ93: NOT SIG. | BC93: ='tabla 2012'!AE90/100 -> 0.1858 | BD93: ='tabla 2012'!$AE$5/100 -> 0.2174 | BG93: ='tabla 2012'!AB90 -> 218 | BH93: ='tabla 2012'!$AB$5 -> 998 | BJ93: 0.0316 | BK93: 0.02640331986 | BL93: 0.0130632763 | BM93: 0.02945818201 | BN93: 1.072707066 | BO93: 0.2836157545 | BP93: NOT SIG. | BS93: ='tabla 2012'!AK90/100 -> 0.156 | BT93: ='tabla 2012'!$AK$5/100 -> 0.1352 | BW93: ='tabla 2012'!AH90 -> 218 | BX93: ='tabla 2012'!$AH$5 -> 995 | BZ93: -0.0208 | CA93: 0.02463222572 | CB93: 0.01084558529 | CC93: 0.02691418333 | CD93: 0.7728267192 | CE93: 0.4397757472 | CF93: NOT SIG. | CI93: ='tabla 2012'!AT90/100 -> 0.165 | CJ93: ='tabla 2012'!$AT$5/100 -> 0.1392 | CM93: ='tabla 2012'!AN90 -> 217 | CN93: ='tabla 2012'!$AN$5 -> 993 | CP93: -0.0258 | CQ93: 0.02525563743 | CR93: 0.01099043572 | CS93: 0.02754336399 | CT93: 0.9367047545 | CU93: 0.3490976744 | CV93: NOT SIG. | CY93: ='tabla 2012'!BC90/100 -> 0.0894 | CZ93: ='tabla 2012'!$BC$5/100 -> 0.0716 | DC93: ='tabla 2012'!AW90 -> 218 | DD93: ='tabla 2012'!$AW$5 -> 999 | DF93: =CZ93-CY93 -> -0.0178 | DG93: 0.01936880003 | DH93: 0.008161289929 | DI93: 0.0210180177 | DJ93: 0.846892426 | DK93: =IF(DJ93=0,1,TDIST(DJ93,DC93+DD93-2,$B$2)) -> 0.3972218619 | DL93: NOT SIG. | DO93: ='tabla 2012'!BK90/100 -> 0.0457 | DP93: ='tabla 2012'!$BK$5/100 -> 0.0482 | DS93: ='tabla 2012'!BF90 -> 219 | DT93: ='tabla 2012'!$BF$5 -> 996 | DV93: =DP93-DO93 -> 0.0025 | DW93: 0.0141440022 | DX93: 0.006790235378 | DY93: 0.01568948994 | DZ93: 0.1593423374 | EA93: =IF(DZ93=0,1,TDIST(DZ93,DS93+DT93-2,$B$2)) -> 0.873425693 | EB93: NOT SIG. | EE93: ='tabla 2012'!BO90/100 -> 0.1432 | EF93: ='tabla 2012'!$BO$5/100 -> 0.1346 | EI93: ='tabla 2012'!BN90 -> 211 | EJ93: ='tabla 2012'!$BN$5 -> 959 | EL93: =EF93-EE93 -> -0.0086 | EM93: 0.02417138804 | EN93: 0.01102676758 | EO93: 0.02656775495 | EP93: 0.323700667 | EQ93: =IF(EP93=0,1,TDIST(EP93,EI93+EJ93-2,$B$2)) -> 0.7462226159 | ER93: NOT SIG.
U94: =U90&IF(U90="","","; ")&U91&IF(U91="","","; ")&U92&IF(U92="","","; ")&U93 ->  | V94: =V90&IF(V90="","","; ")&V91&IF(V91="","","; ")&V92&IF(V92="","","; ")&V93 ->  | AK94: =AK90&IF(AK90="","","; ")&AK91&IF(AK91="","","; ")&AK92&IF(AK92="","","; ")&AK93 ->  | AL94: =AL90&IF(AL90="","","; ")&AL91&IF(AL91="","","; ")&AL92&IF(AL92="","","; ")&AL93 ->  | BA94: =BA90&IF(BA90="","","; ")&BA91&IF(BA91="","","; ")&BA92&IF(BA92="","","; ")&BA93 ->  | BB94: =BB90&IF(BB90="","","; ")&BB91&IF(BB91="","","; ")&BB92&IF(BB92="","","; ")&BB93 ->  | BQ94: =BQ90&IF(BQ90="","","; ")&BQ91&IF(BQ91="","","; ")&BQ92&IF(BQ92="","","; ")&BQ93 ->  | BR94: =BR90&IF(BR90="","","; ")&BR91&IF(BR91="","","; ")&BR92&IF(BR92="","","; ")&BR93 ->  | CG94: =CG90&IF(CG90="","","; ")&CG91&IF(CG91="","","; ")&CG92&IF(CG92="","","; ")&CG93 ->  | CH94: =CH90&IF(CH90="","","; ")&CH91&IF(CH91="","","; ")&CH92&IF(CH92="","","; ")&CH93 ->  | CW94: =CW90&IF(CW90="","","; ")&CW91&IF(CW91="","","; ")&CW92&IF(CW92="","","; ")&CW93 ->  | CX94: =CX90&IF(CX90="","","; ")&CX91&IF(CX91="","","; ")&CX92&IF(CX92="","","; ")&CX93 ->  | DM94: =DM90&IF(DM90="","","; ")&DM91&IF(DM91="","","; ")&DM92&IF(DM92="","","; ")&DM93 ->  | DN94: =DN90&IF(DN90="","","; ")&DN91&IF(DN91="","","; ")&DN92&IF(DN92="","","; ")&DN93 ->  | EC94: =EC90&IF(EC90="","","; ")&EC91&IF(EC91="","","; ")&EC92&IF(EC92="","","; ")&EC93 ->  | ED94: =ED90&IF(ED90="","","; ")&ED91&IF(ED91="","","; ")&ED92&IF(ED92="","","; ")&ED93 ->  | ES94: =ES90&IF(ES90="","","; ")&ES91&IF(ES91="","","; ")&ES92&IF(ES92="","","; ")&ES93 ->  | ET94: =ET90&IF(ET90="","","; ")&ET91&IF(ET91="","","; ")&ET92&IF(ET92="","","; ")&ET93 -> 
A95: ='tabla 2012'!A91 -> 2013 | B95: ='tabla 2012'!B91 -> foglalkozás | C95: ='tabla 2012'!C91 -> dolgozik | D95: ='tabla 2012'!D91 -> 626 | E95: ='tabla 2012'!E91 -> BKV | F95: ='tabla 2012'!F91 -> bottom2 | G95: ='tabla 2012'!K91/100 -> 0 | H95: ='tabla 2012'!$K$5/100 -> 0 | K95: ='tabla 2012'!G91 -> 0 | L95: ='tabla 2012'!$G$5 -> 0 | N95: 0 | O95: 0 | P95: =IF((L95-1)=0,0,SQRT((1-H95)*H95/(L95-1))) -> 0 | Q95: 0 | R95: 0 | S95: =IF(R95=0,1,TDIST(R95,K95+L95-2,$B$2)) -> 1 | T95: NOT SIG. | W95: ='tabla 2012'!R91/100 -> 0.1691 | X95: ='tabla 2012'!$R$5/100 -> 0.1638 | AA95: ='tabla 2012'!N91 -> 623 | AB95: ='tabla 2012'!$N$5 -> 993 | AD95: -0.0053 | AE95: 0.0150297235 | AF95: 0.01175049587 | AG95: 0.0190779124 | AH95: 0.2778081736 | AI95: 0.7811951972 | AJ95: NOT SIG. | AM95: ='tabla 2012'!Y91/100 -> 0.1709 | AN95: ='tabla 2012'!$Y$5/100 -> 0.1595 | AQ95: ='tabla 2012'!U91 -> 623 | AR95: ='tabla 2012'!$U$5 -> 997 | AT95: -0.0114 | AU95: 0.01509312944 | AV95: 0.01160164396 | AW95: 0.01903682481 | AX95: 0.5988393608 | AY95: 0.5493638399 | AZ95: NOT SIG. | BC95: ='tabla 2012'!AE91/100 -> 0.2104 | BD95: ='tabla 2012'!$AE$5/100 -> 0.2174 | BG95: ='tabla 2012'!AB91 -> 625 | BH95: ='tabla 2012'!$AB$5 -> 998 | BJ95: 0.007 | BK95: 0.01631676816 | BL95: 0.0130632763 | BM95: 0.02090182075 | BN95: 0.3348990542 | BO95: 0.7377445653 | BP95: NOT SIG. | BS95: ='tabla 2012'!AK91/100 -> 0.1426 | BT95: ='tabla 2012'!$AK$5/100 -> 0.1352 | BW95: ='tabla 2012'!AH91 -> 624 | BX95: ='tabla 2012'!$AH$5 -> 995 | BZ95: -0.0074 | CA95: 0.01400901109 | CB95: 0.01084558529 | CC95: 0.01771663377 | CD95: 0.4176865706 | CE95: 0.6762317468 | CF95: NOT SIG. | CI95: ='tabla 2012'!AT91/100 -> 0.1452 | CJ95: ='tabla 2012'!$AT$5/100 -> 0.1392 | CM95: ='tabla 2012'!AN91 -> 621 | CN95: ='tabla 2012'!$AN$5 -> 993 | CP95: -0.006 | CQ95: 0.01414880367 | CR95: 0.01099043572 | CS95: 0.0179158679 | CT95: 0.3348986515 | CU95: 0.7377451109 | CV95: NOT SIG. | CY95: ='tabla 2012'!BC91/100 -> 0.0751 | CZ95: ='tabla 2012'!$BC$5/100 -> 0.0716 | DC95: ='tabla 2012'!AW91 -> 626 | DD95: ='tabla 2012'!$AW$5 -> 999 | DF95: =CZ95-CY95 -> -0.0035 | DG95: =IF((DC95-1)=0,0,SQRT((1-CY95)*CY95/(DC95-1))) -> 0.01054210529 | DH95: 0.008161289929 | DI95: 0.0133320155 | DJ95: 0.2625259474 | DK95: =IF(DJ95=0,1,TDIST(DJ95,DC95+DD95-2,$B$2)) -> 0.7929493015 | DL95: NOT SIG. | DO95: ='tabla 2012'!BK91/100 -> 0.0541 | DP95: ='tabla 2012'!$BK$5/100 -> 0.0482 | DS95: ='tabla 2012'!BF91 -> 624 | DT95: ='tabla 2012'!$BF$5 -> 996 | DV95: =DP95-DO95 -> -0.0059 | DW95: =IF((DS95-1)=0,0,SQRT((1-DO95)*DO95/(DS95-1))) -> 0.009063109392 | DX95: 0.006790235378 | DY95: 0.01132463016 | DZ95: 0.5209883162 | EA95: =IF(DZ95=0,1,TDIST(DZ95,DS95+DT95-2,$B$2)) -> 0.6024462024 | EB95: NOT SIG. | EE95: ='tabla 2012'!BO91/100 -> 0.139 | EF95: ='tabla 2012'!$BO$5/100 -> 0.1346 | EI95: ='tabla 2012'!BN91 -> 602 | EJ95: ='tabla 2012'!$BN$5 -> 959 | EL95: =EF95-EE95 -> -0.0044 | EM95: =IF((EI95-1)=0,0,SQRT((1-EE95)*EE95/(EI95-1))) -> 0.0141114532 | EN95: 0.01102676758 | EO95: 0.01790873292 | EP95: 0.2456901903 | EQ95: =IF(EP95=0,1,TDIST(EP95,EI95+EJ95-2,$B$2)) -> 0.8059544059 | ER95: NOT SIG.
A96: ='tabla 2012'!A92 -> 2013 | B96: ='tabla 2012'!B92 -> foglalkozás | C96: ='tabla 2012'!C92 -> nyugdíjas | D96: ='tabla 2012'!D92 -> 237 | E96: ='tabla 2012'!E92 -> BKV | F96: ='tabla 2012'!F92 -> bottom2 | G96: ='tabla 2012'!K92/100 -> 0 | H96: ='tabla 2012'!$K$5/100 -> 0 | K96: ='tabla 2012'!G92 -> 0 | L96: ='tabla 2012'!$G$5 -> 0 | N96: 0 | O96: 0 | P96: =IF((L96-1)=0,0,SQRT((1-H96)*H96/(L96-1))) -> 0 | Q96: 0 | R96: 0 | S96: =IF(R96=0,1,TDIST(R96,K96+L96-2,$B$2)) -> 1 | T96: NOT SIG. | W96: ='tabla 2012'!R92/100 -> 0.1496 | X96: ='tabla 2012'!$R$5/100 -> 0.1638 | AA96: ='tabla 2012'!N92 -> 234 | AB96: ='tabla 2012'!$N$5 -> 993 | AD96: 0.0142 | AE96: 0.02336681187 | AF96: 0.01175049587 | AG96: 0.02615496225 | AH96: 0.5429180079 | AI96: 0.5872850219 | AJ96: NOT SIG. | AM96: ='tabla 2012'!Y92/100 -> 0.1038 | AN96: ='tabla 2012'!$Y$5/100 -> 0.1595 | AQ96: ='tabla 2012'!U92 -> 236 | AR96: ='tabla 2012'!$U$5 -> 997 | AT96: 0.0557 | AU96: 0.01989606611 | AV96: 0.01160164396 | AW96: 0.02303153467 | AX96: 2.418423296 | AY96: 0.01573228332 | AZ96: SIG | BA96: nyugdíjas | BC96: ='tabla 2012'!AE92/100 -> 0.2288 | BD96: ='tabla 2012'!$AE$5/100 -> 0.2174 | BG96: ='tabla 2012'!AB92 -> 236 | BH96: ='tabla 2012'!$AB$5 -> 998 | BJ96: -0.0114 | BK96: 0.02740170518 | BL96: 0.0130632763 | BM96: 0.03035626186 | BN96: 0.3755403103 | BO96: 0.7073233203 | BP96: NOT SIG. | BS96: ='tabla 2012'!AK92/100 -> 0.1288 | BT96: ='tabla 2012'!$AK$5/100 -> 0.1352 | BW96: ='tabla 2012'!AH92 -> 233 | BX96: ='tabla 2012'!$AH$5 -> 995 | BZ96: 0.0064 | CA96: 0.02199241248 | CB96: 0.01084558529 | CC96: 0.02452127499 | CD96: 0.2609978479 | CE96: 0.7941380006 | CF96: NOT SIG. | CI96: ='tabla 2012'!AT92/100 -> 0.106 | CJ96: ='tabla 2012'!$AT$5/100 -> 0.1392 | CM96: ='tabla 2012'!AN92 -> 234 | CN96: ='tabla 2012'!$AN$5 -> 993 | CP96: 0.0332 | CQ96: 0.02016711299 | CR96: 0.01099043572 | CS96: 0.02296741439 | CT96: 1.445526233 | CU96: 0.1485658979 | CV96: NOT SIG. | CY96: ='tabla 2012'!BC92/100 -> 0.0574 | CZ96: ='tabla 2012'!$BC$5/100 -> 0.0716 | DC96: ='tabla 2012'!AW92 -> 235 | DD96: ='tabla 2012'!$AW$5 -> 999 | DF96: =CZ96-CY96 -> 0.0142 | DG96: 0.01520588617 | DH96: 0.008161289929 | DI96: 0.0172576252 | DJ96: 0.8228246837 | DK96: =IF(DJ96=0,1,TDIST(DJ96,DC96+DD96-2,$B$2)) -> 0.4107669284 | DL96: NOT SIG. | DO96: ='tabla 2012'!BK92/100 -> 0.0351 | DP96: ='tabla 2012'!$BK$5/100 -> 0.0482 | DS96: ='tabla 2012'!BF92 -> 235 | DT96: ='tabla 2012'!$BF$5 -> 996 | DV96: =DP96-DO96 -> 0.0131 | DW96: 0.01203058602 | DX96: 0.006790235378 | DY96: 0.01381456827 | DZ96: 0.948274296 | EA96: =IF(DZ96=0,1,TDIST(DZ96,DS96+DT96-2,$B$2)) -> 0.3431762515 | EB96: NOT SIG. | EE96: ='tabla 2012'!BO92/100 -> 0.1191 | EF96: ='tabla 2012'!$BO$5/100 -> 0.1346 | EI96: ='tabla 2012'!BN92 -> 226 | EJ96: ='tabla 2012'!$BN$5 -> 959 | EL96: =EF96-EE96 -> 0.0155 | EM96: 0.02159374292 | EN96: 0.01102676758 | EO96: 0.02424622314 | EP96: 0.6392748227 | EQ96: =IF(EP96=0,1,TDIST(EP96,EI96+EJ96-2,$B$2)) -> 0.5227679259 | ER96: NOT SIG.
A97: ='tabla 2012'!A93 -> 2013 | B97: ='tabla 2012'!B93 -> foglalkozás | C97: ='tabla 2012'!C93 -> tanuló | D97: ='tabla 2012'!D93 -> 73 | E97: ='tabla 2012'!E93 -> BKV | F97: ='tabla 2012'!F93 -> bottom2 | G97: ='tabla 2012'!K93/100 -> 0 | H97: ='tabla 2012'!$K$5/100 -> 0 | K97: ='tabla 2012'!G93 -> 0 | L97: ='tabla 2012'!$G$5 -> 0 | N97: 0 | O97: 0 | P97: =IF((L97-1)=0,0,SQRT((1-H97)*H97/(L97-1))) -> 0 | Q97: 0 | R97: 0 | S97: =IF(R97=0,1,TDIST(R97,K97+L97-2,$B$2)) -> 1 | T97: NOT SIG. | W97: ='tabla 2012'!R93/100 -> 0.1174 | X97: ='tabla 2012'!$R$5/100 -> 0.1638 | AA97: ='tabla 2012'!N93 -> 71 | AB97: ='tabla 2012'!$N$5 -> 993 | AD97: 0.0464 | AE97: 0.03847396894 | AF97: 0.01175049587 | AG97: 0.04022835367 | AH97: 1.153415334 | AI97: 0.2489994703 | AJ97: NOT SIG. | AM97: ='tabla 2012'!Y93/100 -> 0.1849 | AN97: ='tabla 2012'!$Y$5/100 -> 0.1595 | AQ97: ='tabla 2012'!U93 -> 73 | AR97: ='tabla 2012'!$U$5 -> 997 | AT97: -0.0254 | AU97: 0.04575174405 | AV97: 0.01160164396 | AW97: 0.04719979053 | AX97: 0.5381379815 | AY97: 0.5905939183 | AZ97: NOT SIG. | BC97: ='tabla 2012'!AE93/100 -> 0.25 | BD97: ='tabla 2012'!$AE$5/100 -> 0.2174 | BG97: ='tabla 2012'!AB93 -> 72 | BH97: ='tabla 2012'!$AB$5 -> 998 | BJ97: -0.0326 | BK97: 0.05138915324 | BL97: 0.0130632763 | BM97: 0.05302352551 | BN97: 0.6148214341 | BO97: 0.5388036176 | BP97: NOT SIG. | BS97: ='tabla 2012'!AK93/100 -> 0.089 | BT97: ='tabla 2012'!$AK$5/100 -> 0.1352 | BW97: ='tabla 2012'!AH93 -> 73 | BX97: ='tabla 2012'!$AH$5 -> 995 | BZ97: 0.0462 | CA97: 0.0335573721 | CB97: 0.01084558529 | CC97: 0.03526647051 | CD97: 1.31002619 | CE97: 0.1904691984 | CF97: NOT SIG. | CI97: ='tabla 2012'!AT93/100 -> 0.1726 | CJ97: ='tabla 2012'!$AT$5/100 -> 0.1392 | CM97: ='tabla 2012'!AN93 -> 73 | CN97: ='tabla 2012'!$AN$5 -> 993 | CP97: -0.0334 | CQ97: 0.04453607152 | CR97: 0.01099043572 | CS97: 0.04587211946 | CT97: 0.7281111139 | CU97: 0.4667057736 | CV97: NOT SIG. | CY97: ='tabla 2012'!BC93/100 -> 0.0822 | CZ97: ='tabla 2012'!$BC$5/100 -> 0.0716 | DC97: ='tabla 2012'!AW93 -> 73 | DD97: ='tabla 2012'!$AW$5 -> 999 | DF97: =CZ97-CY97 -> -0.0106 | DG97: 0.03237007363 | DH97: 0.008161289929 | DI97: 0.03338305438 | DJ97: 0.3175263677 | DK97: =IF(DJ97=0,1,TDIST(DJ97,DC97+DD97-2,$B$2)) -> 0.7509061859 | DL97: NOT SIG. | DO97: ='tabla 2012'!BK93/100 -> 0.0548 | DP97: ='tabla 2012'!$BK$5/100 -> 0.0482 | DS97: ='tabla 2012'!BF93 -> 73 | DT97: ='tabla 2012'!$BF$5 -> 996 | DV97: =DP97-DO97 -> -0.0066 | DW97: 0.02682167449 | DX97: 0.006790235378 | DY97: 0.02766784268 | DZ97: 0.2385440772 | EA97: =IF(DZ97=0,1,TDIST(DZ97,DS97+DT97-2,$B$2)) -> 0.8115049379 | EB97: NOT SIG. | EE97: ='tabla 2012'!BO93/100 -> 0.1327 | EF97: ='tabla 2012'!$BO$5/100 -> 0.1346 | EI97: ='tabla 2012'!BN93 -> 68 | EJ97: ='tabla 2012'!$BN$5 -> 959 | EL97: =EF97-EE97 -> 0.0019 | EM97: 0.04144601056 | EN97: 0.01102676758 | EO97: 0.04288777675 | EP97: 0.04430166691 | EQ97: =IF(EP97=0,1,TDIST(EP97,EI97+EJ97-2,$B$2)) -> 0.9646725717 | ER97: NOT SIG.
A98: ='tabla 2012'!A94 -> 2013 | B98: ='tabla 2012'!B94 -> foglalkozás | C98: ='tabla 2012'!C94 -> egyéb | D98: ='tabla 2012'!D94 -> 62 | E98: ='tabla 2012'!E94 -> BKV | F98: ='tabla 2012'!F94 -> bottom2 | G98: ='tabla 2012'!K94/100 -> 0 | H98: ='tabla 2012'!$K$5/100 -> 0 | K98: ='tabla 2012'!G94 -> 0 | L98: ='tabla 2012'!$G$5 -> 0 | N98: 0 | O98: 0 | P98: =IF((L98-1)=0,0,SQRT((1-H98)*H98/(L98-1))) -> 0 | Q98: 0 | R98: 0 | S98: =IF(R98=0,1,TDIST(R98,K98+L98-2,$B$2)) -> 1 | T98: NOT SIG. | W98: ='tabla 2012'!R94/100 -> 0.2097 | X98: ='tabla 2012'!$R$5/100 -> 0.1638 | AA98: ='tabla 2012'!N94 -> 62 | AB98: ='tabla 2012'!$N$5 -> 993 | AD98: -0.0459 | AE98: 0.05212310617 | AF98: 0.01175049587 | AG98: 0.05343119267 | AH98: 0.8590487636 | AI98: 0.3905091244 | AJ98: NOT SIG. | AM98: ='tabla 2012'!Y94/100 -> 0.2258 | AN98: ='tabla 2012'!$Y$5/100 -> 0.1595 | AQ98: ='tabla 2012'!U94 -> 62 | AR98: ='tabla 2012'!$U$5 -> 997 | AT98: -0.0663 | AU98: 0.05353325303 | AV98: 0.01160164396 | AW98: 0.05477597396 | AX98: 1.210384685 | AY98: 0.2264019064 | AZ98: NOT SIG. | BC98: ='tabla 2012'!AE94/100 -> 0.2177 | BD98: ='tabla 2012'!$AE$5/100 -> 0.2174 | BG98: ='tabla 2012'!AB94 -> 62 | BH98: ='tabla 2012'!$AB$5 -> 998 | BJ98: -0.0003 | BK98: 0.05283855864 | BL98: 0.0130632763 | BM98: 0.05442942647 | BN98: 0.005511724437 | BO98: 0.9956033415 | BP98: NOT SIG. | BS98: ='tabla 2012'!AK94/100 -> 0.129 | BT98: ='tabla 2012'!$AK$5/100 -> 0.1352 | BW98: ='tabla 2012'!AH94 -> 62 | BX98: ='tabla 2012'!$AH$5 -> 995 | BZ98: 0.0062 | CA98: 0.04291795451 | CB98: 0.01084558529 | CC98: 0.04426711579 | CD98: 0.14005882 | CE98: 0.8886402507 | CF98: NOT SIG. | CI98: ='tabla 2012'!AT94/100 -> 0.171 | CJ98: ='tabla 2012'!$AT$5/100 -> 0.1392 | CM98: ='tabla 2012'!AN94 -> 62 | CN98: ='tabla 2012'!$AN$5 -> 993 | CP98: -0.0318 | CQ98: 0.04820703302 | CR98: 0.01099043572 | CS98: 0.04944398558 | CT98: 0.6431520361 | CU98: 0.5202654789 | CV98: NOT SIG. | CY98: ='tabla 2012'!BC94/100 -> 0.0806 | CZ98: ='tabla 2012'!$BC$5/100 -> 0.0716 | DC98: ='tabla 2012'!AW94 -> 62 | DD98: ='tabla 2012'!$AW$5 -> 999 | DF98: =CZ98-CY98 -> -0.009 | DG98: 0.03485417867 | DH98: 0.008161289929 | DI98: 0.03579693316 | DJ98: 0.251418186 | DK98: =IF(DJ98=0,1,TDIST(DJ98,DC98+DD98-2,$B$2)) -> 0.8015395864 | DL98: NOT SIG. | DO98: ='tabla 2012'!BK94/100 -> 0.0328 | DP98: ='tabla 2012'!$BK$5/100 -> 0.0482 | DS98: ='tabla 2012'!BF94 -> 61 | DT98: ='tabla 2012'!$BF$5 -> 996 | DV98: =DP98-DO98 -> 0.0154 | DW98: 0.02299426015 | DX98: 0.006790235378 | DY98: 0.0239758899 | DZ98: 0.6423119252 | EA98: =IF(DZ98=0,1,TDIST(DZ98,DS98+DT98-2,$B$2)) -> 0.5208102201 | EB98: NOT SIG. | EE98: ='tabla 2012'!BO94/100 -> 0.1516 | EF98: ='tabla 2012'!$BO$5/100 -> 0.1346 | EI98: ='tabla 2012'!BN94 -> 60 | EJ98: ='tabla 2012'!$BN$5 -> 959 | EL98: =EF98-EE98 -> -0.017 | EM98: 0.04669000546 | EN98: 0.01102676758 | EO98: 0.04797443291 | EP98: 0.3543554132 | EQ98: =IF(EP98=0,1,TDIST(EP98,EI98+EJ98-2,$B$2)) -> 0.7231460034 | ER98: NOT SIG.
